Workbook

Sheet Title
B2: Central Hydrogen Production - Project Information
B5: Title: | C5: Current Central Hydrogen Production from Steam Methane Reforming (SMR) of Natural Gas without CCS
B6: Authors: | C6: M. Penev
B7: Contact: | C7: Michael Penev
B8: Contact phone: | C8: 303 275 3880
B9: Contact e-mail: | C9: mike.penev@nrel.gov
B10: Organization: | C10: NREL
B11: Date: | C11: 2022-04-26
B12: Web Site: | C12: www.nrel.gov
B14: Plant Design Capacity (kg/day): | C14: =+ProcessFlow!$V$12 -> 483024
B15: Start-up Year: | C15: 2015
B16: Primary Product Feedstock Source: | C16: Industrial Natural Gas
B17: Secondary Feedstock Source: | C17: none
B18: Process Energy Source: | C18: Standard fossil energy sources
B19: Conversion Technology: | C19: Natural gas desulfurization, steam-methane-reformer, shift, pressure swing absorption
B20: Primary By-Product: | C20: none
B21: Secondary By-Product: | C21: none
B22: Based on Number of Plants Installed per Year (per manufacturer): | C22: Nth plant
B23: H2 Onsite Storage Type | C23: none
B24: Assumed plant location: | C24: USA, average
B26: Reporting Spreadsheet Change History:
B27: Date spreadsheet created / modified | C27: Name | D27: Comments
B28: 2022-04-26 | C28: M. Penev | D28: Based on Case 1 of NETL 2022 Comparison of Commercial, State-of-the-Art, Fossil-Based Hydrogen Production Technologies ↓
D29: https://netl.doe.gov/energy-analysis/details?id=ed4825aa-8f04-4df7-abef-60e564f636c9

Sheet Description
B2: Central Hydrogen Production - Description
B6: Purpose:
B7: Steam methane reforming (SMR) of natural gas continues to be the most efficient, economical, and widely used process for production of hydrogen and hydrogen/carbon monoxide mixtures. The purpose of this analysis is to assess the economic production of hydrogen from the steam reforming of natural gas without any carbon capture and sequestration.
B10: System Description:
B11: Natural gas is fed into the steam methane reformer (SMR) plant via a pipeline at 450 psia. The gas is desulfurized, and mixed with steam at 395°C. The reformer reactor is fed with an overall steam to carbon (H₂O/C) ratio of 2.56. The endothermic steam methane reforming reaction is performed on the cold side of a tube-shell heat exchanger and heat is supplied on the hot side of the heat exchanger by combustion of pressure swing adsorber (PSA) effluent and supplemental natural gas. Product syngas exits the reactor at 870°C and is cooled to 204°C before entering a shift reactor. In the shift reactor, carbon monoxide from the syngas reacts with steam to produce more hydrogen and carbon dioxide. Product hydrogen rich product is further purified through a PSA system resulting in pure hydrogen at 346 psia.
B12: Note 1: while the process flow shows compression past 300 psia, H2A model framework excludes compression for transmission and distribution. Hence, entailed analysis does not include capital or energy use for the product hydrogen compressor.
B15: Analysis Methodology Summary:
B16: The methodology for developing the performance results presented in this report included performing steady-state simulations of the hydrogen plant configurations at the design capacity using the Aspen Plus® (Aspen) process modeling software. The major plant equipment performance and process limits were based on published reports, information obtained from vendors and users of the technology, performance data from design/build utility projects, and/or best engineering judgment. Mass and energy balance data from the Aspen models were used to size major pieces of equipment, which formed the basis for developing the cost estimates presented. Full, bottom-up estimates for each case in this study were not pursued. Instead, the capital and operation and maintenance (O&M) costs for each of the cases were estimated using a combined bottom-up and scaling approach. Black & Veatch (B&V) leveraged an in-house database and conceptual estimating models. Costs were further calibrated using a combination of adjusted vendor-furnished data and scaled estimates from previous design/build projects. In addition, cost scaling was performed on select plant areas using reference costs from prior NETL studies according to the 2019 revision of the QGESS document “Capital Cost Scaling Methodology: Revision 4 Report.”
B19: Plant Ownership and Entity Type Assumptions:
B20: Corporate ownership, with 1.5 debt to equity financing capital structure.
B22: References:
B23: Lewis, E. et al. 2022. Comparison of commercial, state-of-the-art, fossil-based hydrogen production technologies. National Energy Technology Laboratory (NETL).
B24: https://netl.doe.gov/energy-analysis/details?id=ed4825aa-8f04-4df7-abef-60e564f636c9

Sheet ProcessFlow
B2: Central Hydrogen Production - Process Flow Diagram
S5: Key parameters
B6: Process Flow Diagram | S6: Steam/carbon ratio (mol/mol) | V6: =+H78/(J70+J71+2*J72+3*J73+4*J74+J75+J76) -> 2.560304349
S7: Feed rate (kJ/h) | V7: =-(E70*V70+E72*V72+E73*V73+E74*V74)*1000 -> 3349829124 | W7: =-(E70*W70+E72*W72+E73*W73+E74*W74)*1000 -> 3711391334 | X7: LHV, HHV
S8: Feed rate (kW) | V8: =+V7*0.0002777778 -> 930508.1645 | W8: =+W7*0.0002777778 -> 1030942.12 | X8: LHV, HHV
S9: Feed rate (mmBTU/h) | V9: =+V8*3412.142/1000000 -> 3175.025989 | W9: =+W8*3412.142/1000000 -> 3517.720907 | X9: LHV, HHV
S10: Product rate (kJ/h) | V10: =-(N77*V77)*1000 -> 2407863465 | W10: =-(N77*W77)*1000 -> 2846011654 | X10: LHV, HHV
S11: Product rate (kW) | V11: =+V10*0.0002777778 -> 668851.016 | W11: =+W10*0.0002777778 -> 790558.856 | X11: LHV, HHV
S12: Product rate (kg/day) | V12: =+N48*24 -> 483024
S13: Carbon feed rate (mol/h) | V13: =+(E70+2*E72+3*E73+4*E74+E76)*1000 -> 4268032
S14: SMR carbon reforming rate | V14: =+(J75+J76-F76)/(F70+F71+2*F72+3*F73+4*F74) -> 0.7885148532
S15: Shift CO conversion rate | V15: =+(K75-L75)/K75 -> 0.9719976324
S16: Fuel use (mmBTU, LHV/kg H₂) | V16: =+V9/N48 -> 0.1577574277
S17: Raw water withdrawal (gal/min) | V17: 1457
S18: Raw water withdrawal (gal/kg H₂) | V18: =+V17*60/N48 -> 4.343635099
S19: Electricity use (kW) | V19: =+D100 -> 2640
S20: Electricity use (kWh/kg H₂) | V20: =+V19/M48 -> 0.1311736063
B29: Stream Summaries
C30: 1 | D30: 2 | E30: 3 | F30: 4 | G30: 5 | H30: 6 | I30: 7 | J30: 8 | K30: 9 | L30: 10 | M30: 11 | N30: 12 | O30: 13 | P30: 14 | Q30: 15 | R30: 16
B31: V-L Mole Fraction
B32: Ar | C32: 0.0092 | D32: 0.0092 | E32: 0 | F32: 0 | G32: 0 | H32: 0 | I32: 0 | J32: 0 | K32: 0 | L32: 0 | M32: 0 | N32: 0 | O32: 0 | P32: 0 | Q32: 0 | R32: 0.0072
B33: CH4 | C33: 0 | D33: 0 | E33: 0.931 | F33: 0.931 | G33: 0.931 | H33: 0 | I33: 0.2583 | J33: 0.0411 | K33: 0.0411 | L33: 0.0513 | M33: 0 | N33: 0 | O33: 0.141 | P33: 0.931 | Q33: 0.194 | R33: 0
B34: CH4S | C34: 0 | D34: 0 | E34: 0 | F34: 0 | G34: 0 | H34: 0 | I34: 0 | J34: 0 | K34: 0 | L34: 0 | M34: 0 | N34: 0 | O34: 0 | P34: 0 | Q34: 0 | R34: 0
B35: C2H6 | C35: 0 | D35: 0 | E35: 0.032 | F35: 0.032 | G35: 0.032 | H35: 0 | I35: 0 | J35: 0 | K35: 0 | L35: 0 | M35: 0 | N35: 0 | O35: 0 | P35: 0.032 | Q35: 0.0022 | R35: 0
B36: C3H8 | C36: 0 | D36: 0 | E36: 0.007 | F36: 0.007 | G36: 0.007 | H36: 0 | I36: 0 | J36: 0 | K36: 0 | L36: 0 | M36: 0 | N36: 0 | O36: 0 | P36: 0.007 | Q36: 0.0005 | R36: 0
B37: C4H10 | C37: 0 | D37: 0 | E37: 0.004 | F37: 0.004 | G37: 0.004 | H37: 0 | I37: 0 | J37: 0 | K37: 0 | L37: 0 | M37: 0 | N37: 0 | O37: 0 | P37: 0.004 | Q37: 0.0003 | R37: 0
B38: CO | C38: 0 | D38: 0 | E38: 0 | F38: 0 | G38: 0 | H38: 0 | I38: 0.0001 | J38: 0.1432 | K38: 0.1432 | L38: 0.005 | M38: 0 | N38: 0 | O38: 0.0137 | P38: 0 | Q38: 0.0128 | R38: 0
B39: CO2 | C39: 0.0003 | D39: 0.0003 | E39: 0.01 | F39: 0.01 | G39: 0.01 | H39: 0 | I39: 0.0174 | J39: 0.0124 | K39: 0.0124 | L39: 0.1891 | M39: 0 | N39: 0 | O39: 0.5198 | P39: 0.01 | Q39: 0.4855 | R39: 0.1858
B40: H2 | C40: 0 | D40: 0 | E40: 0 | F40: 0 | G40: 0 | H40: 0 | I40: 0.0439 | J40: 0.4609 | K40: 0.4609 | L40: 0.7483 | M40: 0.9998 | N40: 0.9998 | O40: 0.3085 | P40: 0 | Q40: 0.2878 | R40: 0
B41: H2O | C41: 0.0099 | D41: 0.0099 | E41: 0 | F41: 0 | G41: 0 | H41: 1 | I41: 0.676 | J41: 0.3393 | K41: 0.3393 | L41: 0.0025 | M41: 0 | N41: 0 | O41: 0.0069 | P41: 0 | Q41: 0.0065 | R41: 0.1913
B42: N2 | C42: 0.7732 | D42: 0.7732 | E42: 0.016 | F42: 0.016 | G42: 0.016 | H42: 0 | I42: 0.0042 | J42: 0.003 | K42: 0.003 | L42: 0.0038 | M42: 0.0002 | N42: 0.0002 | O42: 0.01 | P42: 0.016 | Q42: 0.0104 | R42: 0.6012
B43: O2 | C43: 0.2074 | D43: 0.2074 | E43: 0 | F43: 0 | G43: 0 | H43: 0 | I43: 0 | J43: 0 | K43: 0 | L43: 0 | M43: 0 | N43: 0 | O43: 0 | P43: 0 | Q43: 0 | R43: 0.0146
B44: SO2 | C44: 0 | D44: 0 | E44: 0 | F44: 0 | G44: 0 | H44: 0 | I44: 0 | J44: 0 | K44: 0 | L44: 0 | M44: 0 | N44: 0 | O44: 0 | P44: 0 | Q44: 0 | R44: 0
B45: Total | C45: 1 | D45: 1 | E45: 1 | F45: 1 | G45: 1 | H45: 1 | I45: 1 | J45: 1 | K45: 1 | L45: 1 | M45: 1 | N45: 1 | O45: 1 | P45: 1 | Q45: 1 | R45: 1
B47: V-L Flowrate (kgmol/hr) | C47: 17806 | D47: 17806 | E47: 4096 | F47: 3687 | G47: 3687 | H47: 9830 | I47: 13930 | J47: 19519 | K47: 19519 | L47: 15654 | M47: 9959 | N47: 9959 | O47: 5695 | P47: 410 | Q47: 6104 | R47: 23005
B48: V-L Flowrate (kg/hr) | C48: 513824 | D48: 513824 | E48: 70979 | F48: 63881 | G48: 63880 | H48: 177086 | I48: 240966 | J48: 240966 | K48: 240966 | L48: 171320 | M48: 20126 | N48: 20126 | O48: 151195 | P48: 7098 | Q48: 158293 | R48: 672117
B49: Solids Flowrate (kg/hr) | C49: 0 | D49: 0 | E49: 0 | F49: 0 | G49: 0 | H49: 0 | I49: 0 | J49: 0 | K49: 0 | L49: 0 | M49: 0 | N49: 0 | O49: 0 | P49: 0 | Q49: 0 | R49: 0
B51: Temperature (°C) | C51: 15 | D51: 24 | E51: 15 | F51: 15 | G51: 370 | H51: 399 | I51: 395 | J51: 871 | K51: 204 | L51: 38 | M51: 38 | N51: 30 | O51: 38 | P51: 15 | Q51: 35 | R51: 121
B52: Pressure (MPa, abs) | C52: 0.1 | D52: 0.11 | E52: 3.1 | F52: 3.1 | G52: 3 | H52: 3.1 | I52: 2.9 | J52: 2.83 | K52: 2.8 | L52: 2.45 | M52: 2.39 | N52: 6.48 | O52: 0.14 | P52: 3.1 | Q52: 0.14 | R52: 0.1
B53: Steam Table Enthalpy (kJ/kg)A | C53: 30.23 | D53: 39.78 | E53: -6.77 | F53: -6.77 | G53: 969.07 | H53: 3217.36 | I53: 2587.64 | J53: 3639.9 | K53: 1740.51 | L53: 109.39 | M53: 544.72 | N53: 446.66 | O53: 59.24 | P53: -6.77 | Q53: 56.28 | R53: 426.36
B54: AspenPlus Enthalpy (kJ/kg)B | C54: -97.58 | D54: -88.02 | E54: -4516 | F54: -4516 | G54: -3540.22 | H54: -12753.76 | I54: -10182.33 | J54: -6233.86 | K54: -8133.24 | L54: -7225.03 | M54: 188.98 | N54: 90.92 | O54: -8204.1 | P54: -4516 | Q54: -8038.73 | R54: -3980.71
B55: Density (kg/m3) | C55: 1.2 | D55: 1.3 | E55: 24.4 | F55: 24.4 | G55: 9.7 | H55: 10.4 | I55: 9.3 | J55: 3.7 | K55: 8.8 | L55: 10.4 | M55: 1.8 | N55: 5 | O55: 1.4 | P55: 24.4 | Q55: 1.4 | R55: 0.9
B56: V-L Molecular Weight | C56: 28.857 | D56: 28.857 | E56: 17.328 | F56: 17.328 | G56: 17.328 | H56: 18.016 | I56: 17.299 | J56: 12.345 | K56: 12.345 | L56: 10.945 | M56: 2.021 | N56: 2.021 | O56: 26.549 | P56: 17.328 | Q56: 25.931 | R56: 29.217
B58: V-L Flowrate (lbmol/hr) | C58: 39255 | D58: 39255 | E58: 9031 | F58: 8128 | G58: 8128 | H58: 21670 | I58: 30710 | J58: 43032 | K58: 43032 | L58: 34510 | M58: 21955 | N58: 21955 | O58: 12555 | P58: 903 | Q58: 13458 | R58: 50717
B59: V-L Flowrate (lb/hr) | C59: 1132789 | D59: 1132789 | E59: 156482 | F59: 140834 | G59: 140832 | H59: 390407 | I59: 531239 | J59: 531239 | K59: 531239 | L59: 377697 | M59: 44369 | N59: 44369 | O59: 333328 | P59: 15648 | Q59: 348976 | R59: 1481765
B60: Solids Flowrate (lb/hr) | C60: 0 | D60: 0 | E60: 0 | F60: 0 | G60: 0 | H60: 0 | I60: 0 | J60: 0 | K60: 0 | L60: 0 | M60: 0 | N60: 0 | O60: 0 | P60: 0 | Q60: 0 | R60: 0
B62: Temperature (°F) | C62: 59 | D62: 76 | E62: 59 | F62: 59 | G62: 698 | H62: 750 | I62: 743 | J62: 1600 | K62: 400 | L62: 100 | M62: 100 | N62: 86 | O62: 100 | P62: 59 | Q62: 95 | R62: 250
B63: Pressure (psia) | C63: 14.7 | D63: 16 | E63: 450 | F63: 450 | G63: 435.3 | H63: 450 | I63: 421 | J63: 411 | K63: 406 | L63: 356 | M63: 346 | N63: 939.7 | O63: 20 | P63: 450 | Q63: 20 | R63: 14.7
B64: Steam Table Enthalpy (Btu/lb)A | C64: 13 | D64: 17.1 | E64: -2.9 | F64: -2.9 | G64: 416.6 | H64: 1383.2 | I64: 1112.5 | J64: 1564.9 | K64: 748.3 | L64: 47 | M64: 234.2 | N64: 192 | O64: 25.5 | P64: -2.9 | Q64: 24.2 | R64: 183.3
B65: AspenPlus Enthalpy (Btu/lb)B | C65: -42 | D65: -37.8 | E65: -1941.5 | F65: -1941.5 | G65: -1522 | H65: -5483.1 | I65: -4377.6 | J65: -2680.1 | K65: -3496.7 | L65: -3106.2 | M65: 81.2 | N65: 39.1 | O65: -3527.1 | P65: -1941.5 | Q65: -3456 | R65: -1711.4
B66: Density (lb/ft3) | C66: 0.076 | D66: 0.08 | E66: 1.525 | F66: 1.525 | G66: 0.605 | H66: 0.652 | I66: 0.578 | J66: 0.229 | K66: 0.549 | L66: 0.647 | M66: 0.115 | N66: 0.314 | O66: 0.089 | P66: 1.525 | Q66: 0.087 | R66: 0.056
B68: Mol flow basis kmol/h | C68: =+C30 -> 1 | D68: =+D30 -> 2 | E68: 3 | F68: 4 | G68: 5 | H68: 6 | I68: 7 | J68: 8 | K68: 9 | L68: 10 | M68: 11 | N68: 12 | O68: 13 | P68: 14 | Q68: 15 | R68: 16 | T68: dHf (g, kJ/mol) | U68: dHf (l, kJ/mol) | V68: Heat of combustion (LHV, kJ/mol) | W68: Heat of combustion (HHV, kJ/mol)
B69: Ar | C69: =+C32*C$47 -> 163.8152 | D69: =+D32*D$47 -> 163.8152 | E69: 0 | F69: 0 | G69: 0 | H69: 0 | I69: 0 | J69: 0 | K69: 0 | L69: 0 | M69: 0 | N69: 0 | O69: 0 | P69: 0 | Q69: 0 | R69: 165.636 | T69: 0
B70: CH4 | C70: =+C33*C$47 -> 0 | D70: 0 | E70: 3813.376 | F70: 3432.597 | G70: 3432.597 | H70: 0 | I70: 3598.119 | J70: 802.2309 | K70: 802.2309 | L70: 803.0502 | M70: 0 | N70: 0 | O70: 802.995 | P70: 381.71 | Q70: 1184.176 | R70: 0 | T70: -74.6 | V70: =2*T78+T76-T70 -> -802.562 | W70: =2*U78+T76-T70 -> -890.57
B71: CH4S | C71: =+C34*C$47 -> 0 | D71: 0 | E71: 0 | F71: 0 | G71: 0 | H71: 0 | I71: 0 | J71: 0 | K71: 0 | L71: 0 | M71: 0 | N71: 0 | O71: 0 | P71: 0 | Q71: 0 | R71: 0 | T71: -22.8
B72: C2H6 | C72: =+C35*C$47 -> 0 | D72: 0 | E72: 131.072 | F72: 117.984 | G72: 117.984 | H72: 0 | I72: 0 | J72: 0 | K72: 0 | L72: 0 | M72: 0 | N72: 0 | O72: 0 | P72: 13.12 | Q72: 13.4288 | R72: 0 | T72: -84 | V72: =+(6*T78+4*T76-2*T72)/2 -> -1428.498 | W72: =+(6*U78+4*T76-2*T72)/2 -> -1560.51
B73: C3H8 | C73: =+C36*C$47 -> 0 | D73: 0 | E73: 28.672 | F73: 25.809 | G73: 25.809 | H73: 0 | I73: 0 | J73: 0 | K73: 0 | L73: 0 | M73: 0 | N73: 0 | O73: 0 | P73: 2.87 | Q73: 3.052 | R73: 0 | T73: -104.7 | V73: =3*T76+4*T78-T73 -> -2043.134 | W73: =3*T76+4*U78-T73 -> -2219.15
B74: C4H10 | C74: =+C37*C$47 -> 0 | D74: 0 | E74: 16.384 | F74: 14.748 | G74: 14.748 | H74: 0 | I74: 0 | J74: 0 | K74: 0 | L74: 0 | M74: 0 | N74: 0 | O74: 0 | P74: 1.64 | Q74: 1.8312 | R74: 0 | T74: -125.6 | V74: =4*T76+5*T78-T74 -> -2657.57 | W74: =4*T76+5*U78-T74 -> -2877.59
B75: CO | C75: =+C38*C$47 -> 0 | D75: 0 | E75: 0 | F75: 0 | G75: 0 | H75: 0 | I75: 1.393 | J75: 2795.1208 | K75: 2795.1208 | L75: 78.27 | M75: 0 | N75: 0 | O75: 78.0215 | P75: 0 | Q75: 78.1312 | R75: 0 | T75: -110.53
B76: CO2 | C76: =+C39*C$47 -> 5.3418 | D76: 5.3418 | E76: 40.96 | F76: 36.87 | G76: 36.87 | H76: 0 | I76: 242.382 | J76: 242.0356 | K76: 242.0356 | L76: 2960.1714 | M76: 0 | N76: 0 | O76: 2960.261 | P76: 4.1 | Q76: 2963.492 | R76: 4274.329 | T76: -393.51
B77: H2 | C77: =+C40*C$47 -> 0 | D77: 0 | E77: 0 | F77: 0 | G77: 0 | H77: 0 | I77: 611.527 | J77: 8996.3071 | K77: 8996.3071 | L77: 11713.8882 | M77: 9957.0082 | N77: 9957.0082 | O77: 1756.9075 | P77: 0 | Q77: 1756.7312 | R77: 0 | T77: 0 | V77: =T78 -> -241.826 | W77: =+U78 -> -285.83
B78: H2O | C78: =+C41*C$47 -> 176.2794 | D78: 176.2794 | E78: 0 | F78: 0 | G78: 0 | H78: 9830 | I78: 9416.68 | J78: 6622.7967 | K78: 6622.7967 | L78: 39.135 | M78: 0 | N78: 0 | O78: 39.2955 | P78: 0 | Q78: 39.676 | R78: 4400.8565 | T78: -241.826 | U78: -285.83
B79: N2 | C79: =+C42*C$47 -> 13767.5992 | D79: 13767.5992 | E79: 65.536 | F79: 58.992 | G79: 58.992 | H79: 0 | I79: 58.506 | J79: 58.557 | K79: 58.557 | L79: 59.4852 | M79: 1.9918 | N79: 1.9918 | O79: 56.95 | P79: 6.56 | Q79: 63.4816 | R79: 13830.606 | T79: 0
B80: O2 | C80: =+C43*C$47 -> 3692.9644 | D80: 3692.9644 | E80: 0 | F80: 0 | G80: 0 | H80: 0 | I80: 0 | J80: 0 | K80: 0 | L80: 0 | M80: 0 | N80: 0 | O80: 0 | P80: 0 | Q80: 0 | R80: 335.873 | T80: 0
B81: SO2 | C81: =+C44*C$47 -> 0 | D81: 0 | E81: 0 | F81: 0 | G81: 0 | H81: 0 | I81: 0 | J81: 0 | K81: 0 | L81: 0 | M81: 0 | N81: 0 | O81: 0 | P81: 0 | Q81: 0 | R81: 0 | T81: -296.81
B82: Total | C82: =+C45*C$47 -> 17806 | D82: 17806 | E82: 4096 | F82: 3687 | G82: 3687 | H82: 9830 | I82: 13930 | J82: 19519 | K82: 19519 | L82: 15654 | M82: 9959 | N82: 9959 | O82: 5695 | P82: 410 | Q82: 6104 | R82: 23005
B89: Power Summary
B90: Auxiliary Load Summary | D90: In-H2A scope
B91: Air Blower, kWe | C91: 1410 | D91: =+C91 -> 1410
B92: Circulating Water Pumps, kWe | C92: 280 | D92: 280
B93: Cooling Tower Fans, kWe | C93: 140 | D93: 140
B94: CO2 Capture/Removal Auxiliaries, kWe | C94: 0 | D94: 0
B95: Feedwater Pumps, kWe | C95: 320 | D95: 320
B96: Ground Water Pumps, kWe | C96: 130 | D96: 130
B97: Hydrogen Compressor, kWe | C97: 10010 | D97: =+C97*0 -> 0 | E97: Removed as it is out of scope for H2A production framework
B98: Miscellaneous Balance of PlantA, kWe | C98: 290 | D98: =+C98 -> 290
B99: Transformer Losses, kWe | C99: 70 | D99: =+C99 -> 70
B100: Total power (kW) | D100: =+SUM(D91:D99) -> 2640
B103: Description | C103: $/1,000 | D103: $/[kg H2/day]
B104: Pre-Production Costs
B105: 6 Months All Labor | C105: 2641 | D105: 5
B106: 1 Month Maintenance Materials | C106: 282 | D106: 1
B107: 1 Month Non-Fuel Consumables | C107: 993 | D107: 2
B108: 1 Month Waste Disposal | C108: 2 | D108: 0
B109: 25% of 1 Months Fuel Cost at 100% CF | C109: 2838 | D109: 6
B110: 2% of TPC | C110: 5352 | D110: 11
B111: Total | C111: 12107 | D111: 25
B112: Inventory Capital
B113: 60-day supply of fuel and consumables at 100% CF | C113: 540 | D113: 1
B114: 0.5% of TPC (spare parts) | C114: 1338 | D114: 3
B115: Total | C115: 1878 | D115: 4
B116: Other Costs
B117: Initial Cost for Catalyst and Chemicals | C117: 15295 | D117: 32
B118: Land | C118: 300 | D118: 1
B119: Other Owner’s Costs | C119: 40137 | D119: 83
B120: Financing Costs | C120: 7225 | D120: 15
B121: Total Overnight Costs (TOC) | C121: 344520 | D121: 713
B122: TASC Multiplier (IOU, 35 year) | C122: 1.07
B123: Total As-Spent Cost (TASC) | C123: 368568 | D123: 763

Sheet Input_Sheet_Template
B2: H2A Hydrogen Production Cash Flow Analysis Tool v3.2018
A3: title | B3: Current Central Hydrogen Production from Steam Methane Reforming (SMR) of Natural Gas without Carbon Capture and Sequestration
B5: Table of Contents
B6: View and edit project information
B8: H2A cell color coding
B10: Use H2A default values
B14: Technical Operating Parameters and Specifications
B15: Financial Input Values
B16: Energy Feedstocks, Utilities and Byproducts | H16: Cash Flow NPV (Error if not 0)
B17: Capital Cost | H17: =+NPV -> 6.922380929e-07
B18: Fixed Operating Costs
B19: Variable Operating Costs - Other Materials and Byproducts
B20: Variable Operating Costs - Other Variable Operating Costs
B24: Technical Operating Parameters and Specifications | E24: Notes
A25: cap_factor | B25: Operating Capacity Factor (%) | C25: =0.9*sensitivity_01 -> 0.9
A26: design_cap | B26: Plant Design Capacity (kg of H2/day) | C26: =ProcessFlow!V12*sensitivity_02 -> 483024
B27: Plant Output (kg/day) | C27: =design_cap*cap_factor -> 434721.6
A28: Soutput_kgyear | B28: Plant Output (kg/year) | C28: =output_kgpday*365 -> 158673384
B29: Financial Input Values | E29: Notes
A30: ref_year | B30: Reference year | C30: 2016
A31: startup_year | B31: Assumed start-up year | C31: 2015
B32: Basis year | C32: 2018 | D32: Costs must be entered in basis year dollars
A33: construct | B33: Length of Construction Period (years) | C33: 3
A34: percent_cap1 | B34: % of Capital Spent in 1st Year of Construction | C34: 1
A35: percent_cap2 | B35: % of Capital Spent in 2nd Year of Construction | C35: 0
A36: percent_cap3 | B36: % of Capital Spent in 3rd Year of Construction | C36: 0
A37: percent_cap4 | B37: % of Capital Spent in 4th Year of Construction
A38: start_time | B38: Start-up Time (years) | C38: 1
A39: plant_life | B39: Plant life (years) | C39: 40
A40: anal_period | B40: Analysis period (years) | C40: 40
A41: depr_length | B41: Depreciation Schedule Length (years) | C41: 20
A42: depr_type | B42: Depreciation Type | C42: MACRS
A43: equity | B43: % Equity Financing | C43: 0.4
A44: debt_interest | B44: Interest rate on debt, if applicable (%) | C44: 0.037
A45: debt_period | B45: Debt period (years) | C45: 0 | E45: Enter 0 to enable constant outstanding debt.
A46: percnt_fixed | B46: % of Fixed Operating Costs During Start-up (%) | C46: 1
A47: percnt_revs | B47: % of Revenues During Start-up (%) | C47: 1
A48: percnt_var | B48: % of Variable Operating Costs During Start-up (%) | C48: 1
A49: decom_percent | B49: Decommissioning costs (% of depreciable capital investment) | C49: 0.1
A50: salvage_perct | B50: Salvage value (% of total capital investment) | C50: 0.1
A51: inflation_rate | B51: Inflation rate (%) | C51: 0.019
A52: real_irr | B52: After-tax Real IRR (%) | C52: =0.08*sensitivity_03 -> 0.08
A53: state_tax_rate | B53: State Taxes (%) | C53: 0.06
A54: fed_tax_rate | B54: Federal Taxes (%) | C54: 0.21
A55: Stotal_tax_rate | B55: Total Tax Rate (%) | C55: =fed_tax_rate+state_tax_rate*(1-fed_tax_rate) -> 0.2574
A56: WorkingCap | B56: WORKING CAPITAL (% of yearly change in operating costs) | C56: 0.15
B57: Energy Feedstocks, Utilities, and Byproducts
B58: Select the Price Table to Use
B59: AEO_2017_Reference_Case | F59: To use a new feedstock, utility or byproduct, select the price table and product from the dropdown lists and enter the usage (or byproduct) amount. Click the "Add" button to add the product to the "In Use" list. Important; only materials on the "In Use" list will be used in H2A calculations. To delete materials from the list, click the "Delete" button below
B60: Select the Use
B61: feedstock | C61: =IF(OR(TMP_FeedType="Feedstock",TMP_FeedType = "Utility")," Enter usage in","Enter production in") -> Enter usage in | D61: =VLOOKUP(TMP_FeedName,INDIRECT(TMP_PriceTable),4,FALSE) -> mmBtu
B62: Select the Feed Type
B63: Industrial Natural Gas
B65: =SELECTED_FEED -> feedstock | C65: =TMP_FeedName -> Industrial Natural Gas
B66: ="Price Conversion Factor (GJ/"&TMP_Units&")" -> Price Conversion Factor (GJ/mmBtu) | C66: =VLOOKUP(TMP_FeedName,MASTER_PROPERTY_TABLE,9,FALSE) -> 1.055
B67: ="Price in Startup Year ($" & ref_year & ")/" & TMP_Units -> Price in Startup Year ($2016)/mmBtu | C67: =HLOOKUP(startup_year,INDIRECT(TMP_PriceTable),MATCH(TMP_FeedName,INDIRECT(Energy_Feed_List),0),FALSE)*TMP_Conversion -> 3.733674814
B68: =IF(OR(TMP_FeedType="Feedstock",TMP_FeedType = "Utility"),"Usage ("&TMP_Units&"/kg H2)","Production ("&TMP_Units&"/kg H2)") -> Usage (mmBtu/kg H2) | C68: =+ProcessFlow!V16 -> 0.1577574277
B69: =IF(OR(TMP_FeedType = "Feedstock",TMP_FeedType = "Utility"), "Cost in Startup Year","Income in Startup Year") -> Cost in Startup Year | C69: =design_cap*365*cap_factor*TMP_Usage*TMP_StartPrice -> 93460992.88
B70: Lookup Prices | C70: yes
B72: Energy feedstocks, utilities, and byproducts currently in use
A73: START_TOP
B74: feedstock | C74: Price Conversion Factor (GJ/kWh) | D74: Price in Startup Year ($2016)/kWh | E74: Usage (kWh/kg H2) | F74: Cost in Startup Year | G74: Lookup Prices
B75: Industrial Electricity | C75: 0.0036 | D75: 0.06998061126 | E75: =+ProcessFlow!V20 -> 0.1311736063 | F75: =+output_kgyear*feedstockIndustrial_Electricity_Price*feedstockIndustrial_Electricity_Usage -> 1456559.647 | G75: yes
B76: feedstock | C76: Price Conversion Factor (GJ/mmBtu) | D76: Price in Startup Year ($2016)/mmBtu | E76: Usage (mmBtu/kg H2) | F76: Cost in Startup Year | G76: Lookup Prices
B77: Industrial Natural Gas | C77: 1.055 | D77: 3.733674814 | E77: =+ProcessFlow!V16 -> 0.1577574277 | F77: =+output_kgyear*feedstockIndustrial_Natural_Gas_Usage*feedstockIndustrial_Natural_Gas_Price -> 93460992.88 | G77: yes
A78: START_TOP
A79: START_UTILITY
A80: START_BYPROD
F81: Total
A82: Total_Energy_Feed_Cost | B82: Total Energy Feedstock Cost ($/year) | F82: =SUM(Dynamic_Feed_Total) -> 94917552.53
A83: Total_Energy_Utilities_Cost | B83: Total Energy Utilities Cost ($/year) | F83: =SUM(Dynamic_Utilities_Total) -> 0
A84: Total_Energy_Byproduct_Credit | B84: Total Energy Byproduct Credit ($/year) | F84: =SUM(Dynamic_Byproduct_Total) -> 0
D85: Notes:
B87: Capital Costs | E87: Notes
A88: direct_cap | B88: H2A Total Direct Capital Cost | C88: =Det_scaled_cap -> 146615339 | E88: Click to enter details on the Cost Detail Sheet
B89: H2A Carbon Sequestration Total Direct Capital Cost | C89: =Det_CO2_seq -> 0 | E89: Click to enter details on the Carbon Sequestration calculation sheet.
B91: Indirect Depreciable Capital Costs | C91: ="Enter values in basis year (" & BasisYear & ") dollars" -> Enter values in basis year (2018) dollars | D91: Combined Plant Scaling and Escalation Factor | E91: ="Reference Year ("& ref_year & ") Dollars" -> Reference Year (2016) Dollars
A92: Site_prep | B92: Site Preparation ($) (may change to construction costs) | C92: =0.02*(CO2_seq)/(CEPCIinflator*CPIinflator) +0.159872128446844*(direct_cap)/(CEPCIinflator*CPIinflator) -> 24455000 | D92: =CEPCIinflator*CPIinflator -> 0.9584831859 | E92: =C92*D92 -> 23439706.31 | F92: Includes buildings and other site improvements
A93: Engin | B93: Engineering & design ($) | C93: =0.1*(CO2_seq)/(CEPCIinflator*CPIinflator) +0.11599636520534*(direct_cap)/(CEPCIinflator*CPIinflator) -> 17743500 | D93: 0.9584831859 | E93: =C93*D93 -> 17006846.41 | F93: Using H2A default; NETL uses 20% of direct cap cost
A94: Process_cont | B94: Process contingency ($) | C94: 0 | D94: 0.9584831859 | E94: 0 | F94: Use the entries here to specify actual realised project overruns or underruns. Contingency impact is computed in the "Tornado Charts & Risk Analysis" tab, informing the statistical risk spread of capital cost - see cells D8:E8.
A95: Project_cont | B95: Project contingency ($) | C95: =0.247793627342024*(direct_cap)/(CEPCIinflator*CPIinflator) -> 37904000 | D95: 0.9584831859 | E95: 36330346.68
A96: Other_indirect | B96: Other (Depreciable) capital ($) | C96: =+ProcessFlow!C119*1000 -> 40137000 | D96: 0.9584831859 | E96: 38470639.63
A97: Fees | B97: One-time Licensing Fees ($) | D97: 0.9584831859 | E97: 0
A98: Permitting | B98: Up-Front Permitting Costs ($) (legal and contractors fees included here) | C98: =0.15*(CO2_seq)/(CEPCIinflator*CPIinflator) +0.11599636520534*(direct_cap)/(CEPCIinflator*CPIinflator) -> 17743500 | D98: 0.9584831859 | E98: 17006846.41 | F98: Using H2A default; NETL includes permitting into EPC
A99: Sdepr_cap | B99: Total Depreciable Capital Costs | E99: =direct_cap+CO2_seq+SUM($E$92:$E$98) -> 278869724.5
D100: Combined Plant Scaling and Escalation Factor
B101: Non-Depreciable Capital Costs | C101: ="Enter values in basis year (" & BasisYear & ") dollars" -> Enter values in basis year (2018) dollars | E101: ="Reference Year ("& ref_year & ") Dollars" -> Reference Year (2016) Dollars
A102: acre_cost | B102: Cost of land ($/acre) | C102: 50000 | D102: =CPIinflator -> 0.9584831859 | E102: =C102*D102 -> 47924.1593
A103: acres | B103: Land required (acres) | C103: =100 -> 100 | D103: =Scale_Factor *1 -> 1 | E103: =C103*D103 -> 100 | F103: Estimated based on site total cost in NETL report.
A104: Sland_cost | B104: Land Cost ($) | E104: =acre_cost*acres -> 4792415.93
B105: Other non depreciable capital costs | D105: =CPIinflator -> 0.9584831859 | E105: =C105*D105 -> 0
A106: Snon_dep_cap | B106: Total Non-Depreciable Capital Costs | E106: =land_cost+$E$105 -> 4792415.93
A108: Stotal_cap | B108: Total Capital Costs | C108: =(depr_cap+non_dep_cap)*sensitivity_06 -> 283662140.4
B110: Fixed Operating Costs | C110: ="Enter values in basis year (" & BasisYear & ") dollars" -> Enter values in basis year (2018) dollars | D110: Combined Plant Scaling and Escalation Factor | E110: ="Reference Year ("& ref_year & ") Dollars" -> Reference Year (2016) Dollars
A111: FTEs | B111: Total plant staff (number of FTEs employed by plant) | C111: 18 | D111: =Scale_Ratio^0.25 -> 1 | E111: =C111*D111 -> 18
A112: FTE_cost | B112: Burdened labor cost, including overhead ($/man-hr) | C112: 50 | D112: =VLOOKUP(ref_year,Tbl_labor_indexes,2,FALSE)/VLOOKUP(BasisYear,Tbl_labor_indexes,2,FALSE) -> 0.8920962199 | E112: =C112*D112 -> 44.604811 | F112: Using H2A default
A113: Slabor_cost | B113: Labor cost, $/year | E113: =FTEs*2080*FTE_cost -> 1670004.124
A114: overhead_rate | B114: G&A rate (% of labor cost) | C114: 0.2 | F114: Using H2A default
A115: Soverhead_GA | B115: G&A ($/year) | E115: =labor_cost*overhead_rate -> 334000.8247
A116: licensing | B116: Licensing, Permits and Fees ($/year) | C116: 0 | D116: =Scale_Factor *CEPCIinflator*CPIinflator -> 0.9584831859 | E116: =C116*D116 -> 0
A117: tax_ins_rate | B117: Property tax and insurance rate (% of total capital investment per year) | C117: 0.02
A118: Stax_insurance | B118: Property taxes and insurance ($/year) | E118: =tax_ins_rate*total_cap -> 5673242.808
A119: rent | B119: Rent ($/year) | C119: 0 | D119: =Scale_Factor *CPIinflator -> 0.9584831859 | E119: =C119*D119 -> 0
A120: material | B120: Material costs for maintenance and repairs ($/year) | C120: =3050393 -> 3050393 | D120: =Scale_Factor *CEPCIinflator*CPIinflator -> 0.9584831859 | E120: =C120*D120 -> 2923750.401
A121: prod_maint | B121: Production Maintenance and Repairs ($/year) | C121: =2033595 -> 2033595 | D121: =Scale_Factor *CEPCIinflator*CPIinflator -> 0.9584831859 | E121: =C121*D121 -> 1949166.614 | F121: Maintenance labor
A122: other_fees | B122: Other Fees ($/year) | C122: =1056446 -> 1056446 | D122: =Scale_Ratio * CEPCIinflator*CPIinflator -> 0.9584831859 | E122: =C122*D122 -> 1012585.728 | F122: Administrative & support labor
A123: other_fixed | B123: Other Fixed O&M Costs ($/year) | C123: 0 | D123: =Scale_Factor *CEPCIinflator*CPIinflator -> 0.9584831859 | E123: =C123*D123 -> 0
A124: Sfixed | B124: Total Fixed Operating Costs | E124: =(labor_cost+overhead_GA+tax_insurance+licensing+SUM(E119:E123))*sensitivity_07 -> 13562750.5
B126: Variable Operating Costs
B127: Other Materials and Byproducts
B129: Select the Material
B130: Process Water
B131: Feed or utility | C131: =B130 -> Process Water
B132: ="$(" & ref_year & ")/ " & VLOOKUP(TMP_NonE_Feed,Tbl_Other_Inputs_and_Byproducts,2,FALSE) -> $(2016)/ gal | C132: =HLOOKUP(startup_year,Tbl_Other_Inputs_and_Byproducts,MATCH(TMP_NonE_Feed,Other_Inputs_List,0),FALSE) -> 0.002374951095
B133: =IF(TMP_NonE_Type="Feed or utility","Usage per kg H2","Production per kg H2") -> Usage per kg H2
B134: =IF(TMP_NonE_Type = "Feed or utility", "Cost in Startup Year","Income in Startup Year") -> Cost in Startup Year | C134: =design_cap*365*cap_factor*TMP_NonE_Usage*TMP_NonE_StartPrice -> 0
B135: Lookup Prices | C135: Yes
A136: START_NONE_TOP
B137: Feed or utility | C137: $(2016)/ gal | D137: Usage per kg H2 | E137: Cost in Startup Year | F137: Lookup Prices
B138: Process Water | C138: 0.002374951095 | D138: =+ProcessFlow!V18 -> 4.343635099 | E138: =+output_kgyear*C138*D138 -> 1636862.083 | F138: Yes
A139: START_NONE_FEED
A140: START_NONE_BYPROD
B141: Total Non Energy Utility and Material Costs ($/year) | C141: =SUM(Dynamic_NonE_Feed_Total) -> 1636862.083
A142: total_non_energy_byproduct_credit | B142: Total Non Energy Byproduct Credits ($/year) | C142: =SUM(Dynamic_NonE_Byprod_Total) -> 0
A144: Stotal_feedstock | B144: Total Feedstock Costs ($/year) | C144: =Total_Energy_Feed_Cost -> 94917552.53
A145: Stotal_utilities | B145: Total Utility Costs ($/year) | C145: =Total_Energy_Utilities_Cost+Total_Non_Energy_Feed_Cost -> 1636862.083
A146: Stotal_byproducts | B146: Total Byproduct Credits ($/year) | C146: =Total_Energy_Byproduct_Credit+total_non_energy_byproduct_credit -> 0
B147: Other Variable operating costs (for the first year) | C147: ="Enter values in basis year (" & BasisYear & ") dollars" -> Enter values in basis year (2018) dollars | D147: Combined Plant Scaling and Escalation Factor | E147: ="Reference Year ("& ref_year & ") Dollars" -> Reference Year (2016) Dollars
A148: var_misc | B148: Other variable operating costs (e.g. environmental surcharges) ($/year) | C148: 0 | D148: =Scale_Ratio * VLOOKUP(ref_year,Chemical_price_indexes,2,FALSE)/VLOOKUP(BasisYear,Chemical_price_indexes,2,FALSE) -> 0.9205808476 | E148: =C148*D148 -> 0
A149: total_other_raw | B149: Other Material Costs ($/year) | C149: =10720528-654947-7150827 -> 2914754 | D149: =Scale_Ratio * VLOOKUP(ref_year,Chemical_price_indexes,2,FALSE)/VLOOKUP(BasisYear,Chemical_price_indexes,2,FALSE) -> 0.9205808476 | E149: =C149*D149 -> 2683266.708
A150: waste_treat | B150: Waste treatment costs ($/year) | C150: =16756 -> 16756 | D150: =Scale_Ratio * VLOOKUP(ref_year,Chemical_price_indexes,2,FALSE)/VLOOKUP(BasisYear,Chemical_price_indexes,2,FALSE) -> 0.9205808476 | E150: =C150*D150 -> 15425.25268
A151: solidwaste_treat | B151: Solid waste disposal costs ($/year) | C151: 0 | D151: =Scale_Ratio * VLOOKUP(ref_year,Chemical_price_indexes,2,FALSE)/VLOOKUP(BasisYear,Chemical_price_indexes,2,FALSE) -> 0.9205808476 | E151: =C151*D151 -> 0
A152: replace_factor | B152: Total Unplanned Replacement Capital Cost Factor (% of total direct depreciable costs/year) | C152: 0.005 | E152: Value added to match other central cases. Use this value for all central cases
A153: royalties | B153: Royalties ($/year) | C153: 0 | D153: =Scale_Ratio * CPIinflator -> 0.9584831859 | E153: 0
A154: operator_profit | B154: Operator Profit ($/year) | C154: 0 | D154: =Scale_Ratio * CPIinflator -> 0.9584831859 | E154: 0
A155: tax_credit | B155: Subsidies, Tax Incentives ($/year) | C155: 0 | D155: =Scale_Ratio * CPIinflator -> 0.9584831859 | E155: 0
A156: CO2_seq | B156: CO2 sequestration O&M costs and credits ($/year) | E156: =Det_CO2_OandMcost -> 0
B157: Process Carbon Tax ($/metric ton carbon produced as CO2) | C157: 0 | D157: =CPIinflator -> 0.9584831859 | E157: 0
B158: Process Carbon Tax ($/year) | E158: =ROUND(Proc_CO2_tax*12/44*Proc_CO2_MTpY,-2) -> 0
B159: Upstream Carbon Tax ($/metric ton upstream GHG CO2 eq) | C159: 0 | D159: =CPIinflator -> 0.9584831859 | E159: 0
B160: Upstream Carbon Tax ($/year) | E160: =ROUND(Upstream_CO2_tax/1000*Upstream_GHG_total*output_kgyear,2) -> 0
A161: Stotal_var | B161: Total Variable Operating Costs ($/year) | E161: =ROUND(total_feedstock+total_utilities+total_other_raw-total_byproducts+var_misc+waste_treat+solidwaste_treat+royalties+operator_profit-tax_credit+CO2_OandMcost+Proc_CO2_taxpYear + Upstream_CO2_taxpYear,-2) -> 99253100

Sheet Replacement Costs
A2: Replacement Costs
C5: Color Key
A9: ="NOTE: Enter costs in year "&TEXT(BasisYear,"0")&" $ - Do not inflate" -> NOTE: Enter costs in year 2018 $ - Do not inflate
A10: NOTE: All replacement costs are assumed to be equity financed.
A13: Unplanned Yearly Replacement Capital (Depreciable)
C14: Comments | F14: Source | G14: Information
A15: Total Unplanned Replacement Capital Cost Factor (% of total depreciable capital costs/year) | B15: =replace_factor -> 0.005 | G15: Enter a fixed percentage. This input is meant to include, in the Cash Flow Analysis, a factor for unplanned capital expenditures.
A16: Actual Year | B16: Analysis Year | C16: Operations Year | D16: Specified Yearly Replacement Costs | E16: Carbon Sequestration Related Replacement Costs | F16: Specified Yearly Replacement Costs | G16: Unplanned Replacement Costs | H16: Total Yearly Replacement Costs | I16: Uninstalled costs | J16: Installation factor | K16: Comments: | L16: Data source:
D17: ="Year "&TEXT(BasisYear,"0")&" $" -> Year 2018 $ | E17: ="Year "&TEXT(ref_year,"0")&" $" -> Year 2016 $ | F17: ="Year "&TEXT(ref_year,"0")&" $" -> Year 2016 $ | G17: ="Year "&TEXT(ref_year,"0")&" $" -> Year 2016 $ | H17: Inflated to Start-up Year
A18: =IF(C18<>"",'Cash Flow Analysis'!A65,"") -> 2012 | B18: =construct+1 -> 4 | C18: 1 | E18: 0 | F18: =(D18)*CPIinflator*CEPCIinflator+E18 -> 0 | G18: =IF(C18>anal_period,0,IF(replace_factor<>"",replace_factor*depr_cap,0)) -> 1394348.622 | H18: =(F18+G18)*((1+inflation_rate)^(startup_year-ref_year)) -> 1368349.973
A19: =IF(C19<>"",'Cash Flow Analysis'!A66,"") -> 2013 | B19: =IF(B18<anal_period+construct,B18+1,"") -> 5 | C19: =IF(B19="","",C18+1) -> 2 | E19: =+'Carbon Sequestration'!$C$100*(C19<=anal_period) -> 0 | F19: 0 | G19: =IF(C19>anal_period,0,IF(replace_factor<>"",replace_factor*depr_cap,0)) -> 1394348.622 | H19: =(F19+G19)*((1+inflation_rate)^(startup_year-ref_year)) -> 1368349.973
A20: =IF(C20<>"",'Cash Flow Analysis'!A67,"") -> 2014 | B20: 6 | C20: 3 | E20: =+'Carbon Sequestration'!$C$100*(C20<=anal_period) -> 0 | F20: 0 | G20: 1394348.622 | H20: 1368349.973
A21: =IF(C21<>"",'Cash Flow Analysis'!A68,"") -> 2015 | B21: 7 | C21: 4 | E21: =+'Carbon Sequestration'!$C$100*(C21<=anal_period) -> 0 | F21: 0 | G21: 1394348.622 | H21: 1368349.973
A22: =IF(C22<>"",'Cash Flow Analysis'!A69,"") -> 2016 | B22: 8 | C22: 5 | E22: =+'Carbon Sequestration'!$C$100*(C22<=anal_period) -> 0 | F22: 0 | G22: 1394348.622 | H22: 1368349.973
A23: =IF(C23<>"",'Cash Flow Analysis'!A70,"") -> 2017 | B23: 9 | C23: 6 | E23: =+'Carbon Sequestration'!$C$100*(C23<=anal_period) -> 0 | F23: 0 | G23: 1394348.622 | H23: 1368349.973
A24: =IF(C24<>"",'Cash Flow Analysis'!A71,"") -> 2018 | B24: 10 | C24: 7 | E24: =+'Carbon Sequestration'!$C$100*(C24<=anal_period) -> 0 | F24: 0 | G24: 1394348.622 | H24: 1368349.973
A25: =IF(C25<>"",'Cash Flow Analysis'!A72,"") -> 2019 | B25: 11 | C25: 8 | E25: =+'Carbon Sequestration'!$C$100*(C25<=anal_period) -> 0 | F25: 0 | G25: 1394348.622 | H25: 1368349.973
A26: =IF(C26<>"",'Cash Flow Analysis'!A73,"") -> 2020 | B26: 12 | C26: 9 | E26: =+'Carbon Sequestration'!$C$100*(C26<=anal_period) -> 0 | F26: 0 | G26: 1394348.622 | H26: 1368349.973
A27: =IF(C27<>"",'Cash Flow Analysis'!A74,"") -> 2021 | B27: 13 | C27: 10 | E27: =+'Carbon Sequestration'!$C$100*(C27<=anal_period) -> 0 | F27: 0 | G27: 1394348.622 | H27: 1368349.973
A28: =IF(C28<>"",'Cash Flow Analysis'!A75,"") -> 2022 | B28: 14 | C28: 11 | E28: =+'Carbon Sequestration'!$C$100*(C28<=anal_period) -> 0 | F28: 0 | G28: 1394348.622 | H28: 1368349.973
A29: =IF(C29<>"",'Cash Flow Analysis'!A76,"") -> 2023 | B29: 15 | C29: 12 | E29: =+'Carbon Sequestration'!$C$100*(C29<=anal_period) -> 0 | F29: 0 | G29: 1394348.622 | H29: 1368349.973
A30: =IF(C30<>"",'Cash Flow Analysis'!A77,"") -> 2024 | B30: 16 | C30: 13 | E30: =+'Carbon Sequestration'!$C$100*(C30<=anal_period) -> 0 | F30: 0 | G30: 1394348.622 | H30: 1368349.973
A31: =IF(C31<>"",'Cash Flow Analysis'!A78,"") -> 2025 | B31: 17 | C31: 14 | E31: =+'Carbon Sequestration'!$C$100*(C31<=anal_period) -> 0 | F31: 0 | G31: 1394348.622 | H31: 1368349.973
A32: =IF(C32<>"",'Cash Flow Analysis'!A79,"") -> 2026 | B32: 18 | C32: 15 | E32: =+'Carbon Sequestration'!$C$100*(C32<=anal_period) -> 0 | F32: 0 | G32: 1394348.622 | H32: 1368349.973
A33: =IF(C33<>"",'Cash Flow Analysis'!A80,"") -> 2027 | B33: 19 | C33: 16 | E33: =+'Carbon Sequestration'!$C$100*(C33<=anal_period) -> 0 | F33: 0 | G33: 1394348.622 | H33: 1368349.973
A34: =IF(C34<>"",'Cash Flow Analysis'!A81,"") -> 2028 | B34: 20 | C34: 17 | E34: =+'Carbon Sequestration'!$C$100*(C34<=anal_period) -> 0 | F34: 0 | G34: 1394348.622 | H34: 1368349.973
A35: =IF(C35<>"",'Cash Flow Analysis'!A82,"") -> 2029 | B35: 21 | C35: 18 | E35: =+'Carbon Sequestration'!$C$100*(C35<=anal_period) -> 0 | F35: 0 | G35: 1394348.622 | H35: 1368349.973
A36: =IF(C36<>"",'Cash Flow Analysis'!A83,"") -> 2030 | B36: 22 | C36: 19 | E36: =+'Carbon Sequestration'!$C$100*(C36<=anal_period) -> 0 | F36: 0 | G36: 1394348.622 | H36: 1368349.973
A37: =IF(C37<>"",'Cash Flow Analysis'!A84,"") -> 2031 | B37: 23 | C37: 20 | E37: =+'Carbon Sequestration'!$C$100*(C37<=anal_period) -> 0 | F37: 0 | G37: 1394348.622 | H37: 1368349.973
A38: =IF(C38<>"",'Cash Flow Analysis'!A85,"") -> 2032 | B38: 24 | C38: 21 | E38: =+'Carbon Sequestration'!$C$100*(C38<=anal_period) -> 0 | F38: 0 | G38: 1394348.622 | H38: 1368349.973
A39: =IF(C39<>"",'Cash Flow Analysis'!A86,"") -> 2033 | B39: 25 | C39: 22 | E39: =+'Carbon Sequestration'!$C$100*(C39<=anal_period) -> 0 | F39: 0 | G39: 1394348.622 | H39: 1368349.973
A40: =IF(C40<>"",'Cash Flow Analysis'!A87,"") -> 2034 | B40: 26 | C40: 23 | E40: =+'Carbon Sequestration'!$C$100*(C40<=anal_period) -> 0 | F40: 0 | G40: 1394348.622 | H40: 1368349.973
A41: =IF(C41<>"",'Cash Flow Analysis'!A88,"") -> 2035 | B41: 27 | C41: 24 | E41: =+'Carbon Sequestration'!$C$100*(C41<=anal_period) -> 0 | F41: 0 | G41: 1394348.622 | H41: 1368349.973
A42: =IF(C42<>"",'Cash Flow Analysis'!A89,"") -> 2036 | B42: 28 | C42: 25 | E42: =+'Carbon Sequestration'!$C$100*(C42<=anal_period) -> 0 | F42: 0 | G42: 1394348.622 | H42: 1368349.973
A43: =IF(C43<>"",'Cash Flow Analysis'!A90,"") -> 2037 | B43: 29 | C43: 26 | E43: =+'Carbon Sequestration'!$C$100*(C43<=anal_period) -> 0 | F43: 0 | G43: 1394348.622 | H43: 1368349.973
A44: =IF(C44<>"",'Cash Flow Analysis'!A91,"") -> 2038 | B44: 30 | C44: 27 | E44: =+'Carbon Sequestration'!$C$100*(C44<=anal_period) -> 0 | F44: 0 | G44: 1394348.622 | H44: 1368349.973
A45: =IF(C45<>"",'Cash Flow Analysis'!A92,"") -> 2039 | B45: 31 | C45: 28 | E45: =+'Carbon Sequestration'!$C$100*(C45<=anal_period) -> 0 | F45: 0 | G45: 1394348.622 | H45: 1368349.973
A46: =IF(C46<>"",'Cash Flow Analysis'!A93,"") -> 2040 | B46: 32 | C46: 29 | E46: =+'Carbon Sequestration'!$C$100*(C46<=anal_period) -> 0 | F46: 0 | G46: 1394348.622 | H46: 1368349.973
A47: =IF(C47<>"",'Cash Flow Analysis'!A94,"") -> 2041 | B47: 33 | C47: 30 | E47: =+'Carbon Sequestration'!$C$100*(C47<=anal_period) -> 0 | F47: 0 | G47: 1394348.622 | H47: 1368349.973
A48: =IF(C48<>"",'Cash Flow Analysis'!A95,"") -> 2042 | B48: 34 | C48: 31 | E48: =+'Carbon Sequestration'!$C$100*(C48<=anal_period) -> 0 | F48: 0 | G48: 1394348.622 | H48: 1368349.973
A49: =IF(C49<>"",'Cash Flow Analysis'!A96,"") -> 2043 | B49: 35 | C49: 32 | E49: =+'Carbon Sequestration'!$C$100*(C49<=anal_period) -> 0 | F49: 0 | G49: 1394348.622 | H49: 1368349.973
A50: =IF(C50<>"",'Cash Flow Analysis'!A97,"") -> 2044 | B50: 36 | C50: 33 | E50: =+'Carbon Sequestration'!$C$100*(C50<=anal_period) -> 0 | F50: 0 | G50: 1394348.622 | H50: 1368349.973
A51: =IF(C51<>"",'Cash Flow Analysis'!A98,"") -> 2045 | B51: 37 | C51: 34 | E51: =+'Carbon Sequestration'!$C$100*(C51<=anal_period) -> 0 | F51: 0 | G51: 1394348.622 | H51: 1368349.973
A52: =IF(C52<>"",'Cash Flow Analysis'!A99,"") -> 2046 | B52: 38 | C52: 35 | E52: =+'Carbon Sequestration'!$C$100*(C52<=anal_period) -> 0 | F52: 0 | G52: 1394348.622 | H52: 1368349.973
A53: =IF(C53<>"",'Cash Flow Analysis'!A100,"") -> 2047 | B53: 39 | C53: 36 | E53: =+'Carbon Sequestration'!$C$100*(C53<=anal_period) -> 0 | F53: 0 | G53: 1394348.622 | H53: 1368349.973
A54: =IF(C54<>"",'Cash Flow Analysis'!A101,"") -> 2048 | B54: 40 | C54: 37 | E54: =+'Carbon Sequestration'!$C$100*(C54<=anal_period) -> 0 | F54: 0 | G54: 1394348.622 | H54: 1368349.973
A55: =IF(C55<>"",'Cash Flow Analysis'!A102,"") -> 2049 | B55: 41 | C55: 38 | E55: =+'Carbon Sequestration'!$C$100*(C55<=anal_period) -> 0 | F55: 0 | G55: 1394348.622 | H55: 1368349.973
A56: =IF(C56<>"",'Cash Flow Analysis'!A103,"") -> 2050 | B56: 42 | C56: 39 | E56: =+'Carbon Sequestration'!$C$100*(C56<=anal_period) -> 0 | F56: 0 | G56: 1394348.622 | H56: 1368349.973
A57: =IF(C57<>"",'Cash Flow Analysis'!A104,"") -> 2051 | B57: 43 | C57: 40 | E57: =+'Carbon Sequestration'!$C$100*(C57<=anal_period) -> 0 | F57: 0 | G57: 1394348.622 | H57: 1368349.973

Sheet Capital Costs
B2: Capital Costs
C4: Color Key
B7: Design Plant Hydrogen Production (kg/day) | C7: 483024 | D7: Capital costs for the design plant (baseline) are entered on this sheet. Use the Plant Scaling sheet to set scaling parameters for scaling up or down in size from the baseline plant. Enter the output kg/day for the plant you wish to analyze on the Input Sheet
D8: Comments
B9: Basis year for capital costs | C9: =BasisYear -> 2018
B10: Enter current year for capital costs | C10: 2018
B11: ="CEPCI Inflator ("&BasisYear&" to "&CurrentYear&")" -> CEPCI Inflator (2018 to 2018) | C11: =VLOOKUP(CurrentYear,Tbl_PlantCostIndexes,2,FALSE)/VLOOKUP(BasisYear,Tbl_PlantCostIndexes,2,FALSE) -> 1 | D11: The Chemical Engineering Plant Cost Index (CEPCI) is used to adjust the capital cost of the H2 Production facility from the basis year to the current year.
B12: ="Consumer Price Inflator ("&CurrentYear&" to "&ref_year&")" -> Consumer Price Inflator (2018 to 2016) | C12: =VLOOKUP(ref_year,DeflatorTable,2,FALSE)/VLOOKUP(CurrentYear,DeflatorTable,2,FALSE) -> 0.9584831859 | D12: The Consumer Price Inflator (CPI) is used to deflate all dollars from the current year to the Reference Year.
B14: ="CAPITAL INVESTMENT (Inputs REQUIRED in Basis Year, (" & BasisYear & ") $)" -> CAPITAL INVESTMENT (Inputs REQUIRED in Basis Year, (2018) $)
B15: Major pieces/systems of equipment | C15: ="Baseline Uninstalled Costs $"&BasisYear&" Dollars" -> Baseline Uninstalled Costs $2018 Dollars | D15: ="Baseline Uninstalled Costs $"&ref_year&" Dollars" -> Baseline Uninstalled Costs $2016 Dollars | E15: Installation Cost Factor | F15: Baseline Installed Costs | G15: Comments | H15: Data Source
B16: Accessory Electric Plant | C16: 2180000 | D16: =C16*CEPCIinflator*CPIinflator -> 2089493.345 | E16: 1.932110092 | F16: =D16*E16 -> 4037131.179
B17: Cooling Water System | C17: 5305000 | D17: =C17*CEPCIinflator*CPIinflator -> 5084753.301 | E17: 1.358529689 | F17: =D17*E17 -> 6907788.321
B18: Feedwater & Miscellaneous BOP Systems | C18: 32610000 | D18: 31256136.69 | E18: 1.43974241 | F18: 45000785.58
B19: Hydrogen Production | C19: 16135000 | D19: 15465126.2 | E19: 1.080508212 | F19: 16710195.86
B20: Instrumentation & Control | C20: 8001000 | D20: 7668823.971 | E20: 1.138732658 | F20: 8732740.307
B21: Reformer & Accessories | C21: 39658000 | D21: 38011526.19 | E21: 1.499747844 | F21: 57007704.45
B22: Syngas Cleanup | C22: 3646000 | D22: 3494629.696 | E22: 2.351892485 | F22: 8218993.319 | G22: Removed H₂ compressor to pipeline pressure as it is out of scope for H2A production cases
D23: 0 | F23: 0
D24: 0 | F24: 0
D25: 0 | F25: 0
D26: 0 | F26: 0
D27: 0 | F27: 0
D28: 0 | F28: 0
D29: 0 | F29: 0
D30: 0 | F30: 0
D31: 0 | F31: 0
D32: 0 | F32: 0
D33: 0 | F33: 0
D34: 0 | F34: 0
D35: 0 | F35: 0
C36: =SUM(C16:C35) -> 107535000 | D36: =SUM(D16:D35) -> 103070489.4 | F36: =SUM(F16:F35) -> 146615339

Sheet Plant Scaling
B1: leave this sheet as is for scaled costs
B2: Plant Scaling Factors
B3: Baseline Design Capacity (kg H2/day) | C3: =Baseline_Design_Capacity -> 483024 | D3: Design capacity for original H2A case. Imported from capital cost sheet
B4: Scale Ratio | C4: =design_cap/Baseline_Design_Capacity -> 1 | D4: Ratio of new design capacity (enter on Input Sheet) to the Baseline Design Capacity. Used for linear scaling
B5: Scale Factor | C5: =$G$27/Det_direct_cap -> 1 | D5: Ratio of total scaled installed capital capital cost to total baseline installed capital costs. Used for exponential scaling.
B6: Default Scaling Factor Exponent | C6: 0.6 | D6: Scaling factor exponent used for scaling all capital equipment where an individual factor has not been entered below.
B7: Lower Limit for Scaling Capacity (kg H2/day) | C7: =483024*0.5 -> 241512 | D7: http://www.chemicals-technology.com/projects/air-products-plant/
B8: Upper Limit for Scaling Capacity (kg H2/day) | C8: =483024*2 -> 966048 | D8: http://hydrogen.pnl.gov/filedownloads/hydrogen/datasheets/hydrogen_production_capacity_by_state.xls
B11: ="CAPITAL INVESTMENT (Inputs REQUIRED in Reference Year, (" & ref_year & ") $)" -> CAPITAL INVESTMENT (Inputs REQUIRED in Reference Year, (2016) $)
B12: Major pieces/systems of equipment | C12: Baseline Uninstalled Costs | D12: Scaling Factor Exponent | E12: Scaled Uninstalled Costs | F12: Installation Cost Factor | G12: Installed Cost (scaled) | H12: Installed Cost (baseline) | I12: Comments | J12: Data Source
B13: ='Capital Costs'!B16 -> Accessory Electric Plant | C13: ='Capital Costs'!D16 -> 2089493.345 | D13: 0.3500481513 | E13: =IF($D13="",$C13*Scale_Ratio^Scaling_Factor_Exponent,$C13*Scale_Ratio^$D13) -> 2089493.345 | F13: ='Capital Costs'!E16 -> 1.932110092 | G13: =$E13*$F13 -> 4037131.179 | H13: =C13*F13 -> 4037131.179 | I13: Weighted average by sub-component list | J13: https://netl.doe.gov/projects/files/QualityGuidelinesforEnergySystemStudiesCapitalCostScalingMethodologyRevision4Report_110719.pdf
B14: ='Capital Costs'!B17 -> Cooling Water System | C14: ='Capital Costs'!D17 -> 5084753.301 | D14: 0.6602508781 | E14: =IF($D14="",$C14*Scale_Ratio^Scaling_Factor_Exponent,$C14*Scale_Ratio^$D14) -> 5084753.301 | F14: ='Capital Costs'!E17 -> 1.358529689 | G14: =$E14*$F14 -> 6907788.321 | H14: =C14*F14 -> 6907788.321 | J14: https://netl.doe.gov/projects/files/QualityGuidelinesforEnergySystemStudiesCapitalCostScalingMethodologyRevision4Report_110719.pdf
B15: ='Capital Costs'!B18 -> Feedwater & Miscellaneous BOP Systems | C15: ='Capital Costs'!D18 -> 31256136.69 | D15: 0.4571449503 | E15: 31256136.69 | F15: ='Capital Costs'!E18 -> 1.43974241 | G15: 45000785.58 | H15: 45000785.58 | J15: https://netl.doe.gov/projects/files/QualityGuidelinesforEnergySystemStudiesCapitalCostScalingMethodologyRevision4Report_110719.pdf
B16: ='Capital Costs'!B19 -> Hydrogen Production | C16: ='Capital Costs'!D19 -> 15465126.2 | D16: 0.6 | E16: 15465126.2 | F16: ='Capital Costs'!E19 -> 1.080508212 | G16: 16710195.86 | H16: 16710195.86 | J16: https://netl.doe.gov/projects/files/QualityGuidelinesforEnergySystemStudiesCapitalCostScalingMethodologyRevision4Report_110719.pdf
B17: ='Capital Costs'!B20 -> Instrumentation & Control | C17: ='Capital Costs'!D20 -> 7668823.971 | D17: 0.16 | E17: 7668823.971 | F17: ='Capital Costs'!E20 -> 1.138732658 | G17: 8732740.307 | H17: 8732740.307 | J17: https://netl.doe.gov/projects/files/QualityGuidelinesforEnergySystemStudiesCapitalCostScalingMethodologyRevision4Report_110719.pdf
B18: ='Capital Costs'!B21 -> Reformer & Accessories | C18: ='Capital Costs'!D21 -> 38011526.19 | D18: 0.6110829052 | E18: 38011526.19 | F18: ='Capital Costs'!E21 -> 1.499747844 | G18: 57007704.45 | H18: 57007704.45 | J18: https://netl.doe.gov/projects/files/QualityGuidelinesforEnergySystemStudiesCapitalCostScalingMethodologyRevision4Report_110719.pdf
B19: ='Capital Costs'!B22 -> Syngas Cleanup | C19: ='Capital Costs'!D22 -> 3494629.696 | D19: 0.8 | E19: 3494629.696 | F19: ='Capital Costs'!E22 -> 2.351892485 | G19: 8218993.319 | H19: 8218993.319 | J19: https://netl.doe.gov/projects/files/QualityGuidelinesforEnergySystemStudiesCapitalCostScalingMethodologyRevision4Report_110719.pdf
C20: ='Capital Costs'!D23 -> 0 | E20: 0 | F20: ='Capital Costs'!E23 -> 0 | G20: 0 | H20: 0 | J20: https://netl.doe.gov/projects/files/QualityGuidelinesforEnergySystemStudiesCapitalCostScalingMethodologyRevision4Report_110719.pdf
C21: ='Capital Costs'!D24 -> 0 | E21: 0 | F21: ='Capital Costs'!E24 -> 0 | G21: 0 | H21: 0 | J21: https://netl.doe.gov/projects/files/QualityGuidelinesforEnergySystemStudiesCapitalCostScalingMethodologyRevision4Report_110719.pdf
C22: ='Capital Costs'!D25 -> 0 | E22: 0 | F22: ='Capital Costs'!E25 -> 0 | G22: 0 | H22: 0 | J22: https://netl.doe.gov/projects/files/QualityGuidelinesforEnergySystemStudiesCapitalCostScalingMethodologyRevision4Report_110719.pdf
C23: ='Capital Costs'!D26 -> 0 | E23: 0 | F23: ='Capital Costs'!E26 -> 0 | G23: 0 | H23: 0
C24: ='Capital Costs'!D27 -> 0 | E24: 0 | F24: ='Capital Costs'!E27 -> 0 | G24: 0 | H24: 0
C25: ='Capital Costs'!D28 -> 0 | E25: 0 | F25: ='Capital Costs'!E28 -> 0 | G25: 0 | H25: 0
C26: ='Capital Costs'!D29 -> 0 | E26: 0 | F26: ='Capital Costs'!E29 -> 0 | G26: 0 | H26: 0
B27: TOTALS (including scaling) | C27: =SUM(C13:C26) -> 103070489.4 | E27: =SUM(E13:E26) -> 103070489.4 | G27: =SUM(G13:G26) -> 146615339 | H27: =SUM(H13:H26) -> 146615339

Sheet Carbon Sequestration
B2: Carbon Sequestration
B4: Carbon Sequestration Calculation Information
B5: Costs for carbon (CO2) compression, transport to the sequestration site and injection are calculated in this section. Capital and operating costs for carbon capture are assumed to be included in the capital and operating costs for the production facility and are not included here. For H2A analysis of hydrogen production processes, it is assumed that only carbon contained in the process feedstock can be captured. Carbon contained in fuels such as natural gas used for steam generation (i.e., as a utility) cannot be captured. Therefore, only CO2 emissions from feedstocks are shown below. CO2 emissions from fuels used as utilities are included in the total emissions from the process shown on the Results sheet. All feedstocks and utilities should be specified before completing this section. See the QuickStart Guide for information on the derivation of the equations used in this section.
B7: Table of Contents
B8: Color Key
B11: Use default values (checkboxes)
B15: Carbon Sequestration Input Values
B16: Summary of Output Values
B17: Carbon Sequestration Calculations
B20: Carbon Sequestration Information | H20: Summary of Output Values (CO2 Seq. costs are reported on Results Tab as part of total H2 Production cost)
B21: CO2 Produced from Feedstock (metric tons CO2/year) | C21: =Feed_CO2_MTpY -> 1487200 | D21: CO2 emissions are based on the carbon content of the feed. See the Physical Properties Table for specific values | H21: Capital Costs
B22: CO2 Produced from Feedstock (kg CO2/kg H2) | C22: =Feed_CO2_kgpkgH2 -> 9.372791925 | H22: CO2 Pipeline | J22: =SUM(C54:C57) -> 
B23: CO2 Mass Flowrate (metric tons/day) | C23: =Feed_CO2_MTpY/365*CO2_Capture_Efficiency -> 0 | H23: CO2 Pumps | J23: =C71 -> 80988.89364
B24: CO2 Mass Flowrate (G metric tons/year) | C24: =CO2_flowrate*365/1000000 -> 0 | H24: CO2 Other Equipment | J24: =SUM(C82:C83) -> 0
B25: Electricity Cost ($/kWh) | C25: =HLOOKUP(startup_year,INDIRECT(TMP_PriceTable),MATCH("Industrial Electricity",INDIRECT(Energy_Feed_List),0),FALSE)*VLOOKUP("kWh",CC_feedconversion,2,FALSE) -> 0.06998061126 | D25: Price for industrial electricity in the startup year | H25: CO2 Storage (annualized) | J25: =SUM(C93:C95) -> 39831626.15
B26: Carbon Sequestration Electricity Usage (kWh/kg H2) | C26: =IF(C21=0,0,(pump_power)*cap_factor*24*365/output_kgyear) -> 0 | J26: =IF(CO2_Capture_Efficiency,SUM(J22:J25),0) -> 0 | K26: ="Total ("&ref_year&"$)" -> Total (2016$)
H27: Approx. Uninstalled Equipment Cost | J27: =IF(CO2_inUse = "To Use Carbon Sequestration Click 'Link to Detail Sheet' in the Input Sheet Capital Cost Section",0,(J23+J24)/1.2+J25/1.5+J22) -> 
B28: Carbon Sequestration Input Values
B29: Process Design Parameters
B30: Carbon Capture Efficiency (%) | C30: 0 | E30: Set to 0 to turn off CCS | H30: Electrical Costs (annual cost)
B31: CO2 capture process outlet pressure (psia) | C31: 14.7 | E31: Inlet pressure for CO2 transport (pump suction pressure) | H31: CO2 Compressor | J31: =C74 -> 0
B32: Number of Pumps (H2 Production Site + Booster Pumps) | C32: 1 | H32: CO2 Injection (Site and wells) | J32: 0
B33: Pump Efficiency | C33: 0.75 | H33: CO2 Pipeline | J33: 0
B34: Pipeline Control System | C34: Yes | J34: =SUM(J31:J33) -> 0 | K34: ="Total ("&ref_year&"$)" -> Total (2016$)
B35: CO2 Surge Tank | C35: Yes | H35: O&M (annual cost)
B36: Pipeline length (miles) | C36: 100 | H36: CO2 Capture Credit | J36: =-Feed_CO2_MTpY*CO2_Capture_Efficiency*CO2_credit -> 0
B37: Pipeline Elevation Change (ft) | C37: 0 | H37: CO2 Pipeline | J37: =+C61 -> 693420.3789
B38: Pipeline Nominal Diameter (in) | C38: =Pipe_Diameter(CO2_PipeLength, C67, C66, C37, 0.5, CO2_flowrate, CO2_Pipeline_Temp, n_CO2_pumps) ->  | H38: CO2 Pumps | J38: =C78 -> 3239.555745
B39: Process Conditions | H39: CO2 Other Equipment | J39: =C86 -> 0
B40: Pipeline Temperature (°F) | C40: 53 | E40: Ground temperature | H40: CO2 Storage | J40: =SUM(C103:C107) -> 2016053.226
B41: CO2 Density (kg/m3) | C41: =denPRCO2(0.00005,AVERAGE(C66:C67)/MPa_to_psi,CO2_Pipeline_Temp) -> 865.7947105 | E41: PR Equation of state: ρCO2 = denPRCO2(vCO2-init, Pave, TPipeline) | J41: =IF(CO2_Capture_Efficiency>0,SUM(J36:J40),0) -> 0 | K41: ="Total ("&ref_year&"$)" -> Total (2016$)
B42: Other Considerations
B43: CO2 capture credit ($/metric ton CO2 captured) | C43: 0 | H43: Property tax and insurance | J43: =Det_CO2_seq*tax_ins_rate -> 0 | K43: =+K41 -> Total (2016$)
B44: Operation and maintenance factor for equipment (pumps, etc.) | C44: 0.04
B45: Finance Parameters | H45: Carbon Sequestration Energy Charge ($/tonne CO2) | K45: =ROUND(CO2_eCostpY/(Feed_CO2_MTpY*CO2_Capture_Efficiency),1) -> 
B46: After Tax Real Capital Recovery Factor | C46: =(real_irr*(1+real_irr)^anal_period)/(((real_irr+1)^anal_period)-1) -> 0.0838601615 | H46: Carbon Sequestration O&M Charge ($/tonne CO2) | K46: =ROUND((Det_CO2_OandMcost+ CCS_tax_insurance)/(Feed_CO2_MTpY*CO2_Capture_Efficiency),1) -> 
B47: Real Present Value of Depreciation | C47: =INDEX(MACRS_Table,MATCH("NPV - Real IRR",recovery_year,0),MATCH(depr_length,recovery_period,0))*(1+real_irr) -> 0.5467411219 | H47: Approx Carbon Seq. Cap. Charge ($/tonne CO2) | K47: =ROUND((Det_CO2_seq+(-PV(nominal_irr,plant_life,C100)*(1+nominal_irr)))*CO2_cap_charge_rate/(Feed_CO2_MTpY*CO2_Capture_Efficiency),1) -> 
B48: Approx Capital Charge Rate | C48: =(CO2_cap_rec*(1-total_tax_rate*CO2_depr_factor))/(1-total_tax_rate) -> 0.09703531281 | H48: Total transportation and storage cost (w/o capture) | K48: =SUM(K45:K47) -> 
B50: Carbon Transport Calculations
B51: ="CO2 Pipeline Costs ("&ref_year&" USD)" -> CO2 Pipeline Costs (2016 USD) | D51: Units | E51: Notes / References
B52: Capital Costs
B53: Adjustment factor (Natural Gas Pipeline -> CO2 Pipeline) | C53: =IF(CO2_PipeDia>20,1.25, IF(CO2_PipeDia>16,1.18,IF(CO2_PipeDia>12,1.12,1))) ->  | E53: CCost_Type = a0 + L * (a1 * D2 + a2 * D + a3) based on NETL CO2 Transport Model which uses Parker (2004) UCD-ITS-RR-04-35 basis
B54: Material Capital | C54: =(35000+CO2_PipeLength*(330.5*CO2_PipeDia^2+687*CO2_PipeDia+26960))*NG_to_CO2Pipeline*VLOOKUP(ref_year,Tbl_PlantCostIndexes,2)/VLOOKUP(2000,Tbl_PlantCostIndexes,2) ->  | D54: =ref_year&"$" -> 2016$ | E54: a0 = 35,000 $; a1 = 330.5 $/mi-in2; a2 = 687 $/mi-in; a3 = 26,960 $/mi (coefficient basis is 2000$)
B55: Labor | C55: =(185000+CO2_PipeLength*(343*CO2_PipeDia^2+2074*CO2_PipeDia+170013))*NG_to_CO2Pipeline*VLOOKUP(ref_year,Tbl_labor_indexes,2)/VLOOKUP(2000,Tbl_labor_indexes,2) ->  | D55: =ref_year&"$" -> 2016$ | E55: a0 = 185,000 $; a1 = 343 $/mi-in2; a2 = 2,074 $/mi-in; a3 = 170,013 $/mi (coefficient basis is 2000$)
B56: Right of Way and Damages | C56: =(40000+CO2_PipeLength*(0*CO2_PipeDia^2+577*CO2_PipeDia+29788))*NG_to_CO2Pipeline*(VLOOKUP(ref_year,DeflatorTable,2)/VLOOKUP(2000,DeflatorTable,2)) ->  | D56: =ref_year&"$" -> 2016$ | E56: a0 = 40,000 $; a1 = 0 $/mi-in2; a2 = 577 $/mi-in; a3 = 29,788 $/mi (coefficient basis is 2000$)
B57: Miscellaneous (Surveying, engineering, supervision, etc.) | C57: =(95000+CO2_PipeLength*(0*CO2_PipeDia^2+8417*CO2_PipeDia+7324))*NG_to_CO2Pipeline*VLOOKUP(ref_year,DeflatorTable,2)/VLOOKUP(2000,DeflatorTable,2) ->  | D57: =ref_year&"$" -> 2016$ | E57: a0 = 95,000 $; a1 = 0 $/mi-in2; a2 = 8,417 $/mi-in; a3 = 7,324 $/mi (coefficient basis is 2000$)
B58: Pipeline Capital Cost Per Mile | C58: =SUM(C54:C57)/CO2_PipeLength ->  | D58: =ref_year&"$/mile" -> 2016$/mile
B60: O&M Costs
B61: Pipeline cost of $5000/mi-yr | C61: =5000*CO2_PipeLength*(VLOOKUP(ref_year,Tbl_PlantCostIndexes,2)/VLOOKUP(1999,Tbl_PlantCostIndexes,2)) -> 693420.3789 | D61: =ref_year&"$/year" -> 2016$/year | E61: Based on NETL CO2 Transport Model which uses Bock (2003) basis. $5000/mi-yr is based in 1999$
B64: CO2 Pump Costs
B65: Capital Costs
B66: Inlet Pressure | C66: =CO2_Pin_psia -> 14.7 | D66: psia
B67: Outlet Pressure | C67: =15*MPa_to_psi -> 2175.57 | D67: psia
B68: Pump Power | C68: =(1000*1000000*0.001/ (24*3600))*(CO2_flowrate/cap_factor*(C67-C66)/MPa_to_psi)/(C41*Pump_Eff) -> 0 | D68: kW | E68: Wpump = ((1e3 kg/t * 1e6 Pa/MPa * 1e-3 kW/W) / (24*3600 s/day))*qmax*dPpump/(ηpump*ρCO2) from NETL CO2 Transport Model
B69: Pump Fixed Cost | C69: =70000*VLOOKUP(ref_year,Tbl_PlantCostIndexes,2)/VLOOKUP(2005,Tbl_PlantCostIndexes,2) -> 80988.89364 | D69: =ref_year&"$" -> 2016$ | E69: Fixed cost of $70,000 (2005$) from NETL CO2 Transport Model which uses McCollum & Ogden (2006) UCD-ITS-RR-06-14 basis
B70: Pump Variable Cost | C70: =1110*C68*VLOOKUP(ref_year,Tbl_PlantCostIndexes,2)/VLOOKUP(2005,Tbl_PlantCostIndexes,2) -> 0 | D70: =ref_year&"$" -> 2016$ | E70: Cost of $1,110/kW (2005$) from NETL CO2 Transport Model which uses McCollum & Ogden (2006) UCD-ITS-RR-06-14 basis
B71: Pump Capital Cost | C71: =SUM(C69:C70) -> 80988.89364 | D71: =ref_year&"$" -> 2016$ | E71: Cpump = (Cpump_fix + Cpump_var * Wpump)
B73: Electricity Costs
B74: Ecomp = elec cost*Wcomp*(capacity factor*24*365)*n_pumps | C74: =CO2_eCost*pump_power*cap_factor*24*365*n_CO2_pumps -> 0 | D74: =startup_year&"$/year" -> 2015$/year | E74: $/yr (start-up year electricity cost)
B75: Electricity consumption | C75: =pump_power*cap_factor*24*365*n_CO2_pumps/output_kgyear -> 0 | D75: kWh/kg H2
B77: O&M Costs
B78: (Total Other Equipment Cost) * O&M Factor | C78: =C71*CO2_MaintFactor -> 3239.555745 | D78: =ref_year&"$/year" -> 2016$/year
B80: CO2 Other Equipment Costs
B81: Capital Costs
B82: CO2 Surge Tank | C82: =IF(C35="yes",701600*(CO2_flowrate_GTpY/3.2)^Scaling_Factor_Exponent*(VLOOKUP(ref_year,Tbl_PlantCostIndexes,2)/VLOOKUP(2000,Tbl_PlantCostIndexes,2)),0) -> 0 | D82: =ref_year&"$" -> 2016$ | E82: Based on NETL CO2 Transport Model which uses NETL (2010) DOE/NETL-2010/1447 basis. Original cost is in 2000$
B83: Pipeline Process Control System | C83: =IF(C34="yes",94000*(CO2_flowrate_GTpY/3.2)^Scaling_Factor_Exponent*(VLOOKUP(ref_year,Tbl_PlantCostIndexes,2)/VLOOKUP(2000,Tbl_PlantCostIndexes,2)),0) -> 0 | D83: =ref_year&"$" -> 2016$ | E83: Based on NETL CO2 Transport Model which uses NETL (2010) DOE/NETL-2010/1447 basis. Original cost is in 2000$
B85: O&M Costs
B86: (Total Other Equipment Cost) * O&M Factor | C86: =SUM(C82:C83)*CO2_MaintFactor -> 0 | D86: =ref_year&"$/year" -> 2016$/year
B89: Carbon Storage (Saline) Calculations
B90: CO2 Storage Cost Breakdown (2007 USD) | D90: Units | E90: Notes / References
B91: CEPC Inflation Adj: 2008->2005 | C91: =VLOOKUP(2005,DeflatorTable,2)/VLOOKUP(2008,DeflatorTable,2) -> 0.9266700204
B92: ="Capital Costs by Stage (Annual Cost of "&plant_life&" year project in "&ref_year&"$)" -> Capital Costs by Stage (Annual Cost of 40 year project in 2016$) | E92: Based on NETL CO2 Saline Storage Cost Model -- P50 correlation determined (2008$) as function of CO2 flowrate for each stage of cost
B93: Regional Evaluation | C93: =94000*VLOOKUP(ref_year,Tbl_labor_indexes,2)/VLOOKUP(2008,Tbl_labor_indexes,2) -> 109497.9487 | D93: =ref_year&"$" -> 2016$
B94: Site Characterization | C94: =(-16600*CO2_flowrate_GTpY^2+53500*CO2_flowrate_GTpY+20300)*1000*VLOOKUP(ref_year,Tbl_labor_indexes,2)/VLOOKUP(2008,Tbl_labor_indexes,2) -> 23646897.44 | D94: =ref_year&"$" -> 2016$
B95: Permitting | C95: =(-400*CO2_flowrate_GTpY^2 + 2200*CO2_flowrate_GTpY + 13800)*1000*VLOOKUP(ref_year,Tbl_labor_indexes,2)/VLOOKUP(2008,Tbl_labor_indexes,2) -> 16075230.77 | D95: =ref_year&"$" -> 2016$
B97: Ongoing Capital Expences
B98: Operations | C98: =(-36000*CO2_flowrate_GTpY^2+224000*CO2_flowrate_GTpY+47000)*1000*(VLOOKUP(ref_year,Tbl_labor_indexes,2)/VLOOKUP(2008,Tbl_labor_indexes,2))/plant_life -> 1368724.359 | D98: =ref_year&"$/year" -> 2016$/year
B99: Post Injection Site Care & Site Closure | C99: =(-18000*CO2_flowrate_GTpY^2 + 183000*CO2_flowrate_GTpY+ 40000)*1000*(VLOOKUP(ref_year,Tbl_labor_indexes,2)/VLOOKUP(2008,Tbl_labor_indexes,2))/plant_life -> 1164871.795 | D99: =ref_year&"$/year" -> 2016$/year
B100: Total ongoing capital expenses | C100: =+IF(CO2_Capture_Efficiency,SUM(C98:C99),0) -> 0 | D100: =ref_year&"$/year" -> 2016$/year
B102: Expense Costs by Stage
B103: Regional Evaluation | C103: =0*(VLOOKUP(ref_year,Tbl_labor_indexes,2)/VLOOKUP(2008,Tbl_labor_indexes,2)) -> 0 | D103: =ref_year&"$/year" -> 2016$/year
B104: Site Characterization | C104: =395000*(VLOOKUP(ref_year,Tbl_labor_indexes,2)/VLOOKUP(2008,Tbl_labor_indexes,2))/plant_life -> 11503.10897 | D104: =ref_year&"$/year" -> 2016$/year
B105: Permitting | C105: =100000*(VLOOKUP(ref_year,Tbl_labor_indexes,2)/VLOOKUP(2008,Tbl_labor_indexes,2))/plant_life -> 2912.179487 | D105: =ref_year&"$/year" -> 2016$/year
B106: Operations | C106: =(-30000*CO2_flowrate_GTpY^2 + 143000*CO2_flowrate_GTpY + 41000)*1000*(VLOOKUP(ref_year,Tbl_labor_indexes,2)/VLOOKUP(2008,Tbl_labor_indexes,2))/plant_life -> 1193993.59 | D106: =ref_year&"$/year" -> 2016$/year
B107: Post Injection Site Care & Site Closure | C107: =(111200*CO2_flowrate_GTpY+27733.33)*1000*(VLOOKUP(ref_year,Tbl_labor_indexes,2)/VLOOKUP(2008,Tbl_labor_indexes,2))/plant_life -> 807644.3474 | D107: =ref_year&"$/year" -> 2016$/year

Sheet Results
B2: Table of Contents
B3: Specific Item Cost Calculation
B4: Energy Data
B5: Production Process Energy Efficiency
B6: Upstream Energy Usage
B7: Emissions Summary
B8: Production Process GHG Emissions Summary
B9: Production Process GHG Emissions
B10: Upstream GHG Emissions
B12: H2a Analysis Results
B14: COST RESULTS
B15: Lang Factor | C15: =total_cap/(ProcEqpCap+IF(CO2_Capture_Efficiency>0,CCSEqpCap,0)) -> 2.752117915
B17: Specific Item Cost Calculation | F17: =IF(CO2_inUse = "Carbon Sequestration","Approximate Carbon Sequestration Costs*","Carbon Sequestration is not included in this case") -> Approximate Carbon Sequestration Costs*
B18: Cost Component | C18: Cost Contribution ($/kg) | D18: Percentage of H2 Cost | F18: Cost Component | G18: Cost Contribution ($/ kg H2) | H18: Cost Contribution ($/ tonne CO2 Sequestered)
B19: Capital Costs | C19: ='Cash Flow Analysis'!D119 -> 0.145298841 | D19: ='Cash Flow Analysis'!C119 -> 0.1341585622 | F19: Capital Costs | G19: =IF(CO2_inUse = "Carbon Sequestration",ROUND((Det_CO2_seq+CO2_aprx_indCap)*CO2_cap_charge_rate/output_kgyear,2),"") -> 0 | H19: =IF(CO2_inUse = "Carbon Sequestration",CO2_capptonneCO2,"") -> 
B20: Decommissioning Costs | C20: ='Cash Flow Analysis'!D120 -> 0.0006784264298 | D20: ='Cash Flow Analysis'!C120 -> 0.0006264104639 | F20: O&M Cost | G20: =IF(CO2_inUse = "Carbon Sequestration",ROUND(Det_CO2_OandMcost/output_kgyear,2),"") -> 0 | H20: =IF(CO2_inUse = "Carbon Sequestration",CO2_OandMptonneCO2,"") -> 
B21: Fixed O&M | C21: ='Cash Flow Analysis'!D121 -> 0.08547590124 | D21: ='Cash Flow Analysis'!C121 -> 0.07892233645 | F21: Energy Cost | G21: =IF(CO2_inUse = "Carbon Sequestration",ROUND(CO2_eCostpY/output_kgyear,2),"") -> 0 | H21: =IF(CO2_inUse = "Carbon Sequestration",CO2_energyptonneCO2,"") -> 
B22: Feedstock Costs | C22: ='Cash Flow Analysis'!D122 -> 0.8242612174 | D22: ='Cash Flow Analysis'!C122 -> 0.7610638809 | F22: Total | G22: =SUM(G19:G21) -> 0 | H22: =SUM(H19:H21) -> 
B23: Other Raw Material Costs | C23: ='Cash Flow Analysis'!D123 -> 0.01691062887 | D23: ='Cash Flow Analysis'!C123 -> 0.01561406574 | F23: *Carbon sequestration costs presented in this table do not include carbon capture capital and operating costs.
B24: Byproduct Credits | C24: ='Cash Flow Analysis'!D124 -> 0 | D24: ='Cash Flow Analysis'!C124 -> 0
B25: Other Variable Costs (including utilities) | C25: ='Cash Flow Analysis'!D125 -> 0.0104131348 | D25: ='Cash Flow Analysis'!C125 -> 0.009614744226
B26: Total | C26: =SUM(C19:C25) -> 1.08303815
B28: ENERGY
B30: Energy Data
B31: Feedstock | C31: Energy Input (GJ/kg H2) | D31: Energy Input (kWh/kg H2) | E31: LHV (GJ/usage unit) | F31: Usage (/kg H2) | G31: Unit | H31: Unit System Conversion Factor | I31: Real levelized cost
B32: =IF('Cash Flow Analysis'!$B$131=0,"",'Cash Flow Analysis'!$B$131) -> Industrial Electricity | C32: =IF($B$32="","",$E$32*$F$32*$H$32) -> 0.0004722249826 | D32: =IF($B32="","",$C32*1000*MJ_to_kWh) -> 0.1311736063 | E32: =IF($B$32<>"",VLOOKUP($B$32,MASTER_PROPERTY_TABLE,MATCH("H2A LHV (GJ/ H2A usage input unit)",key_MPTable,0),FALSE),"") -> 0.0036 | F32: =IF('Cash Flow Analysis'!$B$133="","",'Cash Flow Analysis'!$B$133) -> 0.1311736063 | G32: =IF($B$32<>"",VLOOKUP($B$32,MASTER_PROPERTY_TABLE,MATCH("H2A Usage Input Unit/ kg H2",key_MPTable,0),FALSE),"") -> kWh | H32: =IF($B32="","",IF(VLOOKUP($B32,MASTER_PROPERTY_TABLE,MATCH("Unit System",key_MPTable,0),FALSE)="English",mmBTU_to_GJ,1)) -> 1 | I32: =+'Cash Flow Analysis'!$B$233 -> 0.07785302043
B33: =IF('Cash Flow Analysis'!$C$131=0,"",'Cash Flow Analysis'!$C$131) -> Industrial Natural Gas | C33: =IF($B$33="","",$E$33*$F$33*$H$33) -> 0.1664340862 | D33: =IF($B33="","",$C33*1000*MJ_to_kWh) -> 46.23169061 | E33: =IF($B$33<>"",VLOOKUP($B$33,MASTER_PROPERTY_TABLE,MATCH("H2A LHV (GJ/ H2A usage input unit)",key_MPTable,0),FALSE),"") -> 1.055 | F33: =IF('Cash Flow Analysis'!$C$133="","",'Cash Flow Analysis'!$C$133) -> 0.1577574277 | G33: =IF($B$33<>"",VLOOKUP($B$33,MASTER_PROPERTY_TABLE,MATCH("H2A Usage Input Unit/ kg H2",key_MPTable,0),FALSE),"") -> mmBtu | H33: =IF($B$33="","",IF(VLOOKUP($B$33,MASTER_PROPERTY_TABLE,MATCH("Unit System",key_MPTable,0),FALSE)="English",mmBTU_to_GJ,1)) -> 1 | I33: =+'Cash Flow Analysis'!$C$233 -> 5.463642419
B34: =IF('Cash Flow Analysis'!$D$131=0,"",'Cash Flow Analysis'!$D$131) ->  | C34: =IF($B$34="","",$E$34*$F$34*$H$34) ->  | D34: =IF($B34="","",$C34*1000*MJ_to_kWh) ->  | E34: =IF($B$34<>"",VLOOKUP($B$34,MASTER_PROPERTY_TABLE,MATCH("H2A LHV (GJ/ H2A usage input unit)",key_MPTable,0),FALSE),"") ->  | F34: =IF('Cash Flow Analysis'!$D$133="","",'Cash Flow Analysis'!$D$133) ->  | G34: =IF($B$34<>"",VLOOKUP($B$34,MASTER_PROPERTY_TABLE,MATCH("H2A Usage Input Unit/ kg H2",key_MPTable,0),FALSE),"") ->  | H34: =IF($B$34="","",IF(VLOOKUP($B$34,MASTER_PROPERTY_TABLE,MATCH("Unit System",key_MPTable,0),FALSE)="English",mmBTU_to_GJ,1)) ->  | I34: =+'Cash Flow Analysis'!$D$233 -> 
B35: =IF('Cash Flow Analysis'!$E$131=0,"",'Cash Flow Analysis'!$E$131) ->  | C35: =IF($B$35="","",$E$35*$F$35*$H$35) ->  | D35: =IF($B35="","",$C35*1000*MJ_to_kWh) ->  | E35: =IF($B$35<>"",VLOOKUP($B$35,MASTER_PROPERTY_TABLE,MATCH("H2A LHV (GJ/ H2A usage input unit)",key_MPTable,0),FALSE),"") ->  | F35: =IF('Cash Flow Analysis'!$E$133="","",'Cash Flow Analysis'!$E$133) ->  | G35: =IF($B$35<>"",VLOOKUP($B$35,MASTER_PROPERTY_TABLE,MATCH("H2A Usage Input Unit/ kg H2",key_MPTable,0),FALSE),"") ->  | H35: =IF($B$35="","",IF(VLOOKUP($B$35,MASTER_PROPERTY_TABLE,MATCH("Unit System",key_MPTable,0),FALSE)="English",mmBTU_to_GJ,1)) ->  | I35: =+'Cash Flow Analysis'!$E$233 -> 
B36: Utility
B37: =IF('Cash Flow Analysis'!$F$131=0,"",'Cash Flow Analysis'!$F$131) ->  | C37: =IF($B$37="","",$E$37*$F$37*$H$37) ->  | D37: =IF($B37="","",$C37*1000*MJ_to_kWh) ->  | E37: =IF($B37<>"",VLOOKUP($B37,MASTER_PROPERTY_TABLE,MATCH("H2A LHV (GJ/ H2A usage input unit)",key_MPTable,0),FALSE),"") ->  | F37: =IF('Cash Flow Analysis'!$F$133="","",'Cash Flow Analysis'!$F$133) ->  | G37: =IF($B$37<>"",VLOOKUP($B$37,MASTER_PROPERTY_TABLE,MATCH("H2A Usage Input Unit/ kg H2",key_MPTable,0),FALSE),"") ->  | H37: =IF($B$37="","",IF(VLOOKUP($B$37,MASTER_PROPERTY_TABLE,MATCH("Unit System",key_MPTable,0),FALSE)="English",mmBTU_to_GJ,1)) ->  | I37: =+'Cash Flow Analysis'!$F$233 -> 
B38: =IF('Cash Flow Analysis'!$G$131=0,"",'Cash Flow Analysis'!$G$131) ->  | C38: =IF($B$38="","",$E$38*$F$38*$H$38) ->  | D38: =IF($B38="","",$C38*1000*MJ_to_kWh) ->  | E38: =IF($B38<>"",VLOOKUP($B38,MASTER_PROPERTY_TABLE,MATCH("H2A LHV (GJ/ H2A usage input unit)",key_MPTable,0),FALSE),"") ->  | F38: =IF('Cash Flow Analysis'!$G$133="","",'Cash Flow Analysis'!$G$133) ->  | G38: =IF($B$38<>"",VLOOKUP($B$38,MASTER_PROPERTY_TABLE,MATCH("H2A Usage Input Unit/ kg H2",key_MPTable,0),FALSE),"") ->  | H38: =IF($B$38="","",IF(VLOOKUP($B$38,MASTER_PROPERTY_TABLE,MATCH("Unit System",key_MPTable,0),FALSE)="English",mmBTU_to_GJ,1)) ->  | I38: =+'Cash Flow Analysis'!$G$233 -> 
B39: =IF('Cash Flow Analysis'!$H$131=0,"",'Cash Flow Analysis'!$H$131) ->  | C39: =IF($B$39="","",$E$39*$F$39*$H$39) ->  | D39: =IF($B39="","",$C39*1000*MJ_to_kWh) ->  | E39: =IF($B39<>"",VLOOKUP($B39,MASTER_PROPERTY_TABLE,MATCH("H2A LHV (GJ/ H2A usage input unit)",key_MPTable,0),FALSE),"") ->  | F39: =IF('Cash Flow Analysis'!$H$133="","",'Cash Flow Analysis'!$H$133) ->  | G39: =IF($B$39<>"",VLOOKUP($B$39,MASTER_PROPERTY_TABLE,MATCH("H2A Usage Input Unit/ kg H2",key_MPTable,0),FALSE),"") ->  | H39: =IF($B$39="","",IF(VLOOKUP($B$39,MASTER_PROPERTY_TABLE,MATCH("Unit System",key_MPTable,0),FALSE)="English",mmBTU_to_GJ,1)) ->  | I39: =+'Cash Flow Analysis'!$H$233 -> 
B40: =IF('Cash Flow Analysis'!$I$131=0,"",'Cash Flow Analysis'!$I$131) ->  | C40: =IF($B$40="","",$E$40*$F$40*$H$40) ->  | D40: =IF($B40="","",$C40*1000*MJ_to_kWh) ->  | E40: =IF($B40<>"",VLOOKUP($B40,MASTER_PROPERTY_TABLE,MATCH("H2A LHV (GJ/ H2A usage input unit)",key_MPTable,0),FALSE),"") ->  | F40: =IF('Cash Flow Analysis'!$I$133="","",'Cash Flow Analysis'!$I$133) ->  | G40: =IF($B$40<>"",VLOOKUP($B$40,MASTER_PROPERTY_TABLE,MATCH("H2A Usage Input Unit/ kg H2",key_MPTable,0),FALSE),"") ->  | H40: =IF($B$40="","",IF(VLOOKUP($B$40,MASTER_PROPERTY_TABLE,MATCH("Unit System",key_MPTable,0),FALSE)="English",mmBTU_to_GJ,1)) ->  | I40: =+'Cash Flow Analysis'!$I$233 -> 
B41: Carbon Sequestration
B42: =IF('Cash Flow Analysis'!$J$131=0,"",'Cash Flow Analysis'!$J$131) ->  | C42: =IF($B$42="","",$E$42*$F$42*$H$42) ->  | D42: =IF($B42="","",$C42*1000*MJ_to_kWh) ->  | E42: =IF($B42<>"",VLOOKUP($B42,MASTER_PROPERTY_TABLE,MATCH("H2A LHV (GJ/ H2A usage input unit)",key_MPTable,0),FALSE),"") ->  | F42: =CO2_CashFlow_eUse -> 0 | G42: =IF($B$42<>"",VLOOKUP($B$42,MASTER_PROPERTY_TABLE,MATCH("H2A Usage Input Unit/ kg H2",key_MPTable,0),FALSE),"") ->  | H42: =IF($B42="","",IF(VLOOKUP($B42,MASTER_PROPERTY_TABLE,MATCH("Unit System",key_MPTable,0),FALSE)="English",mmBTU_to_GJ,1)) -> 
C43: Energy Output (GJ/kg H2) | D43: Energy Output (kWh/kg H2) | E43: LHV (GJ/usage unit) | F43: Production (/kg H2) | G43: Unit | H43: Unit System Conversion Factor
B44: Hydrogen (1 kg) | C44: =kgH2_to_GJ -> 0.1202116383 | D44: =IF($B44="","",$C44*1000*MJ_to_kWh) -> 33.39212175 | E44: =kgH2_to_GJ -> 0.1202116383 | F44: 1 | G44: kg | H44: 1
B46: Byproducts
B47: =IF('Cash Flow Analysis'!$K$131=0,"",'Cash Flow Analysis'!$K$131) ->  | C47: =IF($B$47="","",$E$47*$F$47*$H$47) ->  | D47: =IF($B47="","",$C47*1000*MJ_to_kWh) ->  | E47: =IF($B47<>"",VLOOKUP($B47,MASTER_PROPERTY_TABLE,MATCH("H2A LHV (GJ/ H2A usage input unit)",key_MPTable,0),FALSE),"") ->  | F47: =IF('Cash Flow Analysis'!$K$133="","",'Cash Flow Analysis'!$K$133) ->  | G47: =IF($B$47<>"",VLOOKUP($B$47,MASTER_PROPERTY_TABLE,MATCH("H2A Usage Input Unit/ kg H2",key_MPTable,0),FALSE),"") ->  | H47: =IF($B$47="","",IF(VLOOKUP($B$47,MASTER_PROPERTY_TABLE,MATCH("Unit System",key_MPTable,0),FALSE)="English",mmBTU_to_GJ,1)) ->  | I47: =+'Cash Flow Analysis'!$K$233 -> 
B48: =IF('Cash Flow Analysis'!$L$131=0,"",'Cash Flow Analysis'!$L$131) ->  | C48: =IF($B$48="","",$E$48*$F$48*$H$48) ->  | D48: =IF($B48="","",$C48*1000*MJ_to_kWh) ->  | E48: =IF($B48<>"",VLOOKUP($B48,MASTER_PROPERTY_TABLE,MATCH("H2A LHV (GJ/ H2A usage input unit)",key_MPTable,0),FALSE),"") ->  | F48: =IF('Cash Flow Analysis'!$L$133="","",'Cash Flow Analysis'!$L$133) ->  | G48: =IF($B$48<>"",VLOOKUP($B$48,MASTER_PROPERTY_TABLE,MATCH("H2A Usage Input Unit/ kg H2",key_MPTable,0),FALSE),"") ->  | H48: =IF($B$48="","",IF(VLOOKUP($B$48,MASTER_PROPERTY_TABLE,MATCH("Unit System",key_MPTable,0),FALSE)="English",mmBTU_to_GJ,1)) ->  | I48: =+'Cash Flow Analysis'!$L$233 -> 
B49: =IF('Cash Flow Analysis'!$M$131=0,"",'Cash Flow Analysis'!$M$131) ->  | C49: =IF($B$49="","",$E$49*$F$49*$H$49) ->  | D49: =IF($B49="","",$C49*1000*MJ_to_kWh) ->  | E49: =IF($B49<>"",VLOOKUP($B49,MASTER_PROPERTY_TABLE,MATCH("H2A LHV (GJ/ H2A usage input unit)",key_MPTable,0),FALSE),"") ->  | F49: =IF('Cash Flow Analysis'!$M$133="","",'Cash Flow Analysis'!$M$133) ->  | G49: =IF($B$49<>"",VLOOKUP($B$49,MASTER_PROPERTY_TABLE,MATCH("H2A Usage Input Unit/ kg H2",key_MPTable,0),FALSE),"") ->  | H49: =IF($B$49="","",IF(VLOOKUP($B$49,MASTER_PROPERTY_TABLE,MATCH("Unit System",key_MPTable,0),FALSE)="English",mmBTU_to_GJ,1)) ->  | I49: =+'Cash Flow Analysis'!$M$233 -> 
B50: =IF('Cash Flow Analysis'!$N$131=0,"",'Cash Flow Analysis'!$N$131) ->  | C50: =IF($B$50="","",$E$50*$F$50*$H$50) ->  | D50: =IF($B50="","",$C50*1000*MJ_to_kWh) ->  | E50: =IF($B50<>"",VLOOKUP($B50,MASTER_PROPERTY_TABLE,MATCH("H2A LHV (GJ/ H2A usage input unit)",key_MPTable,0),FALSE),"") ->  | F50: =IF('Cash Flow Analysis'!$N$133="","",'Cash Flow Analysis'!$N$133) ->  | G50: =IF($B$50<>"",VLOOKUP($B$50,MASTER_PROPERTY_TABLE,MATCH("H2A Usage Input Unit/ kg H2",key_MPTable,0),FALSE),"") ->  | H50: =IF($B$50="","",IF(VLOOKUP($B$50,MASTER_PROPERTY_TABLE,MATCH("Unit System",key_MPTable,0),FALSE)="English",mmBTU_to_GJ,1)) ->  | I50: =+'Cash Flow Analysis'!$N$233 -> 
B52: Production Process Energy Efficiency | D52: =(C56+C57)/(C53+C54+C55) -> 0.7202342287
B53: Feedstock energy input (GJ)/kg H2 | C53: =SUM(C32:C35) -> 0.1669063112
B54: Utility energy input (GJ/kg H2) | C54: =SUM(C37:C40) -> 0
B55: Carbon sequestration energy input (GJ/kg H2) | C55: =IF(C42="",0,C42) -> 0
B56: Hydrogen energy output (GJ/kg) | C56: =C44 -> 0.1202116383
B57: Byproduct energy output (GJ/kg H2) | C57: =SUM(C47:C50) -> 0
B59: Upstream Energy Usage (GJ/kg H2)
B60: Feedstock | C60: Total Energy | D60: Fossil Fuels | E60: Petroleum
B61: =B32 -> Industrial Electricity | C61: =IF($B61="","",$C32/1000000*VLOOKUP($B61,Tbl_Emissions,3,FALSE)) -> 0.0008438660439 | D61: =IF($B61="","",$C32/1000000*VLOOKUP($B61,Tbl_Emissions,4,FALSE)) -> 0.0006470006956 | E61: =IF($B61="","",$C32/1000000*VLOOKUP($B61,Tbl_Emissions,5,FALSE)) -> 9.971817549e-06
B62: =B33 -> Industrial Natural Gas | C62: =IF($B62="","",$C33/1000000*VLOOKUP($B62,Tbl_Emissions,3,FALSE)) -> 0.1818015002 | D62: =IF($B62="","",$C33/1000000*VLOOKUP($B62,Tbl_Emissions,4,FALSE)) -> 0.1817460221 | E62: =IF($B62="","",$C33/1000000*VLOOKUP($B62,Tbl_Emissions,5,FALSE)) -> 0.000662925458
B63: =B34 ->  | C63: =IF($B63="","",$C34/1000000*VLOOKUP($B63,Tbl_Emissions,3,FALSE)) ->  | D63: =IF($B63="","",$C34/1000000*VLOOKUP($B63,Tbl_Emissions,4,FALSE)) ->  | E63: =IF($B63="","",$C34/1000000*VLOOKUP($B63,Tbl_Emissions,5,FALSE)) -> 
B64: =B35 ->  | C64: =IF($B64="","",$C35/1000000*VLOOKUP($B64,Tbl_Emissions,3,FALSE)) ->  | D64: =IF($B64="","",$C35/1000000*VLOOKUP($B64,Tbl_Emissions,4,FALSE)) ->  | E64: =IF($B64="","",$C35/1000000*VLOOKUP($B64,Tbl_Emissions,5,FALSE)) -> 
B65: Utility
B66: =B37 ->  | C66: =IF($B66="","",$C37/1000000*VLOOKUP($B66,Tbl_Emissions,3,FALSE)) ->  | D66: =IF($B66="","",$C37/1000000*VLOOKUP($B66,Tbl_Emissions,4,FALSE)) ->  | E66: =IF($B66="","",$C37/1000000*VLOOKUP($B66,Tbl_Emissions,5,FALSE)) -> 
B67: =B38 ->  | C67: =IF($B67="","",$C38/1000000*VLOOKUP($B67,Tbl_Emissions,3,FALSE)) ->  | D67: =IF($B67="","",$C38/1000000*VLOOKUP($B67,Tbl_Emissions,4,FALSE)) ->  | E67: =IF($B67="","",$C38/1000000*VLOOKUP($B67,Tbl_Emissions,5,FALSE)) -> 
B68: =B39 ->  | C68: =IF($B68="","",$C39/1000000*VLOOKUP($B68,Tbl_Emissions,3,FALSE)) ->  | D68: =IF($B68="","",$C39/1000000*VLOOKUP($B68,Tbl_Emissions,4,FALSE)) ->  | E68: =IF($B68="","",$C39/1000000*VLOOKUP($B68,Tbl_Emissions,5,FALSE)) -> 
B69: =B40 ->  | C69: =IF($B69="","",$C40/1000000*VLOOKUP($B69,Tbl_Emissions,3,FALSE)) ->  | D69: =IF($B69="","",$C40/1000000*VLOOKUP($B69,Tbl_Emissions,4,FALSE)) ->  | E69: =IF($B69="","",$C40/1000000*VLOOKUP($B69,Tbl_Emissions,5,FALSE)) -> 
B70: Carbon Sequestration
B71: =B42 ->  | C71: =IF($B71="","",$C42/1000000*VLOOKUP($B71,Tbl_Emissions,3,FALSE)) ->  | D71: =IF($B71="","",$C42/1000000*VLOOKUP($B71,Tbl_Emissions,4,FALSE)) ->  | E71: =IF($B71="","",$C42/1000000*VLOOKUP($B71,Tbl_Emissions,5,FALSE)) -> 
B74: EMISSIONS
B76: Emissions Summary | D76: CO2 | E76: CH4 | F76: N2O | G76: Total GHG (CO2 eq)
B77: Total upstream emissions (kg/kg H2) | D77: =C121 -> 1.025444832 | E77: =D121 -> 0.03082953017 | F77: =E121 -> 0.0001443416962 | G77: =F121 -> 1.839196911
B78: Total process emissions (kg/kg H2) | D78: =D89 -> 9.372791925 | E78: =E89 -> 0 | F78: =F89 -> 0 | G78: =G89 -> 9.372791925
B80: Total well to pump emissions (kg/kg H2) | D80: =SUM(D77:D79) -> 10.39823676 | E80: =SUM(E77:E79) -> 0.03082953017 | F80: =SUM(F77:F79) -> 0.0001443416962 | G80: =SUM(G77:G79) -> 11.21198884
B82: Production Process GHG Emissions Summary | D82: CO2 | E82: CH4 | F82: N2O | G82: Total GHG (CO2 eq)
B83: Total Process Pollutants Produced (kg /kg H2) | D83: =SUM(C95:C105) -> 9.372791925 | E83: =SUM(D95:D105) -> 0 | F83: =SUM(E95:E105) -> 0 | G83: =SUM(F95:F105) -> 9.372791925
B84: Total Process Pollutants Produced (metric tons/year) | D84: =ROUND(D83*output_kgyear/1000,-2) -> 1487200 | E84: =ROUND(E83*output_kgyear/1000,-2) -> 0 | F84: =ROUND(F83*output_kgyear/1000,-2) -> 0 | G84: =ROUND(G83*output_kgyear/1000,-2) -> 1487200
B85: Total Feedstock Pollutants Produced (kg /kg H2) | D85: =SUM(C95:C98) -> 9.372791925 | E85: =SUM(D95:D98) -> 0 | F85: =SUM(E95:E98) -> 0 | G85: =SUM(F95:F98) -> 9.372791925
B86: Total Feedstock Pollutants Produced (metric tons /year) | D86: =ROUND(D85*output_kgyear/1000,-2) -> 1487200 | E86: =ROUND(E85*output_kgyear/1000,-2) -> 0 | F86: =ROUND(F85*output_kgyear/1000,-2) -> 0 | G86: =ROUND(G85*output_kgyear/1000,-2) -> 1487200
B87: CO2 Captured (kg/kg H2)* | D87: =IF(CO2_CashFlow_eUse>0,D85*CO2_Capture_Efficiency,0) -> 0
B88: CO2 Captured (metric tons/year)* | D88: =ROUND(D87*output_kgyear/1000,-2) -> 0
B89: Total Process Emissions (kg/kg H2) | D89: =D83-D87 -> 9.372791925 | E89: =E83-E87 -> 0 | F89: =F83-F87 -> 0 | G89: =D89*GHG_CO2_factor + E89*GHG_CH4_factor + F89*GHG_N2O_factor -> 9.372791925
B90: Total Process Emissions (metric tons/year) | D90: =ROUND(D89*output_kgyear/1000,-2) -> 1487200 | E90: =ROUND(E89*output_kgyear/1000,-2) -> 0 | F90: =ROUND(F89*output_kgyear/1000,-2) -> 0 | G90: =ROUND(G89*output_kgyear/1000,-2) -> 1487200
B91: *Carbon sequestration values are only calculated if the detailed Carbon Sequestration sheet is used.
B93: Production Process GHG Emissions (/kg H2)
B94: Feedstock | C94: CO2 | D94: CH4 | E94: N2O | F94: Total GHG (CO2 eq)
B95: =B32 -> Industrial Electricity | C95: =IF($B95="","",VLOOKUP($B95,MASTER_PROPERTY_TABLE,MATCH("CO2 Emissions Factor (kg CO2 produced/GJ feed)",key_MPTable,0),FALSE)*$E32*$F32) -> 0 | D95: =IF($B95="","",VLOOKUP($B95,MASTER_PROPERTY_TABLE,MATCH("CH4 Emissions Factor (kg CH4 produced/GJ or mmBtu feed)",key_MPTable,0),FALSE)*$E32*$F32) -> 0 | E95: =IF($B95="","",VLOOKUP($B95,MASTER_PROPERTY_TABLE,MATCH("N2O Emissions Factor (kg N2O produced/GJ or mmBtu feed)",key_MPTable,0),FALSE)*$E32*$F32) -> 0 | F95: =IF($B95="","",$C95*GHG_CO2_factor+$D95*GHG_CH4_factor+$E95*GHG_N2O_factor) -> 0
B96: =B33 -> Industrial Natural Gas | C96: =IF($B96="","",VLOOKUP($B96,MASTER_PROPERTY_TABLE,MATCH("CO2 Emissions Factor (kg CO2 produced/GJ feed)",key_MPTable,0),FALSE)*$E33*$F33) -> 9.372791925 | D96: =IF($B96="","",VLOOKUP($B96,MASTER_PROPERTY_TABLE,MATCH("CH4 Emissions Factor (kg CH4 produced/GJ or mmBtu feed)",key_MPTable,0),FALSE)*$E33*$F33) -> 0 | E96: =IF($B96="","",VLOOKUP($B96,MASTER_PROPERTY_TABLE,MATCH("N2O Emissions Factor (kg N2O produced/GJ or mmBtu feed)",key_MPTable,0),FALSE)*$E33*$F33) -> 0 | F96: =IF($B96="","",$C96*GHG_CO2_factor+$D96*GHG_CH4_factor+$E96*GHG_N2O_factor) -> 9.372791925
B97: =B34 ->  | C97: =IF($B97="","",VLOOKUP($B97,MASTER_PROPERTY_TABLE,MATCH("CO2 Emissions Factor (kg CO2 produced/GJ feed)",key_MPTable,0),FALSE)*$E34*$F34) ->  | D97: =IF($B97="","",VLOOKUP($B97,MASTER_PROPERTY_TABLE,MATCH("CH4 Emissions Factor (kg CH4 produced/GJ or mmBtu feed)",key_MPTable,0),FALSE)*$E34*$F34) ->  | E97: =IF($B97="","",VLOOKUP($B97,MASTER_PROPERTY_TABLE,MATCH("N2O Emissions Factor (kg N2O produced/GJ or mmBtu feed)",key_MPTable,0),FALSE)*$E34*$F34) ->  | F97: =IF($B97="","",$C97*GHG_CO2_factor+$D97*GHG_CH4_factor+$E97*GHG_N2O_factor) -> 
B98: =B35 ->  | C98: =IF($B98="","",VLOOKUP($B98,MASTER_PROPERTY_TABLE,MATCH("CO2 Emissions Factor (kg CO2 produced/GJ feed)",key_MPTable,0),FALSE)*$E35*$F35) ->  | D98: =IF($B98="","",VLOOKUP($B98,MASTER_PROPERTY_TABLE,MATCH("CH4 Emissions Factor (kg CH4 produced/GJ or mmBtu feed)",key_MPTable,0),FALSE)*$E35*$F35) ->  | E98: =IF($B98="","",VLOOKUP($B98,MASTER_PROPERTY_TABLE,MATCH("N2O Emissions Factor (kg N2O produced/GJ or mmBtu feed)",key_MPTable,0),FALSE)*$E35*$F35) ->  | F98: =IF($B98="","",$C98*GHG_CO2_factor+$D98*GHG_CH4_factor+$E98*GHG_N2O_factor) -> 
B99: Utility
B100: =B37 ->  | C100: =IF($B100="","",VLOOKUP($B100,MASTER_PROPERTY_TABLE,MATCH("CO2 Emissions Factor (kg CO2 produced/GJ feed)",key_MPTable,0),FALSE)*$E37*$F37) ->  | D100: =IF($B100="","",VLOOKUP($B100,MASTER_PROPERTY_TABLE,MATCH("CH4 Emissions Factor (kg CH4 produced/GJ or mmBtu feed)",key_MPTable,0),FALSE)*$E37*$F37) ->  | E100: =IF($B100="","",VLOOKUP($B100,MASTER_PROPERTY_TABLE,MATCH("N2O Emissions Factor (kg N2O produced/GJ or mmBtu feed)",key_MPTable,0),FALSE)*$E37*$F37) ->  | F100: =IF($B100="","",$C100*GHG_CO2_factor+$D100*GHG_CH4_factor+$E100*GHG_N2O_factor) -> 
B101: =B38 ->  | C101: =IF($B101="","",VLOOKUP($B101,MASTER_PROPERTY_TABLE,MATCH("CO2 Emissions Factor (kg CO2 produced/GJ feed)",key_MPTable,0),FALSE)*$E38*$F38) ->  | D101: =IF($B101="","",VLOOKUP($B101,MASTER_PROPERTY_TABLE,MATCH("CH4 Emissions Factor (kg CH4 produced/GJ or mmBtu feed)",key_MPTable,0),FALSE)*$E38*$F38) ->  | E101: =IF($B101="","",VLOOKUP($B101,MASTER_PROPERTY_TABLE,MATCH("N2O Emissions Factor (kg N2O produced/GJ or mmBtu feed)",key_MPTable,0),FALSE)*$E38*$F38) ->  | F101: =IF($B101="","",$C101*GHG_CO2_factor+$D101*GHG_CH4_factor+$E101*GHG_N2O_factor) -> 
B102: =B39 ->  | C102: =IF($B102="","",VLOOKUP($B102,MASTER_PROPERTY_TABLE,MATCH("CO2 Emissions Factor (kg CO2 produced/GJ feed)",key_MPTable,0),FALSE)*$E39*$F39) ->  | D102: =IF($B102="","",VLOOKUP($B102,MASTER_PROPERTY_TABLE,MATCH("CH4 Emissions Factor (kg CH4 produced/GJ or mmBtu feed)",key_MPTable,0),FALSE)*$E39*$F39) ->  | E102: =IF($B102="","",VLOOKUP($B102,MASTER_PROPERTY_TABLE,MATCH("N2O Emissions Factor (kg N2O produced/GJ or mmBtu feed)",key_MPTable,0),FALSE)*$E39*$F39) ->  | F102: =IF($B102="","",$C102*GHG_CO2_factor+$D102*GHG_CH4_factor+$E102*GHG_N2O_factor) -> 
B103: =B40 ->  | C103: =IF($B103="","",VLOOKUP($B103,MASTER_PROPERTY_TABLE,MATCH("CO2 Emissions Factor (kg CO2 produced/GJ feed)",key_MPTable,0),FALSE)*$E40*$F40) ->  | D103: =IF($B103="","",VLOOKUP($B103,MASTER_PROPERTY_TABLE,MATCH("CH4 Emissions Factor (kg CH4 produced/GJ or mmBtu feed)",key_MPTable,0),FALSE)*$E40*$F40) ->  | E103: =IF($B103="","",VLOOKUP($B103,MASTER_PROPERTY_TABLE,MATCH("N2O Emissions Factor (kg N2O produced/GJ or mmBtu feed)",key_MPTable,0),FALSE)*$E40*$F40) ->  | F103: =IF($B103="","",$C103*GHG_CO2_factor+$D103*GHG_CH4_factor+$E103*GHG_N2O_factor) -> 
B104: Carbon Sequestration
B105: =B42 ->  | C105: =IF($B105="","",VLOOKUP($B105,MASTER_PROPERTY_TABLE,MATCH("CO2 Emissions Factor (kg CO2 produced/GJ feed)",key_MPTable,0),FALSE)*$E42*$F42) ->  | D105: =IF($B105="","",VLOOKUP($B105,MASTER_PROPERTY_TABLE,MATCH("CH4 Emissions Factor (kg CH4 produced/GJ or mmBtu feed)",key_MPTable,0),FALSE)*$E42*$F42) ->  | E105: =IF($B105="","",VLOOKUP($B105,MASTER_PROPERTY_TABLE,MATCH("N2O Emissions Factor (kg N2O produced/GJ or mmBtu feed)",key_MPTable,0),FALSE)*$E42*$F42) ->  | F105: =IF($B105="","",$C105*GHG_CO2_factor+$D105*GHG_CH4_factor+$E105*GHG_N2O_factor) -> 
B108: Upstream GHG Emissions (kg/kg H2) based on GREET.NET 2017
B109: Feedstock | C109: CO2 | D109: CH4 | E109: N2O | F109: Total GHG (CO2 eq)
B110: =B32 -> Industrial Electricity | C110: =IF($B110="","",$C32*VLOOKUP($B110,Tbl_Emissions,6,FALSE)) -> 0.06616868926 | D110: =IF($B110="","",$C32*VLOOKUP($B110,Tbl_Emissions,7,FALSE)) -> 0.0001003795003 | E110: =IF($B110="","",$C32*VLOOKUP($B110,Tbl_Emissions,8,FALSE)) -> 9.679772632e-07 | F110: =IF($B110="","",$C110*GHG_CO2_factor+$D110*GHG_CH4_factor+$E110*GHG_N2O_factor) -> 0.06896663399
B111: =B33 -> Industrial Natural Gas | C111: =IF($B111="","",$C33*VLOOKUP($B111,Tbl_Emissions,6,FALSE)) -> 0.9592761426 | D111: =IF($B111="","",$C33*VLOOKUP($B111,Tbl_Emissions,7,FALSE)) -> 0.03072915067 | E111: =IF($B111="","",$C33*VLOOKUP($B111,Tbl_Emissions,8,FALSE)) -> 0.0001433737189 | F111: =IF($B111="","",$C111*GHG_CO2_factor+$D111*GHG_CH4_factor+$E111*GHG_N2O_factor) -> 1.770230277
B112: =B34 ->  | C112: =IF($B112="","",$C34*VLOOKUP($B112,Tbl_Emissions,6,FALSE)) ->  | D112: =IF($B112="","",$C34*VLOOKUP($B112,Tbl_Emissions,7,FALSE)) ->  | E112: =IF($B112="","",$C34*VLOOKUP($B112,Tbl_Emissions,8,FALSE)) ->  | F112: =IF($B112="","",$C112*GHG_CO2_factor+$D112*GHG_CH4_factor+$E112*GHG_N2O_factor) -> 
B113: =B35 ->  | C113: =IF($B113="","",$C35*VLOOKUP($B113,Tbl_Emissions,6,FALSE)) ->  | D113: =IF($B113="","",$C35*VLOOKUP($B113,Tbl_Emissions,7,FALSE)) ->  | E113: =IF($B113="","",$C35*VLOOKUP($B113,Tbl_Emissions,8,FALSE)) ->  | F113: =IF($B113="","",$C113*GHG_CO2_factor+$D113*GHG_CH4_factor+$E113*GHG_N2O_factor) -> 
B114: Utility
B115: =B37 ->  | C115: =IF($B115="","",$C37*VLOOKUP($B115,Tbl_Emissions,6,FALSE)) ->  | D115: =IF($B115="","",$C37*VLOOKUP($B115,Tbl_Emissions,7,FALSE)) ->  | E115: =IF($B115="","",$C37*VLOOKUP($B115,Tbl_Emissions,8,FALSE)) ->  | F115: =IF($B115="","",$C115*GHG_CO2_factor+$D115*GHG_CH4_factor+$E115*GHG_N2O_factor) -> 
B116: =B38 ->  | C116: =IF($B116="","",$C38*VLOOKUP($B116,Tbl_Emissions,6,FALSE)) ->  | D116: =IF($B116="","",$C38*VLOOKUP($B116,Tbl_Emissions,7,FALSE)) ->  | E116: =IF($B116="","",$C38*VLOOKUP($B116,Tbl_Emissions,8,FALSE)) ->  | F116: =IF($B116="","",$C116*GHG_CO2_factor+$D116*GHG_CH4_factor+$E116*GHG_N2O_factor) -> 
B117: =B39 ->  | C117: =IF($B117="","",$C39*VLOOKUP($B117,Tbl_Emissions,6,FALSE)) ->  | D117: =IF($B117="","",$C39*VLOOKUP($B117,Tbl_Emissions,7,FALSE)) ->  | E117: =IF($B117="","",$C39*VLOOKUP($B117,Tbl_Emissions,8,FALSE)) ->  | F117: =IF($B117="","",$C117*GHG_CO2_factor+$D117*GHG_CH4_factor+$E117*GHG_N2O_factor) -> 
B118: =B40 ->  | C118: =IF($B118="","",$C40*VLOOKUP($B118,Tbl_Emissions,6,FALSE)) ->  | D118: =IF($B118="","",$C40*VLOOKUP($B118,Tbl_Emissions,7,FALSE)) ->  | E118: =IF($B118="","",$C40*VLOOKUP($B118,Tbl_Emissions,8,FALSE)) ->  | F118: =IF($B118="","",$C118*GHG_CO2_factor+$D118*GHG_CH4_factor+$E118*GHG_N2O_factor) -> 
B119: Carbon Sequestration
B120: =B42 ->  | C120: =IF($B120="","",$C42*VLOOKUP($B120,Tbl_Emissions,6,FALSE)) ->  | D120: =IF($B120="","",$C42*VLOOKUP($B120,Tbl_Emissions,7,FALSE)) ->  | E120: =IF($B120="","",$C42*VLOOKUP($B120,Tbl_Emissions,8,FALSE)) ->  | F120: =IF($B120="","",$C120*GHG_CO2_factor+$D120*GHG_CH4_factor+$E120*GHG_N2O_factor) -> 
B121: TOTAL | C121: =SUM(C110:C120) -> 1.025444832 | D121: =SUM(D110:D120) -> 0.03082953017 | E121: =SUM(E110:E120) -> 0.0001443416962 | F121: =SUM(F110:F120) -> 1.839196911

Sheet Tornado Charts & Risk Analysis
B2: Parameter | C2: Nominal | D2: Enter deviation % for lowering H2 cost | E2: Enter deviation % for increasing H2 cost | F2: Price-decreasing factor | G2: Price-increasing factor | H2: Price-decreasing value | I2: Price-increasing value
B3: Operating Capacity Factor | C3: =+cap_factor -> 0.9 | D3: 0.05 | E3: 0.05 | F3: =1+D3 -> 1.05 | G3: =1-E3 -> 0.95 | H3: =+C3*F3 -> 0.945 | I3: =+C3*G3 -> 0.855
B4: =+Input_Sheet_Template!B26 -> Plant Design Capacity (kg of H2/day) | C4: =+design_cap -> 483024 | D4: 0.05 | E4: 0.05 | F4: =1+D4 -> 1.05 | G4: =1-E4 -> 0.95 | H4: 507175.2 | I4: 458872.8
B5: After-tax Real IRR | C5: =+real_irr -> 0.08 | D5: 0.05 | E5: 0.05 | F5: =1-D5 -> 0.95 | G5: =1+E5 -> 1.05 | H5: 0.076 | I5: 0.084
B6: Feedstock Consumption (% of baseline) | C6: 1 | D6: 0.05 | E6: 0.05 | F6: =1-D6 -> 0.95 | G6: =1+E6 -> 1.05 | H6: 0.95 | I6: 1.05
B7: Utilities Consumption (% of baseline) | C7: 1 | D7: 0.05 | E7: 0.05 | F7: =1-D7 -> 0.95 | G7: 1.05 | H7: 0.95 | I7: 1.05
B8: Total Capital Investment | C8: =+total_cap -> 283662140.4 | D8: 0.05 | E8: 0.05 | F8: =1-D8 -> 0.95 | G8: 1.05 | H8: 269479033.4 | I8: 297845247.4
B9: Total Fixed Operating Cost | C9: =+fixed -> 13562750.5 | D9: 0.05 | E9: 0.05 | F9: =1-D9 -> 0.95 | G9: 1.05 | H9: 12884612.97 | I9: 14240888.02
B11: Run Risk Analysis (note: Risk analysis could take ~5 min to run)? | D11: Yes | E11: =IF(RunRiskAnalysis="Yes"," Please click Update Charts and Risk Analysis button before using results below","") -> Please click Update Charts and Risk Analysis button before using results below
P12: Risk variable to plot | R12: Cost of hydrogen ($/kg)
V13: Percentile | W13: Value
V14: 0 | W14: =+MIN(OFFSET($B$251:$B$2250,0,$C$194))*$C$198 -> 1.053942947
V15: 0.05 | W15: =+PERCENTILE(OFFSET($B$251:$B$2250,0,$C$194),V15)*$C$198 -> 1.063990609
V16: =+V15+0.05 -> 0.1 | W16: 1.066227168
V17: 0.15 | W17: 1.067781881
V18: 0.2 | W18: 1.069125642
V19: 0.25 | W19: 1.070172873
V20: 0.3 | W20: 1.071348096
V21: 0.35 | W21: 1.072198899
V22: 0.4 | W22: 1.073064904
V23: 0.45 | W23: 1.073796411
V24: 0.5 | W24: 1.074508966
V25: 0.55 | W25: 1.075255865
V26: 0.6 | W26: 1.076084645
V27: 0.65 | W27: 1.077034179
V28: 0.7 | W28: 1.07797223
V29: 0.75 | W29: 1.079058763
V30: 0.8 | W30: 1.080298628
V31: 0.85 | W31: 1.081553911
V32: 0.9 | W32: 1.083017918
V33: 0.95 | W33: 1.085419184
V34: 1 | W34: =+MAX(OFFSET($B$251:$B$2250,0,$C$194))*$C$198 -> 1.095876087
B45: No user interactions below this row
B47: Displayed case
B48: 1 | C48: =+OFFSET(C50,$B$48,0) -> 1 | D48: 1 | E48: 1 | F48: =+OFFSET(F50,$B$48,0) -> 1 | G48: =+OFFSET(G50,$B$48,0) -> 1 | H48: =+OFFSET(H50,$B$48,0) -> 1 | I48: =+OFFSET(I50,$B$48,0) -> 1 | K48: =+'Cash Flow Analysis'!F118 -> 1.08303815 | L48: =+'Cash Flow Analysis'!Q118 -> 0 | M48: =+'Cash Flow Analysis'!L118 -> 0.0006900852846 | N48: =+'Cash Flow Analysis'!H117 -> 0.06876389688 | O48: =+'Cash Flow Analysis'!I117 -> 0.008787539455 | P48: =+'Cash Flow Analysis'!J117 -> 0.01277581463 | Q48: =+'Cash Flow Analysis'!K117 -> 0.002954293402 | R48: =+'Cash Flow Analysis'!M117 -> 0.0006784264298 | S48: =+'Cash Flow Analysis'!N117 -> 0.08547590124 | T48: =+'Cash Flow Analysis'!O117 -> 0.8242612174 | U48: =+'Cash Flow Analysis'!P117 -> 0.01691062887 | V48: =+'Cash Flow Analysis'!R117 -> 0.0104131348 | W48: =+'Cash Flow Analysis'!S117 -> 0.0411032796 | X48: =+'Cash Flow Analysis'!X117 -> 0.009757649195 | Y48: =+'Cash Flow Analysis'!Z117 -> 0.001846453099
B50: Case | C50: Operating capacity factor | D50: Plant design capacity (kg of H2/day) | E50: After-tax real IRR (%) | F50: Feedstock consumption (% of most likely value) | G50: Utilities consumption (% of most likely value) | H50: Total capital investment ($) | I50: Total fixed operating cost ($/year) | K50: Cost of hydrogen ($/kg) | L50: Revenue from byproduct sales ($/kg) | M50: Salvage value ($/kg) | N50: Initial equity depreciable capital ($/kg) | O50: Yearly replacement costs ($/kg) | P50: Cash from working capital reserve ($/kg) | Q50: Other non-depreciable capital costs ($/kg) | R50: Decommissioning costs ($/kg) | S50: Fixed operating cost ($/kg) | T50: Feedstock cost ($/kg) | U50: Other raw material cost ($/kg) | V50: Other variable operating costs ($/kg) | W50: Debt interest ($/kg) | X50: Taxes ($/kg) | Y50: Principal payment ($/kg)
B51: 1 | C51: 1 | D51: 1 | E51: 1 | F51: 1 | G51: 1 | H51: 1 | I51: 1 | K51: 1.074458914 | L51: 0 | M51: 0.0006900852846 | N51: 0.06876389688 | O51: 0.008787539455 | P51: 0.01266087668 | Q51: 0.002954293402 | R51: 0.0006784264298 | S51: 0.08547590124 | T51: 0.8158367589 | U51: 0.01691062887 | V51: 0.0104131348 | W51: 0.0411032796 | X51: 0.009717809406 | Y51: 0.001846453099
B52: =+B51+1 -> 2 | C52: =+F3 -> 1.05 | D52: 1 | E52: 1 | F52: 1 | G52: 1 | H52: 1 | I52: 1 | K52: 1.063356992 | L52: 0 | M52: 0.0006572240805 | N52: 0.0654894256 | O52: 0.008369085195 | P52: 0.01259427246 | Q52: 0.002813612764 | R52: 0.0006461204093 | S52: 0.08140562022 | T52: 0.8158367589 | U52: 0.01610536082 | V52: 0.01040850556 | W52: 0.03914598058 | X52: 0.009440947024 | Y52: 0.001758526761
B53: =+B52+1 -> 3 | C53: =+G3 -> 0.95 | D53: 1 | E53: 1 | F53: 1 | G53: 1 | H53: 1 | I53: 1 | K53: 1.086729458 | L53: 0 | M53: 0.0007264055627 | N53: 0.07238304934 | O53: 0.009250041531 | P53: 0.01273449188 | Q53: 0.003109782528 | R53: 0.0007141330839 | S53: 0.08997463288 | T53: 0.8158367589 | U53: 0.01780066196 | V53: 0.01041825131 | W53: 0.04326661011 | X53: 0.0100238152 | Y53: 0.001943634841
B54: 4 | C54: 1 | D54: =+F4 -> 1.05 | E54: 1 | F54: 1 | G54: 1 | H54: 1 | I54: 1 | K54: 1.069088929 | L54: 0 | M54: 0.0006724436417 | N54: 0.06700189728 | O54: 0.008562368373 | P54: 0.01263294402 | Q54: 0.002888991517 | R54: 0.000661042495 | S54: 0.08342923889 | T54: 0.8158367589 | U54: 0.01691062887 | V54: 0.0104131348 | W54: 0.04005005305 | X54: 0.009575174376 | Y54: 0.001799139759
B55: 5 | C55: 1 | D55: =+G4 -> 0.95 | E55: 1 | F55: 1 | G55: 1 | H55: 1 | I55: 1 | K55: 1.080282348 | L55: 0 | M55: 0.0007092230461 | N55: 0.07067550539 | O55: 0.009031829496 | P55: 0.01269115571 | Q55: 0.003024681738 | R55: 0.00069728641 | S55: 0.08769448453 | T55: 0.8158367589 | U55: 0.01691062887 | V55: 0.0104131348 | W55: 0.04224593415 | X55: 0.00987238775 | Y55: 0.001897783748
B56: 6 | C56: 1 | D56: 1 | E56: =+F5 -> 0.95 | F56: 1 | G56: 1 | H56: 1 | I56: 1 | K56: 1.073118127 | L56: 0 | M56: 0.000766393335 | N56: 0.06534721727 | O56: 0.008787539455 | P56: 0.01223984522 | Q56: 0.002807503088 | R56: 0.0007534452707 | S56: 0.08547590124 | T56: 0.8199158449 | U56: 0.01691062887 | V56: 0.0104131348 | W56: 0.04044499939 | X56: 0.008737831475 | Y56: 0.002050629654
B57: 7 | C57: 1 | D57: 1 | E57: =+G5 -> 1.05 | F57: 1 | G57: 1 | H57: 1 | I57: 1 | K57: 1.076025157 | L57: 0 | M57: 0.0006208689488 | N57: 0.07225863879 | O57: 0.008787539455 | P57: 0.0130753844 | Q57: 0.003104437495 | R57: 0.0006103794903 | S57: 0.08547590124 | T57: 0.8118425792 | U57: 0.01691062887 | V57: 0.0104131348 | W57: 0.04176407484 | X57: 0.0107420759 | Y57: 0.001661251761
B58: 8 | C58: 1 | D58: 1 | E58: 1 | F58: =+F6 -> 0.95 | G58: 1 | H58: 1 | I58: 1 | K58: 1.074458914 | L58: 0 | M58: 0.0006900852846 | N58: 0.06876389688 | O58: 0.008787539455 | P58: 0.01266087668 | Q58: 0.002954293402 | R58: 0.0006784264298 | S58: 0.08547590124 | T58: 0.8158367589 | U58: 0.01691062887 | V58: 0.0104131348 | W58: 0.0411032796 | X58: 0.009717809406 | Y58: 0.001846453099
B59: 9 | C59: 1 | D59: 1 | E59: 1 | F59: =+G6 -> 1.05 | G59: 1 | H59: 1 | I59: 1 | K59: 1.074458914 | L59: 0 | M59: 0.0006900852846 | N59: 0.06876389688 | O59: 0.008787539455 | P59: 0.01266087668 | Q59: 0.002954293402 | R59: 0.0006784264298 | S59: 0.08547590124 | T59: 0.8158367589 | U59: 0.01691062887 | V59: 0.0104131348 | W59: 0.0411032796 | X59: 0.009717809406 | Y59: 0.001846453099
B60: 10 | C60: 1 | D60: 1 | E60: 1 | F60: 1 | G60: =+F7 -> 0.95 | H60: 1 | I60: 1 | K60: 1.074458914 | L60: 0 | M60: 0.0006900852846 | N60: 0.06876389688 | O60: 0.008787539455 | P60: 0.01266087668 | Q60: 0.002954293402 | R60: 0.0006784264298 | S60: 0.08547590124 | T60: 0.8158367589 | U60: 0.01691062887 | V60: 0.0104131348 | W60: 0.0411032796 | X60: 0.009717809406 | Y60: 0.001846453099
B61: 11 | C61: 1 | D61: 1 | E61: 1 | F61: 1 | G61: =+G6 -> 1.05 | H61: 1 | I61: 1 | K61: 1.074458914 | L61: 0 | M61: 0.0006900852846 | N61: 0.06876389688 | O61: 0.008787539455 | P61: 0.01266087668 | Q61: 0.002954293402 | R61: 0.0006784264298 | S61: 0.08547590124 | T61: 0.8158367589 | U61: 0.01691062887 | V61: 0.0104131348 | W61: 0.0411032796 | X61: 0.009717809406 | Y61: 0.001846453099
B62: 12 | C62: 1 | D62: 1 | E62: 1 | F62: 1 | G62: 1 | H62: =+F8 -> 0.95 | I62: 1 | K62: 1.066815242 | L62: 0 | M62: 0.0006555810203 | N62: 0.06526661617 | O62: 0.008787539455 | P62: 0.01263647817 | Q62: 0.002954293402 | R62: 0.0006439221655 | S62: 0.08368819032 | T62: 0.8158367589 | U62: 0.01691062887 | V62: 0.0104131348 | W62: 0.03901279734 | X62: 0.009567919628 | Y62: 0.001752543866
B63: 13 | C63: 1 | D63: 1 | E63: 1 | F63: 1 | G63: 1 | H63: =+G8 -> 1.05 | I63: 1 | K63: 1.082102585 | L63: 0 | M63: 0.0007245895488 | N63: 0.07226117759 | O63: 0.008787539455 | P63: 0.0126852752 | Q63: 0.002954293402 | R63: 0.000712930694 | S63: 0.08726361215 | T63: 0.8158367589 | U63: 0.01691062887 | V63: 0.0104131348 | W63: 0.04319376187 | X63: 0.009867699184 | Y63: 0.001940362331
B64: 14 | C64: 1 | D64: 1 | E64: 1 | F64: 1 | G64: 1 | H64: 1 | I64: =+F9 -> 0.95 | K64: 1.070106572 | L64: 0 | M64: 0.0006900852846 | N64: 0.06876389688 | O64: 0.008787539455 | P64: 0.01260254832 | Q64: 0.002954293402 | R64: 0.0006784264298 | S64: 0.08120210617 | T64: 0.8158367589 | U64: 0.01691062887 | V64: 0.0104131348 | W64: 0.0411032796 | X64: 0.009697591629 | Y64: 0.001846453099
B65: 15 | C65: 1 | D65: 1 | E65: 1 | F65: 1 | G65: 1 | H65: 1 | I65: =+G9 -> 1.05 | K65: 1.078811255 | L65: 0 | M65: 0.0006900852846 | N65: 0.06876389688 | O65: 0.008787539455 | P65: 0.01271920505 | Q65: 0.002954293402 | R65: 0.0006784264298 | S65: 0.0897496963 | T65: 0.8158367589 | U65: 0.01691062887 | V65: 0.0104131348 | W65: 0.0411032796 | X65: 0.009738027183 | Y65: 0.001846453099
B66: 16 | C66: =(C$72=1)*$F$3 +(C$72=2) +(C$72=3) +(C$72=4) +(C$72=5) -> 1.05 | D66: 1 | E66: 1 | F66: =(F$72=1)*$F$6 +(F$72=2) +(F$72=3) +(F$72=4) +(F$72=5) -> 1 | G66: =(G$72=1)*$F$7 +(G$72=2) +(G$72=3) +(G$72=4) +(G$72=5) -> 1 | H66: =(H$72=1)*$F$8 +(H$72=2) +(H$72=3) +(H$72=4) +(H$72=5) -> 1 | I66: =(I$72=1)*$F$9 +(I$72=2) +(I$72=3) +(I$72=4) +(I$72=5) -> 1 | K66: 1.063356992 | L66: 0 | M66: 0.0006572240805 | N66: 0.0654894256 | O66: 0.008369085195 | P66: 0.01259427246 | Q66: 0.002813612764 | R66: 0.0006461204093 | S66: 0.08140562022 | T66: 0.8158367589 | U66: 0.01610536082 | V66: 0.01040850556 | W66: 0.03914598058 | X66: 0.009440947024 | Y66: 0.001758526761
B67: 17 | C67: =(C$72=1)*$F$3 +(C$72=2)*$F$3 +(C$72=3) +(C$72=4) +(C$72=5) -> 1.05 | D67: 1 | E67: 1 | F67: =(F$72=1)*$F$6 +(F$72=2)*$F$6 +(F$72=3) +(F$72=4) +(F$72=5) -> 1 | G67: =(G$72=1)*$F$7 +(G$72=2)*$F$7 +(G$72=3) +(G$72=4) +(G$72=5) -> 1 | H67: =(H$72=1)*$F$8 +(H$72=2)*$F$8 +(H$72=3) +(H$72=4) +(H$72=5) -> 0.95 | I67: =(I$72=1)*$F$9 +(I$72=2)*$F$9 +(I$72=3) +(I$72=4) +(I$72=5) -> 1 | K67: 1.056077305 | L67: 0 | M67: 0.0006243628765 | N67: 0.06215868206 | O67: 0.008369085195 | P67: 0.01257103578 | Q67: 0.002813612764 | R67: 0.0006132592053 | S67: 0.0797030384 | T67: 0.8158367589 | U67: 0.01610536082 | V67: 0.01040850556 | W67: 0.03715504508 | X67: 0.009298194855 | Y67: 0.001669089396
B68: 18 | C68: =(C$72=1)*$F$3 +(C$72=2)*$F$3 +(C$72=3)*$F$3 +(C$72=4) +(C$72=5) -> 1.05 | D68: 1 | E68: 1 | F68: =(F$72=1)*$F$6 +(F$72=2)*$F$6 +(F$72=3)*$F$6 +(F$72=4) +(F$72=5) -> 1 | G68: =(G$72=1)*$F$7 +(G$72=2)*$F$7 +(G$72=3)*$F$7 +(G$72=4) +(G$72=5) -> 1 | H68: =(H$72=1)*$F$8 +(H$72=2)*$F$8 +(H$72=3)*$F$8 +(H$72=4) +(H$72=5) -> 0.95 | I68: =(I$72=1)*$F$9 +(I$72=2)*$F$9 +(I$72=3)*$F$9 +(I$72=4) +(I$72=5) -> 0.95 | K68: 1.052018912 | L68: 0 | M68: 0.0006243628765 | N68: 0.06215868206 | O68: 0.008369085195 | P68: 0.01251664679 | Q68: 0.002813612764 | R68: 0.0006132592053 | S68: 0.07571788648 | T68: 0.8158367589 | U68: 0.01610536082 | V68: 0.01040850556 | W68: 0.03715504508 | X68: 0.009279342544 | Y68: 0.001669089396
B69: 19 | C69: =(C$72=1)*$F$3 +(C$72=2)*$F$3 +(C$72=3)*$F$3 +(C$72=4)*$F$3 +(C$72=5) -> 1.05 | D69: 1 | E69: 1 | F69: =(F$72=1)*$F$6 +(F$72=2)*$F$6 +(F$72=3)*$F$6 +(F$72=4)*$F$6 +(F$72=5) -> 1 | G69: =(G$72=1)*$F$7 +(G$72=2)*$F$7 +(G$72=3)*$F$7 +(G$72=4)*$F$7 +(G$72=5) -> 1 | H69: =(H$72=1)*$F$8 +(H$72=2)*$F$8 +(H$72=3)*$F$8 +(H$72=4)*$F$8 +(H$72=5) -> 0.95 | I69: =(I$72=1)*$F$9 +(I$72=2)*$F$9 +(I$72=3)*$F$9 +(I$72=4)*$F$9 +(I$72=5) -> 0.95 | K69: 1.052018912 | L69: 0 | M69: 0.0006243628765 | N69: 0.06215868206 | O69: 0.008369085195 | P69: 0.01251664679 | Q69: 0.002813612764 | R69: 0.0006132592053 | S69: 0.07571788648 | T69: 0.8158367589 | U69: 0.01610536082 | V69: 0.01040850556 | W69: 0.03715504508 | X69: 0.009279342544 | Y69: 0.001669089396
B70: 20 | C70: =(C$72=1)*$F$3 +(C$72=2)*$F$3 +(C$72=3)*$F$3 +(C$72=4)*$F$3 +(C$72=5)*$F$3 -> 1.05 | D70: 1 | E70: 1 | F70: =(F$72=1)*$F$6 +(F$72=2)*$F$6 +(F$72=3)*$F$6 +(F$72=4)*$F$6 +(F$72=5)*$F$6 -> 0.95 | G70: =(G$72=1)*$F$7 +(G$72=2)*$F$7 +(G$72=3)*$F$7 +(G$72=4)*$F$7 +(G$72=5)*$F$7 -> 0.95 | H70: =(H$72=1)*$F$8 +(H$72=2)*$F$8 +(H$72=3)*$F$8 +(H$72=4)*$F$8 +(H$72=5)*$F$8 -> 0.95 | I70: =(I$72=1)*$F$9 +(I$72=2)*$F$9 +(I$72=3)*$F$9 +(I$72=4)*$F$9 +(I$72=5)*$F$9 -> 0.95 | K70: 1.052018912 | L70: 0 | M70: 0.0006243628765 | N70: 0.06215868206 | O70: 0.008369085195 | P70: 0.01251664679 | Q70: 0.002813612764 | R70: 0.0006132592053 | S70: 0.07571788648 | T70: 0.8158367589 | U70: 0.01610536082 | V70: 0.01040850556 | W70: 0.03715504508 | X70: 0.009279342544 | Y70: 0.001669089396
B72: Waterfall Chart Priority | C72: =6-RANK($N$101,($N$101,$N$104:$N$107)) -> 1 | F72: =6-RANK($N$104,($N$101,$N$104:$N$107)) -> 5 | G72: =6-RANK($N$105,($N$101,$N$104:$N$107)) -> 5 | H72: =6-RANK($N$106,($N$101,$N$104:$N$107)) -> 2 | I72: =6-RANK($N$107,($N$101,$N$104:$N$107)) -> 3
B74: Visualization data formatting
B76: parameter | C76: level | D76: Chart titles | E76: Revenue from Hydrogen Sales | F76: Revenue from Byproduct Sales | G76: Salvage Value | H76: Initial Equity Depreciable Capital | I76: Yearly Replacement Costs | J76: Cash for Working Capital Reserve | K76: Other Non-Depreciable Capital Costs | L76: Decommissioning Costs | M76: Fixed Operating Cost | N76: Feedstock Cost | O76: Other Raw Material Cost | P76: Other Variable Operating Costs | Q76: Debt Interest | R76: Taxes | S76: Principal Payment
B77: =+$B$3 -> Operating Capacity Factor | C77: =+H3 -> 0.945 | D77: =+B77&" = "&C77*100&"%" -> Operating Capacity Factor = 94.5% | E77: =+K52 -> 1.063356992 | F77: 0 | G77: 0.0006572240805 | H77: 0.0654894256 | I77: 0.008369085195 | J77: 0.01259427246 | K77: 0.002813612764 | L77: 0.0006461204093 | M77: 0.08140562022 | N77: 0.8158367589 | O77: 0.01610536082 | P77: 0.01040850556 | Q77: 0.03914598058 | R77: 0.009440947024 | S77: 0.001758526761
B78: =+$B$3 -> Operating Capacity Factor | C78: =+C3 -> 0.9 | D78: =+B78&" = "&C78*100&"%" -> Operating Capacity Factor = 90% | E78: =+K$51 -> 1.074458914 | F78: 0 | G78: 0.0006900852846 | H78: 0.06876389688 | I78: 0.008787539455 | J78: 0.01266087668 | K78: 0.002954293402 | L78: 0.0006784264298 | M78: 0.08547590124 | N78: 0.8158367589 | O78: 0.01691062887 | P78: 0.0104131348 | Q78: 0.0411032796 | R78: 0.009717809406 | S78: 0.001846453099
B79: Operating Capacity Factor | C79: =+I3 -> 0.855 | D79: Operating Capacity Factor = 85.5% | E79: =+K53 -> 1.086729458 | F79: 0 | G79: 0.0007264055627 | H79: 0.07238304934 | I79: 0.009250041531 | J79: 0.01273449188 | K79: 0.003109782528 | L79: 0.0007141330839 | M79: 0.08997463288 | N79: 0.8158367589 | O79: 0.01780066196 | P79: 0.01041825131 | Q79: 0.04326661011 | R79: 0.0100238152 | S79: 0.001943634841
B80: =+$B$4 -> Plant Design Capacity (kg of H2/day) | C80: =ROUND(H4,0) -> 507175 | D80: =+B80&" = "&TEXT(C80,"0,000") -> Plant Design Capacity (kg of H2/day) = 507,175 | E80: 1.069088929 | F80: 0 | G80: 0.0006724436417 | H80: 0.06700189728 | I80: 0.008562368373 | J80: 0.01263294402 | K80: 0.002888991517 | L80: 0.000661042495 | M80: 0.08342923889 | N80: 0.8158367589 | O80: 0.01691062887 | P80: 0.0104131348 | Q80: 0.04005005305 | R80: 0.009575174376 | S80: 0.001799139759
B81: =+$B$4 -> Plant Design Capacity (kg of H2/day) | C81: =+ROUND(C4,0) -> 483024 | D81: =+B81&" = "&TEXT(C81,"0,000") -> Plant Design Capacity (kg of H2/day) = 483,024 | E81: =+K$51 -> 1.074458914 | F81: 0 | G81: 0.0006900852846 | H81: 0.06876389688 | I81: 0.008787539455 | J81: 0.01266087668 | K81: 0.002954293402 | L81: 0.0006784264298 | M81: 0.08547590124 | N81: 0.8158367589 | O81: 0.01691062887 | P81: 0.0104131348 | Q81: 0.0411032796 | R81: 0.009717809406 | S81: 0.001846453099
B82: Plant Design Capacity (kg of H2/day) | C82: =ROUND(I4,0) -> 458873 | D82: Plant Design Capacity (kg of H2/day) = 458,873 | E82: =+K55 -> 1.080282348 | F82: 0 | G82: 0.0007092230461 | H82: 0.07067550539 | I82: 0.009031829496 | J82: 0.01269115571 | K82: 0.003024681738 | L82: 0.00069728641 | M82: 0.08769448453 | N82: 0.8158367589 | O82: 0.01691062887 | P82: 0.0104131348 | Q82: 0.04224593415 | R82: 0.00987238775 | S82: 0.001897783748
B83: =+$B$5 -> After-tax Real IRR | C83: =+ROUND(H5,2) -> 0.08 | D83: =+B83&" = "&C83*100&"%" -> After-tax Real IRR = 8% | E83: 1.073118127 | F83: 0 | G83: 0.000766393335 | H83: 0.06534721727 | I83: 0.008787539455 | J83: 0.01223984522 | K83: 0.002807503088 | L83: 0.0007534452707 | M83: 0.08547590124 | N83: 0.8199158449 | O83: 0.01691062887 | P83: 0.0104131348 | Q83: 0.04044499939 | R83: 0.008737831475 | S83: 0.002050629654
B84: =+$B$5 -> After-tax Real IRR | C84: =ROUND(C5,2) -> 0.08 | D84: After-tax Real IRR = 8% | E84: =+K$51 -> 1.074458914 | F84: 0 | G84: 0.0006900852846 | H84: 0.06876389688 | I84: 0.008787539455 | J84: 0.01266087668 | K84: 0.002954293402 | L84: 0.0006784264298 | M84: 0.08547590124 | N84: 0.8158367589 | O84: 0.01691062887 | P84: 0.0104131348 | Q84: 0.0411032796 | R84: 0.009717809406 | S84: 0.001846453099
B85: After-tax Real IRR | C85: =ROUND(I5,2) -> 0.08 | D85: After-tax Real IRR = 8% | E85: =+K57 -> 1.076025157 | F85: 0 | G85: 0.0006208689488 | H85: 0.07225863879 | I85: 0.008787539455 | J85: 0.0130753844 | K85: 0.003104437495 | L85: 0.0006103794903 | M85: 0.08547590124 | N85: 0.8118425792 | O85: 0.01691062887 | P85: 0.0104131348 | Q85: 0.04176407484 | R85: 0.0107420759 | S85: 0.001661251761
B86: =+$B$6 -> Feedstock Consumption (% of baseline) | C86: =+ROUND(H6,3) -> 0.95 | D86: =+B86&" = "&C86*100&"%" -> Feedstock Consumption (% of baseline) = 95% | E86: 1.074458914 | F86: 0 | G86: 0.0006900852846 | H86: 0.06876389688 | I86: 0.008787539455 | J86: 0.01266087668 | K86: 0.002954293402 | L86: 0.0006784264298 | M86: 0.08547590124 | N86: 0.8158367589 | O86: 0.01691062887 | P86: 0.0104131348 | Q86: 0.0411032796 | R86: 0.009717809406 | S86: 0.001846453099
B87: =+$B$6 -> Feedstock Consumption (% of baseline) | C87: =+ROUND(C6,3) -> 1 | D87: =+B87&" = "&C87*100&"%" -> Feedstock Consumption (% of baseline) = 100% | E87: =+K$51 -> 1.074458914 | F87: 0 | G87: 0.0006900852846 | H87: 0.06876389688 | I87: 0.008787539455 | J87: 0.01266087668 | K87: 0.002954293402 | L87: 0.0006784264298 | M87: 0.08547590124 | N87: 0.8158367589 | O87: 0.01691062887 | P87: 0.0104131348 | Q87: 0.0411032796 | R87: 0.009717809406 | S87: 0.001846453099
B88: Feedstock Consumption (% of baseline) | C88: =+ROUND(I6,3) -> 1.05 | D88: =+B88&" = "&C88*100&"%" -> Feedstock Consumption (% of baseline) = 105% | E88: =+K59 -> 1.074458914 | F88: 0 | G88: 0.0006900852846 | H88: 0.06876389688 | I88: 0.008787539455 | J88: 0.01266087668 | K88: 0.002954293402 | L88: 0.0006784264298 | M88: 0.08547590124 | N88: 0.8158367589 | O88: 0.01691062887 | P88: 0.0104131348 | Q88: 0.0411032796 | R88: 0.009717809406 | S88: 0.001846453099
B89: =+$B$7 -> Utilities Consumption (% of baseline) | C89: =+ROUND(H7,3) -> 0.95 | D89: =+B89&" = "&C89*100&"%" -> Utilities Consumption (% of baseline) = 95% | E89: 1.074458914 | F89: 0 | G89: 0.0006900852846 | H89: 0.06876389688 | I89: 0.008787539455 | J89: 0.01266087668 | K89: 0.002954293402 | L89: 0.0006784264298 | M89: 0.08547590124 | N89: 0.8158367589 | O89: 0.01691062887 | P89: 0.0104131348 | Q89: 0.0411032796 | R89: 0.009717809406 | S89: 0.001846453099
B90: =+$B$7 -> Utilities Consumption (% of baseline) | C90: =+ROUND(C7,3) -> 1 | D90: Utilities Consumption (% of baseline) = 100% | E90: =+K$51 -> 1.074458914 | F90: =+L$51 -> 0 | G90: 0.0006900852846 | H90: 0.06876389688 | I90: 0.008787539455 | J90: 0.01266087668 | K90: 0.002954293402 | L90: 0.0006784264298 | M90: 0.08547590124 | N90: 0.8158367589 | O90: 0.01691062887 | P90: 0.0104131348 | Q90: 0.0411032796 | R90: 0.009717809406 | S90: 0.001846453099
B91: Utilities Consumption (% of baseline) | C91: =+ROUND(I7,3) -> 1.05 | D91: Utilities Consumption (% of baseline) = 105% | E91: =+K61 -> 1.074458914 | F91: 0 | G91: 0.0006900852846 | H91: 0.06876389688 | I91: 0.008787539455 | J91: 0.01266087668 | K91: 0.002954293402 | L91: 0.0006784264298 | M91: 0.08547590124 | N91: 0.8158367589 | O91: 0.01691062887 | P91: 0.0104131348 | Q91: 0.0411032796 | R91: 0.009717809406 | S91: 0.001846453099
B92: =+$B$8 -> Total Capital Investment | C92: =+ROUND(H8,0) -> 269479033 | D92: =+B92&" = "&TEXT(C92/1000,"$0,000K") -> Total Capital Investment = $269,479K | E92: 1.066815242 | F92: 0 | G92: 0.0006555810203 | H92: 0.06526661617 | I92: 0.008787539455 | J92: 0.01263647817 | K92: 0.002954293402 | L92: 0.0006439221655 | M92: 0.08368819032 | N92: 0.8158367589 | O92: 0.01691062887 | P92: 0.0104131348 | Q92: 0.03901279734 | R92: 0.009567919628 | S92: 0.001752543866
B93: =+$B$8 -> Total Capital Investment | C93: =+ROUND(C8,0) -> 283662140 | D93: Total Capital Investment = $283,662K | E93: =+K$51 -> 1.074458914 | F93: 0 | G93: 0.0006900852846 | H93: 0.06876389688 | I93: 0.008787539455 | J93: 0.01266087668 | K93: 0.002954293402 | L93: 0.0006784264298 | M93: 0.08547590124 | N93: 0.8158367589 | O93: 0.01691062887 | P93: 0.0104131348 | Q93: 0.0411032796 | R93: 0.009717809406 | S93: 0.001846453099
B94: Total Capital Investment | C94: =+ROUND(I8,0) -> 297845247 | D94: Total Capital Investment = $297,845K | E94: =+K63 -> 1.082102585 | F94: 0 | G94: 0.0007245895488 | H94: 0.07226117759 | I94: 0.008787539455 | J94: 0.0126852752 | K94: 0.002954293402 | L94: 0.000712930694 | M94: 0.08726361215 | N94: 0.8158367589 | O94: 0.01691062887 | P94: 0.0104131348 | Q94: 0.04319376187 | R94: 0.009867699184 | S94: 0.001940362331
B95: =+$B$9 -> Total Fixed Operating Cost | C95: =+ROUND(H9,0) -> 12884613 | D95: Total Fixed Operating Cost = $12,885K | E95: 1.070106572 | F95: 0 | G95: 0.0006900852846 | H95: 0.06876389688 | I95: 0.008787539455 | J95: 0.01260254832 | K95: 0.002954293402 | L95: 0.0006784264298 | M95: 0.08120210617 | N95: 0.8158367589 | O95: 0.01691062887 | P95: 0.0104131348 | Q95: 0.0411032796 | R95: 0.009697591629 | S95: 0.001846453099
B96: =+$B$9 -> Total Fixed Operating Cost | C96: =+ROUND(C9,0) -> 13562750 | D96: Total Fixed Operating Cost = $13,563K | E96: =+K$51 -> 1.074458914 | F96: 0 | G96: 0.0006900852846 | H96: 0.06876389688 | I96: 0.008787539455 | J96: 0.01266087668 | K96: 0.002954293402 | L96: 0.0006784264298 | M96: 0.08547590124 | N96: 0.8158367589 | O96: 0.01691062887 | P96: 0.0104131348 | Q96: 0.0411032796 | R96: 0.009717809406 | S96: 0.001846453099
B97: Total Fixed Operating Cost | C97: =+ROUND(I9,0) -> 14240888 | D97: Total Fixed Operating Cost = $14,241K | E97: =+K65 -> 1.078811255 | F97: 0 | G97: 0.0006900852846 | H97: 0.06876389688 | I97: 0.008787539455 | J97: 0.01271920505 | K97: 0.002954293402 | L97: 0.0006784264298 | M97: 0.0897496963 | N97: 0.8158367589 | O97: 0.01691062887 | P97: 0.0104131348 | Q97: 0.0411032796 | R97: 0.009738027183 | S97: 0.001846453099
B100: Standard Toranado | C100: Rank | D100: Titles | E100: Low cost price | F100: Default price | G100: High price | H100: dL0 | I100: dL1 | J100: dL2 | L100: Unsorted titles | M100: Results spread ($/kg) | N100: Importance ranking
C101: 1 | D101: =OFFSET(L$100,MATCH($C101,$N$101:$N$107,0),0) -> Operating Capacity Factor (95%, 90%, 86%) | E101: =OFFSET(E$76,MATCH($C101,$N$101:$N$107,0)*3-2,0) -> 1.063356992 | F101: =+$K$51 -> 1.074458914 | G101: =OFFSET(E$76,MATCH($C101,$N$101:$N$107,0)*3,0) -> 1.086729458 | H101: =+E101 -> 1.063356992 | I101: =+F101-E101 -> 0.01110192125 | J101: =+G101-F101 -> 0.01227054454 | L101: =+B3&" ("&TEXT(H3,"0%, ")&TEXT(C3,"0%, ")&TEXT(I3,"0%)") -> Operating Capacity Factor (95%, 90%, 86%) | M101: =ABS(K52-K53)+0.000000001 -> 0.0233724668 | N101: =+RANK(M101,$M$101:$M$107) -> 1
C102: 2 | D102: Total Capital Investment ($269,479K, $283,662K, $297,845K) | E102: 1.066815242 | F102: 1.074458914 | G102: 1.082102585 | H102: =+E102 -> 1.066815242 | I102: =+F102-E102 -> 0.007643671418 | J102: =+G102-F102 -> 0.007643671418 | L102: =+B4&" ("&TEXT(H4,"0,000")&", "&TEXT(C4,"0,000")&", "&TEXT(I4,"0,000")&") " -> Plant Design Capacity (kg of H2/day) (507,175, 483,024, 458,873) | M102: =+ABS(K54-K55)+0.000000002 -> 0.01119342175 | N102: 3
C103: 3 | D103: Plant Design Capacity (kg of H2/day) (507,175, 483,024, 458,873) | E103: 1.069088929 | F103: 1.074458914 | G103: 1.080282348 | H103: 1.069088929 | I103: 0.00536998479 | J103: 0.005823434963 | L103: =+B5&" ("&TEXT(H5,"0%, ")&TEXT(C5,"0%, ")&TEXT(I5,"0%)") -> After-tax Real IRR (8%, 8%, 8%) | M103: =+ABS(K56-K57)+0.000000003 -> 0.002907032972 | N103: 5
C104: 4 | D104: Total Fixed Operating Cost ($12,885K, $13,563K, $14,241K) | E104: 1.070106572 | F104: 1.074458914 | G104: 1.078811255 | H104: 1.070106572 | I104: 0.004352341203 | J104: 0.004352341203 | L104: =+B6&" ("&TEXT(H6,"0%, ")&TEXT(C6,"0%, ")&TEXT(I6,"0%)") -> Feedstock Consumption (% of baseline) (95%, 100%, 105%) | M104: =+ABS(K58-K59)+0.000000004 -> 4e-09 | N104: 6
C105: 5 | D105: After-tax Real IRR (8%, 8%, 8%) | E105: 1.073118127 | F105: 1.074458914 | G105: 1.076025157 | H105: =+E105 -> 1.073118127 | I105: =+F105-E105 -> 0.001340786203 | J105: =+G105-F105 -> 0.001566243769 | L105: =+B7&" ("&TEXT(H7,"0%, ")&TEXT(C7,"0%, ")&TEXT(I7,"0%)") -> Utilities Consumption (% of baseline) (95%, 100%, 105%) | M105: =+ABS(K60-K61)+0.000000004 -> 4e-09 | N105: 6
C106: 6 | D106: Feedstock Consumption (% of baseline) (95%, 100%, 105%) | E106: 1.074458914 | F106: 1.074458914 | G106: 1.074458914 | H106: 1.074458914 | I106: 0 | J106: 0 | L106: =+B8&" ("&TEXT(H8/1000,"$0,000K")&", "&TEXT(C8/1000,"$0,000K")&", "&TEXT(I8/1000,"$0,000K")&") " -> Total Capital Investment ($269,479K, $283,662K, $297,845K) | M106: =+ABS(K62-K63)+0.000000006 -> 0.01528734884 | N106: 2
C107: 7 | F107: 1.074458914 | L107: =+B9&" ("&TEXT(H9/1000,"$0,000K")&", "&TEXT(C9/1000,"$0,000K")&", "&TEXT(I9/1000,"$0,000K")&") " -> Total Fixed Operating Cost ($12,885K, $13,563K, $14,241K) | M107: =+ABS(K64-K65)+0.00000007 -> 0.008704752407 | N107: 4
B110: Simple bar chart | C110: Rank | D110: =+D76 -> Chart titles | E110: Hydrogen Sales | F110: Byproduct Sales | G110: Salvage Value | H110: =+H76 -> Initial Equity Depreciable Capital | I110: Yearly Replacement Costs | J110: Cash for Working Capital Reserve | K110: Other Non-Depreciable Capital Costs | L110: Decommissioning Costs | M110: Fixed Operating Cost | N110: Feedstock Cost | O110: Other Raw Material Cost | P110: Other Variable Operating Costs | Q110: Debt Interest | R110: Taxes | S110: Principal Payment
C111: 1 | D111: Base case | E111: =OFFSET(E$76,MATCH($C111,$N$101:$N$107,0)*3-1,0) -> 1.074458914 | F111: =OFFSET(F$76,MATCH($C111,$N$101:$N$107,0)*3-1,0) -> 0 | G111: =OFFSET(G$76,MATCH($C111,$N$101:$N$107,0)*3-1,0) -> 0.0006900852846
H112: =OFFSET(H$76,MATCH($C111,$N$101:$N$107,0)*3-1,0) -> 0.06876389688 | I112: 0.008787539455 | J112: 0.01266087668 | K112: 0.002954293402 | L112: 0.0006784264298 | M112: 0.08547590124 | N112: 0.8158367589 | O112: 0.01691062887 | P112: 0.0104131348 | Q112: 0.0411032796 | R112: 0.009717809406 | S112: 0.001846453099
C115: 1 | D115: =OFFSET(D$76,MATCH($C115,$N$101:$N$107,0)*3-2,0) -> Operating Capacity Factor = 94.5% | E115: 1.063356992 | F115: 0 | G115: 0.0006572240805
H116: =OFFSET(H$76,MATCH($C115,$N$101:$N$107,0)*3-2,0) -> 0.0654894256 | I116: 0.008369085195 | J116: 0.01259427246 | K116: 0.002813612764 | L116: 0.0006461204093 | M116: 0.08140562022 | N116: 0.8158367589 | O116: 0.01610536082 | P116: 0.01040850556 | Q116: 0.03914598058 | R116: 0.009440947024 | S116: 0.001758526761
C117: 1 | D117: =OFFSET(D$76,MATCH($C117,$N$101:$N$107,0)*3,0) -> Operating Capacity Factor = 85.5% | E117: 1.086729458 | F117: 0 | G117: 0.0007264055627
H118: =OFFSET(H$76,MATCH($C117,$N$101:$N$107,0)*3,0) -> 0.07238304934 | I118: 0.009250041531 | J118: 0.01273449188 | K118: 0.003109782528 | L118: 0.0007141330839 | M118: 0.08997463288 | N118: 0.8158367589 | O118: 0.01780066196 | P118: 0.01041825131 | Q118: 0.04326661011 | R118: 0.0100238152 | S118: 0.001943634841
C120: 2 | D120: =OFFSET(D$76,MATCH($C120,$N$101:$N$107,0)*3-2,0) -> Total Capital Investment = $269,479K | E120: 1.066815242 | F120: 0 | G120: 0.0006555810203
H121: =OFFSET(H$76,MATCH($C120,$N$101:$N$107,0)*3-2,0) -> 0.06526661617 | I121: 0.008787539455 | J121: 0.01263647817 | K121: 0.002954293402 | L121: 0.0006439221655 | M121: 0.08368819032 | N121: 0.8158367589 | O121: 0.01691062887 | P121: 0.0104131348 | Q121: 0.03901279734 | R121: 0.009567919628 | S121: 0.001752543866
C122: 2 | D122: =OFFSET(D$76,MATCH($C122,$N$101:$N$107,0)*3,0) -> Total Capital Investment = $297,845K | E122: 1.082102585 | F122: 0 | G122: 0.0007245895488
H123: =OFFSET(H$76,MATCH($C122,$N$101:$N$107,0)*3,0) -> 0.07226117759 | I123: 0.008787539455 | J123: 0.0126852752 | K123: 0.002954293402 | L123: 0.000712930694 | M123: 0.08726361215 | N123: 0.8158367589 | O123: 0.01691062887 | P123: 0.0104131348 | Q123: 0.04319376187 | R123: 0.009867699184 | S123: 0.001940362331
C125: 3 | D125: =OFFSET(D$76,MATCH($C125,$N$101:$N$107,0)*3-2,0) -> Plant Design Capacity (kg of H2/day) = 507,175 | E125: 1.069088929 | F125: 0 | G125: 0.0006724436417
H126: =OFFSET(H$76,MATCH($C125,$N$101:$N$107,0)*3-2,0) -> 0.06700189728 | I126: 0.008562368373 | J126: 0.01263294402 | K126: 0.002888991517 | L126: 0.000661042495 | M126: 0.08342923889 | N126: 0.8158367589 | O126: 0.01691062887 | P126: 0.0104131348 | Q126: 0.04005005305 | R126: 0.009575174376 | S126: 0.001799139759
C127: 3 | D127: =OFFSET(D$76,MATCH($C127,$N$101:$N$107,0)*3,0) -> Plant Design Capacity (kg of H2/day) = 458,873 | E127: 1.080282348 | F127: 0 | G127: 0.0007092230461
H128: =OFFSET(H$76,MATCH($C127,$N$101:$N$107,0)*3,0) -> 0.07067550539 | I128: 0.009031829496 | J128: 0.01269115571 | K128: 0.003024681738 | L128: 0.00069728641 | M128: 0.08769448453 | N128: 0.8158367589 | O128: 0.01691062887 | P128: 0.0104131348 | Q128: 0.04224593415 | R128: 0.00987238775 | S128: 0.001897783748
C130: 4 | D130: =OFFSET(D$76,MATCH($C130,$N$101:$N$107,0)*3-2,0) -> Total Fixed Operating Cost = $12,885K | E130: 1.070106572 | F130: 0 | G130: 0.0006900852846
H131: =OFFSET(H$76,MATCH($C130,$N$101:$N$107,0)*3-2,0) -> 0.06876389688 | I131: 0.008787539455 | J131: 0.01260254832 | K131: 0.002954293402 | L131: 0.0006784264298 | M131: 0.08120210617 | N131: 0.8158367589 | O131: 0.01691062887 | P131: 0.0104131348 | Q131: 0.0411032796 | R131: 0.009697591629 | S131: 0.001846453099
C132: 4 | D132: =OFFSET(D$76,MATCH($C132,$N$101:$N$107,0)*3,0) -> Total Fixed Operating Cost = $14,241K | E132: 1.078811255 | F132: 0 | G132: 0.0006900852846
H133: =OFFSET(H$76,MATCH($C132,$N$101:$N$107,0)*3,0) -> 0.06876389688 | I133: 0.008787539455 | J133: 0.01271920505 | K133: 0.002954293402 | L133: 0.0006784264298 | M133: 0.0897496963 | N133: 0.8158367589 | O133: 0.01691062887 | P133: 0.0104131348 | Q133: 0.0411032796 | R133: 0.009738027183 | S133: 0.001846453099
C135: 5 | D135: =OFFSET(D$76,MATCH($C135,$N$101:$N$107,0)*3-2,0) -> After-tax Real IRR = 8% | E135: 1.073118127 | F135: 0 | G135: 0.000766393335
H136: =OFFSET(H$76,MATCH($C135,$N$101:$N$107,0)*3-2,0) -> 0.06534721727 | I136: 0.008787539455 | J136: 0.01223984522 | K136: 0.002807503088 | L136: 0.0007534452707 | M136: 0.08547590124 | N136: 0.8199158449 | O136: 0.01691062887 | P136: 0.0104131348 | Q136: 0.04044499939 | R136: 0.008737831475 | S136: 0.002050629654
C137: 5 | D137: =OFFSET(D$76,MATCH($C137,$N$101:$N$107,0)*3,0) -> After-tax Real IRR = 8% | E137: 1.076025157 | F137: 0 | G137: 0.0006208689488
H138: =OFFSET(H$76,MATCH($C137,$N$101:$N$107,0)*3,0) -> 0.07225863879 | I138: 0.008787539455 | J138: 0.0130753844 | K138: 0.003104437495 | L138: 0.0006103794903 | M138: 0.08547590124 | N138: 0.8118425792 | O138: 0.01691062887 | P138: 0.0104131348 | Q138: 0.04176407484 | R138: 0.0107420759 | S138: 0.001661251761
C140: 6 | D140: =OFFSET(D$76,MATCH($C140,$N$101:$N$107,0)*3-2,0) -> Feedstock Consumption (% of baseline) = 95% | E140: 1.074458914 | F140: 0 | G140: 0.0006900852846
H141: =OFFSET(H$76,MATCH($C140,$N$101:$N$107,0)*3-2,0) -> 0.06876389688 | I141: 0.008787539455 | J141: 0.01266087668 | K141: 0.002954293402 | L141: 0.0006784264298 | M141: 0.08547590124 | N141: 0.8158367589 | O141: 0.01691062887 | P141: 0.0104131348 | Q141: 0.0411032796 | R141: 0.009717809406 | S141: 0.001846453099
C142: 6 | D142: =OFFSET(D$76,MATCH($C142,$N$101:$N$107,0)*3,0) -> Feedstock Consumption (% of baseline) = 105% | E142: 1.074458914 | F142: 0 | G142: 0.0006900852846
H143: =OFFSET(H$76,MATCH($C142,$N$101:$N$107,0)*3,0) -> 0.06876389688 | I143: 0.008787539455 | J143: 0.01266087668 | K143: 0.002954293402 | L143: 0.0006784264298 | M143: 0.08547590124 | N143: 0.8158367589 | O143: 0.01691062887 | P143: 0.0104131348 | Q143: 0.0411032796 | R143: 0.009717809406 | S143: 0.001846453099
C145: 7 | D145: =OFFSET(D$76,MATCH($C145,$N$101:$N$107,0)*3-2,0) -> 
H146: =OFFSET(H$76,MATCH($C145,$N$101:$N$107,0)*3-2,0) -> 
C147: 7 | D147: =OFFSET(D$76,MATCH($C147,$N$101:$N$107,0)*3,0) -> 
H148: =OFFSET(H$76,MATCH($C147,$N$101:$N$107,0)*3,0) -> 
B152: Parado chart
D153: Unsorted
D154: Title | E154: Unsorted values | F154: Unsorted Ranking | G154: Sorted ranking | H154: Sorted titles | I154: Sorted values | K154: Grayed Titles | L154: Revenues $/kg H2 | M154: Expenses $/kg H2 | N154: Colored titles
B155: Revenues | C155: 1 | D155: Cost of Hydrogen | E155: =+K48+C155/10000000000 -> 1.08303815 | F155: =+RANK(E155,$E$155:$E$157) -> 1 | G155: 1 | H155: =OFFSET($D$154,MATCH($G155,$F$155:$F$157,0),0) -> Cost of Hydrogen | I155: =OFFSET($E$154,MATCH($G155,$F$155:$F$157,0),0)-OFFSET($C$154,MATCH($G155,$F$155:$F$157,0),0)/10000000000 -> 1.08303815 | K155: =+H155 -> Cost of Hydrogen | L155: =+I155 -> 1.08303815 | N155: =+IF(L155>0,K155,"") -> Cost of Hydrogen
C156: 2 | D156: =+F110 -> Byproduct Sales | E156: =+L48+C156/10000000000 -> 2e-10 | F156: =+RANK(E156,$E$155:$E$157) -> 3 | G156: 2 | H156: =OFFSET($D$154,MATCH($G156,$F$155:$F$157,0),0) -> Salvage Value | I156: =OFFSET($E$154,MATCH($G156,$F$155:$F$157,0),0)-OFFSET($C$154,MATCH($G156,$F$155:$F$157,0),0)/10000000000 -> 0.0006900852846 | K156: =+H156 -> Salvage Value | L156: =+I156 -> 0.0006900852846 | N156: =+IF(L156>0,K156,"") -> Salvage Value
C157: 3 | D157: =+G110 -> Salvage Value | E157: =+M48+C157/10000000000 -> 0.0006900855846 | F157: =+RANK(E157,$E$155:$E$157) -> 2 | G157: 3 | H157: =OFFSET($D$154,MATCH($G157,$F$155:$F$157,0),0) -> Byproduct Sales | I157: =OFFSET($E$154,MATCH($G157,$F$155:$F$157,0),0)-OFFSET($C$154,MATCH($G157,$F$155:$F$157,0),0)/10000000000 -> 0 | K157: Byproduct Sales | L157: 0
N158: =+IF(L158>0.01,K158,"") -> 
B159: Expenses | C159: 1 | D159: =+H110 -> Initial Equity Depreciable Capital | E159: =+N48+C159/10000000000 -> 0.06876389698 | F159: =+RANK(E159,$E$159:$E$170) -> 3 | G159: 1 | H159: =OFFSET($D$158,MATCH($G159,$F$159:$F$170,0),0) -> Feedstock Cost | I159: =OFFSET($E$158,MATCH($G159,$F$159:$F$170,0),0)-OFFSET($C$158,MATCH($G159,$F$159:$F$170,0),0)/10000000000 -> 0.8242612174 | K159: Feedstock Cost | M159: =+I159 -> 0.8242612174 | N159: =+IF(M159>0,K159,"") -> Feedstock Cost
C160: =+C159+1 -> 2 | D160: =+I110 -> Yearly Replacement Costs | E160: =+O48+C160/10000000000 -> 0.008787539655 | F160: 9 | G160: 2 | H160: Fixed Operating Cost | I160: 0.08547590124 | K160: Fixed Operating Cost | M160: =+I160 -> 0.08547590124 | N160: =+IF(M160>0,K160,"") -> Fixed Operating Cost
C161: =+C160+1 -> 3 | D161: =+J110 -> Cash for Working Capital Reserve | E161: =+P48+C161/10000000000 -> 0.01277581493 | F161: 6 | G161: 3 | H161: Initial Equity Depreciable Capital | I161: 0.06876389688 | K161: Initial Equity Depreciable Capital | M161: 0.06876389688 | N161: Initial Equity Depreciable Capital
C162: 4 | D162: =+K110 -> Other Non-Depreciable Capital Costs | E162: =+Q48+C162/10000000000 -> 0.002954293802 | F162: 10 | G162: 4 | H162: Debt Interest | I162: 0.0411032796 | K162: Debt Interest | M162: 0.0411032796 | N162: Debt Interest
C163: 5 | D163: =+L110 -> Decommissioning Costs | E163: =+R48+C163/10000000000 -> 0.0006784269298 | F163: 12 | G163: 5 | H163: Other Raw Material Cost | I163: 0.01691062887 | K163: Other Raw Material Cost | M163: 0.01691062887 | N163: Other Raw Material Cost
C164: 6 | D164: =+M110 -> Fixed Operating Cost | E164: =+S48+C164/10000000000 -> 0.08547590184 | F164: 2 | G164: 6 | H164: Cash for Working Capital Reserve | I164: 0.01277581463 | K164: Cash for Working Capital Reserve | M164: 0.01277581463 | N164: Cash for Working Capital Reserve
C165: 7 | D165: =+N110 -> Feedstock Cost | E165: =+T48+C165/10000000000 -> 0.8242612181 | F165: 1 | G165: 7 | H165: Other Variable Operating Costs | I165: 0.0104131348 | K165: Other Variable Operating Costs | M165: 0.0104131348 | N165: Other Variable Operating Costs
C166: 8 | D166: =+O110 -> Other Raw Material Cost | E166: =+U48+C166/10000000000 -> 0.01691062967 | F166: 5 | G166: 8 | H166: Taxes | I166: 0.009757649195 | K166: Taxes | M166: 0.009757649195 | N166: Taxes
C167: 9 | D167: =+P110 -> Other Variable Operating Costs | E167: =+V48+C167/10000000000 -> 0.0104131357 | F167: 7 | G167: 9 | H167: Yearly Replacement Costs | I167: 0.008787539455 | K167: Yearly Replacement Costs | M167: 0.008787539455 | N167: Yearly Replacement Costs
C168: 10 | D168: =+Q110 -> Debt Interest | E168: =+W48+C168/10000000000 -> 0.0411032806 | F168: 4 | G168: 10 | H168: Other Non-Depreciable Capital Costs | I168: 0.002954293402 | K168: Other Non-Depreciable Capital Costs | M168: 0.002954293402 | N168: Other Non-Depreciable Capital Costs
C169: 11 | D169: =+R110 -> Taxes | E169: =+X48+C169/10000000000 -> 0.009757650295 | F169: 8 | G169: 11 | H169: Principal Payment | I169: 0.001846453099 | K169: Principal Payment | M169: 0.001846453099 | N169: Principal Payment
C170: 12 | D170: =+S110 -> Principal Payment | E170: =+Y48+C170/10000000000 -> 0.001846454299 | F170: 11 | G170: 12 | H170: Decommissioning Costs | I170: 0.0006784264298 | K170: Decommissioning Costs | M170: 0.0006784264298 | N170: Decommissioning Costs
K171: Total | L171: =+SUM(L155:L170) -> 1.083728235 | M171: =+SUM(M155:M170) -> 1.083728235 | N171: =+IF(M171<0.01,K171,"") -> 
B174: Waterfall Chart | D174: Values | E174: Base | F174: Decrease | G174: Increase
B175: 0 | C175: Baseline | D175: =+K51 -> 1.074458914 | E175: =+D175 -> 1.074458914
B176: 1 | C176: =OFFSET($B$50,0,MATCH($B176,$C$72:$I$72,0))& IF(OFFSET($F$2,MATCH($B176,$C$72:$I$72,0),0)<1, " = "&OFFSET($F$2,MATCH($B176,$C$72:$I$72,0),0)*100-100, " = +"&OFFSET($F$2,MATCH($B176,$C$72:$I$72,0),0)*100-100) &"%" -> Operating capacity factor = +5% | D176: =+K66 -> 1.063356992 | E176: =+E175+G175-F176 -> 1.063356992 | F176: =+MAX(D175-D176,0) -> 0.01110192125 | G176: =+MAX(D176-D175,0) -> 0
B177: 2 | C177: =OFFSET($B$50,0,MATCH($B177,$C$72:$I$72,0))& IF(OFFSET($F$2,MATCH($B177,$C$72:$I$72,0),0)<1, " = "&OFFSET($F$2,MATCH($B177,$C$72:$I$72,0),0)*100-100, " = +"&OFFSET($F$2,MATCH($B177,$C$72:$I$72,0),0)*100-100) &"%" -> Total capital investment ($) = -5% | D177: =+K67 -> 1.056077305 | E177: 1.056077305 | F177: =+MAX(D176-D177,0) -> 0.007279687065 | G177: =+MAX(D177-D176,0) -> 0
B178: 3 | C178: =OFFSET($B$50,0,MATCH($B178,$C$72:$I$72,0))& IF(OFFSET($F$2,MATCH($B178,$C$72:$I$72,0),0)<1, " = "&OFFSET($F$2,MATCH($B178,$C$72:$I$72,0),0)*100-100, " = +"&OFFSET($F$2,MATCH($B178,$C$72:$I$72,0),0)*100-100) &"%" -> Total fixed operating cost ($/year) = -5% | D178: =+K68 -> 1.052018912 | E178: 1.052018912 | F178: =+MAX(D177-D178,0) -> 0.00405839322 | G178: =+MAX(D178-D177,0) -> 0
B179: 4 | C179: =OFFSET($B$50,0,MATCH($B179,$C$72:$I$72,0))& IF(OFFSET($F$2,MATCH($B179,$C$72:$I$72,0),0)<1, " = "&OFFSET($F$2,MATCH($B179,$C$72:$I$72,0),0)*100-100, " = +"&OFFSET($F$2,MATCH($B179,$C$72:$I$72,0),0)*100-100) &"%" ->  | D179: =+K69 -> 1.052018912 | E179: 1.052018912 | F179: =+MAX(D178-D179,0) -> 0 | G179: =+MAX(D179-D178,0) -> 0
B180: 5 | C180: =OFFSET($B$50,0,MATCH($B180,$C$72:$I$72,0))& IF(OFFSET($F$2,MATCH($B180,$C$72:$I$72,0),0)<1, " = "&OFFSET($F$2,MATCH($B180,$C$72:$I$72,0),0)*100-100, " = +"&OFFSET($F$2,MATCH($B180,$C$72:$I$72,0),0)*100-100) &"%" -> Feedstock consumption (% of most likely value) = -5% | D180: =+K70 -> 1.052018912 | E180: 1.052018912 | F180: =+MAX(D179-D180,0) -> 0 | G180: =+MAX(D180-D179,0) -> 0
B181: 6 | C181: Adjusted | D181: =+K70 -> 1.052018912 | E181: 1.052018912
B189: Min factor | C189: =+MIN(F3:G3) -> 0.95 | D189: =+MIN(F4:G4) -> 0.95 | E189: =+MIN(F5:G5) -> 0.95 | F189: =+MIN(F6:G6) -> 0.95 | G189: =+MIN(F7:G7) -> 0.95 | H189: =+MIN(F8:G8) -> 0.95 | I189: =+MIN(F9:G9) -> 0.95
B190: Nominal factor | C190: 1 | D190: 1 | E190: 1 | F190: 1 | G190: 1 | H190: 1 | I190: 1
B191: Max factor | C191: =+MAX(F3:G3) -> 1.05 | D191: =+MAX(F4:G4) -> 1.05 | E191: =+MAX(F5:G5) -> 1.05 | F191: =+MAX(F6:G6) -> 1.05 | G191: =+MAX(F7:G7) -> 1.05 | H191: =+MAX(F8:G8) -> 1.05 | I191: =+MAX(F9:G9) -> 1.05
B194: Variable | C194: =+MATCH(R12,C50:Y50,0) -> 9
B195: Min | C195: =+MIN(OFFSET($B$251:$B$2250,0,C194)) -> 1.053942947
B196: max | C196: =+MAX(OFFSET($B$251:$B$2250,0,C194)) -> 1.095876087
B197: max-min | C197: =+C196-C195 -> 0.0419331402
B198: gain | C198: =+OFFSET(B199,0,C194) -> 1
B199: gain | C199: =+C3 -> 0.9 | D199: =+C4 -> 483024 | E199: =+C5 -> 0.08 | F199: =+C6 -> 1 | G199: =+C7 -> 1 | H199: =+C8 -> 283662140.4 | I199: =+C9 -> 13562750.5 | K199: 1 | L199: 1 | M199: 1 | N199: 1 | O199: 1 | P199: 1 | Q199: 1 | R199: 1 | S199: 1 | T199: 1 | U199: 1 | V199: 1 | W199: 1 | X199: 1
B200: Range to plot
B201: Min | C201: Max | E201: Min*gain | F201: Max*gain | G201: Average | H201: Probability | I201: Cumulative probability
B202: =+C195 -> 1.053942947 | C202: =+B202+($C$197/20) -> 1.056039604 | D202: =+COUNTIFS(OFFSET(B$251:B$2250,0,$C$194),">="&$B202, OFFSET(B$251:B$2250,0,$C$194),"<="&$C202) -> 2 | E202: =+B202*$C$198 -> 1.053942947 | F202: =+C202*$C$198 -> 1.056039604 | G202: =+AVERAGE(E202:F202) -> 1.054991275 | H202: =+D202/$D$223 -> 0.001 | I202: =+H202 -> 0.001
B203: =+C202 -> 1.056039604 | C203: =+B203+($C$197/20) -> 1.058136261 | D203: 4 | E203: =+B203*$C$198 -> 1.056039604 | F203: =+C203*$C$198 -> 1.058136261 | G203: =+AVERAGE(E203:F203) -> 1.057087932 | H203: =+D203/$D$223 -> 0.002 | I203: =+I202+H203 -> 0.003
B204: =+C203 -> 1.058136261 | C204: 1.060232918 | D204: 17 | E204: 1.058136261 | F204: 1.060232918 | G204: 1.059184589 | H204: 0.0085 | I204: =+I203+H204 -> 0.0115
B205: 1.060232918 | C205: 1.062329575 | D205: 34 | E205: 1.060232918 | F205: 1.062329575 | G205: 1.061281246 | H205: 0.017 | I205: 0.0285
B206: 1.062329575 | C206: 1.064426232 | D206: 58 | E206: 1.062329575 | F206: 1.064426232 | G206: 1.063377903 | H206: 0.029 | I206: 0.0575
B207: 1.064426232 | C207: 1.066522889 | D207: 105 | E207: 1.064426232 | F207: 1.066522889 | G207: 1.06547456 | H207: 0.0525 | I207: 0.11
B208: 1.066522889 | C208: 1.068619546 | D208: 138 | E208: 1.066522889 | F208: 1.068619546 | G208: 1.067571217 | H208: 0.069 | I208: 0.179
B209: 1.068619546 | C209: 1.070716203 | D209: 189 | E209: 1.068619546 | F209: 1.070716203 | G209: 1.069667874 | H209: 0.0945 | I209: 0.2735
B210: 1.070716203 | C210: 1.07281286 | D210: 219 | E210: 1.070716203 | F210: 1.07281286 | G210: 1.071764531 | H210: 0.1095 | I210: 0.383
B211: 1.07281286 | C211: 1.074909517 | D211: 281 | E211: 1.07281286 | F211: 1.074909517 | G211: 1.073861188 | H211: 0.1405 | I211: 0.5235
B212: 1.074909517 | C212: 1.077006174 | D212: 249 | E212: 1.074909517 | F212: 1.077006174 | G212: 1.075957845 | H212: 0.1245 | I212: 0.648
B213: 1.077006174 | C213: 1.079102831 | D213: 208 | E213: 1.077006174 | F213: 1.079102831 | G213: 1.078054502 | H213: 0.104 | I213: 0.752
B214: 1.079102831 | C214: 1.081199488 | D214: 171 | E214: 1.079102831 | F214: 1.081199488 | G214: 1.080151159 | H214: 0.0855 | I214: 0.8375
B215: 1.081199488 | C215: 1.083296145 | D215: 136 | E215: 1.081199488 | F215: 1.083296145 | G215: 1.082247816 | H215: 0.068 | I215: 0.9055
B216: 1.083296145 | C216: 1.085392802 | D216: 88 | E216: 1.083296145 | F216: 1.085392802 | G216: 1.084344473 | H216: 0.044 | I216: 0.9495
B217: 1.085392802 | C217: 1.087489459 | D217: 52 | E217: 1.085392802 | F217: 1.087489459 | G217: 1.08644113 | H217: 0.026 | I217: 0.9755
B218: 1.087489459 | C218: 1.089586116 | D218: 24 | E218: 1.087489459 | F218: 1.089586116 | G218: 1.088537787 | H218: 0.012 | I218: 0.9875
B219: 1.089586116 | C219: 1.091682773 | D219: 20 | E219: 1.089586116 | F219: 1.091682773 | G219: 1.090634444 | H219: 0.01 | I219: 0.9975
B220: 1.091682773 | C220: 1.09377943 | D220: 3 | E220: 1.091682773 | F220: 1.09377943 | G220: 1.092731101 | H220: 0.0015 | I220: 0.999
B221: 1.09377943 | C221: =+B221+($C$197/20)+0.000001 -> 1.095877087 | D221: 2 | E221: 1.09377943 | F221: 1.095877087 | G221: 1.094828258 | H221: 0.001 | I221: 1
F222: 0 | G222: 0
B223: Variable to plot | D223: =+SUM(D202:D221) -> 2000
B224: =+TRANSPOSE(Sensitivity_output) -> Cost of hydrogen ($/kg)
B225: Revenue from byproduct sales ($/kg)
B226: Salvage value ($/kg)
B227: Initial equity depreciable capital ($/kg)
B228: Yearly replacement costs ($/kg)
B229: Cash from working capital reserve ($/kg)
B230: Other non-depreciable capital costs ($/kg)
B231: Decommissioning costs ($/kg)
B232: Fixed operating cost ($/kg)
B233: Feedstock cost ($/kg)
B234: Other raw material cost ($/kg)
B235: Other variable operating costs ($/kg)
B236: Debt interest ($/kg)
B237: Taxes ($/kg)
B238: Principal payment ($/kg)
B239: =+TRANSPOSE(C50:I50) -> Operating capacity factor
B240: Plant design capacity (kg of H2/day)
B241: After-tax real IRR (%)
B242: Feedstock consumption (% of most likely value)
B243: Utilities consumption (% of most likely value)
... 2004 more rows

Sheet Cash Flow Analysis
A2: TABLE OF CONTENTS
A3: DCF Calculations
A4: Yearly Cash Flow Calculations
A5: Specific Item Cost Calculation
A6: Feedstock, Utility, and Byproduct Cost Information
A15: DCF CALCULATION INPUTS: | D15: DCF CALCULATION OUTPUTS:
A16: Process | D16: ="Hydrogen Cost (Year "&TEXT(ref_year,"0")&" Real $/kg)" -> Hydrogen Cost (Year 2016 Real $/kg) | E16: =H2_price_nominal/INFLATION_FACTOR -> 1.08303815
A17: Actual Hydrogen Produced (kg/yr) | B17: =output_kgyear -> 158673384 | D17: Hydrogen Cost (Start-up Year Nominal $/kg) | E17: =+SUM(X57:AB57)/AC57*(1+inflation_rate)^construct -> 1.062844112
A18: Actual Hydrogen Energy Produced (MMBtu(LHV)/yr) | B18: =B17*H2_LHV_MJ_p_kg/1000/mmBTU_to_GJ -> 18079988.1 | D18: After Tax Real IRR | E18: =((E20+1)/(1+B30))-1 -> 0.08
A19: Actual Hydrogen Energy Produced (MJ(LHV)/yr) | B19: =B17*H2_LHV_MJ_p_kg -> 1.907438744e+10 | D19: Pre Tax Real IRR | E19: =((E21+1)/(1+B30))-1 -> 0.1134517494
A20: Design Capacity (kg/day) | B20: =design_cap -> 483024 | D20: After Tax Nominal IRR | E20: =IRR(AA65:AA113) -> 0.10052
A21: Design Capacity (kg/yr) | B21: =B20*365 -> 176303760 | D21: Pre Tax Nominal IRR | E21: =IRR(AC65:AC113) -> 0.1346073326
A22: Capacity Factor | B22: =cap_factor -> 0.9 | D22: After Tax Real Capital Recovery Factor | E22: =(real_irr*(1+real_irr)^anal_period)/(((1+real_irr)^anal_period)-1) -> 0.0838601615
D23: After Tax Nominal Capital Recovery Factor | E23: =(nominal_irr*(1+nominal_irr)^anal_period)/(((1+nominal_irr)^anal_period)-1) -> 0.1027476886
A24: Financial | D24: Total Real Fixed Charge Rate | E24: =(E22*(1-total_tax_rate*INDEX(Depreciation!B12:H37,MATCH("NPV - Real IRR",Depreciation!B12:B37,0),MATCH(depr_length,recovery_period,0))))/(1-total_tax_rate) -> 0.09821253181
A25: Start-up Year | B25: =startup_year -> 2015 | D25: Total Nominal Fixed Charge Rate | E25: =(E23*(1-total_tax_rate*INDEX(Depreciation!B12:H37,MATCH("NPV - Nominal IRR",Depreciation!B12:B37,0),MATCH(depr_length,recovery_period,0))))/(1-total_tax_rate) -> 0.1226581394
A26: After-Tax Real IRR | B26: =real_irr -> 0.08 | D26: NPV | E26: =NPV(nominal_irr,AA65:AA113) -> 6.922380929e-07
A27: After-Tax Nominal IRR | B27: =((1+B26)*(1+B30))-1 -> 0.10052
A28: Analysis Period (yrs) | B28: =anal_period -> 40
A29: Plant Life (yrs) | B29: =plant_life -> 40
A30: Inflation Rate | B30: =inflation_rate -> 0.019
A31: Debt Financing | B31: =100%-equity -> 0.6
A32: Equity Financing | B32: =equity -> 0.4
A33: Total Tax Rate | B33: =total_tax_rate -> 0.2574
A35: Cost of Debt Financing
A36: Debt Financing Period (yrs) | B36: =debt_period -> 0
A37: Interest Rate on Debt | B37: =debt_interest -> 0.037
A39: Construction/Start Up Information
A40: Construction Period (yrs) | B40: =construct -> 3
A41: Start-up Period (yrs) | B41: =start_time -> 1
A42: % Revenue During Start-up | B42: =percnt_revs -> 1
A43: % Variable Costs During Start-up | B43: =percnt_var -> 1
A44: % Fixed Costs During Start-up | B44: =percnt_fixed -> 1
A46: Depreciation Parameters
A47: Depreciation Type | B47: =depr_type -> MACRS
A48: Depreciation Period (yrs) | B48: =depr_length -> 20
A50: Plant Costs (Inflated to Start-up Year $)
A51: Total Depreciable Capital Costs | B51: =(total_cap-non_dep_cap)*INFLATION_FACTOR -> 273669994.6
A52: Total Non-Depreciable Capital Costs | B52: =non_dep_cap*INFLATION_FACTOR -> 4703057.831
A53: Total Capital Investment | B53: =SUM(B51:B52) -> 278373052.4 | W53: Closed form formulas for calculating price of hydrogen.
A54: Decommissioning | B54: =decom_percent*depr_cap_infl -> 27366999.46 | X54: Capital Costs | Y54: Depr | Z54: Principal | AA54: Op costs | AB54: Tax incentives | AC54: H2 sales (kg)
A55: Salvage Value | B55: =salvage_perct*B53 -> 27837305.24 | W55: Discounted values | X55: =-SUM(H116:K116) -> 140345945.3 | Y55: =-U116 -> 100769882.4 | Z55: =-Z116 -> 2778065.129 | AA55: =-SUM(L116:S116) -> 1471670936 | AB55: =+AF116 -> 0 | AC55: =+AE116 -> 1622186857
A56: Fixed Operating Costs ($/year) | B56: =fixed*INFLATION_FACTOR -> 13309863.1 | W56: Tax coefficient | X56: 1 | Y56: =-total_tax_rate -> -0.2574 | Z56: 1 | AA56: =1-total_tax_rate -> 0.7426 | AB56: -1 | AC56: =1-total_tax_rate -> 0.7426
A57: Other Raw Material ($/year) | B57: =total_other_raw*INFLATION_FACTOR -> 2633235.238 | W57: LCOE cost contribution factors | X57: =+X55*X56 -> 140345945.3 | Y57: -25938167.73 | Z57: 2778065.129 | AA57: =+AA55*AA56 -> 1092862837 | AB57: =+AB55*AB56 -> 0 | AC57: =+AC55*AC56 -> 1204635960
A58: Other Variable O&M Costs (not including tax credits and incentives) | B58: =(var_misc+royalties+operator_profit+CO2_OandMcost+waste_treat+solidwaste_treat)*INFLATION_FACTOR -> 15137.63757
W59: Target after-tax nominal IRR | X59: =+(1+real_irr)*(1+inflation_rate)-1 -> 0.10052
W60: =+D16 -> Hydrogen Cost (Year 2016 Real $/kg) | X60: =+SUM(X57:AB57)/AC57*(1+inflation_rate)^construct/INFLATION_FACTOR -> 1.08303815
A63: CASH FLOW ANALYSIS
A64: Actual Year (beginning of year) | B64: Analysis Year | C64: Operation Year | D64: Plant Life | E64: Inflation Price Increase Factor | F64: Revenue from Hydrogen Sales | G64: Portion of Initial Depreciable Capital Investment Financed with Debt (value ONLY used in debt financing calculations) | H64: Initial Equity Depreciable Capital | I64: Yearly Replacement Costs | J64: Cash from Working Capital Reserve | K64: Other Non-Depreciable Capital Costs | L64: Salvage Value | M64: Decommissioning Costs | N64: Fixed Operating Cost | O64: Feedstock Cost | P64: Other Raw Material Cost | Q64: Revenue from Byproduct Sales | R64: Other Variable Operating Costs | S64: Debt Interest | T64: Pre-Depreciation Income | U64: Depreciation Charge | V64: Taxable Income | W64: Tax Rate | X64: Total Taxes | Y64: After-Tax Income | Z64: Principal Payment | AA64: After-Tax Post-Depreciation Cash Flow | AB64: Cumulative Cash Flow | AC64: Pre-Tax Cash Flow | AE64: H2 sales (kg/year) | AF64: Tax Credit
A65: =startup_year-construct -> 2012 | B65: 1 | C65: =IF(construct=0,1,-construct) -> -3 | D65: =IF(C65="","",IF(C65<=plant_life,C65,IF(D64=plant_life,1,D64+1))) -> -3 | E65: =IF(C65="","",(1+inflation_rate)^(A65-$B$25)) -> 0.9450993141 | F65: =IF(C65="","",IF(C65<0,0,IF(AND(C65=1,start_time<1),E65*(H2_price_nominal*output_kgyear*start_time*percnt_revs+H2_price_nominal*output_kgyear*(1-start_time)),IF(C65<=start_time,H2_price_nominal*E65*output_kgyear*percnt_revs,H2_price_nominal*output_kgyear*E65)))) -> 0 | G65: =-$B$31*depr_cap_infl*E65 -> -155187194.5 | H65: =IF(C65<0,-E65*equity*depr_cap_infl*percent_cap1,IF(C65=1,-E65*equity*depr_cap_infl,0)) -> -103458129.7 | I65: =IF(OR(C65<0,C65=""),"",-E65*INDEX('Replacement Costs'!$A$16:$H$57,MATCH(C65,'Replacement Costs'!$C$16:$C$57,0),MATCH("Total Yearly Replacement Costs",'Replacement Costs'!$A$16:$H$16,0))) ->  | J65: =IF(AND(C65>=1,C65<anal_period),WorkingCap*SUM(N65:R65)-WorkingCap*SUM(N64:R64),0) -> 0 | K65: =IF(C65=-construct,-E65*non_dep_infl,"") -> -4444856.73 | L65: =IF(C65=anal_period,salvage*E65,"") ->  | M65: =IF(D65=plant_life,-E65*decom,"") ->  | N65: =IF(C65="","",IF(C65<0,0,IF(AND(C65=1,start_time<1),-(inflated_fixed*percnt_fixed*start_time+(inflated_fixed*(1-start_time))),IF(C65<=start_time,-inflated_fixed*percnt_fixed*E65,-inflated_fixed*E65)))) -> 0 | O65: =IF(C65="","",IF(C65<0,0,IF(AND(C65=1,start_time<1),-(SUM(B139:E139)*output_kgyear*E65*percnt_var*start_time+SUM(B139:E139)*output_kgyear*E65*(1-start_time)),IF(C65<=start_time,-SUM(B139:E139)*output_kgyear*E65*percnt_var,-SUM(B139:E139)*output_kgyear*E65)))) -> 0 | P65: =IF(C65="","",IF(C65<0,0,IF(AND(C65=1,start_time<1),-(inflated_otherraw*E65*percnt_var*start_time+inflated_otherraw*E65*(1-start_time)),IF(C65<=start_time,-inflated_otherraw*E65*percnt_var,-(inflated_otherraw*E65))))) -> 0 | Q65: =IF(C65="","",IF(C65<0,0,IF(AND(C65=1,start_time<1),SUM(K139:N139,T139:V139)*output_kgyear*E65*percnt_revs*start_time+SUM(K139:N139,T139:V139)*output_kgyear*E65*(1-start_time),IF(C65<=start_time,SUM(K139:N139,T139:V139)*output_kgyear*E65*percnt_revs,SUM(K139:N139,T139:V139)*output_kgyear*E65)))) -> 0 | R65: =IF(C65="","",IF(C65<0,0,IF(AND(C65=1,start_time<1),-((SUM(F139:J139,P139:R139)*output_kgyear+inflated_othervar)*E65*percnt_var*start_time+(SUM(F139:J139,P139:R139)*output_kgyear+inflated_othervar)*E65*(1-start_time)),IF(C65<=start_time,-(SUM(F139:J139,P139:R139)*output_kgyear+inflated_othervar)*E65*percnt_var,-E65*(SUM(F139:J139,P139:R139)*output_kgyear+inflated_othervar))))) -> 0 | S65: =IF(B65="","",IF($B$31=0,"",-'Debt Financing Calculations'!E14)) -> -5741926.196 | T65: =IF(C65="","",F65+SUM(L65:S65)) -> -5741926.196 | U65: =IF(C65="","",IF(C65<-1,0,IF(C65=anal_period,-LOOKUP(C65,depr_yr,depr_cost)-Depreciation!$C$141-Depreciation!$B$166,-LOOKUP(C65,depr_yr,depr_cost)))) -> 0 | V65: =IF(C65="","",SUM(T65:U65)) -> -5741926.196 | W65: =IF(C65="","",$B$33) -> 0.2574 | X65: =IF(C65="","",tax_credit-(V65*W65 +Upstream_CO2_taxpYear + Proc_CO2_taxpYear)) -> 1477971.803 | Y65: =IF(C65="","",SUM(T65,X65)) -> -4263954.393 | Z65: =IF(C65="","",IF($B$31=0,"",-'Debt Financing Calculations'!F14)) -> 0 | AA65: =IF(C65="","",SUM(H65,I65,J65,K65,T65,X65,Z65)) -> -112166940.8 | AB65: =AA65 -> -112166940.8 | AC65: =IF(C65="","",SUM(H65,I65,J65,K65,T65,Z65)) -> -113644912.6 | AE65: =IF(C65="","",IF(C65<0,0,IF(AND(C65=1,start_time<1),(output_kgyear*start_time*percnt_revs+output_kgyear*(1-start_time)),IF(C65<=start_time,output_kgyear*percnt_revs,output_kgyear)))) -> 0 | AF65: =IF(C65="","",tax_credit) -> 0
A66: =IF(B66<>"",A65+1,"") -> 2013 | B66: =IF(MAX($B$65:B65)<(construct+anal_period),B65+1,"") -> 2 | C66: =IF(B66="","",IF(C65=-1,1,C65+1)) -> -2 | D66: -2 | E66: 0.9630562011 | F66: 0 | H66: =IF(C66<0,-E66*equity*depr_cap_infl*percent_cap2,0) -> 0 | I66: =IF(OR(C66<0,C66=""),"",-E66*INDEX('Replacement Costs'!$A$16:$H$57,MATCH(C66,'Replacement Costs'!$C$16:$C$57,0),MATCH("Total Yearly Replacement Costs",'Replacement Costs'!$A$16:$H$16,0))) ->  | J66: =IF(AND(C66>=1,C66<anal_period),WorkingCap*SUM(N66:R66)-WorkingCap*SUM(N65:R65),IF(C66<0,0,IF(B66="","",-SUM(J$65:J65)))) -> 0 | N66: 0 | O66: 0 | P66: 0 | Q66: 0 | R66: 0 | S66: =IF(B66="","",IF($B$31=0,"",-'Debt Financing Calculations'!E15)) -> -5741926.196 | T66: -5741926.196 | U66: =IF(C66="","",IF(C66<-1,0,IF(C66=anal_period,-LOOKUP(C66,depr_yr,depr_cost)-Depreciation!$C$141-Depreciation!$B$166,-LOOKUP(C66,depr_yr,depr_cost)))) -> 0 | V66: -5741926.196 | W66: 0.2574 | X66: 1477971.803 | Y66: -4263954.393 | Z66: =IF(C66="","",IF($B$31=0,"",-'Debt Financing Calculations'!F15)) -> 0 | AA66: -4263954.393 | AB66: =IF(C66="","",AB65+AA66) -> -116430895.2 | AC66: -5741926.196 | AE66: 0 | AF66: 0
A67: 2014 | B67: =IF(MAX($B$65:B66)<(construct+anal_period),B66+1,"") -> 3 | C67: -1 | D67: -1 | E67: 0.9813542689 | F67: 0 | H67: =IF(C67<0,-E67*equity*depr_cap_infl*percent_cap3,0) -> 0 | I67: =IF(OR(C67<0,C67=""),"",-E67*INDEX('Replacement Costs'!$A$16:$H$57,MATCH(C67,'Replacement Costs'!$C$16:$C$57,0),MATCH("Total Yearly Replacement Costs",'Replacement Costs'!$A$16:$H$16,0))) ->  | J67: =IF(AND(C67>=1,C67<anal_period),WorkingCap*SUM(N67:R67)-WorkingCap*SUM(N66:R66),IF(C67<0,0,IF(B67="","",-SUM(J$65:J66)))) -> 0 | N67: 0 | O67: 0 | P67: 0 | Q67: 0 | R67: 0 | S67: =IF(B67="","",IF($B$31=0,"",-'Debt Financing Calculations'!E16)) -> -5741926.196 | T67: -5741926.196 | U67: =IF(C67="","",IF(C67<-1,0,IF(C67=anal_period,-LOOKUP(C67,depr_yr,depr_cost)-Depreciation!$C$141-Depreciation!$B$166,-LOOKUP(C67,depr_yr,depr_cost)))) -> 0 | V67: -5741926.196 | W67: 0.2574 | X67: 1477971.803 | Y67: -4263954.393 | Z67: =IF(C67="","",IF($B$31=0,"",-'Debt Financing Calculations'!F16)) -> 0 | AA67: -4263954.393 | AB67: -120694849.6 | AC67: -5741926.196 | AE67: 0 | AF67: 0
A68: 2015 | B68: =IF(MAX($B$65:B67)<(construct+anal_period),B67+1,"") -> 4 | C68: 1 | D68: 1 | E68: 1 | F68: 168645071.8 | H68: =IF(C68<0,-E68*equity*depr_cap_infl*percent_cap4,0) -> 0 | I68: =IF(OR(C68<0,C68=""),"",-E68*INDEX('Replacement Costs'!$A$16:$H$57,MATCH(C68,'Replacement Costs'!$C$16:$C$57,0),MATCH("Total Yearly Replacement Costs",'Replacement Costs'!$A$16:$H$16,0))) -> -1368349.973 | J68: =IF(AND(C68>=1,C68<anal_period),WorkingCap*SUM(N68:R68)-WorkingCap*SUM(N67:R67),IF(C68<0,0,IF(B68="","",-SUM(J$65:J67)))) -> -16606848.44 | N68: -13309863.1 | O68: -93147745.37 | P68: -2633235.238 | Q68: 0 | R68: -1621479.231 | S68: =IF(B68="","",IF($B$31=0,"",-'Debt Financing Calculations'!E17)) -> -5741926.196 | T68: 52190822.71 | U68: =IF(C68="","",IF(C68<-1,0,IF(C68=anal_period,-LOOKUP(C68,depr_yr,depr_cost)-Depreciation!$C$141-Depreciation!$B$166,-LOOKUP(C68,depr_yr,depr_cost)))) -> -9750512.78 | V68: 42440309.93 | W68: 0.2574 | X68: -10924135.78 | Y68: =IF(C68="","",SUM(T68,X68)) -> 41266686.93 | Z68: =IF(C68="","",IF($B$31=0,"",-'Debt Financing Calculations'!F17)) -> 0 | AA68: 23291488.52 | AB68: -97403361.05 | AC68: 34215624.3 | AE68: 158673384 | AF68: 0
A69: 2016 | B69: =IF(MAX($B$65:B68)<(construct+anal_period),B68+1,"") -> 5 | C69: 2 | D69: 2 | E69: 1.019 | F69: 171849328.2 | H69: =IF(C69="","",0) -> 0 | I69: =IF(OR(C69<0,C69=""),"",-E69*INDEX('Replacement Costs'!$A$16:$H$57,MATCH(C69,'Replacement Costs'!$C$16:$C$57,0),MATCH("Total Yearly Replacement Costs",'Replacement Costs'!$A$16:$H$16,0))) -> -1394348.622 | J69: =IF(AND(C69>=1,C69<anal_period),WorkingCap*SUM(N69:R69)-WorkingCap*SUM(N68:R68),IF(C69<0,0,IF(B69="","",-SUM(J$65:J68)))) -> 572056.2671 | N69: -13562750.5 | O69: -89000309.95 | P69: -2683266.708 | Q69: 0 | R69: -1652287.336 | S69: =IF(B69="","",IF($B$31=0,"",-'Debt Financing Calculations'!E18)) -> -5741926.196 | T69: 59208787.52 | U69: =IF(C69="","",IF(C69<-1,0,IF(C69=anal_period,-LOOKUP(C69,depr_yr,depr_cost)-Depreciation!$C$141-Depreciation!$B$166,-LOOKUP(C69,depr_yr,depr_cost)))) -> -18822675.21 | V69: 40386112.32 | W69: 0.2574 | X69: -10395385.31 | Y69: 48813402.21 | Z69: =IF(C69="","",IF($B$31=0,"",-'Debt Financing Calculations'!F18)) -> 0 | AA69: 47991109.86 | AB69: -49412251.19 | AC69: 58386495.17 | AE69: 158673384 | AF69: 0
A70: 2017 | B70: =IF(MAX($B$65:B69)<(construct+anal_period),B69+1,"") -> 6 | C70: 3 | D70: 3 | E70: 1.038361 | F70: 175114465.4 | H70: 0 | I70: =IF(OR(C70<0,C70=""),"",-E70*INDEX('Replacement Costs'!$A$16:$H$57,MATCH(C70,'Replacement Costs'!$C$16:$C$57,0),MATCH("Total Yearly Replacement Costs",'Replacement Costs'!$A$16:$H$16,0))) -> -1420841.246 | J70: =IF(AND(C70>=1,C70<anal_period),WorkingCap*SUM(N70:R70)-WorkingCap*SUM(N69:R69),IF(C70<0,0,IF(B70="","",-SUM(J$65:J69)))) -> -2540807.18 | N70: -13820442.76 | O70: -105598956.7 | P70: -2734248.775 | Q70: 0 | R70: -1683680.795 | S70: =IF(B70="","",IF($B$31=0,"",-'Debt Financing Calculations'!E19)) -> -5741926.196 | T70: 45535210.22 | U70: =IF(C70="","",IF(C70<-1,0,IF(C70=anal_period,-LOOKUP(C70,depr_yr,depr_cost)-Depreciation!$C$141-Depreciation!$B$166,-LOOKUP(C70,depr_yr,depr_cost)))) -> -17515052.6 | V70: 28020157.63 | W70: 0.2574 | X70: -7212388.574 | Y70: 38322821.65 | Z70: =IF(C70="","",IF($B$31=0,"",-'Debt Financing Calculations'!F19)) -> 0 | AA70: 34361173.22 | AB70: -15051077.97 | AC70: 41573561.8 | AE70: 158673384 | AF70: 0
A71: 2018 | B71: =IF(MAX($B$65:B70)<(construct+anal_period),B70+1,"") -> 7 | C71: 4 | D71: 4 | E71: 1.058089859 | F71: 178441640.3 | H71: 0 | I71: =IF(OR(C71<0,C71=""),"",-E71*INDEX('Replacement Costs'!$A$16:$H$57,MATCH(C71,'Replacement Costs'!$C$16:$C$57,0),MATCH("Total Yearly Replacement Costs",'Replacement Costs'!$A$16:$H$16,0))) -> -1447837.23 | J71: =IF(AND(C71>=1,C71<anal_period),WorkingCap*SUM(N71:R71)-WorkingCap*SUM(N70:R70),IF(C71<0,0,IF(B71="","",-SUM(J$65:J70)))) -> -1835811.892 | N71: -14083031.17 | O71: -117491173.6 | P71: -2786199.502 | Q71: 0 | R71: -1715670.731 | S71: =IF(B71="","",IF($B$31=0,"",-'Debt Financing Calculations'!E20)) -> -5741926.196 | T71: 36623639.12 | U71: =IF(C71="","",IF(C71<-1,0,IF(C71=anal_period,-LOOKUP(C71,depr_yr,depr_cost)-Depreciation!$C$141-Depreciation!$B$166,-LOOKUP(C71,depr_yr,depr_cost)))) -> -16311009.73 | V71: 20312629.39 | W71: 0.2574 | X71: -5228470.804 | Y71: 31395168.32 | Z71: =IF(C71="","",IF($B$31=0,"",-'Debt Financing Calculations'!F20)) -> 0 | AA71: 28111519.19 | AB71: 13060441.23 | AC71: 33339990 | AE71: 158673384 | AF71: 0
A72: 2019 | B72: =IF(MAX($B$65:B71)<(construct+anal_period),B71+1,"") -> 8 | C72: 5 | D72: 5 | E72: 1.078193566 | F72: 181832031.5 | H72: 0 | I72: =IF(OR(C72<0,C72=""),"",-E72*INDEX('Replacement Costs'!$A$16:$H$57,MATCH(C72,'Replacement Costs'!$C$16:$C$57,0),MATCH("Total Yearly Replacement Costs",'Replacement Costs'!$A$16:$H$16,0))) -> -1475346.137 | J72: =IF(AND(C72>=1,C72<anal_period),WorkingCap*SUM(N72:R72)-WorkingCap*SUM(N71:R71),IF(C72<0,0,IF(B72="","",-SUM(J$65:J71)))) -> -2096923.518 | N72: -14350608.76 | O72: -131117550.6 | P72: -2839137.292 | Q72: 0 | R72: -1748268.474 | S72: =IF(B72="","",IF($B$31=0,"",-'Debt Financing Calculations'!E21)) -> -5741926.196 | T72: 26034540.16 | U72: =IF(C72="","",IF(C72<-1,0,IF(C72=anal_period,-LOOKUP(C72,depr_yr,depr_cost)-Depreciation!$C$141-Depreciation!$B$166,-LOOKUP(C72,depr_yr,depr_cost)))) -> -15195424.54 | V72: 10839115.63 | W72: 0.2574 | X72: -2789988.362 | Y72: 23244551.8 | Z72: =IF(C72="","",IF($B$31=0,"",-'Debt Financing Calculations'!F21)) -> 0 | AA72: 19672282.14 | AB72: 32732723.37 | AC72: 22462270.51 | AE72: 158673384 | AF72: 0
A73: 2020 | B73: =IF(MAX($B$65:B72)<(construct+anal_period),B72+1,"") -> 9 | C73: 6 | D73: 6 | E73: 1.098679244 | F73: 185286840.1 | H73: 0 | I73: =IF(OR(C73<0,C73=""),"",-E73*INDEX('Replacement Costs'!$A$16:$H$57,MATCH(C73,'Replacement Costs'!$C$16:$C$57,0),MATCH("Total Yearly Replacement Costs",'Replacement Costs'!$A$16:$H$16,0))) -> -1503377.714 | J73: =IF(AND(C73>=1,C73<anal_period),WorkingCap*SUM(N73:R73)-WorkingCap*SUM(N72:R72),IF(C73<0,0,IF(B73="","",-SUM(J$65:J72)))) -> -2150633.62 | N73: -14623270.33 | O73: -145095285.8 | P73: -2893080.901 | Q73: 0 | R73: -1781485.575 | S73: =IF(B73="","",IF($B$31=0,"",-'Debt Financing Calculations'!E22)) -> -5741926.196 | T73: 15151791.3 | U73: =IF(C73="","",IF(C73<-1,0,IF(C73=anal_period,-LOOKUP(C73,depr_yr,depr_cost)-Depreciation!$C$141-Depreciation!$B$166,-LOOKUP(C73,depr_yr,depr_cost)))) -> -14168701.17 | V73: 983090.1234 | W73: 0.2574 | X73: -253047.3978 | Y73: 14898743.9 | Z73: =IF(C73="","",IF($B$31=0,"",-'Debt Financing Calculations'!F22)) -> 0 | AA73: 11244732.56 | AB73: 43977455.94 | AC73: 11497779.96 | AE73: 158673384 | AF73: 0
A74: 2021 | B74: =IF(MAX($B$65:B73)<(construct+anal_period),B73+1,"") -> 10 | C74: 7 | D74: 7 | E74: 1.11955415 | F74: 188807290 | H74: 0 | I74: =IF(OR(C74<0,C74=""),"",-E74*INDEX('Replacement Costs'!$A$16:$H$57,MATCH(C74,'Replacement Costs'!$C$16:$C$57,0),MATCH("Total Yearly Replacement Costs",'Replacement Costs'!$A$16:$H$16,0))) -> -1531941.89 | J74: =IF(AND(C74>=1,C74<anal_period),WorkingCap*SUM(N74:R74)-WorkingCap*SUM(N73:R73),IF(C74<0,0,IF(B74="","",-SUM(J$65:J73)))) -> -493121.6392 | N74: -14901112.47 | O74: -148016104.4 | P74: -2948049.438 | Q74: 0 | R74: -1815333.801 | S74: =IF(B74="","",IF($B$31=0,"",-'Debt Financing Calculations'!E23)) -> -5741926.196 | T74: 15384763.66 | U74: =IF(C74="","",IF(C74<-1,0,IF(C74=anal_period,-LOOKUP(C74,depr_yr,depr_cost)-Depreciation!$C$141-Depreciation!$B$166,-LOOKUP(C74,depr_yr,depr_cost)))) -> -13218250.8 | V74: 2166512.86 | W74: 0.2574 | X74: -557660.4102 | Y74: 14827103.25 | Z74: =IF(C74="","",IF($B$31=0,"",-'Debt Financing Calculations'!F23)) -> 0 | AA74: 12802039.72 | AB74: 56779495.66 | AC74: 13359700.13 | AE74: 158673384 | AF74: 0
A75: 2022 | B75: =IF(MAX($B$65:B74)<(construct+anal_period),B74+1,"") -> 11 | C75: 8 | D75: 8 | E75: 1.140825679 | F75: 192394628.5 | H75: 0 | I75: =IF(OR(C75<0,C75=""),"",-E75*INDEX('Replacement Costs'!$A$16:$H$57,MATCH(C75,'Replacement Costs'!$C$16:$C$57,0),MATCH("Total Yearly Replacement Costs",'Replacement Costs'!$A$16:$H$16,0))) -> -1561048.786 | J75: =IF(AND(C75>=1,C75<anal_period),WorkingCap*SUM(N75:R75)-WorkingCap*SUM(N74:R74),IF(C75<0,0,IF(B75="","",-SUM(J$65:J74)))) -> -238582.5616 | N75: -15184233.6 | O75: -149233029.4 | P75: -3004062.377 | Q75: 0 | R75: -1849825.144 | S75: =IF(B75="","",IF($B$31=0,"",-'Debt Financing Calculations'!E24)) -> -5741926.196 | T75: 17381551.76 | U75: =IF(C75="","",IF(C75<-1,0,IF(C75=anal_period,-LOOKUP(C75,depr_yr,depr_cost)-Depreciation!$C$141-Depreciation!$B$166,-LOOKUP(C75,depr_yr,depr_cost)))) -> -12344423.38 | V75: 5037128.38 | W75: 0.2574 | X75: -1296556.845 | Y75: 16084994.92 | Z75: =IF(C75="","",IF($B$31=0,"",-'Debt Financing Calculations'!F24)) -> 0 | AA75: 14285363.57 | AB75: 71064859.23 | AC75: 15581920.41 | AE75: 158673384 | AF75: 0
A76: 2023 | B76: =IF(MAX($B$65:B75)<(construct+anal_period),B75+1,"") -> 12 | C76: 9 | D76: 9 | E76: 1.162501366 | F76: 196050126.5 | H76: 0 | I76: =IF(OR(C76<0,C76=""),"",-E76*INDEX('Replacement Costs'!$A$16:$H$57,MATCH(C76,'Replacement Costs'!$C$16:$C$57,0),MATCH("Total Yearly Replacement Costs",'Replacement Costs'!$A$16:$H$16,0))) -> -1590708.713 | J76: =IF(AND(C76>=1,C76<anal_period),WorkingCap*SUM(N76:R76)-WorkingCap*SUM(N75:R75),IF(C76<0,0,IF(B76="","",-SUM(J$65:J75)))) -> -534897.8789 | N76: -15472734.04 | O76: -152418291 | P76: -3061139.563 | Q76: 0 | R76: -1884971.821 | S76: =IF(B76="","",IF($B$31=0,"",-'Debt Financing Calculations'!E25)) -> -5741926.196 | T76: 17471063.84 | U76: =IF(C76="","",IF(C76<-1,0,IF(C76=anal_period,-LOOKUP(C76,depr_yr,depr_cost)-Depreciation!$C$141-Depreciation!$B$166,-LOOKUP(C76,depr_yr,depr_cost)))) -> -12262613.12 | V76: 5208450.727 | W76: 0.2574 | X76: -1340655.217 | Y76: 16130408.63 | Z76: =IF(C76="","",IF($B$31=0,"",-'Debt Financing Calculations'!F25)) -> 0 | AA76: 14004802.03 | AB76: 85069661.26 | AC76: 15345457.25 | AE76: 158673384 | AF76: 0
A77: 2024 | B77: =IF(MAX($B$65:B76)<(construct+anal_period),B76+1,"") -> 13 | C77: 10 | D77: 10 | E77: 1.184588892 | F77: 199775078.9 | H77: 0 | I77: =IF(OR(C77<0,C77=""),"",-E77*INDEX('Replacement Costs'!$A$16:$H$57,MATCH(C77,'Replacement Costs'!$C$16:$C$57,0),MATCH("Total Yearly Replacement Costs",'Replacement Costs'!$A$16:$H$16,0))) -> -1620932.179 | J77: =IF(AND(C77>=1,C77<anal_period),WorkingCap*SUM(N77:R77)-WorkingCap*SUM(N76:R76),IF(C77<0,0,IF(B77="","",-SUM(J$65:J76)))) -> -886837.692 | N77: -15766715.99 | O77: -157942584.2 | P77: -3119301.214 | Q77: 0 | R77: -1920786.286 | S77: =IF(B77="","",IF($B$31=0,"",-'Debt Financing Calculations'!E26)) -> -5741926.196 | T77: 15283764.97 | U77: =IF(C77="","",IF(C77<-1,0,IF(C77=anal_period,-LOOKUP(C77,depr_yr,depr_cost)-Depreciation!$C$141-Depreciation!$B$166,-LOOKUP(C77,depr_yr,depr_cost)))) -> -12334784.07 | V77: 2948980.894 | W77: 0.2574 | X77: -759067.6822 | Y77: 14524697.28 | Z77: =IF(C77="","",IF($B$31=0,"",-'Debt Financing Calculations'!F26)) -> 0 | AA77: 12016927.41 | AB77: 97086588.67 | AC77: 12775995.1 | AE77: 158673384 | AF77: 0
A78: 2025 | B78: =IF(MAX($B$65:B77)<(construct+anal_period),B77+1,"") -> 14 | C78: 11 | D78: 11 | E78: 1.207096081 | F78: 203570805.4 | H78: 0 | I78: =IF(OR(C78<0,C78=""),"",-E78*INDEX('Replacement Costs'!$A$16:$H$57,MATCH(C78,'Replacement Costs'!$C$16:$C$57,0),MATCH("Total Yearly Replacement Costs",'Replacement Costs'!$A$16:$H$16,0))) -> -1651729.89 | J78: =IF(AND(C78>=1,C78<anal_period),WorkingCap*SUM(N78:R78)-WorkingCap*SUM(N77:R77),IF(C78<0,0,IF(B78="","",-SUM(J$65:J77)))) -> -1041122.819 | N78: -16066283.59 | O78: -164488073.7 | P78: -3178567.937 | Q78: 0 | R78: -1957281.225 | S78: =IF(B78="","",IF($B$31=0,"",-'Debt Financing Calculations'!E27)) -> -5741926.196 | T78: 12138672.67 | U78: =IF(C78="","",IF(C78<-1,0,IF(C78=anal_period,-LOOKUP(C78,depr_yr,depr_cost)-Depreciation!$C$141-Depreciation!$B$166,-LOOKUP(C78,depr_yr,depr_cost)))) -> -12413562.01 | V78: -274889.3361 | W78: 0.2574 | X78: 70756.51512 | Y78: 12209429.19 | Z78: =IF(C78="","",IF($B$31=0,"",-'Debt Financing Calculations'!F27)) -> 0 | AA78: 9516576.478 | AB78: 106603165.2 | AC78: 9445819.963 | AE78: 158673384 | AF78: 0
A79: 2026 | B79: =IF(MAX($B$65:B78)<(construct+anal_period),B78+1,"") -> 15 | C79: 12 | D79: 12 | E79: 1.230030907 | F79: 207438650.7 | H79: 0 | I79: =IF(OR(C79<0,C79=""),"",-E79*INDEX('Replacement Costs'!$A$16:$H$57,MATCH(C79,'Replacement Costs'!$C$16:$C$57,0),MATCH("Total Yearly Replacement Costs",'Replacement Costs'!$A$16:$H$16,0))) -> -1683112.758 | J79: =IF(AND(C79>=1,C79<anal_period),WorkingCap*SUM(N79:R79)-WorkingCap*SUM(N78:R78),IF(C79<0,0,IF(B79="","",-SUM(J$65:J78)))) -> -1085437.956 | N79: -16371542.98 | O79: -171321486.3 | P79: -3238960.728 | Q79: 0 | R79: -1994469.569 | S79: =IF(B79="","",IF($B$31=0,"",-'Debt Financing Calculations'!E28)) -> -5741926.196 | T79: 8770264.933 | U79: =IF(C79="","",IF(C79<-1,0,IF(C79=anal_period,-LOOKUP(C79,depr_yr,depr_cost)-Depreciation!$C$141-Depreciation!$B$166,-LOOKUP(C79,depr_yr,depr_cost)))) -> -12488600.99 | V79: -3718336.059 | W79: 0.2574 | X79: 957099.7016 | Y79: 9727364.635 | Z79: =IF(C79="","",IF($B$31=0,"",-'Debt Financing Calculations'!F28)) -> 0 | AA79: 6958813.921 | AB79: 113561979.1 | AC79: 6001714.219 | AE79: 158673384 | AF79: 0
A80: 2027 | B80: =IF(MAX($B$65:B79)<(construct+anal_period),B79+1,"") -> 16 | C80: 13 | D80: 13 | E80: 1.253401494 | F80: 211379985 | H80: 0 | I80: =IF(OR(C80<0,C80=""),"",-E80*INDEX('Replacement Costs'!$A$16:$H$57,MATCH(C80,'Replacement Costs'!$C$16:$C$57,0),MATCH("Total Yearly Replacement Costs",'Replacement Costs'!$A$16:$H$16,0))) -> -1715091.9 | J80: =IF(AND(C80>=1,C80<anal_period),WorkingCap*SUM(N80:R80)-WorkingCap*SUM(N79:R79),IF(C80<0,0,IF(B80="","",-SUM(J$65:J79)))) -> -1003219.458 | N80: -16682602.3 | O80: -177599121.5 | P80: -3300500.982 | Q80: 0 | R80: -2032364.49 | S80: =IF(B80="","",IF($B$31=0,"",-'Debt Financing Calculations'!E29)) -> -5741926.196 | T80: 6023469.576 | U80: =IF(C80="","",IF(C80<-1,0,IF(C80=anal_period,-LOOKUP(C80,depr_yr,depr_cost)-Depreciation!$C$141-Depreciation!$B$166,-LOOKUP(C80,depr_yr,depr_cost)))) -> -12570301.45 | V80: -6546831.874 | W80: 0.2574 | X80: 1685154.524 | Y80: 7708624.1 | Z80: =IF(C80="","",IF($B$31=0,"",-'Debt Financing Calculations'!F29)) -> 0 | AA80: 4990312.742 | AB80: 118552291.8 | AC80: 3305158.217 | AE80: 158673384 | AF80: 0
A81: 2028 | B81: =IF(MAX($B$65:B80)<(construct+anal_period),B80+1,"") -> 17 | C81: 14 | D81: 14 | E81: 1.277216123 | F81: 215396204.7 | H81: 0 | I81: =IF(OR(C81<0,C81=""),"",-E81*INDEX('Replacement Costs'!$A$16:$H$57,MATCH(C81,'Replacement Costs'!$C$16:$C$57,0),MATCH("Total Yearly Replacement Costs",'Replacement Costs'!$A$16:$H$16,0))) -> -1747678.647 | J81: =IF(AND(C81>=1,C81<anal_period),WorkingCap*SUM(N81:R81)-WorkingCap*SUM(N80:R80),IF(C81<0,0,IF(B81="","",-SUM(J$65:J80)))) -> -1027177.021 | N81: -16999571.74 | O81: -184028674.4 | P81: -3363210.501 | Q81: 0 | R81: -2070979.416 | S81: =IF(B81="","",IF($B$31=0,"",-'Debt Financing Calculations'!E30)) -> -5741926.196 | T81: 3191842.484 | U81: =IF(C81="","",IF(C81<-1,0,IF(C81=anal_period,-LOOKUP(C81,depr_yr,depr_cost)-Depreciation!$C$141-Depreciation!$B$166,-LOOKUP(C81,depr_yr,depr_cost)))) -> -12648318.48 | V81: -9456476 | W81: 0.2574 | X81: 2434096.922 | Y81: 5625939.406 | Z81: =IF(C81="","",IF($B$31=0,"",-'Debt Financing Calculations'!F30)) -> 0 | AA81: 2851083.739 | AB81: 121403375.6 | AC81: 416986.8165 | AE81: 158673384 | AF81: 0
A82: 2029 | B82: =IF(MAX($B$65:B81)<(construct+anal_period),B81+1,"") -> 18 | C82: 15 | D82: 15 | E82: 1.301483229 | F82: 219488732.6 | H82: 0 | I82: =IF(OR(C82<0,C82=""),"",-E82*INDEX('Replacement Costs'!$A$16:$H$57,MATCH(C82,'Replacement Costs'!$C$16:$C$57,0),MATCH("Total Yearly Replacement Costs",'Replacement Costs'!$A$16:$H$16,0))) -> -1780884.541 | J82: =IF(AND(C82>=1,C82<anal_period),WorkingCap*SUM(N82:R82)-WorkingCap*SUM(N81:R81),IF(C82<0,0,IF(B82="","",-SUM(J$65:J81)))) -> -980689.2622 | N82: -17322563.6 | O82: -190140361.4 | P82: -3427111.5 | Q82: 0 | R82: -2110328.025 | S82: =IF(B82="","",IF($B$31=0,"",-'Debt Financing Calculations'!E31)) -> -5741926.196 | T82: 746441.9599 | U82: =IF(C82="","",IF(C82<-1,0,IF(C82=anal_period,-LOOKUP(C82,depr_yr,depr_cost)-Depreciation!$C$141-Depreciation!$B$166,-LOOKUP(C82,depr_yr,depr_cost)))) -> -12733053.57 | V82: -11986611.61 | W82: 0.2574 | X82: 3085353.829 | Y82: 3831795.789 | Z82: =IF(C82="","",IF($B$31=0,"",-'Debt Financing Calculations'!F31)) -> 0 | AA82: 1070221.986 | AB82: 122473597.5 | AC82: -2015131.843 | AE82: 158673384 | AF82: 0
A83: 2030 | B83: =IF(MAX($B$65:B82)<(construct+anal_period),B82+1,"") -> 19 | C83: 16 | D83: 16 | E83: 1.32621141 | F83: 223659018.6 | H83: 0 | I83: =IF(OR(C83<0,C83=""),"",-E83*INDEX('Replacement Costs'!$A$16:$H$57,MATCH(C83,'Replacement Costs'!$C$16:$C$57,0),MATCH("Total Yearly Replacement Costs",'Replacement Costs'!$A$16:$H$16,0))) -> -1814721.347 | J83: =IF(AND(C83>=1,C83<anal_period),WorkingCap*SUM(N83:R83)-WorkingCap*SUM(N82:R82),IF(C83<0,0,IF(B83="","",-SUM(J$65:J82)))) -> -707605.9695 | N83: -17651692.31 | O83: -194423394.4 | P83: -3492226.619 | Q83: 0 | R83: -2150424.257 | S83: =IF(B83="","",IF($B$31=0,"",-'Debt Financing Calculations'!E32)) -> -5741926.196 | T83: 199354.7497 | U83: =IF(C83="","",IF(C83<-1,0,IF(C83=anal_period,-LOOKUP(C83,depr_yr,depr_cost)-Depreciation!$C$141-Depreciation!$B$166,-LOOKUP(C83,depr_yr,depr_cost)))) -> -12814162.9 | V83: -12614808.15 | W83: 0.2574 | X83: 3247051.617 | Y83: 3446406.367 | Z83: =IF(C83="","",IF($B$31=0,"",-'Debt Financing Calculations'!F32)) -> 0 | AA83: 924079.0503 | AB83: 123397676.6 | AC83: -2322972.567 | AE83: 158673384 | AF83: 0
A84: 2031 | B84: =IF(MAX($B$65:B83)<(construct+anal_period),B83+1,"") -> 20 | C84: 17 | D84: 17 | E84: 1.351409427 | F84: 227908539.9 | H84: 0 | I84: =IF(OR(C84<0,C84=""),"",-E84*INDEX('Replacement Costs'!$A$16:$H$57,MATCH(C84,'Replacement Costs'!$C$16:$C$57,0),MATCH("Total Yearly Replacement Costs",'Replacement Costs'!$A$16:$H$16,0))) -> -1849201.053 | J84: =IF(AND(C84>=1,C84<anal_period),WorkingCap*SUM(N84:R84)-WorkingCap*SUM(N83:R83),IF(C84<0,0,IF(B84="","",-SUM(J$65:J83)))) -> -747061.0383 | N84: -17987074.47 | O84: -198961208.8 | P84: -3558578.924 | Q84: 0 | R84: -2191282.318 | S84: =IF(B84="","",IF($B$31=0,"",-'Debt Financing Calculations'!E33)) -> -5741926.196 | T84: -531530.8198 | U84: =IF(C84="","",IF(C84<-1,0,IF(C84=anal_period,-LOOKUP(C84,depr_yr,depr_cost)-Depreciation!$C$141-Depreciation!$B$166,-LOOKUP(C84,depr_yr,depr_cost)))) -> -12902049.03 | V84: -13433579.85 | W84: 0.2574 | X84: 3457803.454 | Y84: 2926272.634 | Z84: =IF(C84="","",IF($B$31=0,"",-'Debt Financing Calculations'!F33)) -> 0 | AA84: 330010.5429 | AB84: 123727687.1 | AC84: -3127792.911 | AE84: 158673384 | AF84: 0
A85: 2032 | B85: =IF(MAX($B$65:B84)<(construct+anal_period),B84+1,"") -> 21 | C85: 18 | D85: 18 | E85: 1.377086206 | F85: 232238802.2 | H85: 0 | I85: =IF(OR(C85<0,C85=""),"",-E85*INDEX('Replacement Costs'!$A$16:$H$57,MATCH(C85,'Replacement Costs'!$C$16:$C$57,0),MATCH("Total Yearly Replacement Costs",'Replacement Costs'!$A$16:$H$16,0))) -> -1884335.873 | J85: =IF(AND(C85>=1,C85<anal_period),WorkingCap*SUM(N85:R85)-WorkingCap*SUM(N84:R84),IF(C85<0,0,IF(B85="","",-SUM(J$65:J84)))) -> -558555.8 | N85: -18328828.88 | O85: -202233912.4 | P85: -3626191.924 | Q85: 0 | R85: -2232916.682 | S85: =IF(B85="","",IF($B$31=0,"",-'Debt Financing Calculations'!E34)) -> -5741926.196 | T85: 75026.10476 | U85: =IF(C85="","",IF(C85<-1,0,IF(C85=anal_period,-LOOKUP(C85,depr_yr,depr_cost)-Depreciation!$C$141-Depreciation!$B$166,-LOOKUP(C85,depr_yr,depr_cost)))) -> -12986369.27 | V85: -12911343.16 | W85: 0.2574 | X85: 3323379.731 | Y85: 3398405.835 | Z85: =IF(C85="","",IF($B$31=0,"",-'Debt Financing Calculations'!F34)) -> 0 | AA85: 955514.1625 | AB85: 124683201.3 | AC85: -2367865.568 | AE85: 158673384 | AF85: 0
A86: 2033 | B86: =IF(MAX($B$65:B85)<(construct+anal_period),B85+1,"") -> 22 | C86: 19 | D86: 19 | E86: 1.403250844 | F86: 236651339.4 | H86: 0 | I86: =IF(OR(C86<0,C86=""),"",-E86*INDEX('Replacement Costs'!$A$16:$H$57,MATCH(C86,'Replacement Costs'!$C$16:$C$57,0),MATCH("Total Yearly Replacement Costs",'Replacement Costs'!$A$16:$H$16,0))) -> -1920138.254 | J86: =IF(AND(C86>=1,C86<anal_period),WorkingCap*SUM(N86:R86)-WorkingCap*SUM(N85:R85),IF(C86<0,0,IF(B86="","",-SUM(J$65:J85)))) -> -340440.7777 | N86: -18677076.63 | O86: -204043946.8 | P86: -3695089.571 | Q86: 0 | R86: -2275342.099 | S86: =IF(B86="","",IF($B$31=0,"",-'Debt Financing Calculations'!E35)) -> -5741926.196 | T86: 2217958.161 | U86: =IF(C86="","",IF(C86<-1,0,IF(C86=anal_period,-LOOKUP(C86,depr_yr,depr_cost)-Depreciation!$C$141-Depreciation!$B$166,-LOOKUP(C86,depr_yr,depr_cost)))) -> -13077527.32 | V86: -10859569.16 | W86: 0.2574 | X86: 2795253.103 | Y86: 5013211.264 | Z86: =IF(C86="","",IF($B$31=0,"",-'Debt Financing Calculations'!F35)) -> 0 | AA86: 2752632.231 | AB86: 127435833.5 | AC86: -42620.87112 | AE86: 158673384 | AF86: 0
A87: 2034 | B87: =IF(MAX($B$65:B86)<(construct+anal_period),B86+1,"") -> 23 | C87: 20 | D87: 20 | E87: 1.42991261 | F87: 241147714.9 | H87: 0 | I87: =IF(OR(C87<0,C87=""),"",-E87*INDEX('Replacement Costs'!$A$16:$H$57,MATCH(C87,'Replacement Costs'!$C$16:$C$57,0),MATCH("Total Yearly Replacement Costs",'Replacement Costs'!$A$16:$H$16,0))) -> -1956620.881 | J87: =IF(AND(C87>=1,C87<anal_period),WorkingCap*SUM(N87:R87)-WorkingCap*SUM(N86:R86),IF(C87<0,0,IF(B87="","",-SUM(J$65:J86)))) -> -642918.6892 | N87: -19031941.09 | O87: -207861768.7 | P87: -3765296.272 | Q87: 0 | R87: -2318573.599 | S87: =IF(B87="","",IF($B$31=0,"",-'Debt Financing Calculations'!E36)) -> -5741926.196 | T87: 2428209.015 | U87: =IF(C87="","",IF(C87<-1,0,IF(C87=anal_period,-LOOKUP(C87,depr_yr,depr_cost)-Depreciation!$C$141-Depreciation!$B$166,-LOOKUP(C87,depr_yr,depr_cost)))) -> -13165181.65 | V87: -10736972.63 | W87: 0.2574 | X87: 2763696.756 | Y87: 5191905.771 | Z87: =IF(C87="","",IF($B$31=0,"",-'Debt Financing Calculations'!F36)) -> 0 | AA87: 2592366.201 | AB87: 130028199.7 | AC87: -171330.5553 | AE87: 158673384 | AF87: 0
A88: 2035 | B88: =IF(MAX($B$65:B87)<(construct+anal_period),B87+1,"") -> 24 | C88: 21 | D88: 21 | E88: 1.45708095 | F88: 245729521.4 | H88: 0 | I88: =IF(OR(C88<0,C88=""),"",-E88*INDEX('Replacement Costs'!$A$16:$H$57,MATCH(C88,'Replacement Costs'!$C$16:$C$57,0),MATCH("Total Yearly Replacement Costs",'Replacement Costs'!$A$16:$H$16,0))) -> -1993796.678 | J88: =IF(AND(C88>=1,C88<anal_period),WorkingCap*SUM(N88:R88)-WorkingCap*SUM(N87:R87),IF(C88<0,0,IF(B88="","",-SUM(J$65:J87)))) -> -1153490.898 | N88: -19393547.97 | O88: -215074507.6 | P88: -3836836.902 | Q88: 0 | R88: -2362626.497 | S88: =IF(B88="","",IF($B$31=0,"",-'Debt Financing Calculations'!E37)) -> -5741926.196 | T88: -679923.7197 | U88: =IF(C88="","",IF(C88<-1,0,IF(C88=anal_period,-LOOKUP(C88,depr_yr,depr_cost)-Depreciation!$C$141-Depreciation!$B$166,-LOOKUP(C88,depr_yr,depr_cost)))) -> -7458832.07 | V88: -8138755.789 | W88: 0.2574 | X88: 2094915.74 | Y88: 1414992.02 | Z88: =IF(C88="","",IF($B$31=0,"",-'Debt Financing Calculations'!F37)) -> 0 | AA88: -1732295.555 | AB88: 128295904.2 | AC88: -3827211.295 | AE88: 158673384 | AF88: 0
A89: 2036 | B89: =IF(MAX($B$65:B88)<(construct+anal_period),B88+1,"") -> 25 | C89: 22 | D89: 22 | E89: 1.484765488 | F89: 250398382.3 | H89: 0 | I89: =IF(OR(C89<0,C89=""),"",-E89*INDEX('Replacement Costs'!$A$16:$H$57,MATCH(C89,'Replacement Costs'!$C$16:$C$57,0),MATCH("Total Yearly Replacement Costs",'Replacement Costs'!$A$16:$H$16,0))) -> -2031678.815 | J89: =IF(AND(C89>=1,C89<anal_period),WorkingCap*SUM(N89:R89)-WorkingCap*SUM(N88:R88),IF(C89<0,0,IF(B89="","",-SUM(J$65:J88)))) -> -708787.8774 | N89: -19762025.38 | O89: -219313492.9 | P89: -3909736.803 | Q89: 0 | R89: -2407516.401 | S89: =IF(B89="","",IF($B$31=0,"",-'Debt Financing Calculations'!E38)) -> -5741926.196 | T89: -736315.3287 | U89: =IF(C89="","",IF(C89<-1,0,IF(C89=anal_period,-LOOKUP(C89,depr_yr,depr_cost)-Depreciation!$C$141-Depreciation!$B$166,-LOOKUP(C89,depr_yr,depr_cost)))) -> -1720535.531 | V89: -2456850.859 | W89: 0.2574 | X89: 632393.4112 | Y89: -103921.9175 | Z89: =IF(C89="","",IF($B$31=0,"",-'Debt Financing Calculations'!F38)) -> 0 | AA89: -2844388.61 | AB89: 125451515.6 | AC89: -3476782.021 | AE89: 158673384 | AF89: 0
A90: 2037 | B90: =IF(MAX($B$65:B89)<(construct+anal_period),B89+1,"") -> 26 | C90: 23 | D90: 23 | E90: 1.512976032 | F90: 255155951.6 | H90: 0 | I90: =IF(OR(C90<0,C90=""),"",-E90*INDEX('Replacement Costs'!$A$16:$H$57,MATCH(C90,'Replacement Costs'!$C$16:$C$57,0),MATCH("Total Yearly Replacement Costs",'Replacement Costs'!$A$16:$H$16,0))) -> -2070280.712 | J90: =IF(AND(C90>=1,C90<anal_period),WorkingCap*SUM(N90:R90)-WorkingCap*SUM(N89:R89),IF(C90<0,0,IF(B90="","",-SUM(J$65:J89)))) -> -759805.1236 | N90: -20137503.86 | O90: -223883354.1 | P90: -3984021.802 | Q90: 0 | R90: -2453259.212 | S90: =IF(B90="","",IF($B$31=0,"",-'Debt Financing Calculations'!E39)) -> -5741926.196 | T90: -1044113.555 | U90: =IF(C90="","",IF(C90<-1,0,IF(C90=anal_period,-LOOKUP(C90,depr_yr,depr_cost)-Depreciation!$C$141-Depreciation!$B$166,-LOOKUP(C90,depr_yr,depr_cost)))) -> -1753225.706 | V90: -2797339.26 | W90: 0.2574 | X90: 720035.1256 | Y90: -324078.429 | Z90: =IF(C90="","",IF($B$31=0,"",-'Debt Financing Calculations'!F39)) -> 0 | AA90: -3154164.265 | AB90: 122297351.3 | AC90: -3874199.39 | AE90: 158673384 | AF90: 0
A91: 2038 | B91: =IF(MAX($B$65:B90)<(construct+anal_period),B90+1,"") -> 27 | C91: 24 | D91: 24 | E91: 1.541722577 | F91: 260003914.7 | H91: 0 | I91: =IF(OR(C91<0,C91=""),"",-E91*INDEX('Replacement Costs'!$A$16:$H$57,MATCH(C91,'Replacement Costs'!$C$16:$C$57,0),MATCH("Total Yearly Replacement Costs",'Replacement Costs'!$A$16:$H$16,0))) -> -2109616.046 | J91: =IF(AND(C91>=1,C91<anal_period),WorkingCap*SUM(N91:R91)-WorkingCap*SUM(N90:R90),IF(C91<0,0,IF(B91="","",-SUM(J$65:J90)))) -> -680899.9789 | N91: -20520116.43 | O91: -227917766.4 | P91: -4059718.216 | Q91: 0 | R91: -2499871.137 | S91: =IF(B91="","",IF($B$31=0,"",-'Debt Financing Calculations'!E40)) -> -5741926.196 | T91: -735483.6665 | U91: =IF(C91="","",IF(C91<-1,0,IF(C91=anal_period,-LOOKUP(C91,depr_yr,depr_cost)-Depreciation!$C$141-Depreciation!$B$166,-LOOKUP(C91,depr_yr,depr_cost)))) -> -1786536.994 | V91: -2522020.661 | W91: 0.2574 | X91: 649168.1181 | Y91: -86315.54847 | Z91: =IF(C91="","",IF($B$31=0,"",-'Debt Financing Calculations'!F40)) -> 0 | AA91: -2876831.573 | AB91: 119420519.7 | AC91: -3525999.691 | AE91: 158673384 | AF91: 0
A92: 2039 | B92: =IF(MAX($B$65:B91)<(construct+anal_period),B91+1,"") -> 28 | C92: 25 | D92: 25 | E92: 1.571015306 | F92: 264943989.1 | H92: 0 | I92: =IF(OR(C92<0,C92=""),"",-E92*INDEX('Replacement Costs'!$A$16:$H$57,MATCH(C92,'Replacement Costs'!$C$16:$C$57,0),MATCH("Total Yearly Replacement Costs",'Replacement Costs'!$A$16:$H$16,0))) -> -2149698.751 | J92: =IF(AND(C92>=1,C92<anal_period),WorkingCap*SUM(N92:R92)-WorkingCap*SUM(N91:R91),IF(C92<0,0,IF(B92="","",-SUM(J$65:J91)))) -> -857887.8399 | N92: -20909998.65 | O92: -233122504.2 | P92: -4136852.862 | Q92: 0 | R92: -2547368.689 | S92: =IF(B92="","",IF($B$31=0,"",-'Debt Financing Calculations'!E41)) -> -5741926.196 | T92: -1514661.553 | U92: =IF(C92="","",IF(C92<-1,0,IF(C92=anal_period,-LOOKUP(C92,depr_yr,depr_cost)-Depreciation!$C$141-Depreciation!$B$166,-LOOKUP(C92,depr_yr,depr_cost)))) -> -1820481.197 | V92: -3335142.75 | W92: 0.2574 | X92: 858465.7439 | Y92: -656195.8092 | Z92: =IF(C92="","",IF($B$31=0,"",-'Debt Financing Calculations'!F41)) -> 0 | AA92: -3663782.4 | AB92: 115756737.3 | AC92: -4522248.144 | AE92: 158673384 | AF92: 0
A93: 2040 | B93: =IF(MAX($B$65:B92)<(construct+anal_period),B92+1,"") -> 29 | C93: 26 | D93: 26 | E93: 1.600864596 | F93: 269977924.9 | H93: 0 | I93: =IF(OR(C93<0,C93=""),"",-E93*INDEX('Replacement Costs'!$A$16:$H$57,MATCH(C93,'Replacement Costs'!$C$16:$C$57,0),MATCH("Total Yearly Replacement Costs",'Replacement Costs'!$A$16:$H$16,0))) -> -2190543.027 | J93: =IF(AND(C93>=1,C93<anal_period),WorkingCap*SUM(N93:R93)-WorkingCap*SUM(N92:R92),IF(C93<0,0,IF(B93="","",-SUM(J$65:J92)))) -> -475116.5927 | N93: -21307288.62 | O93: -235765658 | P93: -4215453.067 | Q93: 0 | R93: -2595768.694 | S93: =IF(B93="","",IF($B$31=0,"",-'Debt Financing Calculations'!E42)) -> -5741926.196 | T93: 351830.2879 | U93: =IF(C93="","",IF(C93<-1,0,IF(C93=anal_period,-LOOKUP(C93,depr_yr,depr_cost)-Depreciation!$C$141-Depreciation!$B$166,-LOOKUP(C93,depr_yr,depr_cost)))) -> -1855070.34 | V93: -1503240.052 | W93: 0.2574 | X93: 386933.9894 | Y93: 738764.2772 | Z93: =IF(C93="","",IF($B$31=0,"",-'Debt Financing Calculations'!F42)) -> 0 | AA93: -1926895.342 | AB93: 113829842 | AC93: -2313829.332 | AE93: 158673384 | AF93: 0
A94: 2041 | B94: =IF(MAX($B$65:B93)<(construct+anal_period),B93+1,"") -> 30 | C94: 27 | D94: 27 | E94: 1.631281024 | F94: 275107505.4 | H94: 0 | I94: =IF(OR(C94<0,C94=""),"",-E94*INDEX('Replacement Costs'!$A$16:$H$57,MATCH(C94,'Replacement Costs'!$C$16:$C$57,0),MATCH("Total Yearly Replacement Costs",'Replacement Costs'!$A$16:$H$16,0))) -> -2232163.344 | J94: =IF(AND(C94>=1,C94<anal_period),WorkingCap*SUM(N94:R94)-WorkingCap*SUM(N93:R93),IF(C94<0,0,IF(B94="","",-SUM(J$65:J93)))) -> -779762.0727 | N94: -21712127.1 | O94: -240429820.1 | P94: -4295546.675 | Q94: 0 | R94: -2645088.299 | S94: =IF(B94="","",IF($B$31=0,"",-'Debt Financing Calculations'!E43)) -> -5741926.196 | T94: 282997.0422 | U94: =IF(C94="","",IF(C94<-1,0,IF(C94=anal_period,-LOOKUP(C94,depr_yr,depr_cost)-Depreciation!$C$141-Depreciation!$B$166,-LOOKUP(C94,depr_yr,depr_cost)))) -> -1890316.676 | V94: -1607319.634 | W94: 0.2574 | X94: 413724.0738 | Y94: 696721.116 | Z94: =IF(C94="","",IF($B$31=0,"",-'Debt Financing Calculations'!F43)) -> 0 | AA94: -2315204.301 | AB94: 111514637.7 | AC94: -2728928.375 | AE94: 158673384 | AF94: 0
A95: 2042 | B95: =IF(MAX($B$65:B94)<(construct+anal_period),B94+1,"") -> 31 | C95: 28 | D95: 28 | E95: 1.662275363 | F95: 280334548 | H95: 0 | I95: =IF(OR(C95<0,C95=""),"",-E95*INDEX('Replacement Costs'!$A$16:$H$57,MATCH(C95,'Replacement Costs'!$C$16:$C$57,0),MATCH("Total Yearly Replacement Costs",'Replacement Costs'!$A$16:$H$16,0))) -> -2274574.448 | J95: =IF(AND(C95>=1,C95<anal_period),WorkingCap*SUM(N95:R95)-WorkingCap*SUM(N94:R94),IF(C95<0,0,IF(B95="","",-SUM(J$65:J94)))) -> -1117392.253 | N95: -22124657.52 | O95: -247334699.3 | P95: -4377162.062 | Q95: 0 | R95: -2695344.977 | S95: =IF(B95="","",IF($B$31=0,"",-'Debt Financing Calculations'!E44)) -> -5741926.196 | T95: -1939242.041 | U95: =IF(C95="","",IF(C95<-1,0,IF(C95=anal_period,-LOOKUP(C95,depr_yr,depr_cost)-Depreciation!$C$141-Depreciation!$B$166,-LOOKUP(C95,depr_yr,depr_cost)))) -> -1926232.693 | V95: -3865474.734 | W95: 0.2574 | X95: 994973.1965 | Y95: -944268.8443 | Z95: =IF(C95="","",IF($B$31=0,"",-'Debt Financing Calculations'!F44)) -> 0 | AA95: -4336235.545 | AB95: 107178402.1 | AC95: -5331208.742 | AE95: 158673384 | AF95: 0
A96: 2043 | B96: =IF(MAX($B$65:B95)<(construct+anal_period),B95+1,"") -> 32 | C96: 29 | D96: 29 | E96: 1.693858595 | F96: 285660904.5 | H96: 0 | I96: =IF(OR(C96<0,C96=""),"",-E96*INDEX('Replacement Costs'!$A$16:$H$57,MATCH(C96,'Replacement Costs'!$C$16:$C$57,0),MATCH("Total Yearly Replacement Costs",'Replacement Costs'!$A$16:$H$16,0))) -> -2317791.362 | J96: =IF(AND(C96>=1,C96<anal_period),WorkingCap*SUM(N96:R96)-WorkingCap*SUM(N95:R95),IF(C96<0,0,IF(B96="","",-SUM(J$65:J95)))) -> -1335318.967 | N96: -22545026.01 | O96: -255682079.6 | P96: -4460328.141 | Q96: 0 | R96: -2746556.532 | S96: =IF(B96="","",IF($B$31=0,"",-'Debt Financing Calculations'!E45)) -> -5741926.196 | T96: -5515012.075 | U96: =IF(C96="","",IF(C96<-1,0,IF(C96=anal_period,-LOOKUP(C96,depr_yr,depr_cost)-Depreciation!$C$141-Depreciation!$B$166,-LOOKUP(C96,depr_yr,depr_cost)))) -> -1962831.114 | V96: -7477843.19 | W96: 0.2574 | X96: 1924796.837 | Y96: -3590215.238 | Z96: =IF(C96="","",IF($B$31=0,"",-'Debt Financing Calculations'!F45)) -> 0 | AA96: -7243325.568 | AB96: 99935076.57 | AC96: -9168122.405 | AE96: 158673384 | AF96: 0
A97: 2044 | B97: =IF(MAX($B$65:B96)<(construct+anal_period),B96+1,"") -> 33 | C97: 30 | D97: =IF(C97="","",IF(C97<=plant_life,C97,IF(D96=plant_life,1,D96+1))) -> 30 | E97: =IF(C97="","",(1+inflation_rate)^(A97-$B$25)) -> 1.726041908 | F97: =IF(C97="","",IF(C97<0,0,IF(AND(C97=1,start_time<1),E97*(H2_price_nominal*output_kgyear*start_time*percnt_revs+H2_price_nominal*output_kgyear*(1-start_time)),IF(C97<=start_time,H2_price_nominal*E97*output_kgyear*percnt_revs,H2_price_nominal*output_kgyear*E97)))) -> 291088461.6 | H97: 0 | I97: =IF(OR(C97<0,C97=""),"",-E97*INDEX('Replacement Costs'!$A$16:$H$57,MATCH(C97,'Replacement Costs'!$C$16:$C$57,0),MATCH("Total Yearly Replacement Costs",'Replacement Costs'!$A$16:$H$16,0))) -> -2361829.398 | J97: =IF(AND(C97>=1,C97<anal_period),WorkingCap*SUM(N97:R97)-WorkingCap*SUM(N96:R96),IF(C97<0,0,IF(B97="","",-SUM(J$65:J96)))) -> -1196352.206 | K97: =IF(C97=-construct,-E97*non_dep_infl,"") ->  | L97: =IF(C97=anal_period,salvage*E97,"") ->  | M97: =IF(D97=plant_life,-E97*decom,"") ->  | N97: =IF(C97="","",IF(C97<0,0,IF(AND(C97=1,start_time<1),-(inflated_fixed*percnt_fixed*start_time+(inflated_fixed*(1-start_time))),IF(C97<=start_time,-inflated_fixed*percnt_fixed*E97,-inflated_fixed*E97)))) -> -22973381.51 | O97: =IF(C97="","",IF(C97<0,0,IF(AND(C97=1,start_time<1),-(SUM(B171:E171)*output_kgyear*E97*percnt_var*start_time+SUM(B171:E171)*output_kgyear*E97*(1-start_time)),IF(C97<=start_time,-SUM(B171:E171)*output_kgyear*E97*percnt_var,-SUM(B171:E171)*output_kgyear*E97)))) -> -263092474.7 | P97: =IF(C97="","",IF(C97<0,0,IF(AND(C97=1,start_time<1),-(inflated_otherraw*E97*percnt_var*start_time+inflated_otherraw*E97*(1-start_time)),IF(C97<=start_time,-inflated_otherraw*E97*percnt_var,-(inflated_otherraw*E97))))) -> -4545074.376 | Q97: 0 | R97: =IF(C97="","",IF(C97<0,0,IF(AND(C97=1,start_time<1),-((SUM(F171:J171,P171:R171)*output_kgyear+inflated_othervar)*E97*percnt_var*start_time+(SUM(F171:J171,P171:R171)*output_kgyear+inflated_othervar)*E97*(1-start_time)),IF(C97<=start_time,-(SUM(F171:J171,P171:R171)*output_kgyear+inflated_othervar)*E97*percnt_var,-E97*(SUM(F171:J171,P171:R171)*output_kgyear+inflated_othervar))))) -> -2798741.106 | S97: =IF(B97="","",IF($B$31=0,"",-'Debt Financing Calculations'!E46)) -> -5741926.196 | T97: =IF(C97="","",F97+SUM(L97:S97)) -> -8063136.263 | U97: =IF(C97="","",IF(C97<-1,0,IF(C97=anal_period,-LOOKUP(C97,depr_yr,depr_cost)-Depreciation!$C$141-Depreciation!$B$166,-LOOKUP(C97,depr_yr,depr_cost)))) -> -2000124.905 | V97: =IF(C97="","",SUM(T97:U97)) -> -10063261.17 | W97: =IF(C97="","",$B$33) -> 0.2574 | X97: =IF(C97="","",tax_credit-(V97*W97 +Upstream_CO2_taxpYear + Proc_CO2_taxpYear)) -> 2590283.425 | Y97: =IF(C97="","",SUM(T97,X97)) -> -5472852.838 | Z97: =IF(C97="","",IF($B$31=0,"",-'Debt Financing Calculations'!F46)) -> 0 | AA97: =IF(C97="","",SUM(H97,I97,J97,K97,T97,X97,Z97)) -> -9031034.442 | AB97: 90904042.13 | AC97: =IF(C97="","",SUM(H97,I97,J97,K97,T97,Z97)) -> -11621317.87 | AE97: =IF(C97="","",IF(C97<0,0,IF(AND(C97=1,start_time<1),(output_kgyear*start_time*percnt_revs+output_kgyear*(1-start_time)),IF(C97<=start_time,output_kgyear*percnt_revs,output_kgyear)))) -> 158673384 | AF97: =IF(C97="","",tax_credit) -> 0
A98: 2045 | B98: =IF(MAX($B$65:B97)<(construct+anal_period),B97+1,"") -> 34 | C98: 31 | D98: 31 | E98: 1.758836705 | F98: 296619142.4 | H98: 0 | I98: =IF(OR(C98<0,C98=""),"",-E98*INDEX('Replacement Costs'!$A$16:$H$57,MATCH(C98,'Replacement Costs'!$C$16:$C$57,0),MATCH("Total Yearly Replacement Costs",'Replacement Costs'!$A$16:$H$16,0))) -> -2406704.157 | J98: =IF(AND(C98>=1,C98<anal_period),WorkingCap*SUM(N98:R98)-WorkingCap*SUM(N97:R97),IF(C98<0,0,IF(B98="","",-SUM(J$65:J97)))) -> -1348726.547 | N98: -23409875.75 | O98: -271507958.3 | P98: -4631430.789 | Q98: 0 | R98: -2851917.187 | S98: =IF(B98="","",IF($B$31=0,"",-'Debt Financing Calculations'!E47)) -> -5741926.196 | T98: -11523965.8 | U98: =IF(C98="","",IF(C98<-1,0,IF(C98=anal_period,-LOOKUP(C98,depr_yr,depr_cost)-Depreciation!$C$141-Depreciation!$B$166,-LOOKUP(C98,depr_yr,depr_cost)))) -> -2038127.279 | V98: -13562093.08 | W98: 0.2574 | X98: 3490882.759 | Y98: -8033083.043 | Z98: =IF(C98="","",IF($B$31=0,"",-'Debt Financing Calculations'!F47)) -> 0 | AA98: -11788513.75 | AB98: 79115528.38 | AC98: -15279396.51 | AE98: 158673384 | AF98: 0
A99: 2046 | B99: =IF(MAX($B$65:B98)<(construct+anal_period),B98+1,"") -> 35 | C99: 32 | D99: 32 | E99: 1.792254602 | F99: 302254906.1 | H99: 0 | I99: =IF(OR(C99<0,C99=""),"",-E99*INDEX('Replacement Costs'!$A$16:$H$57,MATCH(C99,'Replacement Costs'!$C$16:$C$57,0),MATCH("Total Yearly Replacement Costs",'Replacement Costs'!$A$16:$H$16,0))) -> -2452431.536 | J99: =IF(AND(C99>=1,C99<anal_period),WorkingCap*SUM(N99:R99)-WorkingCap*SUM(N98:R98),IF(C99<0,0,IF(B99="","",-SUM(J$65:J98)))) -> -1261478.764 | N99: -23854663.39 | O99: -279330845.5 | P99: -4719427.974 | Q99: 0 | R99: -2906103.613 | S99: =IF(B99="","",IF($B$31=0,"",-'Debt Financing Calculations'!E48)) -> -5741926.196 | T99: -14298060.53 | U99: =IF(C99="","",IF(C99<-1,0,IF(C99=anal_period,-LOOKUP(C99,depr_yr,depr_cost)-Depreciation!$C$141-Depreciation!$B$166,-LOOKUP(C99,depr_yr,depr_cost)))) -> -2076851.697 | V99: -16374912.22 | W99: 0.2574 | X99: 4214902.406 | Y99: -10083158.12 | Z99: =IF(C99="","",IF($B$31=0,"",-'Debt Financing Calculations'!F48)) -> 0 | AA99: -13797068.42 | AB99: 65318459.96 | AC99: -18011970.83 | AE99: 158673384 | AF99: 0
A100: 2047 | B100: =IF(MAX($B$65:B99)<(construct+anal_period),B99+1,"") -> 36 | C100: 33 | D100: 33 | E100: 1.826307439 | F100: 307997749.3 | H100: 0 | I100: =IF(OR(C100<0,C100=""),"",-E100*INDEX('Replacement Costs'!$A$16:$H$57,MATCH(C100,'Replacement Costs'!$C$16:$C$57,0),MATCH("Total Yearly Replacement Costs",'Replacement Costs'!$A$16:$H$16,0))) -> -2499027.735 | J100: =IF(AND(C100>=1,C100<anal_period),WorkingCap*SUM(N100:R100)-WorkingCap*SUM(N99:R99),IF(C100<0,0,IF(B100="","",-SUM(J$65:J99)))) -> -1332158.52 | N100: -24307902 | O100: -287613778.6 | P100: -4809097.105 | Q100: 0 | R100: -2961319.582 | S100: =IF(B100="","",IF($B$31=0,"",-'Debt Financing Calculations'!E49)) -> -5741926.196 | T100: -17436274.11 | U100: =IF(C100="","",IF(C100<-1,0,IF(C100=anal_period,-LOOKUP(C100,depr_yr,depr_cost)-Depreciation!$C$141-Depreciation!$B$166,-LOOKUP(C100,depr_yr,depr_cost)))) -> -2116311.879 | V100: -19552585.99 | W100: 0.2574 | X100: 5032835.633 | Y100: -12403438.48 | Z100: =IF(C100="","",IF($B$31=0,"",-'Debt Financing Calculations'!F49)) -> 0 | AA100: -16234624.73 | AB100: 49083835.23 | AC100: -21267460.36 | AE100: 158673384 | AF100: 0
A101: 2048 | B101: =IF(MAX($B$65:B100)<(construct+anal_period),B100+1,"") -> 37 | C101: 34 | D101: 34 | E101: 1.861007281 | F101: 313849706.6 | H101: 0 | I101: =IF(OR(C101<0,C101=""),"",-E101*INDEX('Replacement Costs'!$A$16:$H$57,MATCH(C101,'Replacement Costs'!$C$16:$C$57,0),MATCH("Total Yearly Replacement Costs",'Replacement Costs'!$A$16:$H$16,0))) -> -2546509.262 | J101: =IF(AND(C101>=1,C101<anal_period),WorkingCap*SUM(N101:R101)-WorkingCap*SUM(N100:R100),IF(C101<0,0,IF(B101="","",-SUM(J$65:J100)))) -> -1710351.173 | N101: -24769752.14 | O101: -298406631.7 | P101: -4900469.95 | Q101: 0 | R101: -3017584.654 | S101: =IF(B101="","",IF($B$31=0,"",-'Debt Financing Calculations'!E50)) -> -5741926.196 | T101: -22986658.03 | U101: =IF(C101="","",IF(C101<-1,0,IF(C101=anal_period,-LOOKUP(C101,depr_yr,depr_cost)-Depreciation!$C$141-Depreciation!$B$166,-LOOKUP(C101,depr_yr,depr_cost)))) -> -2156521.805 | V101: -25143179.83 | W101: 0.2574 | X101: 6471854.488 | Y101: -16514803.54 | Z101: =IF(C101="","",IF($B$31=0,"",-'Debt Financing Calculations'!F50)) -> 0 | AA101: -20771663.97 | AB101: 28312171.26 | AC101: -27243518.46 | AE101: 158673384 | AF101: 0
A102: 2049 | B102: =IF(MAX($B$65:B101)<(construct+anal_period),B101+1,"") -> 38 | C102: 35 | D102: 35 | E102: 1.896366419 | F102: 319812851 | H102: 0 | I102: =IF(OR(C102<0,C102=""),"",-E102*INDEX('Replacement Costs'!$A$16:$H$57,MATCH(C102,'Replacement Costs'!$C$16:$C$57,0),MATCH("Total Yearly Replacement Costs",'Replacement Costs'!$A$16:$H$16,0))) -> -2594892.938 | J102: =IF(AND(C102>=1,C102<anal_period),WorkingCap*SUM(N102:R102)-WorkingCap*SUM(N101:R101),IF(C102<0,0,IF(B102="","",-SUM(J$65:J101)))) -> -1209525.779 | N102: -25240377.43 | O102: -305849068.5 | P102: -4993578.879 | Q102: 0 | R102: -3074918.762 | S102: =IF(B102="","",IF($B$31=0,"",-'Debt Financing Calculations'!E51)) -> -5741926.196 | T102: -25087018.8 | U102: =IF(C102="","",IF(C102<-1,0,IF(C102=anal_period,-LOOKUP(C102,depr_yr,depr_cost)-Depreciation!$C$141-Depreciation!$B$166,-LOOKUP(C102,depr_yr,depr_cost)))) -> -2197495.719 | V102: -27284514.52 | W102: 0.2574 | X102: 7023034.036 | Y102: -18063984.76 | Z102: =IF(C102="","",IF($B$31=0,"",-'Debt Financing Calculations'!F51)) -> 0 | AA102: -21868403.48 | AB102: 6443767.778 | AC102: -28891437.51 | AE102: 158673384 | AF102: 0
A103: 2050 | B103: =IF(MAX($B$65:B102)<(construct+anal_period),B102+1,"") -> 39 | C103: 36 | D103: 36 | E103: 1.932397381 | F103: 325889295.2 | H103: 0 | I103: =IF(OR(C103<0,C103=""),"",-E103*INDEX('Replacement Costs'!$A$16:$H$57,MATCH(C103,'Replacement Costs'!$C$16:$C$57,0),MATCH("Total Yearly Replacement Costs",'Replacement Costs'!$A$16:$H$16,0))) -> -2644195.904 | J103: =IF(AND(C103>=1,C103<anal_period),WorkingCap*SUM(N103:R103)-WorkingCap*SUM(N102:R102),IF(C103<0,0,IF(B103="","",-SUM(J$65:J102)))) -> -1554007.522 | N103: -25719944.6 | O103: -315576250 | P103: -5088456.878 | Q103: 0 | R103: -3133342.219 | S103: =IF(B103="","",IF($B$31=0,"",-'Debt Financing Calculations'!E52)) -> -5741926.196 | T103: -29370624.78 | U103: =IF(C103="","",IF(C103<-1,0,IF(C103=anal_period,-LOOKUP(C103,depr_yr,depr_cost)-Depreciation!$C$141-Depreciation!$B$166,-LOOKUP(C103,depr_yr,depr_cost)))) -> -2239248.138 | V103: -31609872.91 | W103: 0.2574 | X103: 8136381.288 | Y103: -21234243.49 | Z103: =IF(C103="","",IF($B$31=0,"",-'Debt Financing Calculations'!F52)) -> 0 | AA103: -25432446.91 | AB103: -18988679.14 | AC103: -33568828.2 | AE103: 158673384 | AF103: 0
A104: 2051 | B104: =IF(MAX($B$65:B103)<(construct+anal_period),B103+1,"") -> 40 | C104: 37 | D104: 37 | E104: 1.969112931 | F104: 332081191.8 | H104: 0 | I104: =IF(OR(C104<0,C104=""),"",-E104*INDEX('Replacement Costs'!$A$16:$H$57,MATCH(C104,'Replacement Costs'!$C$16:$C$57,0),MATCH("Total Yearly Replacement Costs",'Replacement Costs'!$A$16:$H$16,0))) -> -2694435.626 | J104: =IF(AND(C104>=1,C104<anal_period),WorkingCap*SUM(N104:R104)-WorkingCap*SUM(N103:R103),IF(C104<0,0,IF(B104="","",-SUM(J$65:J103)))) -> -1262051.124 | N104: -26208623.55 | O104: -323345031.1 | P104: -5185137.559 | Q104: 0 | R104: -3192875.721 | S104: =IF(B104="","",IF($B$31=0,"",-'Debt Financing Calculations'!E53)) -> -5741926.196 | T104: -31592402.33 | U104: =IF(C104="","",IF(C104<-1,0,IF(C104=anal_period,-LOOKUP(C104,depr_yr,depr_cost)-Depreciation!$C$141-Depreciation!$B$166,-LOOKUP(C104,depr_yr,depr_cost)))) -> -2281793.853 | V104: -33874196.18 | W104: 0.2574 | X104: 8719218.098 | Y104: -22873184.23 | Z104: =IF(C104="","",IF($B$31=0,"",-'Debt Financing Calculations'!F53)) -> 0 | AA104: -26829670.98 | AB104: -45818350.12 | AC104: -35548889.08 | AE104: 158673384 | AF104: 0
A105: 2052 | B105: =IF(MAX($B$65:B104)<(construct+anal_period),B104+1,"") -> 41 | C105: 38 | D105: 38 | E105: 2.006526077 | F105: 338390734.4 | H105: 0 | I105: =IF(OR(C105<0,C105=""),"",-E105*INDEX('Replacement Costs'!$A$16:$H$57,MATCH(C105,'Replacement Costs'!$C$16:$C$57,0),MATCH("Total Yearly Replacement Costs",'Replacement Costs'!$A$16:$H$16,0))) -> -2745629.903 | J105: =IF(AND(C105>=1,C105<anal_period),WorkingCap*SUM(N105:R105)-WorkingCap*SUM(N104:R104),IF(C105<0,0,IF(B105="","",-SUM(J$65:J104)))) -> -1292587.059 | N105: -26706587.39 | O105: -331305132 | P105: -5283655.172 | Q105: 0 | R105: -3253540.36 | S105: =IF(B105="","",IF($B$31=0,"",-'Debt Financing Calculations'!E54)) -> -5741926.196 | T105: -33900106.75 | U105: =IF(C105="","",IF(C105<-1,0,IF(C105=anal_period,-LOOKUP(C105,depr_yr,depr_cost)-Depreciation!$C$141-Depreciation!$B$166,-LOOKUP(C105,depr_yr,depr_cost)))) -> -2325147.936 | V105: -36225254.68 | W105: 0.2574 | X105: 9324380.555 | Y105: -24575726.19 | Z105: =IF(C105="","",IF($B$31=0,"",-'Debt Financing Calculations'!F54)) -> 0 | AA105: -28613943.15 | AB105: -74432293.27 | AC105: -37938323.71 | AE105: 158673384 | AF105: 0
A106: 2053 | B106: =IF(MAX($B$65:B105)<(construct+anal_period),B105+1,"") -> 42 | C106: 39 | D106: 39 | E106: 2.044650072 | F106: 344820158.4 | H106: 0 | I106: =IF(OR(C106<0,C106=""),"",-E106*INDEX('Replacement Costs'!$A$16:$H$57,MATCH(C106,'Replacement Costs'!$C$16:$C$57,0),MATCH("Total Yearly Replacement Costs",'Replacement Costs'!$A$16:$H$16,0))) -> -2797796.871 | J106: =IF(AND(C106>=1,C106<anal_period),WorkingCap*SUM(N106:R106)-WorkingCap*SUM(N105:R105),IF(C106<0,0,IF(B106="","",-SUM(J$65:J105)))) -> -1323864.862 | N106: -27214012.55 | O106: -339461265.9 | P106: -5384044.621 | Q106: 0 | R106: -3315357.627 | S106: =IF(B106="","",IF($B$31=0,"",-'Debt Financing Calculations'!E55)) -> -5741926.196 | T106: =IF(C106="","",F106+SUM(L106:S106)) -> -36296448.54 | U106: =IF(C106="","",IF(C106<-1,0,IF(C106=anal_period,-LOOKUP(C106,depr_yr,depr_cost)-Depreciation!$C$141-Depreciation!$B$166,-LOOKUP(C106,depr_yr,depr_cost)))) -> -2369325.746 | V106: -38665774.28 | W106: 0.2574 | X106: 9952570.3 | Y106: -26343878.24 | Z106: =IF(C106="","",IF($B$31=0,"",-'Debt Financing Calculations'!F55)) -> 0 | AA106: -30465539.97 | AB106: -104897833.2 | AC106: =IF(C106="","",SUM(H106,I106,J106,K106,T106,Z106)) -> -40418110.27 | AE106: 158673384 | AF106: 0
A107: 2054 | B107: =IF(MAX($B$65:B106)<(construct+anal_period),B106+1,"") -> 43 | C107: 40 | D107: 40 | E107: 2.083498424 | F107: 351371741.4 | H107: 0 | I107: =IF(OR(C107<0,C107=""),"",-E107*INDEX('Replacement Costs'!$A$16:$H$57,MATCH(C107,'Replacement Costs'!$C$16:$C$57,0),MATCH("Total Yearly Replacement Costs",'Replacement Costs'!$A$16:$H$16,0))) -> -2850955.012 | J107: =IF(AND(C107>=1,C107<anal_period),WorkingCap*SUM(N107:R107)-WorkingCap*SUM(N106:R106),IF(C107<0,0,IF(B107="","",-SUM(J$65:J106)))) -> 56306202.11 | L107: 57998981.59 | M107: -57019100.23 | N107: -27731078.79 | O107: -347818261.8 | P107: -5486341.468 | Q107: 0 | R107: -3378349.421 | S107: =IF(B107="","",IF($B$31=0,"",-'Debt Financing Calculations'!E56)) -> -5741926.196 | T107: -37804334.94 | U107: =IF(C107="","",IF(C107<-1,0,IF(C107=anal_period,-LOOKUP(C107,depr_yr,depr_cost)-Depreciation!$C$141-Depreciation!$B$166,-LOOKUP(C107,depr_yr,depr_cost)))) -> -25830537.96 | V107: -63634872.9 | W107: 0.2574 | X107: 16379616.28 | Y107: -21424718.66 | Z107: =IF(C107="","",IF($B$31=0,"",-'Debt Financing Calculations'!F56)) -> -155187194.5 | AA107: -123156666.1 | AB107: -228054499.3 | AC107: -139536282.3 | AE107: 158673384 | AF107: 0
B108: =IF(MAX($B$65:B107)<(construct+anal_period),B107+1,"") ->  | I108: =IF(OR(C108<0,C108=""),"",-E108*INDEX('Replacement Costs'!$A$16:$H$57,MATCH(C108,'Replacement Costs'!$C$16:$C$57,0),MATCH("Total Yearly Replacement Costs",'Replacement Costs'!$A$16:$H$16,0))) ->  | J108: =IF(AND(C108>=1,C108<anal_period),WorkingCap*SUM(N108:R108)-WorkingCap*SUM(N107:R107),IF(C108<0,0,IF(B108="","",-SUM(J$65:J107)))) ->  | S108: =IF(B108="","",IF($B$31=0,"",-'Debt Financing Calculations'!E57)) ->  | U108: =IF(C108="","",IF(C108<-1,0,IF(C108=anal_period,-LOOKUP(C108,depr_yr,depr_cost)-Depreciation!$C$141-Depreciation!$B$166,-LOOKUP(C108,depr_yr,depr_cost)))) ->  | Z108: =IF(C108="","",IF($B$31=0,"",-'Debt Financing Calculations'!F57)) -> 
B109: =IF(MAX($B$65:B108)<(construct+anal_period),B108+1,"") ->  | I109: =IF(OR(C109<0,C109=""),"",-E109*INDEX('Replacement Costs'!$A$16:$H$57,MATCH(C109,'Replacement Costs'!$C$16:$C$57,0),MATCH("Total Yearly Replacement Costs",'Replacement Costs'!$A$16:$H$16,0))) ->  | J109: =IF(AND(C109>=1,C109<anal_period),WorkingCap*SUM(N109:R109)-WorkingCap*SUM(N108:R108),IF(C109<0,0,IF(B109="","",-SUM(J$65:J108)))) ->  | S109: =IF(B109="","",IF($B$31=0,"",-'Debt Financing Calculations'!E58)) ->  | U109: =IF(C109="","",IF(C109<-1,0,IF(C109=anal_period,-LOOKUP(C109,depr_yr,depr_cost)-Depreciation!$C$141-Depreciation!$B$166,-LOOKUP(C109,depr_yr,depr_cost)))) ->  | Z109: =IF(C109="","",IF($B$31=0,"",-'Debt Financing Calculations'!F58)) -> 
B110: =IF(MAX($B$65:B109)<(construct+anal_period),B109+1,"") ->  | I110: =IF(OR(C110<0,C110=""),"",-E110*INDEX('Replacement Costs'!$A$16:$H$57,MATCH(C110,'Replacement Costs'!$C$16:$C$57,0),MATCH("Total Yearly Replacement Costs",'Replacement Costs'!$A$16:$H$16,0))) ->  | J110: =IF(AND(C110>=1,C110<anal_period),WorkingCap*SUM(N110:R110)-WorkingCap*SUM(N109:R109),IF(C110<0,0,IF(B110="","",-SUM(J$65:J109)))) ->  | O110: =IF(C110="","",IF(C110<0,0,IF(AND(C110=1,start_time<1),-(SUM(B185:E185)*output_kgyear*E110*percnt_var*start_time+SUM(B185:E185)*output_kgyear*E110*(1-start_time)),IF(C110<=start_time,-SUM(B185:E185)*output_kgyear*E110*percnt_var,-SUM(B185:E185)*output_kgyear*E110)))) ->  | Q110: =IF(C110="","",IF(C110<0,0,IF(AND(C110=1,start_time<1),SUM(K185:N185,T185:V185)*output_kgyear*E110*percnt_revs*start_time+SUM(K185:N185,T185:V185)*output_kgyear*E110*(1-start_time),IF(C110<=start_time,SUM(K185:N185,T185:V185)*output_kgyear*E110*percnt_revs,SUM(K185:N185,T185:V185)*output_kgyear*E110)))) ->  | R110: =IF(C110="","",IF(C110<0,0,IF(AND(C110=1,start_time<1),-((SUM(F185:J185,P185:R185)*output_kgyear+inflated_othervar)*E110*percnt_var*start_time+(SUM(F185:J185,P185:R185)*output_kgyear+inflated_othervar)*E110*(1-start_time)),IF(C110<=start_time,-(SUM(F185:J185,P185:R185)*output_kgyear+inflated_othervar)*E110*percnt_var,-E110*(SUM(F185:J185,P185:R185)*output_kgyear+inflated_othervar))))) ->  | S110: =IF(B110="","",IF($B$31=0,"",-'Debt Financing Calculations'!E59)) ->  | U110: =IF(C110="","",IF(C110<-1,0,IF(C110=anal_period,-LOOKUP(C110,depr_yr,depr_cost)-Depreciation!$C$141-Depreciation!$B$166,-LOOKUP(C110,depr_yr,depr_cost)))) ->  | Z110: =IF(C110="","",IF($B$31=0,"",-'Debt Financing Calculations'!F59)) -> 
B111: =IF(MAX($B$65:B110)<(construct+anal_period),B110+1,"") ->  | I111: =IF(OR(C111<0,C111=""),"",-E111*INDEX('Replacement Costs'!$A$16:$H$57,MATCH(C111,'Replacement Costs'!$C$16:$C$57,0),MATCH("Total Yearly Replacement Costs",'Replacement Costs'!$A$16:$H$16,0))) ->  | J111: =IF(AND(C111>=1,C111<anal_period),WorkingCap*SUM(N111:R111)-WorkingCap*SUM(N110:R110),IF(C111<0,0,IF(B111="","",-SUM(J$65:J110)))) ->  | O111: =IF(C111="","",IF(C111<0,0,IF(AND(C111=1,start_time<1),-(SUM(B278:E278)*output_kgyear*E111*percnt_var*start_time+SUM(B278:E278)*output_kgyear*E111*(1-start_time)),IF(C111<=start_time,-SUM(B278:E278)*output_kgyear*E111*percnt_var,-SUM(B278:E278)*output_kgyear*E111)))) ->  | Q111: =IF(C111="","",IF(C111<0,0,IF(AND(C111=1,start_time<1),SUM(K278:N278,T278:V278)*output_kgyear*E111*percnt_revs*start_time+SUM(K278:N278,T278:V278)*output_kgyear*E111*(1-start_time),IF(C111<=start_time,SUM(K278:N278,T278:V278)*output_kgyear*E111*percnt_revs,SUM(K278:N278,T278:V278)*output_kgyear*E111)))) ->  | R111: =IF(C111="","",IF(C111<0,0,IF(AND(C111=1,start_time<1),-((SUM(F278:J278,P278:R278)*output_kgyear+inflated_othervar)*E111*percnt_var*start_time+(SUM(F278:J278,P278:R278)*output_kgyear+inflated_othervar)*E111*(1-start_time)),IF(C111<=start_time,-(SUM(F278:J278,P278:R278)*output_kgyear+inflated_othervar)*E111*percnt_var,-E111*(SUM(F278:J278,P278:R278)*output_kgyear+inflated_othervar))))) ->  | S111: =IF(B111="","",IF($B$31=0,"",-'Debt Financing Calculations'!E60)) ->  | U111: =IF(C111="","",IF(C111<-1,0,IF(C111=anal_period,-LOOKUP(C111,depr_yr,depr_cost)-Depreciation!$C$141-Depreciation!$B$166,-LOOKUP(C111,depr_yr,depr_cost)))) ->  | Z111: =IF(C111="","",IF($B$31=0,"",-'Debt Financing Calculations'!F60)) -> 
B112: =IF(MAX($B$65:B111)<(construct+anal_period),B111+1,"") ->  | I112: =IF(OR(C112<0,C112=""),"",-E112*INDEX('Replacement Costs'!$A$16:$H$57,MATCH(C112,'Replacement Costs'!$C$16:$C$57,0),MATCH("Total Yearly Replacement Costs",'Replacement Costs'!$A$16:$H$16,0))) ->  | J112: =IF(AND(C112>=1,C112<anal_period),WorkingCap*SUM(N112:R112)-WorkingCap*SUM(N111:R111),IF(C112<0,0,IF(B112="","",-SUM(J$65:J111)))) ->  | O112: =IF(C112="","",IF(C112<0,0,IF(AND(C112=1,start_time<1),-(SUM(B279:E279)*output_kgyear*E112*percnt_var*start_time+SUM(B279:E279)*output_kgyear*E112*(1-start_time)),IF(C112<=start_time,-SUM(B279:E279)*output_kgyear*E112*percnt_var,-SUM(B279:E279)*output_kgyear*E112)))) ->  | Q112: =IF(C112="","",IF(C112<0,0,IF(AND(C112=1,start_time<1),SUM(K279:N279,T279:V279)*output_kgyear*E112*percnt_revs*start_time+SUM(K279:N279,T279:V279)*output_kgyear*E112*(1-start_time),IF(C112<=start_time,SUM(K279:N279,T279:V279)*output_kgyear*E112*percnt_revs,SUM(K279:N279,T279:V279)*output_kgyear*E112)))) ->  | R112: =IF(C112="","",IF(C112<0,0,IF(AND(C112=1,start_time<1),-((SUM(F279:J279,P279:R279)*output_kgyear+inflated_othervar)*E112*percnt_var*start_time+(SUM(F279:J279,P279:R279)*output_kgyear+inflated_othervar)*E112*(1-start_time)),IF(C112<=start_time,-(SUM(F279:J279,P279:R279)*output_kgyear+inflated_othervar)*E112*percnt_var,-E112*(SUM(F279:J279,P279:R279)*output_kgyear+inflated_othervar))))) ->  | S112: =IF(B112="","",IF($B$31=0,"",-'Debt Financing Calculations'!E61)) ->  | U112: =IF(C112="","",IF(C112<-1,0,IF(C112=anal_period,-LOOKUP(C112,depr_yr,depr_cost)-Depreciation!$C$141-Depreciation!$B$166,-LOOKUP(C112,depr_yr,depr_cost)))) ->  | Z112: =IF(C112="","",IF($B$31=0,"",-'Debt Financing Calculations'!F61)) -> 
B113: =IF(MAX($B$65:B112)<(construct+anal_period),B112+1,"") ->  | I113: =IF(OR(C113<0,C113=""),"",-E113*INDEX('Replacement Costs'!$A$16:$H$57,MATCH(C113,'Replacement Costs'!$C$16:$C$57,0),MATCH("Total Yearly Replacement Costs",'Replacement Costs'!$A$16:$H$16,0))) ->  | J113: =IF(AND(C113>=1,C113<anal_period),WorkingCap*SUM(N113:R113)-WorkingCap*SUM(N112:R112),IF(C113<0,0,IF(B113="","",-SUM(J$65:J112)))) ->  | O113: =IF(C113="","",IF(C113<0,0,IF(AND(C113=1,start_time<1),-(SUM(B280:E280)*output_kgyear*E113*percnt_var*start_time+SUM(B280:E280)*output_kgyear*E113*(1-start_time)),IF(C113<=start_time,-SUM(B280:E280)*output_kgyear*E113*percnt_var,-SUM(B280:E280)*output_kgyear*E113)))) ->  | Q113: =IF(C113="","",IF(C113<0,0,IF(AND(C113=1,start_time<1),SUM(K280:N280,T280:V280)*output_kgyear*E113*percnt_revs*start_time+SUM(K280:N280,T280:V280)*output_kgyear*E113*(1-start_time),IF(C113<=start_time,SUM(K280:N280,T280:V280)*output_kgyear*E113*percnt_revs,SUM(K280:N280,T280:V280)*output_kgyear*E113)))) ->  | R113: =IF(C113="","",IF(C113<0,0,IF(AND(C113=1,start_time<1),-((SUM(F280:J280,P280:R280)*output_kgyear+inflated_othervar)*E113*percnt_var*start_time+(SUM(F280:J280,P280:R280)*output_kgyear+inflated_othervar)*E113*(1-start_time)),IF(C113<=start_time,-(SUM(F280:J280,P280:R280)*output_kgyear+inflated_othervar)*E113*percnt_var,-E113*(SUM(F280:J280,P280:R280)*output_kgyear+inflated_othervar))))) ->  | S113: =IF(B113="","",IF($B$31=0,"",-'Debt Financing Calculations'!E62)) ->  | U113: =IF(C113="","",IF(C113<-1,0,IF(C113=anal_period,-LOOKUP(C113,depr_yr,depr_cost)-Depreciation!$C$141-Depreciation!$B$166,-LOOKUP(C113,depr_yr,depr_cost)))) ->  | Z113: =IF(C113="","",IF($B$31=0,"",-'Debt Financing Calculations'!F62)) -> 
E114: Cumulative Total | F114: =SUM(F65:F113) -> 9968564875 | G114: -155187194.5 | H114: -103458129.7 | I114: -80882799.16 | J114: 0 | K114: -4444856.73 | L114: 57998981.59 | M114: -57019100.23 | N114: -786742430.9 | O114: -8645993560 | P114: -155649827.3 | Q114: 0 | R114: -95845201.57 | S114: -246902826.4 | T114: 38410910.05 | U114: -339528123.3 | V114: -301117213.3 | W114: 11.0682 | X114: 77507570.69 | Y114: 115918480.7 | Z114: -155187194.5 | AA114: -228054499.3 | AB114: 1991144993 | AC114: -305562070
E115: PV of Cash Flow | F115: =NPV(nominal_irr,F65:F113) -> 1480641636 | G115: -141012607.2 | H115: -94008404.81 | I115: -12013608.94 | J115: -17466054.25 | K115: -4038869.562 | L115: 943428.452 | M115: -927489.4143 | N115: -116855697.4 | O115: -1126862870 | P115: -23118835.85 | Q115: 0 | R115: -14235990.62 | S115: -56193059.49 | T115: 143391122 | U115: -91565698.41 | V115: 51825423.64 | W115: 2.519031596 | X115: -13339864.04 | Y115: 130051258 | Z115: -2524320.439 | AA115: 6.922380929e-07 | AB115: 36904112.6 | AC115: 13339864.04
E116: Discounted Values | F116: =+F65+NPV($X$59,F66:F113) -> 1629475734 | G116: -155187194.5 | H116: =+H65+NPV($X$59,H66:H113) -> -103458129.7 | I116: -13221216.91 | J116: -19221742.03 | K116: -4444856.73 | L116: 1038261.88 | M116: -1020720.65 | N116: -128602032.1 | O116: -1240135126 | P116: -25442741.22 | Q116: 0 | R116: -15666992.4 | S116: -61841585.83 | T116: 157804797.6 | U116: -100769882.4 | V116: 57034915.22 | W116: 2.772244653 | X116: -14680787.18 | Y116: 143124010.5 | Z116: -2778065.129 | AA116: 7.450580597e-07 | AB116: 40613714 | AC116: 14680787.18 | AE116: =+AE65+NPV(real_irr,AE66:AE113) -> 1622186857 | AF116: =+AF65+NPV($X$59,AF66:AF113) -> 0
A117: Specific Item Cost Calculation | E117: Expenses $/kg H2 | H117: =-H116/$AE$116*(1+inflation_rate)^construct/INFLATION_FACTOR -> 0.06876389688 | I117: =-I116/$AE$116*(1+inflation_rate)^construct/INFLATION_FACTOR -> 0.008787539455 | J117: =-J116/$AE$116*(1+inflation_rate)^construct/INFLATION_FACTOR -> 0.01277581463 | K117: =-K116/$AE$116*(1+inflation_rate)^construct/INFLATION_FACTOR -> 0.002954293402 | M117: =-M116/$AE$116*(1+inflation_rate)^construct/INFLATION_FACTOR -> 0.0006784264298 | N117: =-N116/$AE$116*(1+inflation_rate)^construct/INFLATION_FACTOR -> 0.08547590124 | O117: =-O116/$AE$116*(1+inflation_rate)^construct/INFLATION_FACTOR -> 0.8242612174 | P117: =-P116/$AE$116*(1+inflation_rate)^construct/INFLATION_FACTOR -> 0.01691062887 | R117: =-R116/$AE$116*(1+inflation_rate)^construct/INFLATION_FACTOR -> 0.0104131348 | S117: =-S116/$AE$116*(1+inflation_rate)^construct/INFLATION_FACTOR -> 0.0411032796 | X117: =-X116/$AE$116*(1+inflation_rate)^construct/INFLATION_FACTOR -> 0.009757649195 | Z117: =-Z116/$AE$116*(1+inflation_rate)^construct/INFLATION_FACTOR -> 0.001846453099 | AG117: =+SUM(F117:AC117) -> 1.083728235
A118: Cost Component | B118: After Tax Present Value | C118: % of Total | D118: $/kg of H2 | E118: Revenues $/kg H2 | F118: =F116/$AE$116*(1+inflation_rate)^construct/INFLATION_FACTOR -> 1.08303815 | L118: =L116/$AE$116*(1+inflation_rate)^construct/INFLATION_FACTOR -> 0.0006900852846 | Q118: =Q116/$AE$116*(1+inflation_rate)^construct/INFLATION_FACTOR -> 0 | AG118: =+SUM(F118:AC118) -> 1.083728235
A119: Capital-Related Costs | B119: =(SUM(H115:K115)+L115*(1-total_tax_rate)+S115*(1-total_tax_rate)+U115*(-total_tax_rate)+Z115)/(1-total_tax_rate) -> -198640753.1 | C119: =B119/SUM($B$118:$B$125) -> 0.1341585622 | D119: =H2_price_real*C119 -> 0.145298841
A120: Decommissioning Costs | B120: =M115 -> -927489.4143 | C120: 0.0006264104639 | D120: 0.0006784264298
A121: Fixed O&M | B121: =N115 -> -116855697.4 | C121: 0.07892233645 | D121: 0.08547590124
A122: Feedstock Costs | B122: =O115 -> -1126862870 | C122: 0.7610638809 | D122: 0.8242612174
A123: Other Raw Material Costs | B123: =P115 -> -23118835.85 | C123: 0.01561406574 | D123: 0.01691062887
A124: Byproduct Credits | B124: =Q115 -> 0 | C124: 0 | D124: 0
A125: Other Variable Costs (including utilities) | B125: =R115 -> -14235990.62 | C125: 0.009614744226 | D125: 0.0104131348
A128: INFLATION FACTOR (1 + inflation rate)^(startup year - reference year) = | B128: =(1+inflation_rate)^(startup_year-ref_year) -> 0.9813542689
A129: Feedstock, Utility and Byproduct Cost Information (Start-Up Year $)
B130: Energy Feedstocks | F130: Energy Utilities | J130: Carbon Sequestration Electricity Usage | K130: Energy Byproducts | O130: Other Material Inputs | S130: Other Material Byproducts
A131: Feedstock Name | B131: =Input_Sheet_Template!$B$75 -> Industrial Electricity | C131: =Input_Sheet_Template!$B$77 -> Industrial Natural Gas | J131: =IF(CO2_CashFlow_eUse>0,'HyARC Physical Property Data'!A77,"") ->  | O131: Type | P131: =Input_Sheet_Template!$B$138 -> Process Water | S131: Type
A132: LHV (GJ or mmBtu/usage unit) | B132: =Input_Sheet_Template!$C$75 -> 0.0036 | C132: =Input_Sheet_Template!$C$77 -> 1.055 | J132: =IF(J131="",0,VLOOKUP(J131,MASTER_PROPERTY_TABLE,9,FALSE)) -> 0 | O132: Usage (/kg H2) | P132: =Input_Sheet_Template!$D$138 -> 4.343635099 | S132: Usage (/kg H2)
A133: Usage (/kg H2) | B133: =feedstockIndustrial_Electricity_Usage -> 0.1311736063 | C133: =feedstockIndustrial_Natural_Gas_Usage -> 0.1577574277 | J133: =CO2_eUse_kWhpkg -> 0 | O133: Cost (/usage unit) | P133: =Input_Sheet_Template!$C$138 -> 0.002374951095 | S133: Price (/usage unit)
A134: Price ($/ usage unit) | B134: =feedstockIndustrial_Electricity_Price -> 0.06998061126 | C134: =feedstockIndustrial_Natural_Gas_Price -> 3.733674814 | J134: =IF(J131="",0,CO2_eCost) -> 0 | O134: Lookup Price? | P134: =Input_Sheet_Template!$F$138 -> Yes | S134: Lookup Price?
A135: Lookup Price? | B135: =Input_Sheet_Template!$G$75 -> yes | C135: =Input_Sheet_Template!$G$77 -> yes | J135: =IF(J131="","","yes") -> 
A136: CO2 Emissions (kg CO2/kg H2) | B136: =IF(B131="",0,VLOOKUP(B131,MASTER_PROPERTY_TABLE,11,FALSE)*B132*B133) -> 0 | C136: =IF(C131="",0,VLOOKUP(C131,MASTER_PROPERTY_TABLE,11,FALSE)*C132*C133) -> 9.372791925 | D136: =IF(D131="",0,VLOOKUP(D131,MASTER_PROPERTY_TABLE,11,FALSE)*D132*D133) -> 0 | E136: =IF(E131="",0,VLOOKUP(E131,MASTER_PROPERTY_TABLE,11,FALSE)*E132*E133) -> 0 | F136: =IF(F131="",,VLOOKUP(F131,MASTER_PROPERTY_TABLE,11,FALSE)*F132*F133) -> 0 | G136: =IF(G131="",,VLOOKUP(G131,MASTER_PROPERTY_TABLE,11,FALSE)*G132*G133) -> 0 | H136: =IF(H131="",,VLOOKUP(H131,MASTER_PROPERTY_TABLE,11,FALSE)*H132*H133) -> 0 | I136: =IF(I131="",,VLOOKUP(I131,MASTER_PROPERTY_TABLE,11,FALSE)*I132*I133) -> 0 | J136: =IF($J$131="",0,VLOOKUP($J$131,MASTER_PROPERTY_TABLE,12,FALSE)*$J$132*$J$133) -> 0
A137: Unit System Conversion Factor | B137: =IF(B131="",0,IF(VLOOKUP(B131,MASTER_PROPERTY_TABLE,12,FALSE)="English",mmBTU_to_GJ,1)) -> 1 | C137: =IF(C131="",0,IF(VLOOKUP(C131,MASTER_PROPERTY_TABLE,12,FALSE)="English",mmBTU_to_GJ,1)) -> 1 | D137: =IF(D131="",0,IF(VLOOKUP(D131,MASTER_PROPERTY_TABLE,12,FALSE)="English",mmBTU_to_GJ,1)) -> 0 | E137: =IF(E131="",,IF(VLOOKUP(E131,MASTER_PROPERTY_TABLE,12,FALSE)="English",mmBTU_to_GJ,1)) -> 0 | F137: =IF(F131="",,IF(VLOOKUP(F131,MASTER_PROPERTY_TABLE,12,FALSE)="English",mmBTU_to_GJ,1)) -> 0 | G137: =IF(G131="",,IF(VLOOKUP(G131,MASTER_PROPERTY_TABLE,12,FALSE)="English",mmBTU_to_GJ,1)) -> 0 | H137: =IF(H131="",,IF(VLOOKUP(H131,MASTER_PROPERTY_TABLE,12,FALSE)="English",mmBTU_to_GJ,1)) -> 0 | I137: =IF(I131="",,IF(VLOOKUP(I131,MASTER_PROPERTY_TABLE,12,FALSE)="English",mmBTU_to_GJ,1)) -> 0 | J137: =IF($J$131="",0,IF(VLOOKUP($J$131,MASTER_PROPERTY_TABLE,12,FALSE)="English",mmBTU_to_GJ,1)) -> 0 | K137: =IF(K131="",,IF(VLOOKUP(K131,MASTER_PROPERTY_TABLE,12,FALSE)="English",mmBTU_to_GJ,1)) -> 0 | L137: =IF(L131="",,IF(VLOOKUP(L131,MASTER_PROPERTY_TABLE,12,FALSE)="English",mmBTU_to_GJ,1)) -> 0 | M137: =IF(M131="",,IF(VLOOKUP(M131,MASTER_PROPERTY_TABLE,12,FALSE)="English",mmBTU_to_GJ,1)) -> 0 | N137: =IF(N131="",,IF(VLOOKUP(N131,MASTER_PROPERTY_TABLE,12,FALSE)="English",mmBTU_to_GJ,1)) -> 0
A138: Actual Year | B138: =IF(B$131="","",B$131&" ($/kg of H2)") -> Industrial Electricity ($/kg of H2) | C138: Industrial Natural Gas ($/kg of H2) | P138: =IF(P$131="","",P$131&" ($/kg of H2)") -> Process Water ($/kg of H2) | Q138: =IF(Q$131="","",Q$131&" ($/kg of H2)") ->  | R138: =IF(R$131="","",R$131&" ($/kg of H2)") ->  | T138: =IF(T$131="","",T$131&" ($/kg of H2)") ->  | U138: =IF(U$131="","",U$131&" ($/kg of H2)") ->  | V138: =IF(V$131="","",V$131&" ($/kg of H2)") -> 
A139: =IF(A65="","",A65) -> 2012 | B139: =IF($A139="","",IF($B$131="","",IF($B$135="no",INFLATION_FACTOR*$B$133*$B$134,INFLATION_FACTOR*$B$133*$B$132*INDEX(FEEDPRICETABLE,MATCH($B$131,List_Energy_Feedstocks,0),MATCH($A139,Feedstock_Year,0))))) -> 0.009092023577 | C139: =IF($A139="","",IF($C$131="","",IF($C$135="no",INFLATION_FACTOR*$C$133*$C$134,INFLATION_FACTOR*$C$133*$C$132*INDEX(FEEDPRICETABLE,MATCH($C$131,List_Energy_Feedstocks,0),MATCH($A139,Feedstock_Year,0))))) -> 0.6793012965 | D139: =IF($A139="","",IF($D$131="","",IF($D$135="no",INFLATION_FACTOR*$D$133*$D$134,INFLATION_FACTOR*$D$133*$D$132*INDEX(FEEDPRICETABLE,MATCH($D$131,List_Energy_Feedstocks,0),MATCH($A139,Feedstock_Year,0))))) ->  | E139: =IF($A139="","",IF($E$131="","",IF($E$135="no",INFLATION_FACTOR*$E$133*$E$134,INFLATION_FACTOR*$E$133*$E$132*INDEX(FEEDPRICETABLE,MATCH($E$131,List_Energy_Feedstocks,0),MATCH($A139,Feedstock_Year,0))))) ->  | F139: =IF($A139="","",IF($F$131="","",IF($F$135="no",INFLATION_FACTOR*$F$133*$F$134,INFLATION_FACTOR*$F$133*$F$132*INDEX(FEEDPRICETABLE,MATCH($F$131,List_Energy_Feedstocks,0),MATCH($A139,Feedstock_Year,0))))) ->  | G139: =IF($A139="","",IF($G$131="","",IF($G$135="no",INFLATION_FACTOR*$G$133*$G$134,INFLATION_FACTOR*$G$133*$G$132*INDEX(FEEDPRICETABLE,MATCH($G$131,List_Energy_Feedstocks,0),MATCH($A139,Feedstock_Year,0))))) ->  | H139: =IF($A139="","",IF($H$131="","",IF($H$135="no",INFLATION_FACTOR*$H$133*$H$134,INFLATION_FACTOR*$H$133*$H$132*INDEX(FEEDPRICETABLE,MATCH(H$131,List_Energy_Feedstocks,0),MATCH($A139,Feedstock_Year,0))))) ->  | I139: =IF($A139="","",IF($I$131="","",IF($I$135="no",INFLATION_FACTOR*$I$133*$I$134,INFLATION_FACTOR*$I$133*$I$132*INDEX(FEEDPRICETABLE,MATCH($I$131,List_Energy_Feedstocks,0),MATCH($A139,Feedstock_Year,0))))) ->  | J139: =IF($A139="","",IF($J$131="","",IF($J$135="no",INFLATION_FACTOR*$J$133*$J$134,INFLATION_FACTOR*$J$133*$J$132*INDEX(FEEDPRICETABLE,MATCH($J$131,List_Energy_Feedstocks,0),MATCH($A139,Feedstock_Year,0))))) ->  | K139: =IF($A139="","",IF($K$131="","",IF($K$135="no",INFLATION_FACTOR*$K$133*$K$134,INFLATION_FACTOR*$K$133*$K$132*INDEX(FEEDPRICETABLE,MATCH($K$131,List_Energy_Feedstocks,0),MATCH($A139,Feedstock_Year,0))))) ->  | L139: =IF($A139="","",IF($L$131="","",IF($L$135="no",INFLATION_FACTOR*$L$133*$L$134,INFLATION_FACTOR*$L$133*$L$132*INDEX(FEEDPRICETABLE,MATCH($L$131,List_Energy_Feedstocks,0),MATCH($A139,Feedstock_Year,0))))) ->  | M139: =IF($A139="","",IF(M$131="","",IF($M$135="no",INFLATION_FACTOR*$M$133*$M$134,INFLATION_FACTOR*$M$133*$M$132*INDEX(FEEDPRICETABLE,MATCH($M$131,List_Energy_Feedstocks,0),MATCH($A139,Feedstock_Year,0))))) ->  | N139: =IF($A139="","",IF($N$131="","",IF($N$135="no",INFLATION_FACTOR*$N$133*$N$134,INFLATION_FACTOR*$N$133*$N$132*INDEX(FEEDPRICETABLE,MATCH($N$131,List_Energy_Feedstocks,0),MATCH($A139,Feedstock_Year,0))))) ->  | P139: =IF(OR($A139="",$P$131=""),"",IF($P$134="No",INFLATION_FACTOR*$P$132*$P$133,INFLATION_FACTOR*$P$132*INDEX(Tbl_Other_Inputs_and_Byproducts,MATCH($P$131,Other_Inputs_List,0),MATCH($A139,Other_Inputs_years,0)))) -> 0.01012357304 | Q139: =IF(OR($A139="",$Q$131=""),"",IF($Q$134="No",INFLATION_FACTOR*$Q$132*$Q$133,INFLATION_FACTOR*$Q$132*INDEX(Tbl_Other_Inputs_and_Byproducts,MATCH($Q$131,Other_Inputs_List,0),MATCH($A139,Other_Inputs_years,0)))) ->  | R139: =IF(OR($A139="",$R$131=""),"",IF($R$134="No",INFLATION_FACTOR*$R$132*$R$133,INFLATION_FACTOR*$R$132*INDEX(Tbl_Other_Inputs_and_Byproducts,MATCH($R$131,Other_Inputs_List,0),MATCH($A139,Other_Inputs_years,0)))) ->  | T139: =IF(OR($A139="",$T$131=""),"",IF($T$134="No",INFLATION_FACTOR*$T$132*$T$133,INFLATION_FACTOR*$T$132*INDEX(Tbl_Other_Inputs_and_Byproducts,MATCH($T$131,Other_Inputs_List,0),MATCH($A139,Other_Inputs_years,0)))) ->  | U139: =IF(OR($A139="",$U$131=""),"",IF($U$134="No",INFLATION_FACTOR*$U$132*$U$133,INFLATION_FACTOR*$U$132*INDEX(Tbl_Other_Inputs_and_Byproducts,MATCH($U$131,Other_Inputs_List,0),MATCH($A139,Other_Inputs_years,0)))) ->  | V139: =IF(OR($A139="",$V$131=""),"",IF($V$134="No",INFLATION_FACTOR*$V$132*$V$133,INFLATION_FACTOR*$V$132*INDEX(Tbl_Other_Inputs_and_Byproducts,MATCH($V$131,Other_Inputs_List,0),MATCH($A139,Other_Inputs_years,0)))) -> 
A140: 2013 | B140: =IF($A140="","",IF($B$131="","",IF($B$135="no",INFLATION_FACTOR*$B$133*$B$134,INFLATION_FACTOR*$B$133*$B$132*INDEX(FEEDPRICETABLE,MATCH($B$131,List_Energy_Feedstocks,0),MATCH($A140,Feedstock_Year,0))))) -> 0.009242831074 | C140: 0.7994655846 | F140: =IF($A140="","",IF($F$131="","",IF($F$135="no",INFLATION_FACTOR*$F$133*$F$134,INFLATION_FACTOR*$F$133*$F$132*INDEX(FEEDPRICETABLE,MATCH($F$131,List_Energy_Feedstocks,0),MATCH($A140,Feedstock_Year,0))))) ->  | P140: =IF(OR($A140="",$P$131=""),"",IF($P$134="No",INFLATION_FACTOR*$P$132*$P$133,INFLATION_FACTOR*$P$132*INDEX(Tbl_Other_Inputs_and_Byproducts,MATCH($P$131,Other_Inputs_List,0),MATCH($A140,Other_Inputs_years,0)))) -> 0.01012357304 | Q140: =IF(OR($A140="",$Q$131=""),"",IF($Q$134="No",INFLATION_FACTOR*$Q$132*$Q$133,INFLATION_FACTOR*$Q$132*INDEX(Tbl_Other_Inputs_and_Byproducts,MATCH($Q$131,Other_Inputs_List,0),MATCH($A140,Other_Inputs_years,0)))) -> 
A141: 2014 | B141: 0.009356766998 | C141: 0.9512611937 | P141: 0.01012357304
A142: 2015 | B142: 0.009008448624 | C142: 0.5780323204 | P142: 0.01012357304
A143: 2016 | B143: 0.008701995389 | C143: 0.5417421427 | P143: 0.01012357304
A144: 2017 | B144: 0.009054065401 | C144: 0.6318708806 | P144: 0.01012357304
A145: 2018 | B145: 0.008848860738 | C145: 0.6909586606 | P145: 0.01012357304
A146: 2019 | B146: 0.008962950883 | C146: 0.7574450105 | P146: 0.01012357304
A147: 2020 | B147: 0.009129710858 | C147: 0.8231672296 | P147: 0.01012357304
A148: 2021 | B148: 0.00917999431 | C148: 0.8240401902 | P148: 0.01012357304
A149: 2022 | B149: 0.009476303388 | C149: 0.8149305307 | P149: 0.01012357304
A150: 2023 | B150: 0.00950633756 | C150: 0.8167970472 | P150: 0.01012357304
A151: 2024 | B151: 0.009481277312 | C151: 0.8308054419 | P151: 0.01012357304
A152: 2025 | B152: 0.009708937545 | C152: 0.8490840524 | P152: 0.01012357304
A153: 2026 | B153: 0.009807535788 | C153: 0.8679846802 | P153: 0.01012357304
A154: 2027 | B154: 0.009864044113 | C154: 0.8831258029 | P154: 0.01012357304
A155: 2028 | B155: 0.00992813587 | C155: 0.8981370419 | P155: 0.01012357304
A156: 2029 | B156: 0.009978490479 | C156: 0.9107501547 | P156: 0.01012357304
A157: 2030 | B157: 0.01001347354 | C157: 0.9139008012 | P157: 0.01012357304
A158: 2031 | B158: 0.01002615915 | C158: 0.9178230092 | P158: 0.01012357304
A159: 2032 | B159: 0.01000328455 | C159: 0.9155230311 | P159: 0.01012357304
A160: 2033 | B160: 0.009967528872 | C160: 0.9064308648 | P160: 0.01012357304
A161: 2034 | B161: 0.00993856029 | C161: 0.9061997369 | P161: 0.01012357304
A162: 2035 | B162: 0.009973703231 | C162: 0.9202794979 | P162: 0.01012357304
A163: 2036 | B163: 0.01000996667 | C163: 0.9208908336 | P163: 0.01012357304
A164: 2037 | B164: 0.01000239817 | C164: 0.9225766895 | P164: 0.01012357304
A165: 2038 | B165: 0.01000461983 | C165: 0.9216777212 | P165: 0.01012357304
A166: 2039 | B166: 0.01001236271 | C166: 0.9251773042 | P166: 0.01012357304
A167: 2040 | B167: 0.009988886349 | C167: 0.9181690045 | P167: 0.01012357304
A168: 2041 | B168: 0.009959509716 | C168: 0.918911617 | P168: 0.01012357304
A169: 2042 | B169: 0.009971061219 | C169: 0.927759342 | P169: 0.01012357304
A170: 2043 | B170: 0.0100014907 | C170: 0.9413019202 | P170: 0.01012357304
A171: 2044 | B171: 0.01003917507 | C171: 0.9505838808 | P171: 0.01012357304
A172: 2045 | B172: 0.01007584788 | C172: 0.9627900041 | P172: 0.01012357304
A173: 2046 | B173: 0.01011313342 | C173: 0.9721211935 | P173: 0.01012357304
A174: 2047 | B174: 0.01014659232 | C174: 0.9823561503 | P174: 0.01012357304
A175: 2048 | B175: 0.01018422882 | C175: 1.000362299 | P175: 0.01012357304
A176: 2049 | B176: 0.01021683692 | C176: 1.006220997 | P176: 0.01012357304
A177: 2050 | B177: 0.01024844971 | C177: 1.018961052 | P177: 0.01012357304
A178: 2051 | B178: 0.0102577446 | C178: 1.024625804 | P178: 0.01012357304
A179: 2052 | B179: 0.01026704791 | C179: 1.030322049 | P179: 0.01012357304
A180: 2053 | B180: 0.01027635967 | C180: 1.036049961 | P180: 0.01012357304
A181: 2054 | B181: 0.01028567987 | C181: 1.041809716 | P181: 0.01012357304
A184: Tables to calculate equivalent price in startup year
A185: Actual Year | B185: =IF(B$131="","",B$131&" ($/year)") -> Industrial Electricity ($/year) | C185: =IF(C$131="","",C$131&" ($/year)") -> Industrial Natural Gas ($/year)
A186: =+A139 -> 2012 | B186: =IF($C65="","",IF($C65<0,0,IF(AND($C65=1,start_time<1),-(SUM(B139)*output_kgyear*$E65*percnt_var*start_time+SUM(B139)*output_kgyear*$E65*(1-start_time)),IF($C65<=start_time,-SUM(B139)*output_kgyear*$E65*percnt_var,-SUM(B139)*output_kgyear*$E65)))) -> 0 | C186: =IF($C65="","",IF($C65<0,0,IF(AND($C65=1,start_time<1),-(SUM(C139)*output_kgyear*$E65*percnt_var*start_time+SUM(C139)*output_kgyear*$E65*(1-start_time)),IF($C65<=start_time,-SUM(C139)*output_kgyear*$E65*percnt_var,-SUM(C139)*output_kgyear*$E65)))) -> 0 | D186: 0 | E186: 0 | F186: 0 | G186: 0 | H186: 0 | I186: 0 | J186: 0 | K186: 0 | L186: 0 | M186: 0 | N186: 0
A187: =+A140 -> 2013 | B187: =IF($C66="","",IF($C66<0,0,IF(AND($C66=1,start_time<1),-(SUM(B140)*output_kgyear*$E66*percnt_var*start_time+SUM(B140)*output_kgyear*$E66*(1-start_time)),IF($C66<=start_time,-SUM(B140)*output_kgyear*$E66*percnt_var,-SUM(B140)*output_kgyear*$E66)))) -> 0 | C187: 0 | D187: 0 | E187: 0 | F187: 0 | G187: 0 | H187: 0 | I187: 0 | J187: 0 | K187: 0 | L187: 0 | M187: 0 | N187: 0
A188: 2014 | B188: =IF($C67="","",IF($C67<0,0,IF(AND($C67=1,start_time<1),-(SUM(B141)*output_kgyear*$E67*percnt_var*start_time+SUM(B141)*output_kgyear*$E67*(1-start_time)),IF($C67<=start_time,-SUM(B141)*output_kgyear*$E67*percnt_var,-SUM(B141)*output_kgyear*$E67)))) -> 0 | C188: 0 | D188: 0 | E188: 0 | F188: 0 | G188: 0 | H188: 0 | I188: 0 | J188: 0 | K188: 0 | L188: 0 | M188: 0 | N188: 0
A189: 2015 | B189: =IF($C68="","",IF($C68<0,0,IF(AND($C68=1,start_time<1),-(SUM(B142)*output_kgyear*$E68*percnt_var*start_time+SUM(B142)*output_kgyear*$E68*(1-start_time)),IF($C68<=start_time,-SUM(B142)*output_kgyear*$E68*percnt_var,-SUM(B142)*output_kgyear*$E68)))) -> -1429401.028 | C189: -91718344.34 | D189: 0 | E189: 0 | F189: =IF($C68="","",IF($C68<0,0,IF(AND($C68=1,start_time<1),-(SUM(F142)*output_kgyear*$E68*percnt_var*start_time+SUM(F142)*output_kgyear*$E68*(1-start_time)),IF($C68<=start_time,-SUM(F142)*output_kgyear*$E68*percnt_var,-SUM(F142)*output_kgyear*$E68)))) -> 0 | G189: 0 | H189: 0 | I189: 0 | J189: 0 | K189: 0 | L189: 0 | M189: 0 | N189: 0
A190: 2016 | B190: =IF($C69="","",IF($C69<0,0,IF(AND($C69=1,start_time<1),-(SUM(B143)*output_kgyear*$E69*percnt_var*start_time+SUM(B143)*output_kgyear*$E69*(1-start_time)),IF($C69<=start_time,-SUM(B143)*output_kgyear*$E69*percnt_var,-SUM(B143)*output_kgyear*$E69)))) -> -1407009.782 | C190: -87593300.16 | D190: 0 | E190: 0 | F190: 0 | G190: 0 | H190: 0 | I190: 0 | J190: 0 | K190: 0 | L190: 0 | M190: 0 | N190: 0
A191: 2017 | B191: =IF($C70="","",IF($C70<0,0,IF(AND($C70=1,start_time<1),-(SUM(B144)*output_kgyear*$E70*percnt_var*start_time+SUM(B144)*output_kgyear*$E70*(1-start_time)),IF($C70<=start_time,-SUM(B144)*output_kgyear*$E70*percnt_var,-SUM(B144)*output_kgyear*$E70)))) -> -1491750.112 | C191: -104107206.6 | D191: 0 | E191: 0 | F191: 0 | G191: 0 | H191: 0 | I191: 0 | J191: 0 | K191: 0 | L191: 0 | M191: 0 | N191: 0
A192: 2018 | B192: =IF($C71="","",IF($C71<0,0,IF(AND($C71=1,start_time<1),-(SUM(B145)*output_kgyear*$E71*percnt_var*start_time+SUM(B145)*output_kgyear*$E71*(1-start_time)),IF($C71<=start_time,-SUM(B145)*output_kgyear*$E71*percnt_var,-SUM(B145)*output_kgyear*$E71)))) -> -1485641.41 | C192: -116005532.2 | D192: 0 | E192: 0 | F192: 0 | G192: 0 | H192: 0 | I192: 0 | J192: 0 | K192: 0 | L192: 0 | M192: 0 | N192: 0
A193: 2019 | B193: =IF($C72="","",IF($C72<0,0,IF(AND($C72=1,start_time<1),-(SUM(B146)*output_kgyear*$E72*percnt_var*start_time+SUM(B146)*output_kgyear*$E72*(1-start_time)),IF($C72<=start_time,-SUM(B146)*output_kgyear*$E72*percnt_var,-SUM(B146)*output_kgyear*$E72)))) -> -1533387.21 | C193: -129584163.4 | D193: 0 | E193: 0 | F193: 0 | G193: 0 | H193: 0 | I193: 0 | J193: 0 | K193: 0 | L193: 0 | M193: 0 | N193: 0
A194: 2020 | B194: =IF($C73="","",IF($C73<0,0,IF(AND($C73=1,start_time<1),-(SUM(B147)*output_kgyear*$E73*percnt_var*start_time+SUM(B147)*output_kgyear*$E73*(1-start_time)),IF($C73<=start_time,-SUM(B147)*output_kgyear*$E73*percnt_var,-SUM(B147)*output_kgyear*$E73)))) -> -1591593.026 | C194: -143503692.7 | D194: 0 | E194: 0 | F194: 0 | G194: 0 | H194: 0 | I194: 0 | J194: 0 | K194: 0 | L194: 0 | M194: 0 | N194: 0
A195: 2021 | B195: =IF($C74="","",IF($C74<0,0,IF(AND($C74=1,start_time<1),-(SUM(B148)*output_kgyear*$E74*percnt_var*start_time+SUM(B148)*output_kgyear*$E74*(1-start_time)),IF($C74<=start_time,-SUM(B148)*output_kgyear*$E74*percnt_var,-SUM(B148)*output_kgyear*$E74)))) -> -1630765.819 | C195: -146385338.6 | D195: 0 | E195: 0 | F195: 0 | G195: 0 | H195: 0 | I195: 0 | J195: 0 | K195: 0 | L195: 0 | M195: 0 | N195: 0
A196: 2022 | B196: =IF($C75="","",IF($C75<0,0,IF(AND($C75=1,start_time<1),-(SUM(B149)*output_kgyear*$E75*percnt_var*start_time+SUM(B149)*output_kgyear*$E75*(1-start_time)),IF($C75<=start_time,-SUM(B149)*output_kgyear*$E75*percnt_var,-SUM(B149)*output_kgyear*$E75)))) -> -1715387.845 | C196: -147517641.6 | D196: 0 | E196: 0 | F196: 0 | G196: 0 | H196: 0 | I196: 0 | J196: 0 | K196: 0 | L196: 0 | M196: 0 | N196: 0
A197: 2023 | B197: =IF($C76="","",IF($C76<0,0,IF(AND($C76=1,start_time<1),-(SUM(B150)*output_kgyear*$E76*percnt_var*start_time+SUM(B150)*output_kgyear*$E76*(1-start_time)),IF($C76<=start_time,-SUM(B150)*output_kgyear*$E76*percnt_var,-SUM(B150)*output_kgyear*$E76)))) -> -1753520.258 | C197: -150664770.7 | D197: 0 | E197: 0 | F197: 0 | G197: 0 | H197: 0 | I197: 0 | J197: 0 | K197: 0 | L197: 0 | M197: 0 | N197: 0
A198: 2024 | B198: =IF($C77="","",IF($C77<0,0,IF(AND($C77=1,start_time<1),-(SUM(B151)*output_kgyear*$E77*percnt_var*start_time+SUM(B151)*output_kgyear*$E77*(1-start_time)),IF($C77<=start_time,-SUM(B151)*output_kgyear*$E77*percnt_var,-SUM(B151)*output_kgyear*$E77)))) -> -1782126.75 | C198: -156160457.5 | D198: 0 | E198: 0 | F198: 0 | G198: 0 | H198: 0 | I198: 0 | J198: 0 | K198: 0 | L198: 0 | M198: 0 | N198: 0
A199: 2025 | B199: =IF($C78="","",IF($C78<0,0,IF(AND($C78=1,start_time<1),-(SUM(B152)*output_kgyear*$E78*percnt_var*start_time+SUM(B152)*output_kgyear*$E78*(1-start_time)),IF($C78<=start_time,-SUM(B152)*output_kgyear*$E78*percnt_var,-SUM(B152)*output_kgyear*$E78)))) -> -1859591.838 | C199: -162628481.9 | D199: 0 | E199: 0 | F199: 0 | G199: 0 | H199: 0 | I199: 0 | J199: 0 | K199: 0 | L199: 0 | M199: 0 | N199: 0
A200: 2026 | B200: =IF($C79="","",IF($C79<0,0,IF(AND($C79=1,start_time<1),-(SUM(B153)*output_kgyear*$E79*percnt_var*start_time+SUM(B153)*output_kgyear*$E79*(1-start_time)),IF($C79<=start_time,-SUM(B153)*output_kgyear*$E79*percnt_var,-SUM(B153)*output_kgyear*$E79)))) -> -1914167.815 | C200: -169407318.4 | D200: 0 | E200: 0 | F200: 0 | G200: 0 | H200: 0 | I200: 0 | J200: 0 | K200: 0 | L200: 0 | M200: 0 | N200: 0
A201: 2027 | B201: =IF($C80="","",IF($C80<0,0,IF(AND($C80=1,start_time<1),-(SUM(B154)*output_kgyear*$E80*percnt_var*start_time+SUM(B154)*output_kgyear*$E80*(1-start_time)),IF($C80<=start_time,-SUM(B154)*output_kgyear*$E80*percnt_var,-SUM(B154)*output_kgyear*$E80)))) -> -1961775.461 | C201: -175637346 | D201: 0 | E201: 0 | F201: 0 | G201: 0 | H201: 0 | I201: 0 | J201: 0 | K201: 0 | L201: 0 | M201: 0 | N201: 0
A202: 2028 | B202: =IF($C81="","",IF($C81<0,0,IF(AND($C81=1,start_time<1),-(SUM(B155)*output_kgyear*$E81*percnt_var*start_time+SUM(B155)*output_kgyear*$E81*(1-start_time)),IF($C81<=start_time,-SUM(B155)*output_kgyear*$E81*percnt_var,-SUM(B155)*output_kgyear*$E81)))) -> -2012038.043 | C202: -182016636.4 | D202: 0 | E202: 0 | F202: 0 | G202: 0 | H202: 0 | I202: 0 | J202: 0 | K202: 0 | L202: 0 | M202: 0 | N202: 0
A203: 2029 | B203: =IF($C82="","",IF($C82<0,0,IF(AND($C82=1,start_time<1),-(SUM(B156)*output_kgyear*$E82*percnt_var*start_time+SUM(B156)*output_kgyear*$E82*(1-start_time)),IF($C82<=start_time,-SUM(B156)*output_kgyear*$E82*percnt_var,-SUM(B156)*output_kgyear*$E82)))) -> -2060665.534 | C203: -188079695.8 | D203: 0 | E203: 0 | F203: 0 | G203: 0 | H203: 0 | I203: 0 | J203: 0 | K203: 0 | L203: 0 | M203: 0 | N203: 0
A204: 2030 | B204: =IF($C83="","",IF($C83<0,0,IF(AND($C83=1,start_time<1),-(SUM(B157)*output_kgyear*$E83*percnt_var*start_time+SUM(B157)*output_kgyear*$E83*(1-start_time)),IF($C83<=start_time,-SUM(B157)*output_kgyear*$E83*percnt_var,-SUM(B157)*output_kgyear*$E83)))) -> -2107179.82 | C204: -192316214.6 | D204: 0 | E204: 0 | F204: 0 | G204: 0 | H204: 0 | I204: 0 | J204: 0 | K204: 0 | L204: 0 | M204: 0 | N204: 0
A205: 2031 | B205: =IF($C84="","",IF($C84<0,0,IF(AND($C84=1,start_time<1),-(SUM(B158)*output_kgyear*$E84*percnt_var*start_time+SUM(B158)*output_kgyear*$E84*(1-start_time)),IF($C84<=start_time,-SUM(B158)*output_kgyear*$E84*percnt_var,-SUM(B158)*output_kgyear*$E84)))) -> -2149936.447 | C205: -196811272.4 | D205: 0 | E205: 0 | F205: 0 | G205: 0 | H205: 0 | I205: 0 | J205: 0 | K205: 0 | L205: 0 | M205: 0 | N205: 0
A206: 2032 | B206: =IF($C85="","",IF($C85<0,0,IF(AND($C85=1,start_time<1),-(SUM(B159)*output_kgyear*$E85*percnt_var*start_time+SUM(B159)*output_kgyear*$E85*(1-start_time)),IF($C85<=start_time,-SUM(B159)*output_kgyear*$E85*percnt_var,-SUM(B159)*output_kgyear*$E85)))) -> -2185786.981 | C206: -200048125.4 | D206: 0 | E206: 0 | F206: 0 | G206: 0 | H206: 0 | I206: 0 | J206: 0 | K206: 0 | L206: 0 | M206: 0 | N206: 0
A207: 2033 | B207: =IF($C86="","",IF($C86<0,0,IF(AND($C86=1,start_time<1),-(SUM(B160)*output_kgyear*$E86*percnt_var*start_time+SUM(B160)*output_kgyear*$E86*(1-start_time)),IF($C86<=start_time,-SUM(B160)*output_kgyear*$E86*percnt_var,-SUM(B160)*output_kgyear*$E86)))) -> -2219355.626 | C207: -201824591.1 | D207: 0 | E207: 0 | F207: 0 | G207: 0 | H207: 0 | I207: 0 | J207: 0 | K207: 0 | L207: 0 | M207: 0 | N207: 0
A208: 2034 | B208: =IF($C87="","",IF($C87<0,0,IF(AND($C87=1,start_time<1),-(SUM(B161)*output_kgyear*$E87*percnt_var*start_time+SUM(B161)*output_kgyear*$E87*(1-start_time)),IF($C87<=start_time,-SUM(B161)*output_kgyear*$E87*percnt_var,-SUM(B161)*output_kgyear*$E87)))) -> -2254950.728 | C208: -205606818 | D208: 0 | E208: 0 | F208: 0 | G208: 0 | H208: 0 | I208: 0 | J208: 0 | K208: 0 | L208: 0 | M208: 0 | N208: 0
A209: 2035 | B209: =IF($C88="","",IF($C88<0,0,IF(AND($C88=1,start_time<1),-(SUM(B162)*output_kgyear*$E88*percnt_var*start_time+SUM(B162)*output_kgyear*$E88*(1-start_time)),IF($C88<=start_time,-SUM(B162)*output_kgyear*$E88*percnt_var,-SUM(B162)*output_kgyear*$E88)))) -> -2305919.838 | C209: -212768587.8 | D209: 0 | E209: 0 | F209: 0 | G209: 0 | H209: 0 | I209: 0 | J209: 0 | K209: 0 | L209: 0 | M209: 0 | N209: 0
A210: 2036 | B210: =IF($C89="","",IF($C89<0,0,IF(AND($C89=1,start_time<1),-(SUM(B163)*output_kgyear*$E89*percnt_var*start_time+SUM(B163)*output_kgyear*$E89*(1-start_time)),IF($C89<=start_time,-SUM(B163)*output_kgyear*$E89*percnt_var,-SUM(B163)*output_kgyear*$E89)))) -> -2358275.718 | C210: -216955217.2 | D210: 0 | E210: 0 | F210: 0 | G210: 0 | H210: 0 | I210: 0 | J210: 0 | K210: 0 | L210: 0 | M210: 0 | N210: 0
A211: 2037 | B211: =IF($C90="","",IF($C90<0,0,IF(AND($C90=1,start_time<1),-(SUM(B164)*output_kgyear*$E90*percnt_var*start_time+SUM(B164)*output_kgyear*$E90*(1-start_time)),IF($C90<=start_time,-SUM(B164)*output_kgyear*$E90*percnt_var,-SUM(B164)*output_kgyear*$E90)))) -> -2401265.995 | C211: -221482088.1 | D211: 0 | E211: 0 | F211: 0 | G211: 0 | H211: 0 | I211: 0 | J211: 0 | K211: 0 | L211: 0 | M211: 0 | N211: 0
A212: 2038 | B212: =IF($C91="","",IF($C91<0,0,IF(AND($C91=1,start_time<1),-(SUM(B165)*output_kgyear*$E91*percnt_var*start_time+SUM(B165)*output_kgyear*$E91*(1-start_time)),IF($C91<=start_time,-SUM(B165)*output_kgyear*$E91*percnt_var,-SUM(B165)*output_kgyear*$E91)))) -> -2447433.535 | C212: -225470332.8 | D212: 0 | E212: 0 | F212: 0 | G212: 0 | H212: 0 | I212: 0 | J212: 0 | K212: 0 | L212: 0 | M212: 0 | N212: 0
A213: 2039 | B213: =IF($C92="","",IF($C92<0,0,IF(AND($C92=1,start_time<1),-(SUM(B166)*output_kgyear*$E92*percnt_var*start_time+SUM(B166)*output_kgyear*$E92*(1-start_time)),IF($C92<=start_time,-SUM(B166)*output_kgyear*$E92*percnt_var,-SUM(B166)*output_kgyear*$E92)))) -> -2495864.903 | C213: -230626639.3 | D213: 0 | E213: 0 | F213: 0 | G213: 0 | H213: 0 | I213: 0 | J213: 0 | K213: 0 | L213: 0 | M213: 0 | N213: 0
A214: 2040 | B214: =IF($C93="","",IF($C93<0,0,IF(AND($C93=1,start_time<1),-(SUM(B167)*output_kgyear*$E93*percnt_var*start_time+SUM(B167)*output_kgyear*$E93*(1-start_time)),IF($C93<=start_time,-SUM(B167)*output_kgyear*$E93*percnt_var,-SUM(B167)*output_kgyear*$E93)))) -> -2537322.999 | C214: -233228335 | D214: 0 | E214: 0 | F214: 0 | G214: 0 | H214: 0 | I214: 0 | J214: 0 | K214: 0 | L214: 0 | M214: 0 | N214: 0
A215: 2041 | B215: =IF($C94="","",IF($C94<0,0,IF(AND($C94=1,start_time<1),-(SUM(B168)*output_kgyear*$E94*percnt_var*start_time+SUM(B168)*output_kgyear*$E94*(1-start_time)),IF($C94<=start_time,-SUM(B168)*output_kgyear*$E94*percnt_var,-SUM(B168)*output_kgyear*$E94)))) -> -2577928.262 | C215: -237851891.9 | D215: 0 | E215: 0 | F215: 0 | G215: 0 | H215: 0 | I215: 0 | J215: 0 | K215: 0 | L215: 0 | M215: 0 | N215: 0
A216: 2042 | B216: =IF($C95="","",IF($C95<0,0,IF(AND($C95=1,start_time<1),-(SUM(B169)*output_kgyear*$E95*percnt_var*start_time+SUM(B169)*output_kgyear*$E95*(1-start_time)),IF($C95<=start_time,-SUM(B169)*output_kgyear*$E95*percnt_var,-SUM(B169)*output_kgyear*$E95)))) -> -2629955.71 | C216: -244704743.6 | D216: 0 | E216: 0 | F216: 0 | G216: 0 | H216: 0 | I216: 0 | J216: 0 | K216: 0 | L216: 0 | M216: 0 | N216: 0
A217: 2043 | B217: =IF($C96="","",IF($C96<0,0,IF(AND($C96=1,start_time<1),-(SUM(B170)*output_kgyear*$E96*percnt_var*start_time+SUM(B170)*output_kgyear*$E96*(1-start_time)),IF($C96<=start_time,-SUM(B170)*output_kgyear*$E96*percnt_var,-SUM(B170)*output_kgyear*$E96)))) -> -2688103.41 | C217: -252993976.2 | D217: 0 | E217: 0 | F217: 0 | G217: 0 | H217: 0 | I217: 0 | J217: 0 | K217: 0 | L217: 0 | M217: 0 | N217: 0
A218: 2044 | B218: =IF($C97="","",IF($C97<0,0,IF(AND($C97=1,start_time<1),-(SUM(B171)*output_kgyear*$E97*percnt_var*start_time+SUM(B171)*output_kgyear*$E97*(1-start_time)),IF($C97<=start_time,-SUM(B171)*output_kgyear*$E97*percnt_var,-SUM(B171)*output_kgyear*$E97)))) -> -2749498.253 | C218: -260342976.5 | D218: 0 | E218: 0 | F218: 0 | G218: 0 | H218: 0 | I218: 0 | J218: 0 | K218: 0 | L218: 0 | M218: 0 | N218: 0
A219: 2045 | B219: =IF($C98="","",IF($C98<0,0,IF(AND($C98=1,start_time<1),-(SUM(B172)*output_kgyear*$E98*percnt_var*start_time+SUM(B172)*output_kgyear*$E98*(1-start_time)),IF($C98<=start_time,-SUM(B172)*output_kgyear*$E98*percnt_var,-SUM(B172)*output_kgyear*$E98)))) -> -2811973.387 | C219: -268695984.9 | D219: 0 | E219: 0 | F219: 0 | G219: 0 | H219: 0 | I219: 0 | J219: 0 | K219: 0 | L219: 0 | M219: 0 | N219: 0
... 17 more rows

Sheet Energy Feed & Utility Prices
BW3: Further extrapolated to allow 2040 comission year using GCAM
A4: AEO_2009_Reference_Case | B4: ="Prices are in $(" & ref_year&")/GJ LHV" -> Prices are in $(2016)/GJ LHV | AH4: Except as noted,values are extrapolated based on PNNL mini-CAM model (see AEO Data tab)
A5: Year | B5: Source Data Year | C5: Reference year Conversion | D5: Display Units | E5: Use Category | F5: LHV (MJ/kg) | G5: HHV (MJ/kg) | H5: 2004 | I5: 2005 | J5: 2006 | K5: 2007 | L5: 2008 | M5: 2009 | N5: 2010 | O5: 2011 | P5: 2012 | Q5: 2013 | R5: 2014 | S5: 2015 | T5: 2016 | U5: 2017 | V5: 2018 | W5: 2019 | X5: 2020 | Y5: 2021 | Z5: 2022 | AA5: 2023 | AB5: 2024 | AC5: 2025 | AD5: 2026 | AE5: 2027 | AF5: 2028 | AG5: 2029 | AH5: 2030 | AI5: 2031 | AJ5: 2032 | AK5: 2033 | AL5: 2034 | AM5: 2035 | AN5: 2036 | AO5: 2037 | AP5: 2038 | AQ5: 2039 | AR5: 2040 | AS5: 2041 | AT5: 2042 | AU5: 2043 | AV5: 2044 | AW5: 2045 | AX5: 2046 | AY5: 2047 | AZ5: 2048 | BA5: 2049 | BB5: 2050 | BC5: 2051 | BD5: 2052 | BE5: 2053 | BF5: 2054 | BG5: 2055 | BH5: 2056 | BI5: 2057 | BJ5: 2058 | BK5: 2059 | BL5: 2060 | BM5: 2061 | BN5: 2062 | BO5: 2063 | BP5: 2064 | BQ5: 2065 | BR5: 2066 | BS5: 2067 | BT5: 2068 | BU5: 2069 | BV5: 2070 | BW5: =+BV5+1 -> 2071 | BX5: =+BW5+1 -> 2072 | BY5: =+BX5+1 -> 2073 | BZ5: =+BY5+1 -> 2074 | CA5: =+BZ5+1 -> 2075 | CB5: =+CA5+1 -> 2076 | CC5: =+CB5+1 -> 2077 | CD5: =+CC5+1 -> 2078 | CE5: =+CD5+1 -> 2079 | CF5: =+CE5+1 -> 2080 | CG5: =+CF5+1 -> 2081 | CH5: =+CG5+1 -> 2082 | CI5: =+CH5+1 -> 2083 | CJ5: =+CI5+1 -> 2084 | CK5: =+CJ5+1 -> 2085 | CL5: =+CK5+1 -> 2086 | CM5: =+CL5+1 -> 2087 | CN5: =+CM5+1 -> 2088 | CO5: =+CN5+1 -> 2089 | CP5: =+CO5+1 -> 2090 | CQ5: =+CP5+1 -> 2091 | CR5: =+CQ5+1 -> 2092 | CS5: =+CR5+1 -> 2093 | CT5: =+CS5+1 -> 2094 | CU5: =+CT5+1 -> 2095 | CV5: =+CU5+1 -> 2096 | CW5: =+CV5+1 -> 2097 | CX5: =+CW5+1 -> 2098 | CY5: =+CX5+1 -> 2099 | CZ5: =+CY5+1 -> 2100
A6: Feedstock Type
A7: ='HyARC Physical Property Data'!A73 -> Residential Natural Gas | B7: 2007 | C7: =VLOOKUP(ref_year,DeflatorTable,2,FALSE)/VLOOKUP(B7,DeflatorTable,2,FALSE) -> 1.141397159 | D7: ='HyARC Physical Property Data'!H73 -> mmBtu | E7: Feed Utility | F7: ='HyARC Physical Property Data'!$E$6 -> 47.14126905 | G7: ='HyARC Physical Property Data'!$I$6 -> 52.22466124 | H7: =((13.7000589370728/(mmBTU_to_GJ))*($C$7))*($G$7/$F$7) -> 16.42030142 | I7: =((13.7000589370728/(mmBTU_to_GJ))*($C$7))*($G$7/$F$7) -> 16.42030142 | J7: =((13.7000589370728/(mmBTU_to_GJ))*($C$7))*($G$7/$F$7) -> 16.42030142 | K7: =((12.6911582946777/(mmBTU_to_GJ))*($C$7))*($G$7/$F$7) -> 15.2110765 | L7: =((12.9778490066528/(mmBTU_to_GJ))*($C$7))*($G$7/$F$7) -> 15.55469166 | M7: =((10.7176141738892/(mmBTU_to_GJ))*($C$7))*($G$7/$F$7) -> 12.8456714 | N7: =((11.192774772644/(mmBTU_to_GJ))*($C$7))*($G$7/$F$7) -> 13.41517845 | O7: =((11.4872808456421/(mmBTU_to_GJ))*($C$7))*($G$7/$F$7) -> 13.76816077 | P7: =((11.3991556167603/(mmBTU_to_GJ))*($C$7))*($G$7/$F$7) -> 13.66253766 | Q7: =((11.3077983856201/(mmBTU_to_GJ))*($C$7))*($G$7/$F$7) -> 13.55304081 | R7: =((11.2896461486816/(mmBTU_to_GJ))*($C$7))*($G$7/$F$7) -> 13.53128432 | S7: =((11.3454151153564/(mmBTU_to_GJ))*($C$7))*($G$7/$F$7) -> 13.5981266 | T7: =((11.5382986068726/(mmBTU_to_GJ))*($C$7))*($G$7/$F$7) -> 13.82930846 | U7: =((11.7583208084106/(mmBTU_to_GJ))*($C$7))*($G$7/$F$7) -> 14.09301761 | V7: =((11.9751005172729/(mmBTU_to_GJ))*($C$7))*($G$7/$F$7) -> 14.35284044 | W7: =((12.23952293396/(mmBTU_to_GJ))*($C$7))*($G$7/$F$7) -> 14.66976578 | X7: =((12.557071685791/(mmBTU_to_GJ))*($C$7))*($G$7/$F$7) -> 15.05036606 | Y7: =((12.7957820892334/(mmBTU_to_GJ))*($C$7))*($G$7/$F$7) -> 15.33647408 | Z7: =((12.8716516494751/(mmBTU_to_GJ))*($C$7))*($G$7/$F$7) -> 15.42740807 | AA7: =((12.6602811813354/(mmBTU_to_GJ))*($C$7))*($G$7/$F$7) -> 15.17406852 | AB7: =((12.6240320205688/(mmBTU_to_GJ))*($C$7))*($G$7/$F$7) -> 15.13062183 | AC7: =((12.5992183685303/(mmBTU_to_GJ))*($C$7))*($G$7/$F$7) -> 15.10088126 | AD7: =((12.7868556976318/(mmBTU_to_GJ))*($C$7))*($G$7/$F$7) -> 15.32577529 | AE7: =((13.07555103302/(mmBTU_to_GJ))*($C$7))*($G$7/$F$7) -> 15.6717931 | AF7: =((13.407883644104/(mmBTU_to_GJ))*($C$7))*($G$7/$F$7) -> 16.07011268 | AG7: =((13.6725673675537/(mmBTU_to_GJ))*($C$7))*($G$7/$F$7) -> 16.3873512 | AH7: =((13.9620389938354/(mmBTU_to_GJ))*($C$7))*($G$7/$F$7) -> 16.73429945 | AI7: =($BB7-$AH7)/20+AH7 -> 16.87636443 | AJ7: =($BB7-$AH7)/20+AI7 -> 17.01842941 | AK7: 17.16049439 | AL7: 17.30255937 | AM7: 17.44462435 | AN7: 17.58668933 | AO7: 17.72875431 | AP7: 17.87081929 | AQ7: 18.01288427 | AR7: 18.15494925 | AS7: 18.29701423 | AT7: 18.43907921 | AU7: 18.58114419 | AV7: 18.72320917 | AW7: 18.86527415 | AX7: 19.00733913 | AY7: 19.14940411 | AZ7: =($BB7-$AH7)/20+AY7 -> 19.29146909 | BA7: 19.43353407 | BB7: =1.16978897829057*AH7 -> 19.57559905 | BC7: =($BQ7-$BB7)/15+BB7 -> 19.7694318 | BD7: =($BQ7-$BB7)/15+BC7 -> 19.96326456 | BE7: 20.15709731 | BF7: 20.35093006 | BG7: 20.54476281 | BH7: 20.73859556 | BI7: 20.93242832 | BJ7: 21.12626107 | BK7: 21.32009382 | BL7: 21.51392657 | BM7: 21.70775932 | BN7: 21.90159208 | BO7: 22.09542483 | BP7: 22.28925758 | BQ7: =1.14852629914794*BB7 -> 22.48309033 | BR7: =($BV7-$BQ7)/5+BQ7 -> 22.70571235 | BS7: =($BV7-$BQ7)/5+BR7 -> 22.92833436 | BT7: =($BV7-$BQ7)/5+BS7 -> 23.15095637 | BU7: =($BV7-$BQ7)/5+BT7 -> 23.37357839 | BV7: =1.04950876638265*BQ7 -> 23.5962004 | BW7: =+BV7*BW$133/BV$133 -> 23.67454672 | BX7: =+BW7*BX$133/BW$133 -> 23.75315318 | BY7: 23.83202063 | BZ7: 23.91114995 | CA7: 23.990542 | CB7: 24.04173609 | CC7: 24.09303943 | CD7: 24.14445225 | CE7: 24.19597478 | CF7: 24.24760725 | CG7: 24.26437199 | CH7: 24.28114832 | CI7: 24.29793624 | CJ7: 24.31473578 | CK7: 24.33154693 | CL7: 24.33724516 | CM7: 24.34294473 | CN7: 24.34864563 | CO7: 24.35434787 | CP7: 24.36005144 | CQ7: 24.36869575 | CR7: 24.37734313 | CS7: 24.38599358 | CT7: 24.3946471 | CU7: 24.40330369 | CV7: 24.41662622 | CW7: 24.42995602 | CX7: 24.4432931 | CY7: 24.45663745 | CZ7: 24.4699891
A8: ='HyARC Physical Property Data'!A71 -> Commercial Natural Gas | B8: 2007 | C8: =VLOOKUP(ref_year,DeflatorTable,2,FALSE)/VLOOKUP(B8,DeflatorTable,2,FALSE) -> 1.141397159 | D8: ='HyARC Physical Property Data'!H71 -> mmBtu | E8: Feed Utility | F8: ='HyARC Physical Property Data'!$E$6 -> 47.14126905 | G8: ='HyARC Physical Property Data'!$I$6 -> 52.22466124 | H8: =((11.8960943222046/(mmBTU_to_GJ))*($C$8))*($G$8/$F$8) -> 14.25814702 | I8: =((11.8960943222046/(mmBTU_to_GJ))*($C$8))*($G$8/$F$8) -> 14.25814702 | J8: =((11.8960943222046/(mmBTU_to_GJ))*($C$8))*($G$8/$F$8) -> 14.25814702 | K8: =((10.9898433685303/(mmBTU_to_GJ))*($C$8))*($G$8/$F$8) -> 13.1719536 | L8: =((11.3387994766235/(mmBTU_to_GJ))*($C$8))*($G$8/$F$8) -> 13.59019738 | M8: =((8.90759468078613/(mmBTU_to_GJ))*($C$8))*($G$8/$F$8) -> 10.67625988 | N8: =((9.46560573577881/(mmBTU_to_GJ))*($C$8))*($G$8/$F$8) -> 11.34506793 | O8: =((9.74632167816162/(mmBTU_to_GJ))*($C$8))*($G$8/$F$8) -> 11.68152198 | P8: =((9.72109222412109/(mmBTU_to_GJ))*($C$8))*($G$8/$F$8) -> 11.65128305 | Q8: =((9.67193412780762/(mmBTU_to_GJ))*($C$8))*($G$8/$F$8) -> 11.59236427 | R8: =((9.71388721466064/(mmBTU_to_GJ))*($C$8))*($G$8/$F$8) -> 11.64264743 | S8: =((9.83065605163574/(mmBTU_to_GJ))*($C$8))*($G$8/$F$8) -> 11.78260154 | T8: =((10.0382099151611/(mmBTU_to_GJ))*($C$8))*($G$8/$F$8) -> 12.03136667 | U8: =((10.2545003890991/(mmBTU_to_GJ))*($C$8))*($G$8/$F$8) -> 12.29060313 | V8: =((10.476261138916/(mmBTU_to_GJ))*($C$8))*($G$8/$F$8) -> 12.55639603 | W8: =((10.746561050415/(mmBTU_to_GJ))*($C$8))*($G$8/$F$8) -> 12.88036588 | X8: =((11.0803880691528/(mmBTU_to_GJ))*($C$8))*($G$8/$F$8) -> 13.28047658 | Y8: =((11.3143692016602/(mmBTU_to_GJ))*($C$8))*($G$8/$F$8) -> 13.56091631 | Z8: =((11.4017143249512/(mmBTU_to_GJ))*($C$8))*($G$8/$F$8) -> 13.66560441 | AA8: =((11.2125005722046/(mmBTU_to_GJ))*($C$8))*($G$8/$F$8) -> 13.43882095 | AB8: =((11.1975994110107/(mmBTU_to_GJ))*($C$8))*($G$8/$F$8) -> 13.42096106 | AC8: =((11.159740447998/(mmBTU_to_GJ))*($C$8))*($G$8/$F$8) -> 13.37558493 | AD8: =((11.3503875732422/(mmBTU_to_GJ))*($C$8))*($G$8/$F$8) -> 13.60408638 | AE8: =((11.6409521102905/(mmBTU_to_GJ))*($C$8))*($G$8/$F$8) -> 13.95234453 | AF8: =((11.9785671234131/(mmBTU_to_GJ))*($C$8))*($G$8/$F$8) -> 14.35699537 | AG8: =((12.2332496643066/(mmBTU_to_GJ))*($C$8))*($G$8/$F$8) -> 14.66224691 | AH8: =((12.5188312530518/(mmBTU_to_GJ))*($C$8))*($G$8/$F$8) -> 15.00453272 | AI8: =($BB8-$AH8)/20+AH8 -> 15.13191293 | AJ8: 15.25929315 | AK8: 15.38667336 | AL8: 15.51405357 | AM8: 15.64143379 | AN8: 15.768814 | AO8: 15.89619422 | AP8: 16.02357443 | AQ8: 16.15095464 | AR8: 16.27833486 | AS8: 16.40571507 | AT8: 16.53309529 | AU8: 16.6604755 | AV8: 16.78785571 | AW8: 16.91523593 | AX8: 17.04261614 | AY8: 17.16999636 | AZ8: 17.29737657 | BA8: 17.42475678 | BB8: =1.16978897829057*AH8 -> 17.552137 | BC8: =($BQ8-$BB8)/15+BB8 -> 17.72593393 | BD8: 17.89973086 | BE8: 18.07352779 | BF8: 18.24732472 | BG8: 18.42112165 | BH8: 18.59491858 | BI8: 18.76871551 | BJ8: 18.94251244 | BK8: 19.11630937 | BL8: 19.2901063 | BM8: 19.46390323 | BN8: 19.63770016 | BO8: 19.81149709 | BP8: 19.98529402 | BQ8: =1.14852629914794*BB8 -> 20.15909095 | BR8: =($BV8-$BQ8)/5+BQ8 -> 20.35870129 | BS8: 20.55831164 | BT8: 20.75792198 | BU8: 20.95753233 | BV8: =1.04950876638265*BQ8 -> 21.15714267 | BW8: =+BV8*BW$134/BV$134 -> 21.22739061 | BX8: =+BW8*BX$134/BW$134 -> 21.29787179 | BY8: 21.36858698 | BZ8: 21.43953698 | CA8: 21.51072254 | CB8: 21.55662488 | CC8: 21.60262517 | CD8: 21.64872362 | CE8: 21.69492045 | CF8: 21.74121585 | CG8: 21.75624767 | CH8: 21.77128989 | CI8: 21.78634251 | CJ8: 21.80140553 | CK8: 21.81647897 | CL8: 21.8215882 | CM8: 21.82669862 | CN8: 21.83181024 | CO8: 21.83692306 | CP8: 21.84203707 | CQ8: 21.84978785 | CR8: 21.85754138 | CS8: 21.86529766 | CT8: 21.8730567 | CU8: 21.88081849 | CV8: 21.89276391 | CW8: 21.90471585 | CX8: 21.91667432 | CY8: 21.92863932 | CZ8: 21.94061085
A9: ='HyARC Physical Property Data'!A72 -> Industrial Natural Gas | B9: 2007 | C9: =VLOOKUP(ref_year,DeflatorTable,2,FALSE)/VLOOKUP(B9,DeflatorTable,2,FALSE) -> 1.141397159 | D9: ='HyARC Physical Property Data'!H72 -> mmBtu | E9: Feed Utility | F9: ='HyARC Physical Property Data'!$E$6 -> 47.14126905 | G9: ='HyARC Physical Property Data'!$I$6 -> 52.22466124 | H9: =((7.95407009124756/(mmBTU_to_GJ))*($C$9))*($G$9/$F$9) -> 9.533406316 | I9: =((7.95407009124756/(mmBTU_to_GJ))*($C$9))*($G$9/$F$9) -> 9.533406316 | J9: =((7.95407009124756/(mmBTU_to_GJ))*($C$9))*($G$9/$F$9) -> 9.533406316 | K9: =((7.51525163650513/(mmBTU_to_GJ))*($C$9))*($G$9/$F$9) -> 9.007457389 | L9: =((8.80127239227294/(mmBTU_to_GJ))*($C$9))*($G$9/$F$9) -> 10.54882656 | M9: =((4.84856796264648/(mmBTU_to_GJ))*($C$9))*($G$9/$F$9) -> 5.811285028 | N9: =((5.49891996383666/(mmBTU_to_GJ))*($C$9))*($G$9/$F$9) -> 6.590768966 | O9: =((5.82616424560547/(mmBTU_to_GJ))*($C$9))*($G$9/$F$9) -> 6.982989888 | P9: =((5.87778615951538/(mmBTU_to_GJ))*($C$9))*($G$9/$F$9) -> 7.044861694 | Q9: =((5.95383930206299/(mmBTU_to_GJ))*($C$9))*($G$9/$F$9) -> 7.136015719 | R9: =((6.10985708236694/(mmBTU_to_GJ))*($C$9))*($G$9/$F$9) -> 7.323011921 | S9: =((6.32948446273804/(mmBTU_to_GJ))*($C$9))*($G$9/$F$9) -> 7.586247853 | T9: =((6.51258134841919/(mmBTU_to_GJ))*($C$9))*($G$9/$F$9) -> 7.805699905 | U9: =((6.70273017883301/(mmBTU_to_GJ))*($C$9))*($G$9/$F$9) -> 8.033604115 | V9: =((6.89887094497681/(mmBTU_to_GJ))*($C$9))*($G$9/$F$9) -> 8.268690002 | W9: =((7.15282821655273/(mmBTU_to_GJ))*($C$9))*($G$9/$F$9) -> 8.573072265 | X9: =((7.46860218048096/(mmBTU_to_GJ))*($C$9))*($G$9/$F$9) -> 8.951545357 | Y9: =((7.67867755889893/(mmBTU_to_GJ))*($C$9))*($G$9/$F$9) -> 9.203332671 | Z9: =((7.75380706787109/(mmBTU_to_GJ))*($C$9))*($G$9/$F$9) -> 9.293379669 | AA9: =((7.55847835540771/(mmBTU_to_GJ))*($C$9))*($G$9/$F$9) -> 9.059267075 | AB9: =((7.54617786407471/(mmBTU_to_GJ))*($C$9))*($G$9/$F$9) -> 9.044524235 | AC9: =((7.45927095413208/(mmBTU_to_GJ))*($C$9))*($G$9/$F$9) -> 8.940361351 | AD9: =((7.60022306442261/(mmBTU_to_GJ))*($C$9))*($G$9/$F$9) -> 9.109300488 | AE9: =((7.85960483551025/(mmBTU_to_GJ))*($C$9))*($G$9/$F$9) -> 9.420184323 | AF9: =((8.19417572021484/(mmBTU_to_GJ))*($C$9))*($G$9/$F$9) -> 9.821186596 | AG9: =((8.42161273956299/(mmBTU_to_GJ))*($C$9))*($G$9/$F$9) -> 10.09378283 | AH9: =((8.69355010986328/(mmBTU_to_GJ))*($C$9))*($G$9/$F$9) -> 10.41971526 | AI9: =($BB9-$AH9)/20+AH9 -> 10.5081729 | AJ9: 10.59663054 | AK9: 10.68508818 | AL9: 10.77354582 | AM9: 10.86200346 | AN9: 10.9504611 | AO9: 11.03891874 | AP9: 11.12737638 | AQ9: 11.21583403 | AR9: 11.30429167 | AS9: 11.39274931 | AT9: 11.48120695 | AU9: 11.56966459 | AV9: 11.65812223 | AW9: 11.74657987 | AX9: 11.83503751 | AY9: 11.92349515 | AZ9: 12.01195279 | BA9: 12.10041043 | BB9: =1.16978897829057*AH9 -> 12.18886807 | BC9: 12.30955923 | BD9: 12.4302504 | BE9: 12.55094156 | BF9: 12.67163273 | BG9: 12.79232389 | BH9: 12.91301506 | BI9: 13.03370622 | BJ9: 13.15439738 | BK9: 13.27508855 | BL9: 13.39577971 | BM9: 13.51647088 | BN9: 13.63716204 | BO9: 13.75785321 | BP9: 13.87854437 | BQ9: =1.14852629914794*BB9 -> 13.99923554 | BR9: 14.13785251 | BS9: 14.27646949 | BT9: 14.41508646 | BU9: 14.55370344 | BV9: =1.04950876638265*BQ9 -> 14.69232042 | BW9: =+BV9*BW$135/BV$135 -> 14.74110324 | BX9: =+BW9*BX$135/BW$135 -> 14.79004804 | BY9: 14.83915535 | BZ9: 14.88842571 | CA9: 14.93785966 | CB9: 14.96973598 | CC9: 15.00168032 | CD9: 15.03369283 | CE9: 15.06577365 | CF9: 15.09792293 | CG9: 15.1083616 | CH9: 15.11880748 | CI9: 15.12926059 | CJ9: 15.13972092 | CK9: 15.15018849 | CL9: 15.15373653 | CM9: 15.1572854 | CN9: 15.1608351 | CO9: 15.16438564 | CP9: 15.167937 | CQ9: 15.17331944 | CR9: 15.17870378 | CS9: 15.18409004 | CT9: 15.1894782 | CU9: 15.19486828 | CV9: 15.20316364 | CW9: 15.21146352 | CX9: 15.21976793 | CY9: 15.22807688 | CZ9: 15.23639037
A10: ='HyARC Physical Property Data'!A74 -> Electric Utility Natural Gas | B10: 2007 | C10: 1.141397159 | D10: ='HyARC Physical Property Data'!H74 -> mmBtu | E10: Feed Utility | F10: ='HyARC Physical Property Data'!$E$6 -> 47.14126905 | G10: ='HyARC Physical Property Data'!$I$6 -> 52.22466124 | H10: =((7.05463790893555/(mmBTU_to_GJ))*($C$10))*($G$10/$F$10) -> 8.455385585 | I10: =((7.05463790893555/(mmBTU_to_GJ))*($C$10))*($G$10/$F$10) -> 8.455385585 | J10: =((7.05463790893555/(mmBTU_to_GJ))*($C$10))*($G$10/$F$10) -> 8.455385585 | K10: =((7.01915979385375/(mmBTU_to_GJ))*($C$10))*($G$10/$F$10) -> 8.412863043 | L10: =((8.87161254882813/(mmBTU_to_GJ))*($C$10))*($G$10/$F$10) -> 10.63313324 | M10: =((4.55562210083008/(mmBTU_to_GJ))*($C$10))*($G$10/$F$10) -> 5.460172718 | N10: =((5.12931346893311/(mmBTU_to_GJ))*($C$10))*($G$10/$F$10) -> 6.147774518 | O10: =((5.45354604721069/(mmBTU_to_GJ))*($C$10))*($G$10/$F$10) -> 6.536385741 | P10: =((5.51876354217529/(mmBTU_to_GJ))*($C$10))*($G$10/$F$10) -> 6.614552626 | Q10: =((5.53977298736572/(mmBTU_to_GJ))*($C$10))*($G$10/$F$10) -> 6.639733643 | R10: =((5.68350362777709/(mmBTU_to_GJ))*($C$10))*($G$10/$F$10) -> 6.812003007 | S10: =((5.8920464515686/(mmBTU_to_GJ))*($C$10))*($G$10/$F$10) -> 7.061953466 | T10: =((6.08193254470825/(mmBTU_to_GJ))*($C$10))*($G$10/$F$10) -> 7.289542771 | U10: =((6.26939964294434/(mmBTU_to_GJ))*($C$10))*($G$10/$F$10) -> 7.514232772 | V10: =((6.47751331329346/(mmBTU_to_GJ))*($C$10))*($G$10/$F$10) -> 7.763668867 | W10: =((6.73541975021362/(mmBTU_to_GJ))*($C$10))*($G$10/$F$10) -> 8.07278443 | X10: =((7.02784395217896/(mmBTU_to_GJ))*($C$10))*($G$10/$F$10) -> 8.423271501 | Y10: =((7.25390911102295/(mmBTU_to_GJ))*($C$10))*($G$10/$F$10) -> 8.694223478 | Z10: =((7.3283839225769/(mmBTU_to_GJ))*($C$10))*($G$10/$F$10) -> 8.783485784 | AA10: =((7.15062761306763/(mmBTU_to_GJ))*($C$10))*($G$10/$F$10) -> 8.570434716 | AB10: =((7.19241189956665/(mmBTU_to_GJ))*($C$10))*($G$10/$F$10) -> 8.620515565 | AC10: =((7.13988399505615/(mmBTU_to_GJ))*($C$10))*($G$10/$F$10) -> 8.557557878 | AD10: =((7.28062534332275/(mmBTU_to_GJ))*($C$10))*($G$10/$F$10) -> 8.726244405 | AE10: =((7.5354790687561/(mmBTU_to_GJ))*($C$10))*($G$10/$F$10) -> 9.031701119 | AF10: =((7.86007928848267/(mmBTU_to_GJ))*($C$10))*($G$10/$F$10) -> 9.420752982 | AG10: =((8.07421207427979/(mmBTU_to_GJ))*($C$10))*($G$10/$F$10) -> 9.677403329 | AH10: =((8.33951759338379/(mmBTU_to_GJ))*($C$10))*($G$10/$F$10) -> 9.995387114 | AI10: =($BB10-$AH10)/20+AH10 -> 10.08024244 | AJ10: 10.16509777 | AK10: 10.2499531 | AL10: 10.33480843 | AM10: 10.41966376 | AN10: 10.50451908 | AO10: 10.58937441 | AP10: 10.67422974 | AQ10: 10.75908507 | AR10: 10.8439404 | AS10: 10.92879573 | AT10: 11.01365105 | AU10: 11.09850638 | AV10: 11.18336171 | AW10: 11.26821704 | AX10: 11.35307237 | AY10: 11.43792769 | AZ10: 11.52278302 | BA10: 11.60763835 | BB10: =1.16978897829057*AH10 -> 11.69249368 | BC10: 11.80826987 | BD10: 11.92404605 | BE10: 12.03982224 | BF10: 12.15559843 | BG10: 12.27137462 | BH10: 12.38715081 | BI10: 12.50292699 | BJ10: 12.61870318 | BK10: 12.73447937 | BL10: 12.85025556 | BM10: 12.96603174 | BN10: 13.08180793 | BO10: 13.19758412 | BP10: 13.31336031 | BQ10: =1.14852629914794*BB10 -> 13.42913649 | BR10: 13.56210849 | BS10: 13.69508049 | BT10: 13.82805248 | BU10: 13.96102448 | BV10: =1.04950876638265*BQ10 -> 14.09399648 | BW10: =+BV10*BW$136/BV$136 -> 14.14079269 | BX10: =+BW10*BX$136/BW$136 -> 14.18774428 | BY10: 14.23485176 | BZ10: 14.28211565 | CA10: 14.32953648 | CB10: 14.36011468 | CC10: 14.39075813 | CD10: 14.42146698 | CE10: 14.45224135 | CF10: 14.4830814 | CG10: 14.49309497 | CH10: 14.50311546 | CI10: 14.51314288 | CJ10: 14.52317723 | CK10: 14.53321852 | CL10: 14.53662207 | CM10: 14.54002642 | CN10: 14.54343156 | CO10: 14.54683751 | CP10: 14.55024425 | CQ10: 14.55540749 | CR10: 14.56057257 | CS10: 14.56573947 | CT10: 14.57090822 | CU10: 14.57607879 | CV10: 14.58403633 | CW10: 14.59199821 | CX10: 14.59996444 | CY10: 14.60793502 | CZ10: 14.61590995
A11: ='HyARC Physical Property Data'!A75 -> Bio Methane | B11: 2007 | C11: 1.141397159 | D11: ='HyARC Physical Property Data'!H75 -> mmBtu | E11: Feed Utility | F11: ='HyARC Physical Property Data'!$E$6 -> 47.14126905 | G11: ='HyARC Physical Property Data'!$I$6 -> 52.22466124 | H11: =13.11*($C$11/mmBTU_to_GJ) -> 14.18361777 | I11: 14.18361777 | J11: 14.18361777 | K11: 14.18361777 | L11: 14.18361777 | M11: 14.18361777 | N11: 14.18361777 | O11: 14.18361777 | P11: 14.18361777 | Q11: 14.18361777 | R11: 14.18361777 | S11: 14.18361777 | T11: 14.18361777 | U11: 14.18361777 | V11: 14.18361777 | W11: 14.18361777 | X11: 14.18361777 | Y11: 14.18361777 | Z11: 14.18361777 | AA11: 14.18361777 | AB11: 14.18361777 | AC11: 14.18361777 | AD11: 14.18361777 | AE11: 14.18361777 | AF11: 14.18361777 | AG11: 14.18361777 | AH11: 14.18361777 | AI11: 14.18361777 | AJ11: 14.18361777 | AK11: 14.18361777 | AL11: 14.18361777 | AM11: 14.18361777 | AN11: =13.11*($C$11/mmBTU_to_GJ) -> 14.18361777 | AO11: 14.18361777 | AP11: 14.18361777 | AQ11: 14.18361777 | AR11: 14.18361777 | AS11: 14.18361777 | AT11: 14.18361777 | AU11: 14.18361777 | AV11: 14.18361777 | AW11: 14.18361777 | AX11: 14.18361777 | AY11: 14.18361777 | AZ11: 14.18361777 | BA11: 14.18361777 | BB11: 14.18361777 | BC11: 14.18361777 | BD11: 14.18361777 | BE11: 14.18361777 | BF11: 14.18361777 | BG11: 14.18361777 | BH11: 14.18361777 | BI11: 14.18361777 | BJ11: 14.18361777 | BK11: 14.18361777 | BL11: 14.18361777 | BM11: 14.18361777 | BN11: 14.18361777 | BO11: 14.18361777 | BP11: 14.18361777 | BQ11: 14.18361777 | BR11: 14.18361777 | BS11: 14.18361777 | BT11: 14.18361777 | BU11: 14.18361777 | BV11: 14.18361777 | BW11: =+BV11*BW$136/BV$136 -> 14.23071156 | BX11: =+BW11*BX$136/BW$136 -> 14.2779617 | BY11: 14.32536873 | BZ11: 14.37293317 | CA11: 14.42065553 | CB11: 14.45142818 | CC11: 14.48226649 | CD11: 14.51317061 | CE11: 14.54414067 | CF11: 14.57517682 | CG11: 14.58525407 | CH11: 14.59533828 | CI11: 14.60542946 | CJ11: 14.61552762 | CK11: 14.62563276 | CL11: 14.62905795 | CM11: 14.63248395 | CN11: 14.63591074 | CO11: 14.63933835 | CP11: 14.64276675 | CQ11: 14.64796282 | CR11: 14.65316074 | CS11: 14.65836051 | CT11: 14.66356211 | CU11: 14.66876557 | CV11: 14.67677371 | CW11: 14.68478622 | CX11: 14.6928031 | CY11: 14.70082436 | CZ11: 14.70885
A12: ='HyARC Physical Property Data'!A85 -> Woody Biomass | B12: 2005 | C12: =VLOOKUP(ref_year,DeflatorTable,2,FALSE)/VLOOKUP(B12,DeflatorTable,2,FALSE) -> 1.208440716 | D12: =+'HyARC Physical Property Data'!$H$85 -> kg | E12: Feed | F12: ='HyARC Physical Property Data'!$E$45 -> 19.55106924 | G12: ='HyARC Physical Property Data'!$I$45 -> 20.58865638 | H12: =1.27*($C$12) -> 1.534719709 | I12: 1.534719709 | J12: 1.534719709 | K12: 1.534719709 | L12: 1.534719709 | M12: 1.534719709 | N12: 1.534719709 | O12: 1.534719709 | P12: =1.28*($C$12) -> 1.546804117 | Q12: =1.32*($C$12) -> 1.595141745 | R12: =1.32*($C$12) -> 1.595141745 | S12: =1.34*($C$12) -> 1.61931056 | T12: =1.34*($C$12) -> 1.61931056 | U12: =1.36*($C$12) -> 1.643479374 | V12: =1.36*($C$12) -> 1.643479374 | W12: =1.38*($C$12) -> 1.667648188 | X12: =1.4*($C$12) -> 1.691817003 | Y12: =1.46*($C$12) -> 1.764323446 | Z12: =1.48*($C$12) -> 1.78849226 | AA12: =1.48*($C$12) -> 1.78849226 | AB12: =1.51*($C$12) -> 1.824745481 | AC12: =1.52*($C$12) -> 1.836829889 | AD12: =1.62*($C$12) -> 1.95767396 | AE12: =1.72*($C$12) -> 2.078518032 | AF12: =1.82*($C$12) -> 2.199362103 | AG12: =1.91*($C$12) -> 2.308121768 | AH12: =2.01*($C$12) -> 2.428965839 | AI12: =2.11*($C$12) -> 2.549809911 | AJ12: =2.2*($C$12) -> 2.658569575 | AK12: =2.3*($C$12) -> 2.779413647 | AL12: =2.4*($C$12) -> 2.900257719 | AM12: =2.5*($C$12) -> 3.02110179 | AN12: =2.57*($C$12) -> 3.10569264 | AO12: =2.64*($C$12) -> 3.190283491 | AP12: =2.71*($C$12) -> 3.274874341 | AQ12: =2.78*($C$12) -> 3.359465191 | AR12: =2.85*($C$12) -> 3.444056041 | AS12: =2.92*($C$12) -> 3.528646891 | AT12: =2.99*($C$12) -> 3.613237741 | AU12: =3.07*($C$12) -> 3.709912999 | AV12: =3.14*($C$12) -> 3.794503849 | AW12: =3.21*($C$12) -> 3.879094699 | AX12: =3.28*($C$12) -> 3.963685549 | AY12: =3.35*($C$12) -> 4.048276399 | AZ12: =3.42*($C$12) -> 4.132867249 | BA12: =3.49*($C$12) -> 4.217458099 | BB12: =3.56*($C$12) -> 4.302048949 | BC12: =3.64*($C$12) -> 4.398724207 | BD12: =3.71*($C$12) -> 4.483315057 | BE12: =3.78*($C$12) -> 4.567905907 | BF12: =3.85*($C$12) -> 4.652496757 | BG12: =3.92*($C$12) -> 4.737087607 | BH12: =3.99*($C$12) -> 4.821678457 | BI12: =4.06*($C$12) -> 4.906269307 | BJ12: =4.14*($C$12) -> 5.002944565 | BK12: =4.21*($C$12) -> 5.087535415 | BL12: =4.28*($C$12) -> 5.172126265 | BM12: =4.35*($C$12) -> 5.256717115 | BN12: =4.42*($C$12) -> 5.341307965 | BO12: =4.49*($C$12) -> 5.425898815 | BP12: =4.56*($C$12) -> 5.510489666 | BQ12: =4.63*($C$12) -> 5.595080516 | BR12: =4.71*($C$12) -> 5.691755773 | BS12: =4.78*($C$12) -> 5.776346623 | BT12: =4.85*($C$12) -> 5.860937473 | BU12: =4.92*($C$12) -> 5.945528323 | BV12: =4.99*($C$12) -> 6.030119173 | BW12: =+BV12*BW$137/BV$137 -> 6.044613208 | BX12: =+BW12*BX$137/BW$137 -> 6.05914208 | BY12: 6.073705874 | BZ12: 6.088304673 | CA12: 6.102938562 | CB12: 6.115748568 | CC12: 6.128585462 | CD12: 6.1414493 | CE12: 6.15434014 | CF12: 6.167258037 | CG12: 6.183149548 | CH12: 6.199082008 | CI12: 6.215055522 | CJ12: 6.231070196 | CK12: 6.247126135 | CL12: 6.2604976 | CM12: 6.273897685 | CN12: 6.287326452 | CO12: 6.300783962 | CP12: 6.314270276 | CQ12: 6.326614173 | CR12: 6.3389822 | CS12: 6.351374406 | CT12: 6.363790838 | CU12: 6.376231543 | CV12: 6.390919363 | CW12: 6.405641018 | CX12: 6.420396584 | CY12: 6.43518614 | CZ12: 6.450009764
A13: ='HyARC Physical Property Data'!A86 -> Woody Biomass B2A | B13: 2007 | C13: =VLOOKUP(ref_year,DeflatorTable,2,FALSE)/VLOOKUP(B13,DeflatorTable,2,FALSE) -> 1.141397159 | D13: =+'HyARC Physical Property Data'!$H$86 -> kg | E13: Feed | F13: ='HyARC Physical Property Data'!$E$45 -> 19.55106924 | G13: ='HyARC Physical Property Data'!$I$45 -> 20.58865638 | H13: =3.80872262322035*($C$13) -> 4.347265181 | I13: =3.80872262322035*($C$13) -> 4.347265181 | J13: =3.80872262322035*($C$13) -> 4.347265181 | K13: =3.80872262322035*($C$13) -> 4.347265181 | L13: =3.58036841709093*($C$13) -> 4.086622339 | M13: =3.28153451771169*($C$13) -> 3.745534175 | N13: =3.05599949931226*($C$13) -> 3.488109146 | O13: =2.9206784882726*($C$13) -> 3.333654128 | P13: =2.85865635821276*($C$13) -> 3.262862245 | Q13: 3.262862245 | R13: 3.262862245 | S13: 3.262862245 | T13: 3.262862245 | U13: 3.262862245 | V13: 3.262862245 | W13: 3.262862245 | X13: 3.262862245 | Y13: 3.262862245 | Z13: 3.262862245 | AA13: 3.262862245 | AB13: 3.262862245 | AC13: 3.262862245 | AD13: 3.262862245 | AE13: 3.262862245 | AF13: 3.262862245 | AG13: 3.262862245 | AH13: 3.262862245 | AI13: 3.262862245 | AJ13: 3.262862245 | AK13: 3.262862245 | AL13: 3.262862245 | AM13: 3.262862245 | AN13: 3.262862245 | AO13: 3.262862245 | AP13: 3.262862245 | AQ13: 3.262862245 | AR13: 3.262862245 | AS13: 3.262862245 | AT13: 3.262862245 | AU13: 3.262862245 | AV13: 3.262862245 | AW13: 3.262862245 | AX13: 3.262862245 | AY13: 3.262862245 | AZ13: 3.262862245 | BA13: 3.262862245 | BB13: 3.262862245 | BC13: 3.262862245 | BD13: 3.262862245 | BE13: 3.262862245 | BF13: 3.262862245 | BG13: 3.262862245 | BH13: 3.262862245 | BI13: 3.262862245 | BJ13: 3.262862245 | BK13: 3.262862245 | BL13: 3.262862245 | BM13: 3.262862245 | BN13: 3.262862245 | BO13: 3.262862245 | BP13: 3.262862245 | BQ13: 3.262862245 | BR13: 3.262862245 | BS13: 3.262862245 | BT13: 3.262862245 | BU13: 3.262862245 | BV13: 3.262862245 | BW13: =+BV13*BW$137/BV$137 -> 3.270704883 | BX13: =+BW13*BX$137/BW$137 -> 3.27856637 | BY13: 3.286446754 | BZ13: 3.294346079 | CA13: 3.302264391 | CB13: 3.30919581 | CC13: 3.316141779 | CD13: 3.323102326 | CE13: 3.330077484 | CF13: 3.337067283 | CG13: 3.345666087 | CH13: 3.354287048 | CI13: 3.362930223 | CJ13: 3.371595669 | CK13: 3.380283444 | CL13: 3.387518665 | CM13: 3.394769373 | CN13: 3.4020356 | CO13: 3.40931738 | CP13: 3.416614747 | CQ13: 3.423293957 | CR13: 3.429986224 | CS13: 3.436691574 | CT13: 3.443410033 | CU13: 3.450141626 | CV13: 3.45808912 | CW13: 3.466054921 | CX13: 3.474039071 | CY13: 3.482041614 | CZ13: 3.49006259
A14: ='HyARC Physical Property Data'!$A$87 -> Woody Biomass MYPP | B14: 2007 | C14: =VLOOKUP(ref_year,DeflatorTable,2,FALSE)/VLOOKUP(B14,DeflatorTable,2,FALSE) -> 1.141397159 | D14: =+'HyARC Physical Property Data'!$H$87 -> kg | E14: Feed | F14: 18.608 | H14: =4.44432502149613*$C$14 -> 5.072739952 | I14: =4.44432502149613*$C$14 -> 5.072739952 | J14: 5.072739952 | K14: 5.072739952 | L14: 5.072739952 | M14: 5.072739952 | N14: 5.072739952 | O14: =N14-($N$14-$U$14)/7 -> 4.952427775 | P14: 4.832115597 | Q14: 4.71180342 | R14: 4.591491243 | S14: 4.471179065 | T14: 4.350866888 | U14: =3.70647033533964*$C$14 -> 4.23055471 | V14: =3.70647033533964*$C$14 -> 4.23055471 | W14: 4.23055471 | X14: 4.23055471 | Y14: 4.23055471 | Z14: 4.23055471 | AA14: 4.23055471 | AB14: 4.23055471 | AC14: 4.23055471 | AD14: 4.23055471 | AE14: 4.23055471 | AF14: 4.23055471 | AG14: 4.23055471 | AH14: 4.23055471 | AI14: 4.23055471 | AJ14: 4.23055471 | AK14: 4.23055471 | AL14: 4.23055471 | AM14: 4.23055471 | AN14: 4.23055471 | AO14: 4.23055471 | AP14: 4.23055471 | AQ14: 4.23055471 | AR14: 4.23055471 | AS14: 4.23055471 | AT14: 4.23055471 | AU14: 4.23055471 | AV14: 4.23055471 | AW14: 4.23055471 | AX14: 4.23055471 | AY14: 4.23055471 | AZ14: 4.23055471 | BA14: 4.23055471 | BB14: 4.23055471 | BC14: 4.23055471 | BD14: 4.23055471 | BE14: 4.23055471 | BF14: 4.23055471 | BG14: 4.23055471 | BH14: 4.23055471 | BI14: 4.23055471 | BJ14: 4.23055471 | BK14: 4.23055471 | BL14: 4.23055471 | BM14: 4.23055471 | BN14: 4.23055471 | BO14: 4.23055471 | BP14: 4.23055471 | BQ14: 4.23055471 | BR14: 4.23055471 | BS14: 4.23055471 | BT14: 4.23055471 | BU14: 4.23055471 | BV14: 4.23055471 | BW14: =+BV14*BW$137/BV$137 -> 4.240723299 | BX14: =+BW14*BX$137/BW$137 -> 4.25091633 | BY14: 4.26113386 | BZ14: 4.27137595 | CA14: 4.281642657 | CB14: 4.290629781 | CC14: 4.299635769 | CD14: 4.308660661 | CE14: 4.317704496 | CF14: 4.326767313 | CG14: 4.337916332 | CH14: 4.349094078 | CI14: 4.360300627 | CJ14: 4.371536052 | CK14: 4.382800428 | CL14: 4.392181455 | CM14: 4.401582562 | CN14: 4.411003791 | CO14: 4.420445185 | CP14: 4.429906788 | CQ14: 4.438566903 | CR14: 4.447243949 | CS14: 4.455937957 | CT14: 4.464648961 | CU14: 4.473376995 | CV14: 4.483681539 | CW14: 4.494009819 | CX14: 4.504361892 | CY14: 4.51473781 | CZ14: 4.52513763
A15: ='HyARC Physical Property Data'!A79 -> Electric Utility Steam Coal | B15: 2007 | C15: =VLOOKUP(ref_year,DeflatorTable,2,FALSE)/VLOOKUP(B15,DeflatorTable,2,FALSE) -> 1.141397159 | D15: =+'HyARC Physical Property Data'!$H$79 -> kg | E15: Feed | F15: ='HyARC Physical Property Data'!E42 -> 22.732203 | G15: ='HyARC Physical Property Data'!I42 -> 23.96761519 | H15: =1.73552525043488*($C$15/mmBTU_to_GJ*$G$15/$F$15) -> 1.979696256 | I15: =1.73552525043488*($C$15/mmBTU_to_GJ*$G$15/$F$15) -> 1.979696256 | J15: =1.73552525043488*($C$15/mmBTU_to_GJ*$G$15/$F$15) -> 1.979696256 | K15: =1.78000020980835*($C$15/mmBTU_to_GJ*$G$15/$F$15) -> 2.030428397 | L15: =1.9310736656189*($C$15/mmBTU_to_GJ*$G$15/$F$15) -> 2.202756373 | M15: =1.98230564594269*($C$15/mmBTU_to_GJ*$G$15/$F$15) -> 2.26119618 | N15: =1.86225914955139*($C$15/mmBTU_to_GJ*$G$15/$F$15) -> 2.124260345 | O15: =1.87335216999054*($C$15/mmBTU_to_GJ*$G$15/$F$15) -> 2.136914042 | P15: =1.85759365558624*($C$15/mmBTU_to_GJ*$G$15/$F$15) -> 2.118938463 | Q15: =1.88174879550934*($C$15/mmBTU_to_GJ*$G$15/$F$15) -> 2.146491989 | R15: =1.90431761741638*($C$15/mmBTU_to_GJ*$G$15/$F$15) -> 2.172236017 | S15: =1.90719401836395*($C$15/mmBTU_to_GJ*$G$15/$F$15) -> 2.175517099 | T15: =1.91704928874969*($C$15/mmBTU_to_GJ*$G$15/$F$15) -> 2.186758907 | U15: =1.92595064640045*($C$15/mmBTU_to_GJ*$G$15/$F$15) -> 2.196912597 | V15: =1.94080138206482*($C$15/mmBTU_to_GJ*$G$15/$F$15) -> 2.213852682 | W15: =1.94636797904968*($C$15/mmBTU_to_GJ*$G$15/$F$15) -> 2.220202443 | X15: =1.95628917217255*($C$15/mmBTU_to_GJ*$G$15/$F$15) -> 2.231519449 | Y15: =1.96225011348724*($C$15/mmBTU_to_GJ*$G$15/$F$15) -> 2.238319035 | Z15: =1.97535526752472*($C$15/mmBTU_to_GJ*$G$15/$F$15) -> 2.253267953 | AA15: =1.98115420341492*($C$15/mmBTU_to_GJ*$G$15/$F$15) -> 2.259882741 | AB15: =1.98549652099609*($C$15/mmBTU_to_GJ*$G$15/$F$15) -> 2.264835979 | AC15: =1.98988306522369*($C$15/mmBTU_to_GJ*$G$15/$F$15) -> 2.269839666 | AD15: =1.99634909629822*($C$15/mmBTU_to_GJ*$G$15/$F$15) -> 2.277215403 | AE15: =2.00744533538818*($C$15/mmBTU_to_GJ*$G$15/$F$15) -> 2.289872772 | AF15: =2.02021908760071*($C$15/mmBTU_to_GJ*$G$15/$F$15) -> 2.304443663 | AG15: =2.03361201286316*($C$15/mmBTU_to_GJ*$G$15/$F$15) -> 2.319720838 | AH15: =2.04451942443848*($C$15/mmBTU_to_GJ*$G$15/$F$15) -> 2.332162813 | AI15: =(($BB$15-$AH$15)/20+AH15) -> 2.337290945 | AJ15: =(($BB$15-$AH$15)/20+AI15) -> 2.342419076 | AK15: 2.347547208 | AL15: 2.352675339 | AM15: 2.357803471 | AN15: 2.362931602 | AO15: 2.368059734 | AP15: 2.373187865 | AQ15: 2.378315997 | AR15: 2.383444128 | AS15: 2.38857226 | AT15: 2.393700391 | AU15: 2.398828522 | AV15: 2.403956654 | AW15: 2.409084785 | AX15: 2.414212917 | AY15: 2.419341048 | AZ15: 2.42446918 | BA15: 2.429597311 | BB15: =(1.04397747398165*AH15) -> 2.434725443 | BC15: =(($BQ$15-$BB$15)/15+BB15) -> 2.439343082 | BD15: =(($BQ$15-$BB$15)/15+BC15) -> 2.44396072 | BE15: 2.448578359 | BF15: 2.453195998 | BG15: 2.457813637 | BH15: 2.462431275 | BI15: 2.467048914 | BJ15: 2.471666553 | BK15: 2.476284192 | BL15: 2.48090183 | BM15: 2.485519469 | BN15: 2.490137108 | BO15: 2.494754746 | BP15: 2.499372385 | BQ15: =(1.02844862093285*BB15) -> 2.503990024 | BR15: =(($BV$15-$BQ$15)/5+BQ15) -> 2.508739028 | BS15: =(($BV$15-$BQ$15)/5+BR15) -> 2.513488032 | BT15: =(($BV$15-$BQ$15)/5+BS15) -> 2.518237037 | BU15: =(($BV$15-$BQ$15)/5+BT15) -> 2.522986041 | BV15: =(1.00948287364428*BQ15) -> 2.527735045 | BW15: =+BV15*BW$138/BV$138 -> 2.536281204 | BX15: =+BW15*BX$138/BW$138 -> 2.544856257 | BY15: 2.553460302 | BZ15: 2.562093437 | CA15: 2.570755761 | CB15: 2.578116238 | CC15: 2.58549779 | CD15: 2.592900476 | CE15: 2.600324357 | CF15: 2.607769494 | CG15: 2.613453863 | CH15: 2.619150624 | CI15: 2.624859802 | CJ15: 2.630581425 | CK15: 2.63631552 | CL15: 2.640202758 | CM15: 2.644095728 | CN15: 2.647994438 | CO15: 2.651898897 | CP15: 2.655809112 | CQ15: 2.657118582 | CR15: 2.658428698 | CS15: 2.65973946 | CT15: 2.661050868 | CU15: 2.662362923 | CV15: 2.660477217 | CW15: 2.658592847 | CX15: 2.656709812 | CY15: 2.654828111 | CZ15: 2.652947742
A16: ='HyARC Physical Property Data'!A76 -> Commercial Electricity | B16: 2007 | C16: 1.141397159 | D16: ='HyARC Physical Property Data'!$H$76 -> kWh | E16: Feed Utility Byprod | H16: =(28.3762531280518/(mmBTU_to_GJ))*($C$16) -> 30.7000708 | I16: =(28.3762531280518/(mmBTU_to_GJ))*($C$16) -> 30.7000708 | J16: =(28.3762531280518/(mmBTU_to_GJ))*($C$16) -> 30.7000708 | K16: =(28.0297355651855/(mmBTU_to_GJ))*($C$16) -> 30.32517586 | L16: =(29.057315826416/(mmBTU_to_GJ))*($C$16) -> 31.4369078 | M16: =(27.6067714691162/(mmBTU_to_GJ))*($C$16) -> 29.86757395 | N16: =(24.8355846405029/(mmBTU_to_GJ))*($C$16) -> 26.86944621 | O16: =(25.5812511444092/(mmBTU_to_GJ))*($C$16) -> 27.67617761 | P16: =(25.4402256011963/(mmBTU_to_GJ))*($C$16) -> 27.52360305 | Q16: =(25.4701290130615/(mmBTU_to_GJ))*($C$16) -> 27.55595535 | R16: =(25.6722831726074/(mmBTU_to_GJ))*($C$16) -> 27.77466453 | S16: =(25.7632827758789/(mmBTU_to_GJ))*($C$16) -> 27.87311636 | T16: =(26.1006698608398/(mmBTU_to_GJ))*($C$16) -> 28.2381331 | U16: =(26.4680442810059/(mmBTU_to_GJ))*($C$16) -> 28.63559293 | V16: =(26.885612487793/(mmBTU_to_GJ))*($C$16) -> 29.08735707 | W16: =(27.1694507598877/(mmBTU_to_GJ))*($C$16) -> 29.39443972 | X16: =(27.6201095581055/(mmBTU_to_GJ))*($C$16) -> 29.88200434 | Y16: =(28.0024471282958/(mmBTU_to_GJ))*($C$16) -> 30.29565269 | Z16: =(28.2454071044922/(mmBTU_to_GJ))*($C$16) -> 30.5585094 | AA16: =(28.1863746643066/(mmBTU_to_GJ))*($C$16) -> 30.49464262 | AB16: =(28.2032489776611/(mmBTU_to_GJ))*($C$16) -> 30.51289882 | AC16: =(28.1397113800049/(mmBTU_to_GJ))*($C$16) -> 30.44415793 | AD16: =(28.178466796875/(mmBTU_to_GJ))*($C$16) -> 30.48608715 | AE16: =(28.4951820373535/(mmBTU_to_GJ))*($C$16) -> 30.82873916 | AF16: =(28.9155654907227/(mmBTU_to_GJ))*($C$16) -> 31.2835491 | AG16: =(29.2894115447998/(mmBTU_to_GJ))*($C$16) -> 31.68801054 | AH16: =(29.6516952514648/(mmBTU_to_GJ))*($C$16) -> 32.07996276 | AI16: =($BB16-$AH16)/20+AH16 -> 32.07050429 | AJ16: 32.06104582 | AK16: 32.05158734 | AL16: 32.04212887 | AM16: 32.03267039 | AN16: 32.02321192 | AO16: 32.01375345 | AP16: 32.00429497 | AQ16: 31.9948365 | AR16: 31.98537802 | AS16: 31.97591955 | AT16: 31.96646108 | AU16: 31.9570026 | AV16: 31.94754413 | AW16: 31.93808566 | AX16: 31.92862718 | AY16: 31.91916871 | AZ16: 31.90971023 | BA16: 31.90025176 | BB16: =0.994103189054944*AH16 -> 31.89079329 | BC16: =($BQ16-$BB16)/15+BB16 -> 31.91105183 | BD16: 31.93131038 | BE16: 31.95156892 | BF16: 31.97182747 | BG16: 31.99208602 | BH16: 32.01234456 | BI16: 32.03260311 | BJ16: 32.05286165 | BK16: 32.0731202 | BL16: 32.09337875 | BM16: 32.11363729 | BN16: 32.13389584 | BO16: 32.15415438 | BP16: 32.17441293 | BQ16: =1.00952871208344*BB16 -> 32.19467147 | BR16: =($BV16-$BQ16)/5+BQ16 -> 32.21512306 | BS16: 32.23557464 | BT16: 32.25602623 | BU16: 32.27647781 | BV16: =1.00317623736115*BQ16 -> 32.29692939 | BW16: =+BV16*BW$139/BV$139 -> 32.28270893 | BX16: =+BW16*BX$139/BW$139 -> 32.26849473 | BY16: 32.25428679 | BZ16: 32.24008511 | CA16: 32.22588968 | CB16: 32.20007725 | CC16: 32.17428549 | CD16: 32.14851439 | CE16: 32.12276393 | CF16: 32.0970341 | CG16: 32.06158981 | CH16: 32.02618466 | CI16: 31.99081862 | CJ16: 31.95549162 | CK16: 31.92020364 | CL16: 31.88173112 | CM16: 31.84330496 | CN16: 31.80492512 | CO16: 31.76659154 | CP16: 31.72830416 | CQ16: 31.68395737 | CR16: 31.63967257 | CS16: 31.59544967 | CT16: 31.55128857 | CU16: 31.5071892 | CV16: 31.46414037 | CW16: 31.42115035 | CX16: 31.37821907 | CY16: 31.33534645 | CZ16: 31.29253241
A17: ='HyARC Physical Property Data'!A77 -> Industrial Electricity | B17: 2007 | C17: 1.141397159 | D17: ='HyARC Physical Property Data'!$H$77 -> kWh | E17: Feed Utility Byprod | H17: =(18.4008941650391/(mmBTU_to_GJ))*($C$17) -> 19.90779936 | I17: =(18.4008941650391/(mmBTU_to_GJ))*($C$17) -> 19.90779936 | J17: =(18.4008941650391/(mmBTU_to_GJ))*($C$17) -> 19.90779936 | K17: =(18.6226921081543/(mmBTU_to_GJ))*($C$17) -> 20.14776101 | L17: =(20.3344097137451/(mmBTU_to_GJ))*($C$17) -> 21.99965637 | M17: =(19.1594867706299/(mmBTU_to_GJ))*($C$17) -> 20.72851542 | N17: =(16.8281726837158/(mmBTU_to_GJ))*($C$17) -> 18.20628293 | O17: =(17.2643089294434/(mmBTU_to_GJ))*($C$17) -> 18.6781357 | P17: =(17.1560707092285/(mmBTU_to_GJ))*($C$17) -> 18.56103352 | Q17: =(17.0836048126221/(mmBTU_to_GJ))*($C$17) -> 18.48263317 | R17: =(17.1988334655762/(mmBTU_to_GJ))*($C$17) -> 18.60729825 | S17: =(17.3181438446045/(mmBTU_to_GJ))*($C$17) -> 18.73637932 | T17: =(17.6150741577148/(mmBTU_to_GJ))*($C$17) -> 19.05762616 | U17: =(17.9101543426514/(mmBTU_to_GJ))*($C$17) -> 19.37687136 | V17: =(18.2101707458496/(mmBTU_to_GJ))*($C$17) -> 19.70145702 | W17: =(18.456880569458/(mmBTU_to_GJ))*($C$17) -> 19.96837066 | X17: =(18.8030014038086/(mmBTU_to_GJ))*($C$17) -> 20.34283638 | Y17: =(19.0852069854736/(mmBTU_to_GJ))*($C$17) -> 20.64815263 | Z17: =(19.30615234375/(mmBTU_to_GJ))*($C$17) -> 20.88719188 | AA17: =(19.3043308258057/(mmBTU_to_GJ))*($C$17) -> 20.88522119 | AB17: =(19.3253479003906/(mmBTU_to_GJ))*($C$17) -> 20.90795942 | AC17: =(19.3248138427734/(mmBTU_to_GJ))*($C$17) -> 20.90738163 | AD17: =(19.3542194366455/(mmBTU_to_GJ))*($C$17) -> 20.93919533 | AE17: =(19.6148834228516/(mmBTU_to_GJ))*($C$17) -> 21.22120589 | AF17: =(19.97239112854/(mmBTU_to_GJ))*($C$17) -> 21.60799099 | AG17: =(20.29469871521/(mmBTU_to_GJ))*($C$17) -> 21.95669332 | AH17: =(20.5609893798828/(mmBTU_to_GJ))*($C$17) -> 22.24479134 | AI17: 22.23823267 | AJ17: 22.231674 | AK17: 22.22511534 | AL17: 22.21855667 | AM17: 22.21199801 | AN17: 22.20543934 | AO17: 22.19888067 | AP17: 22.19232201 | AQ17: 22.18576334 | AR17: 22.17920467 | AS17: 22.17264601 | AT17: 22.16608734 | AU17: 22.15952867 | AV17: 22.15297001 | AW17: 22.14641134 | AX17: 22.13985267 | AY17: 22.13329401 | AZ17: 22.12673534 | BA17: 22.12017667 | BB17: =0.994103189054944*AH17 -> 22.11361801 | BC17: 22.12766563 | BD17: 22.14171325 | BE17: 22.15576087 | BF17: 22.16980849 | BG17: 22.18385611 | BH17: 22.19790373 | BI17: 22.21195135 | BJ17: 22.22599897 | BK17: 22.24004659 | BL17: 22.25409421 | BM17: 22.26814183 | BN17: 22.28218945 | BO17: 22.29623707 | BP17: 22.31028469 | BQ17: =1.00952871208344*BB17 -> 22.32433231 | BR17: 22.33851378 | BS17: 22.35269526 | BT17: 22.36687673 | BU17: 22.38105821 | BV17: =1.00317623736115*BQ17 -> 22.39523969 | BW17: =+BV17*BW$140/BV$140 -> 22.40200662 | BX17: =+BW17*BX$140/BW$140 -> 22.40877561 | BY17: 22.41554663 | BZ17: 22.42231971 | CA17: 22.42909483 | CB17: 22.42655827 | CC17: 22.424022 | CD17: 22.42148601 | CE17: 22.41895032 | CF17: 22.41641491 | CG17: 22.40624662 | CH17: 22.39608295 | CI17: 22.38592389 | CJ17: 22.37576943 | CK17: 22.36561959 | CL17: 22.35316781 | CM17: 22.34072296 | CN17: 22.32828505 | CO17: 22.31585406 | CP17: 22.30342998 | CQ17: 22.28640839 | CR17: 22.26939978 | CS17: 22.25240416 | CT17: 22.23542151 | CU17: 22.21845181 | CV17: 22.20249708 | CW17: 22.18655381 | CX17: 22.17062199 | CY17: 22.15470161 | CZ17: 22.13879265
A18: ='HyARC Physical Property Data'!A78 -> Residential Electricity | B18: 2007 | C18: 1.141397159 | D18: ='HyARC Physical Property Data'!$H$78 -> kWh | E18: Feed Utility Byprod | H18: =(31.2067794799805/(mmBTU_to_GJ))*($C$18) -> 33.76239757 | I18: =(31.2067794799805/(mmBTU_to_GJ))*($C$18) -> 33.76239757 | J18: =(31.2067794799805/(mmBTU_to_GJ))*($C$18) -> 33.76239757 | K18: =(31.181957244873/(mmBTU_to_GJ))*($C$18) -> 33.73554257 | L18: =(31.772819519043/(mmBTU_to_GJ))*($C$18) -> 34.37479235 | M18: =(30.736837387085/(mmBTU_to_GJ))*($C$18) -> 33.25397049 | N18: =(28.6163578033447/(mmBTU_to_GJ))*($C$18) -> 30.95983838 | O18: =(29.8736190795898/(mmBTU_to_GJ))*($C$18) -> 32.32006061 | P18: =(30.101655960083/(mmBTU_to_GJ))*($C$18) -> 32.56677212 | Q18: =(30.4253902435303/(mmBTU_to_GJ))*($C$18) -> 32.91701799 | R18: =(30.7938537597656/(mmBTU_to_GJ))*($C$18) -> 33.31565611 | S18: =(30.8830280303955/(mmBTU_to_GJ))*($C$18) -> 33.41213313 | T18: =(31.1491451263428/(mmBTU_to_GJ))*($C$18) -> 33.70004336 | U18: =(31.4898681640625/(mmBTU_to_GJ))*($C$18) -> 34.06866925 | V18: =(31.8156299591064/(mmBTU_to_GJ))*($C$18) -> 34.42110867 | W18: =(32.0206985473633/(mmBTU_to_GJ))*($C$18) -> 34.64297094 | X18: =(32.4303588867188/(mmBTU_to_GJ))*($C$18) -> 35.08617961 | Y18: =(32.7907905578613/(mmBTU_to_GJ))*($C$18) -> 35.47612813 | Z18: =(32.9940071105957/(mmBTU_to_GJ))*($C$18) -> 35.69598671 | AA18: =(32.9234657287598/(mmBTU_to_GJ))*($C$18) -> 35.61966848 | AB18: =(32.9201545715332/(mmBTU_to_GJ))*($C$18) -> 35.61608616 | AC18: =(32.902271270752/(mmBTU_to_GJ))*($C$18) -> 35.59673834 | AD18: =(32.9582405090332/(mmBTU_to_GJ))*($C$18) -> 35.65729107 | AE18: =(33.321102142334/(mmBTU_to_GJ))*($C$18) -> 36.04986854 | AF18: =(33.7343635559082/(mmBTU_to_GJ))*($C$18) -> 36.49697319 | AG18: =(34.1495399475098/(mmBTU_to_GJ))*($C$18) -> 36.94614964 | AH18: =(34.4904899597167/(mmBTU_to_GJ))*($C$18) -> 37.31502109 | AI18: 37.30401911 | AJ18: 37.29301712 | AK18: 37.28201514 | AL18: 37.27101316 | AM18: 37.26001118 | AN18: 37.2490092 | AO18: 37.23800722 | AP18: 37.22700524 | AQ18: 37.21600326 | AR18: 37.20500127 | AS18: 37.19399929 | AT18: 37.18299731 | AU18: 37.17199533 | AV18: 37.16099335 | AW18: 37.14999137 | AX18: 37.13898939 | AY18: 37.12798741 | AZ18: 37.11698542 | BA18: 37.10598344 | BB18: =0.994103189054944*AH18 -> 37.09498146 | BC18: 37.11854596 | BD18: 37.14211045 | BE18: 37.16567494 | BF18: 37.18923944 | BG18: 37.21280393 | BH18: 37.23636842 | BI18: 37.25993291 | BJ18: 37.28349741 | BK18: 37.3070619 | BL18: 37.33062639 | BM18: 37.35419089 | BN18: 37.37775538 | BO18: 37.40131987 | BP18: 37.42488437 | BQ18: =1.00952871208344*BB18 -> 37.44844886 | BR18: 37.47223789 | BS18: 37.49602693 | BT18: 37.51981596 | BU18: 37.54360499 | BV18: =1.00317623736115*BQ18 -> 37.56739402 | BW18: =+BV18*BW$141/BV$141 -> 37.55085296 | BX18: =+BW18*BX$141/BW$141 -> 37.53431918 | BY18: 37.51779267 | BZ18: 37.50127345 | CA18: 37.4847615 | CB18: 37.45473679 | CC18: 37.42473613 | CD18: 37.3947595 | CE18: 37.36480688 | CF18: 37.33487825 | CG18: 37.29364989 | CH18: 37.25246706 | CI18: 37.2113297 | CJ18: 37.17023778 | CK18: 37.12919123 | CL18: 37.08444045 | CM18: 37.03974362 | CN18: 36.99510066 | CO18: 36.9505115 | CP18: 36.90597609 | CQ18: 36.85439245 | CR18: 36.80288091 | CS18: 36.75144137 | CT18: 36.70007372 | CU18: 36.64877787 | CV18: 36.598704 | CW18: 36.54869853 | CX18: 36.49876139 | CY18: 36.44889248 | CZ18: 36.39909171
A22: AEO_2013_Reference_Case | B22: ="Prices are in $(" & ref_year&")/GJ LHV" -> Prices are in $(2016)/GJ LHV | AS22: Except as noted,values are extrapolated based on PNNL mini-CAM model (see AEO Data tab)
A23: Year | B23: Source Data Year | C23: Reference year Conversion | D23: Display Units | E23: Use Category | F23: LHV (MJ/kg) | G23: HHV (MJ/kg) | H23: 2004 | I23: 2005 | J23: 2006 | K23: 2007 | L23: 2008 | M23: 2009 | N23: 2010 | O23: 2011 | P23: 2012 | Q23: 2013 | R23: 2014 | S23: 2015 | T23: 2016 | U23: 2017 | V23: 2018 | W23: 2019 | X23: 2020 | Y23: 2021 | Z23: 2022 | AA23: 2023 | AB23: 2024 | AC23: 2025 | AD23: 2026 | AE23: 2027 | AF23: 2028 | AG23: 2029 | AH23: 2030 | AI23: 2031 | AJ23: 2032 | AK23: 2033 | AL23: 2034 | AM23: 2035 | AN23: 2036 | AO23: 2037 | AP23: 2038 | AQ23: 2039 | AR23: 2040 | AS23: 2041 | AT23: 2042 | AU23: 2043 | AV23: 2044 | AW23: 2045 | AX23: 2046 | AY23: 2047 | AZ23: 2048 | BA23: 2049 | BB23: 2050 | BC23: 2051 | BD23: 2052 | BE23: 2053 | BF23: 2054 | BG23: 2055 | BH23: 2056 | BI23: 2057 | BJ23: 2058 | BK23: 2059 | BL23: 2060 | BM23: 2061 | BN23: 2062 | BO23: 2063 | BP23: 2064 | BQ23: 2065 | BR23: 2066 | BS23: 2067 | BT23: 2068 | BU23: 2069 | BV23: 2070 | BW23: =+BV23+1 -> 2071 | BX23: =+BW23+1 -> 2072 | BY23: =+BX23+1 -> 2073 | BZ23: =+BY23+1 -> 2074 | CA23: =+BZ23+1 -> 2075 | CB23: =+CA23+1 -> 2076 | CC23: =+CB23+1 -> 2077 | CD23: =+CC23+1 -> 2078 | CE23: =+CD23+1 -> 2079 | CF23: =+CE23+1 -> 2080 | CG23: =+CF23+1 -> 2081 | CH23: =+CG23+1 -> 2082 | CI23: =+CH23+1 -> 2083 | CJ23: =+CI23+1 -> 2084 | CK23: =+CJ23+1 -> 2085 | CL23: =+CK23+1 -> 2086 | CM23: =+CL23+1 -> 2087 | CN23: =+CM23+1 -> 2088 | CO23: =+CN23+1 -> 2089 | CP23: =+CO23+1 -> 2090 | CQ23: =+CP23+1 -> 2091 | CR23: =+CQ23+1 -> 2092 | CS23: =+CR23+1 -> 2093 | CT23: =+CS23+1 -> 2094 | CU23: =+CT23+1 -> 2095 | CV23: =+CU23+1 -> 2096 | CW23: =+CV23+1 -> 2097 | CX23: =+CW23+1 -> 2098 | CY23: =+CX23+1 -> 2099 | CZ23: =+CY23+1 -> 2100
A24: Feedstock Type
A25: ='HyARC Physical Property Data'!A73 -> Residential Natural Gas | B25: 2011 | C25: =VLOOKUP(ref_year,DeflatorTable,2,FALSE)/VLOOKUP(B25,DeflatorTable,2,FALSE) -> 1.077176781 | D25: ='HyARC Physical Property Data'!H73 -> mmBtu | E25: Feed Utility | F25: ='HyARC Physical Property Data'!$E$6 -> 47.14126905 | G25: ='HyARC Physical Property Data'!$I$6 -> 52.22466124 | H25: 14.38614184 | I25: 14.38614184 | J25: 14.38614184 | K25: 13.32671663 | L25: 13.62776448 | M25: 11.25433973 | N25: =((N42/(mmBTU_to_GJ))*($C25))*($G25/$F25) -> 12.84882003 | O25: 12.21875196 | P25: 11.8364762 | Q25: 11.85177348 | R25: 11.59792741 | S25: 11.48775061 | T25: 12.06088712 | U25: 12.43158699 | V25: 12.89196662 | W25: 13.14916873 | X25: 13.32035025 | Y25: 13.52820496 | Z25: 13.80326632 | AA25: 14.06239359 | AB25: 14.2346214 | AC25: 14.33618924 | AD25: 14.52574581 | AE25: 14.62921732 | AF25: 14.80136708 | AG25: 14.9696846 | AH25: 15.12194813 | AI25: 15.32339052 | AJ25: 15.52101763 | AK25: 15.76317697 | AL25: 16.11725841 | AM25: 16.51303296 | AN25: 16.99361893 | AO25: 17.43723535 | AP25: 17.91952253 | AQ25: 18.16100092 | AR25: 18.50860784 | AS25: =($BB25-$AR25)/10+AR25 -> 18.5158394 | AT25: =($BB25-$AR25)/10+AS25 -> 18.52307095 | AU25: 18.53030251 | AV25: 18.53753407 | AW25: 18.54476563 | AX25: 18.55199719 | AY25: 18.55922875 | AZ25: 18.56646031 | BA25: 18.57369187 | BB25: ='AEO Data'!$B$30*AM25 -> 18.58092342 | BC25: =($BQ25-$BB25)/15+BB25 -> 18.73232694 | BD25: =($BQ25-$BB25)/15+BC25 -> 18.88373045 | BE25: 19.03513396 | BF25: 19.18653747 | BG25: 19.33794098 | BH25: 19.48934449 | BI25: 19.64074801 | BJ25: 19.79215152 | BK25: 19.94355503 | BL25: 20.09495854 | BM25: 20.24636205 | BN25: 20.39776557 | BO25: 20.54916908 | BP25: 20.70057259 | BQ25: ='AEO Data'!$C$30*BB25 -> 20.8519761 | BR25: =($BV25-$BQ25)/5+BQ25 -> 20.97116327 | BS25: =($BV25-$BQ25)/5+BR25 -> 21.09035045 | BT25: =($BV25-$BQ25)/5+BS25 -> 21.20953762 | BU25: =($BV25-$BQ25)/5+BT25 -> 21.32872479 | BV25: ='AEO Data'!$D$30*BQ25 -> 21.44791196 | BW25: =+BV25*BW$133/BV$133 -> 21.51912534 | BX25: =+BW25*BX$133/BW$133 -> 21.59057516 | BY25: 21.66226222 | BZ25: 21.7341873 | CA25: 21.80635119 | CB25: 21.85288438 | CC25: 21.89951687 | CD25: 21.94624886 | CE25: 21.99308058 | CF25: 22.04001224 | CG25: 22.05525065 | CH25: 22.0704996 | CI25: 22.08575909 | CJ25: 22.10102913 | CK25: 22.11630973 | CL25: 22.12148917 | CM25: 22.12666983 | CN25: 22.1318517 | CO25: 22.13703478 | CP25: 22.14221908 | CQ25: 22.15007638 | CR25: 22.15793647 | CS25: 22.16579935 | CT25: 22.17366502 | CU25: 22.18153348 | CV25: 22.19364307 | CW25: 22.20575928 | CX25: 22.2178821 | CY25: 22.23001153 | CZ25: 22.24214759
A26: ='HyARC Physical Property Data'!A71 -> Commercial Natural Gas | B26: 2011 | C26: =VLOOKUP(ref_year,DeflatorTable,2,FALSE)/VLOOKUP(B26,DeflatorTable,2,FALSE) -> 1.077176781 | D26: ='HyARC Physical Property Data'!H71 -> mmBtu | E26: Feed Utility | F26: ='HyARC Physical Property Data'!$E$6 -> 47.14126905 | G26: ='HyARC Physical Property Data'!$I$6 -> 52.22466124 | H26: 12.49183679 | I26: 12.49183679 | J26: 12.49183679 | K26: 11.54020185 | L26: 11.90663327 | M26: 9.353676585 | N26: =((N43/(mmBTU_to_GJ))*($C26))*($G26/$F26) -> 10.62911136 | O26: 9.995554915 | P26: 9.131305306 | Q26: 9.572372184 | R26: 9.315073935 | S26: 9.167010257 | T26: 9.683566988 | U26: 9.981902291 | V26: 10.37495423 | W26: 10.57689884 | X26: 10.70947295 | Y26: 10.87113383 | Z26: 11.10667837 | AA26: 11.32432406 | AB26: 11.46166471 | AC26: 11.53025134 | AD26: 11.6907415 | AE26: 11.75010158 | AF26: 11.87677124 | AG26: 11.99589859 | AH26: 12.09984631 | AI26: 12.25276249 | AJ26: 12.39097524 | AK26: 12.57634101 | AL26: 12.87600538 | AM26: 13.21336208 | AN26: 13.64254993 | AO26: 14.02736845 | AP26: 14.45744083 | AQ26: 14.64675987 | AR26: 14.94540736 | AS26: =($BB26-$AR26)/10+AR26 -> 14.93767083 | AT26: 14.92993431 | AU26: 14.92219778 | AV26: 14.91446125 | AW26: 14.90672472 | AX26: 14.89898819 | AY26: 14.89125167 | AZ26: 14.88351514 | BA26: 14.87577861 | BB26: ='AEO Data'!$B$30*AM26 -> 14.86804208 | BC26: =($BQ26-$BB26)/15+BB26 -> 14.98919181 | BD26: 15.11034153 | BE26: 15.23149126 | BF26: 15.35264099 | BG26: 15.47379071 | BH26: 15.59494044 | BI26: 15.71609017 | BJ26: 15.83723989 | BK26: 15.95838962 | BL26: 16.07953934 | BM26: 16.20068907 | BN26: 16.3218388 | BO26: 16.44298852 | BP26: 16.56413825 | BQ26: ='AEO Data'!$C$30*BB26 -> 16.68528798 | BR26: =($BV26-$BQ26)/5+BQ26 -> 16.7806589 | BS26: 16.87602983 | BT26: 16.97140076 | BU26: 17.06677168 | BV26: ='AEO Data'!$D$30*BQ26 -> 17.16214261 | BW26: =+BV26*BW$134/BV$134 -> 17.21912597 | BX26: =+BW26*BX$134/BW$134 -> 17.27629853 | BY26: 17.33366092 | BZ26: 17.39121377 | CA26: 17.44895772 | CB26: 17.48619254 | CC26: 17.52350682 | CD26: 17.56090073 | CE26: 17.59837443 | CF26: 17.6359281 | CG26: 17.64812153 | CH26: 17.6603234 | CI26: 17.67253371 | CJ26: 17.68475245 | CK26: 17.69697965 | CL26: 17.70112413 | CM26: 17.70526957 | CN26: 17.70941599 | CO26: 17.71356338 | CP26: 17.71771174 | CQ26: 17.72399898 | CR26: 17.73028845 | CS26: 17.73658015 | CT26: 17.74287408 | CU26: 17.74917025 | CV26: 17.75886007 | CW26: 17.76855519 | CX26: 17.7782556 | CY26: 17.78796131 | CZ26: 17.79767231
A27: ='HyARC Physical Property Data'!A72 -> Industrial Natural Gas | B27: 2011 | C27: =VLOOKUP(ref_year,DeflatorTable,2,FALSE)/VLOOKUP(B27,DeflatorTable,2,FALSE) -> 1.077176781 | D27: ='HyARC Physical Property Data'!H72 -> mmBtu | E27: Feed Utility | F27: ='HyARC Physical Property Data'!$E$6 -> 47.14126905 | G27: ='HyARC Physical Property Data'!$I$6 -> 52.22466124 | H27: 8.352400601 | I27: 8.352400601 | J27: 8.352400601 | K27: 7.891606632 | L27: 9.242029801 | M27: 5.091378565 | N27: =((N44/(mmBTU_to_GJ))*($C27))*($G27/$F27) -> 6.203019753 | O27: 5.530967882 | P27: 4.252658028 | Q27: 4.902262812 | R27: 4.948711146 | S27: 5.002420142 | T27: 5.504073229 | U27: 5.73245212 | V27: 6.018983049 | W27: 6.164378413 | X27: 6.254431443 | Y27: 6.380293487 | Z27: 6.591915958 | AA27: 6.798831837 | AB27: 6.911156631 | AC27: 6.957747485 | AD27: 7.076018579 | AE27: 7.120308735 | AF27: 7.235531459 | AG27: 7.336732813 | AH27: 7.421828142 | AI27: 7.552074409 | AJ27: 7.658968692 | AK27: 7.82282055 | AL27: 8.108724838 | AM27: 8.421661776 | AN27: 8.837676596 | AO27: 9.222772237 | AP27: 9.613301781 | AQ27: 9.772181233 | AR27: 10.04558664 | AS27: =($BB27-$AR27)/10+AR27 -> 9.988656753 | AT27: 9.931726868 | AU27: 9.874796983 | AV27: 9.817867097 | AW27: 9.760937212 | AX27: 9.704007326 | AY27: 9.647077441 | AZ27: 9.590147556 | BA27: 9.53321767 | BB27: ='AEO Data'!$B$30*AM27 -> 9.476287785 | BC27: 9.553503713 | BD27: 9.630719641 | BE27: 9.70793557 | BF27: 9.785151498 | BG27: 9.862367426 | BH27: 9.939583354 | BI27: 10.01679928 | BJ27: 10.09401521 | BK27: 10.17123114 | BL27: 10.24844707 | BM27: 10.325663 | BN27: 10.40287892 | BO27: 10.48009485 | BP27: 10.55731078 | BQ27: ='AEO Data'!$C$30*BB27 -> 10.63452671 | BR27: 10.69531227 | BS27: 10.75609784 | BT27: 10.81688341 | BU27: 10.87766897 | BV27: ='AEO Data'!$D$30*BQ27 -> 10.93845454 | BW27: =+BV27*BW$135/BV$135 -> 10.97477342 | BX27: =+BW27*BX$135/BW$135 -> 11.0112129 | BY27: 11.04777336 | BZ27: 11.08445522 | CA27: 11.12125887 | CB27: 11.14499084 | CC27: 11.16877345 | CD27: 11.19260681 | CE27: 11.21649103 | CF27: 11.24042622 | CG27: 11.24819782 | CH27: 11.2559748 | CI27: 11.26375715 | CJ27: 11.27154488 | CK27: 11.279338 | CL27: 11.28197952 | CM27: 11.28462166 | CN27: 11.28726442 | CO27: 11.2899078 | CP27: 11.2925518 | CQ27: 11.29655903 | CR27: 11.30056768 | CS27: 11.30457776 | CT27: 11.30858925 | CU27: 11.31260218 | CV27: 11.31877808 | CW27: 11.32495735 | CX27: 11.33114 | CY27: 11.33732603 | CZ27: 11.34351543
A28: ='HyARC Physical Property Data'!A74 -> Electric Utility Natural Gas | B28: 2011 | C28: 1.077176781 | D28: ='HyARC Physical Property Data'!H74 -> mmBtu | E28: Feed Utility | F28: ='HyARC Physical Property Data'!$E$6 -> 47.14126905 | G28: ='HyARC Physical Property Data'!$I$6 -> 52.22466124 | H28: 7.407925909 | I28: 7.407925909 | J28: 7.407925909 | K28: 7.370671092 | L28: 9.31589251 | M28: 4.783762318 | N28: =((N45/(mmBTU_to_GJ))*($C28))*($G28/$F28) -> 5.947618392 | O28: 5.40077704 | P28: 3.757306414 | Q28: 4.20271227 | R28: 4.250998675 | S28: 4.345845393 | T28: 4.84415715 | U28: 5.03198537 | V28: 5.319219856 | W28: 5.454525625 | X28: 5.538824645 | Y28: 5.663994443 | Z28: 5.8844849 | AA28: 6.095355176 | AB28: 6.241449573 | AC28: 6.309346214 | AD28: 6.457349942 | AE28: 6.516127489 | AF28: 6.636107706 | AG28: 6.747155465 | AH28: 6.846502912 | AI28: 6.994489674 | AJ28: 7.118342847 | AK28: 7.291059297 | AL28: 7.576638953 | AM28: 7.895725793 | AN28: 8.308275991 | AO28: 8.681292396 | AP28: 9.073826285 | AQ28: 9.224274365 | AR28: 9.476282364 | AS28: =($BB28-$AR28)/10+AR28 -> 9.417103128 | AT28: 9.357923892 | AU28: 9.298744657 | AV28: 9.239565421 | AW28: 9.180386185 | AX28: 9.12120695 | AY28: 9.062027714 | AZ28: 9.002848478 | BA28: 8.943669242 | BB28: ='AEO Data'!$B$30*AM28 -> 8.884490007 | BC28: 8.956883771 | BD28: 9.029277535 | BE28: 9.101671299 | BF28: 9.174065063 | BG28: 9.246458827 | BH28: 9.318852592 | BI28: 9.391246356 | BJ28: 9.46364012 | BK28: 9.536033884 | BL28: 9.608427648 | BM28: 9.680821412 | BN28: 9.753215176 | BO28: 9.825608941 | BP28: 9.898002705 | BQ28: ='AEO Data'!$C$30*BB28 -> 9.970396469 | BR28: 10.02738595 | BS28: 10.08437544 | BT28: 10.14136492 | BU28: 10.19835441 | BV28: ='AEO Data'!$D$30*BQ28 -> 10.25534389 | BW28: =+BV28*BW$136/BV$136 -> 10.28939465 | BX28: =+BW28*BX$136/BW$136 -> 10.32355846 | BY28: 10.35783571 | BZ28: 10.39222677 | CA28: 10.42673202 | CB28: 10.44898192 | CC28: 10.4712793 | CD28: 10.49362425 | CE28: 10.5160169 | CF28: 10.53845732 | CG28: 10.54574359 | CH28: 10.55303489 | CI28: 10.56033123 | CJ28: 10.56763262 | CK28: 10.57493905 | CL28: 10.57741561 | CM28: 10.57989275 | CN28: 10.58237046 | CO28: 10.58484876 | CP28: 10.58732764 | CQ28: 10.59108462 | CR28: 10.59484293 | CS28: 10.59860257 | CT28: 10.60236355 | CU28: 10.60612587 | CV28: 10.61191608 | CW28: 10.61770946 | CX28: 10.623506 | CY28: 10.6293057 | CZ28: 10.63510857
A29: ='HyARC Physical Property Data'!A75 -> Bio Methane | B29: 2007 | C29: 1.141397159 | D29: ='HyARC Physical Property Data'!H75 -> mmBtu | E29: Feed Utility | F29: ='HyARC Physical Property Data'!$E$6 -> 47.14126905 | G29: ='HyARC Physical Property Data'!$I$6 -> 52.22466124 | H29: 12.42654028 | I29: 12.42654028 | J29: 12.42654028 | K29: 12.42654028 | L29: 12.42654028 | M29: 12.42654028 | N29: =13.11*($C$29/mmBTU_to_GJ) -> 14.18361777 | O29: 14.18361777 | P29: 14.18361777 | Q29: 14.18361777 | R29: 14.18361777 | S29: 14.18361777 | T29: 14.18361777 | U29: 14.18361777 | V29: 14.18361777 | W29: 14.18361777 | X29: 14.18361777 | Y29: 14.18361777 | Z29: 14.18361777 | AA29: 14.18361777 | AB29: 14.18361777 | AC29: 14.18361777 | AD29: 14.18361777 | AE29: 14.18361777 | AF29: 14.18361777 | AG29: 14.18361777 | AH29: 14.18361777 | AI29: 14.18361777 | AJ29: 14.18361777 | AK29: 14.18361777 | AL29: 14.18361777 | AM29: 14.18361777 | AN29: =13.11*($C$29/mmBTU_to_GJ) -> 14.18361777 | AO29: 14.18361777 | AP29: 14.18361777 | AQ29: 14.18361777 | AR29: 14.18361777 | AS29: 14.18361777 | AT29: 14.18361777 | AU29: 14.18361777 | AV29: 14.18361777 | AW29: 14.18361777 | AX29: 14.18361777 | AY29: 14.18361777 | AZ29: 14.18361777 | BA29: 14.18361777 | BB29: 14.18361777 | BC29: 14.18361777 | BD29: 14.18361777 | BE29: 14.18361777 | BF29: 14.18361777 | BG29: 14.18361777 | BH29: 14.18361777 | BI29: 14.18361777 | BJ29: 14.18361777 | BK29: 14.18361777 | BL29: 14.18361777 | BM29: 14.18361777 | BN29: 14.18361777 | BO29: 14.18361777 | BP29: 14.18361777 | BQ29: 14.18361777 | BR29: 14.18361777 | BS29: 14.18361777 | BT29: 14.18361777 | BU29: 14.18361777 | BV29: 14.18361777 | BW29: =+BV29*BW$136/BV$136 -> 14.23071156 | BX29: =+BW29*BX$136/BW$136 -> 14.2779617 | BY29: 14.32536873 | BZ29: 14.37293317 | CA29: 14.42065553 | CB29: 14.45142818 | CC29: 14.48226649 | CD29: 14.51317061 | CE29: 14.54414067 | CF29: 14.57517682 | CG29: 14.58525407 | CH29: 14.59533828 | CI29: 14.60542946 | CJ29: 14.61552762 | CK29: 14.62563276 | CL29: 14.62905795 | CM29: 14.63248395 | CN29: 14.63591074 | CO29: 14.63933835 | CP29: 14.64276675 | CQ29: 14.64796282 | CR29: 14.65316074 | CS29: 14.65836051 | CT29: 14.66356211 | CU29: 14.66876557 | CV29: 14.67677371 | CW29: 14.68478622 | CX29: 14.6928031 | CY29: 14.70082436 | CZ29: 14.70885
A30: ='HyARC Physical Property Data'!A85 -> Woody Biomass | B30: 2005 | C30: =VLOOKUP(ref_year,DeflatorTable,2,FALSE)/VLOOKUP(B30,DeflatorTable,2,FALSE) -> 1.208440716 | D30: =+'HyARC Physical Property Data'!$H$85 -> kg | E30: Feed | F30: ='HyARC Physical Property Data'!$E$45 -> 19.55106924 | G30: ='HyARC Physical Property Data'!$I$45 -> 20.58865638 | H30: 1.343823884 | I30: 1.343823884 | J30: 1.343823884 | K30: 1.343823884 | L30: 1.343823884 | M30: 1.343823884 | N30: =1.27*($C$30) -> 1.534719709 | O30: =1.27*($C$30) -> 1.534719709 | P30: =1.28*($C$30) -> 1.546804117 | Q30: =1.32*($C$30) -> 1.595141745 | R30: =1.32*($C$30) -> 1.595141745 | S30: =1.34*($C$30) -> 1.61931056 | T30: =1.34*($C$30) -> 1.61931056 | U30: =1.36*($C$30) -> 1.643479374 | V30: =1.36*($C$30) -> 1.643479374 | W30: =1.38*($C$30) -> 1.667648188 | X30: =1.4*($C$30) -> 1.691817003 | Y30: =1.46*($C$30) -> 1.764323446 | Z30: =1.48*($C$30) -> 1.78849226 | AA30: =1.48*($C$30) -> 1.78849226 | AB30: =1.51*($C$30) -> 1.824745481 | AC30: =1.52*($C$30) -> 1.836829889 | AD30: =1.62*($C$30) -> 1.95767396 | AE30: =1.72*($C$30) -> 2.078518032 | AF30: =1.82*($C$30) -> 2.199362103 | AG30: =1.91*($C$30) -> 2.308121768 | AH30: =2.01*($C$30) -> 2.428965839 | AI30: =2.11*($C$30) -> 2.549809911 | AJ30: =2.2*($C$30) -> 2.658569575 | AK30: =2.3*($C$30) -> 2.779413647 | AL30: =2.4*($C$30) -> 2.900257719 | AM30: =2.5*($C$30) -> 3.02110179 | AN30: =2.57*($C$30) -> 3.10569264 | AO30: =2.64*($C$30) -> 3.190283491 | AP30: =2.71*($C$30) -> 3.274874341 | AQ30: =2.78*($C$30) -> 3.359465191 | AR30: =2.85*($C$30) -> 3.444056041 | AS30: =2.92*($C$30) -> 3.528646891 | AT30: =2.99*($C$30) -> 3.613237741 | AU30: =3.07*($C$30) -> 3.709912999 | AV30: =3.14*($C$30) -> 3.794503849 | AW30: =3.21*($C$30) -> 3.879094699 | AX30: =3.28*($C$30) -> 3.963685549 | AY30: =3.35*($C$30) -> 4.048276399 | AZ30: =3.42*($C$30) -> 4.132867249 | BA30: =3.49*($C$30) -> 4.217458099 | BB30: =3.56*($C$30) -> 4.302048949 | BC30: =3.64*($C$30) -> 4.398724207 | BD30: =3.71*($C$30) -> 4.483315057 | BE30: =3.78*($C$30) -> 4.567905907 | BF30: =3.85*($C$30) -> 4.652496757 | BG30: =3.92*($C$30) -> 4.737087607 | BH30: =3.99*($C$30) -> 4.821678457 | BI30: =4.06*($C$30) -> 4.906269307 | BJ30: =4.14*($C$30) -> 5.002944565 | BK30: =4.21*($C$30) -> 5.087535415 | BL30: =4.28*($C$30) -> 5.172126265 | BM30: =4.35*($C$30) -> 5.256717115 | BN30: =4.42*($C$30) -> 5.341307965 | BO30: =4.49*($C$30) -> 5.425898815 | BP30: =4.56*($C$30) -> 5.510489666 | BQ30: =4.63*($C$30) -> 5.595080516 | BR30: =4.71*($C$30) -> 5.691755773 | BS30: =4.78*($C$30) -> 5.776346623 | BT30: =4.85*($C$30) -> 5.860937473 | BU30: =4.92*($C$30) -> 5.945528323 | BV30: =4.99*($C$30) -> 6.030119173 | BW30: =+BV30*BW$137/BV$137 -> 6.044613208 | BX30: =+BW30*BX$137/BW$137 -> 6.05914208 | BY30: 6.073705874 | BZ30: 6.088304673 | CA30: 6.102938562 | CB30: 6.115748568 | CC30: 6.128585462 | CD30: 6.1414493 | CE30: 6.15434014 | CF30: 6.167258037 | CG30: 6.183149548 | CH30: 6.199082008 | CI30: 6.215055522 | CJ30: 6.231070196 | CK30: 6.247126135 | CL30: 6.2604976 | CM30: 6.273897685 | CN30: 6.287326452 | CO30: 6.300783962 | CP30: 6.314270276 | CQ30: 6.326614173 | CR30: 6.3389822 | CS30: 6.351374406 | CT30: 6.363790838 | CU30: 6.376231543 | CV30: 6.390919363 | CW30: 6.405641018 | CX30: 6.420396584 | CY30: 6.43518614 | CZ30: 6.450009764
A31: ='HyARC Physical Property Data'!$A$87 -> Woody Biomass MYPP | B31: 2007 | C31: =VLOOKUP(ref_year,DeflatorTable,2,FALSE)/VLOOKUP(B31,DeflatorTable,2,FALSE) -> 1.141397159 | D31: =+'HyARC Physical Property Data'!$H$87 -> kg | E31: Feed | F31: 18.608 | H31: 4.444325021 | I31: 4.444325021 | J31: 4.444325021 | K31: 4.444325021 | L31: 4.444325021 | M31: 4.444325021 | N31: =4.44432502149613*$C$31 -> 5.072739952 | O31: =N31-($N$31-$U$31)/7 -> 4.952427775 | P31: 4.832115597 | Q31: 4.71180342 | R31: 4.591491243 | S31: 4.471179065 | T31: 4.350866888 | U31: =3.70647033533964*$C$31 -> 4.23055471 | V31: =3.70647033533964*$C$31 -> 4.23055471 | W31: 4.23055471 | X31: 4.23055471 | Y31: 4.23055471 | Z31: 4.23055471 | AA31: 4.23055471 | AB31: 4.23055471 | AC31: 4.23055471 | AD31: 4.23055471 | AE31: 4.23055471 | AF31: 4.23055471 | AG31: 4.23055471 | AH31: 4.23055471 | AI31: 4.23055471 | AJ31: 4.23055471 | AK31: 4.23055471 | AL31: 4.23055471 | AM31: 4.23055471 | AN31: 4.23055471 | AO31: 4.23055471 | AP31: 4.23055471 | AQ31: 4.23055471 | AR31: 4.23055471 | AS31: 4.23055471 | AT31: 4.23055471 | AU31: 4.23055471 | AV31: 4.23055471 | AW31: 4.23055471 | AX31: 4.23055471 | AY31: 4.23055471 | AZ31: 4.23055471 | BA31: 4.23055471 | BB31: 4.23055471 | BC31: 4.23055471 | BD31: 4.23055471 | BE31: 4.23055471 | BF31: 4.23055471 | BG31: 4.23055471 | BH31: 4.23055471 | BI31: 4.23055471 | BJ31: 4.23055471 | BK31: 4.23055471 | BL31: 4.23055471 | BM31: 4.23055471 | BN31: 4.23055471 | BO31: 4.23055471 | BP31: 4.23055471 | BQ31: 4.23055471 | BR31: 4.23055471 | BS31: 4.23055471 | BT31: 4.23055471 | BU31: 4.23055471 | BV31: 4.23055471 | BW31: =+BV31*BW$137/BV$137 -> 4.240723299 | BX31: =+BW31*BX$137/BW$137 -> 4.25091633 | BY31: 4.26113386 | BZ31: 4.27137595 | CA31: 4.281642657 | CB31: 4.290629781 | CC31: 4.299635769 | CD31: 4.308660661 | CE31: 4.317704496 | CF31: 4.326767313 | CG31: 4.337916332 | CH31: 4.349094078 | CI31: 4.360300627 | CJ31: 4.371536052 | CK31: 4.382800428 | CL31: 4.392181455 | CM31: 4.401582562 | CN31: 4.411003791 | CO31: 4.420445185 | CP31: 4.429906788 | CQ31: 4.438566903 | CR31: 4.447243949 | CS31: 4.455937957 | CT31: 4.464648961 | CU31: 4.473376995 | CV31: 4.483681539 | CW31: 4.494009819 | CX31: 4.504361892 | CY31: 4.51473781 | CZ31: 4.52513763
